Workbook

Sheet Exercise
A1: Exercise
B5: Time: 2.5 hours
B7: CONTEXT
B10: PF is considering financing the construction of a PPP toll road in Colombia. The concession contract starts on January 1, 2022 and it is 30-yrs long. Construction will last 3 years, starting on January 1, 2022. At the beginning of construction, the project’s shareholders decide to leverage the project using non-recourse project financing through a long-term loan of 17 years with Financial Close on January 1, 2022. Equity during construction is funded pro-rata with senior debt. Interests and financing costs are capitalized during construction. Debt Interest is paid annually at the end of each calendar year. Debt Principal is paid annually during operation throughout the loan tenor. The amortization profile should be tailored respecting the terms and conditions indicated in the "Inputs" Sheet.
B11: EXERCISE
B13: Calculate the project’s Debt Capacity tailored according to the terms and conditions indicated in the "Inputs" sheet.
B14: Calculate the three Financial Statements: Income Statement, Balance Sheet, and Statement of Cash Flows.

Sheet Comments
C5: Revise the Input Structure
C7: Work through logic (e.g. start with operations, do not mix IDC depreciation)
C9: Note that no repayment -- assume that sculpted
C11: Understand why where is the difficulty
C12: Circular References for IDC and Fees
C13: Circuarity for Taxes
C14: Options for Debt Sizing
C16: Annual IDC with Average
C18: Interest = Rate x Opening + 1/2 Funding
C19: Funding = (IDC + Cap Exp) * debt percent

Sheet Inputs
A1: Inputs
F4: Units | G4: Scenario
B6: TIMING
E7: Concession Start Date | F7: Date | G7: 2022-01-01
E8: Concession Period | F8: [Years] | G8: 30
E9: Concession End Date | F9: [Date] | G9: 2051-12-31
E11: Financial Close | F11: [Date] | G11: 2022-01-01
E13: Construction Start Date | F13: [Date] | G13: 2022-01-01
E14: Construction Period | F14: [Years] | G14: 3
E15: Construction End Date | F15: [Date] | G15: 2024-12-31
E17: Operation Start Date | F17: [Date] | G17: 2025-01-01
E18: Operation End Date | F18: [Date] | G18: 2051-12-31
B21: CONSTRUCTION COSTS
E22: Total Construction Costs | F22: [USD 000] | G22: 70000
E24: Year 1 | F24: [%] | G24: 0.3
E25: Year 2 | F25: [%] | G25: 0.3
E26: Year 3 | F26: [%] | G26: 0.4
B28: OPERATION
C30: Consumer Price Index | F30: [%] | G30: 0.02
C32: Revenues (Starting from Operations)
E34: Tariff - Light Vehicles (2022) | F34: [USD] | G34: 10
E35: Tariff - Heavy Trucks (2022) | F35: [USD] | G35: 15
E37: Traffic - Total Annual Light Vehicles (2022) | F37: [# Light Vehicles] | G37: 250000
E38: Traffic Total Annual Heavy Trucks (2022) | F38: [# Heavy Trucks] | G38: 100000
E40: Traffic Annual Growth Rate - Light Vehicles | F40: [%] | G40: 0.035
E41: Traffic Annual Growth Rate - Heavy Trucks | F41: [%] | G41: 0.035
E43: Tariff Increment Rate - Light Vehicles | F43: [%] | G43: 0.035
E44: Tariff Increment Rate - Heavy Trucks | F44: [%] | G44: 0.035
C46: Expenses (Starting from Operations)
E47: OPEX (2022) - Starting from Operation | F47: [USD 000] | G47: 1000
E48: OPEX Growth Rate | F48: [%] | G48: Inflation
C50: Working Capital
E51: Working Capital Trade Debtors - Revenues | F51: [Days] | G51: 0
E52: Working Capital Trade Creditors - Expenses | F52: [Days] | G52: 30
E53: Working Capital Trade Creditors - Taxes | F53: [Days] | G53: 0
C55: Depreciation & Amortization
E56: Depreciation Method | F56: [Type] | G56: Linear
E57: Depreciation Period | F57: [Years] | G57: 27
C59: Income Tax
E60: Income Tax Rate | F60: [%] | G60: 0.3
B62: SENIOR DEBT FINANCING
D63: Debt Size
E64: Maximum Gearing | F64: [%] | G64: 0.75
E65: Required Sizing DSCR | F65: [x] | G65: 1.35
D67: Debt Funding
E68: Equity Disbursement Method | G68: Pro-rata
D70: Interest Rate and Fees
E71: Upfront Fee | F71: [%] | G71: 0.02
E72: Commitment Fee | F72: [%] | G72: 0.015
E74: LIBOR 12M - Flat | F74: [%] | G74: 0.015
E75: Applicable Margin | F75: [%] | G75: 0.025
E77: Tenor | F77: [Years] | G77: 17
E78: Date After Repayment | F78: Date | G78: =EDATE(G17,G77*12) -> 2042-01-01

Sheet Timing
B1: =MID(CELL("filename",B6),FIND("]",CELL("filename",B6))+1,255) -> Timing
E2: =E$21 -> Financial period end date | I2: =I$21 -> 0 | J2: 2022-12-31 | K2: 2023-12-31 | L2: 2024-12-31 | M2: 2025-12-31 | N2: 2026-12-31 | O2: 2027-12-31 | P2: 2028-12-31 | Q2: 2029-12-31 | R2: 2030-12-31 | S2: 2031-12-31 | T2: 2032-12-31 | U2: 2033-12-31 | V2: 2034-12-31 | W2: 2035-12-31 | X2: 2036-12-31 | Y2: 2037-12-31 | Z2: 2038-12-31 | AA2: 2039-12-31 | AB2: 2040-12-31 | AC2: 2041-12-31 | AD2: 2042-12-31 | AE2: 2043-12-31 | AF2: 2044-12-31 | AG2: 2045-12-31 | AH2: 2046-12-31 | AI2: 2047-12-31 | AJ2: 2048-12-31 | AK2: 2049-12-31 | AL2: 2050-12-31 | AM2: 2051-12-31 | AN2: 2052-12-31 | AO2: 2053-12-31 | AP2: 2054-12-31 | AQ2: 2055-12-31 | AR2: 2056-12-31 | AS2: 2057-12-31 | AT2: 2058-12-31 | AU2: 2059-12-31 | AV2: 2060-12-31 | AW2: 2061-12-31 | AX2: 2062-12-31 | AY2: 2063-12-31 | AZ2: 2064-12-31 | BA2: 2065-12-31 | BB2: 2066-12-31 | BC2: 2067-12-31 | BD2: 2068-12-31 | BE2: 2069-12-31 | BF2: 2070-12-31 | BG2: 2071-12-31 | BH2: 2072-12-31 | BI2: 2073-12-31 | BJ2: 2074-12-31 | BK2: 2075-12-31 | BL2: 2076-12-31 | BM2: 2077-12-31 | BN2: 2078-12-31 | BO2: 2079-12-31 | BP2: 2080-12-31 | BQ2: 2081-12-31 | BR2: =BR$21 -> 2082-12-31 | BS2: 2083-12-31 | BT2: 2084-12-31 | BU2: 2085-12-31 | BV2: 2086-12-31 | BW2: 2087-12-31 | BX2: 2088-12-31 | BY2: 2089-12-31 | BZ2: 2090-12-31 | CA2: 2091-12-31 | CB2: 2092-12-31 | CC2: 2093-12-31 | CD2: 2094-12-31 | CE2: 2095-12-31 | CF2: 2096-12-31 | CG2: 2097-12-31 | CH2: 2098-12-31 | CI2: 2099-12-31
E3: =E$106 -> Timeline | I3: =I$106 -> 0 | J3: FC | K3: Construction | L3: Construction | M3: Operation | N3: Operation | O3: Operation | P3: Operation | Q3: Operation | R3: Operation | S3: Operation | T3: Operation | U3: Operation | V3: Operation | W3: Operation | X3: Operation | Y3: Operation | Z3: Operation | AA3: Operation | AB3: Operation | AC3: Operation | AD3: Operation | AE3: Operation | AF3: Operation | AG3: Operation | AH3: Operation | AI3: Operation | AJ3: Operation | AK3: Operation | AL3: Operation | AM3: Operation | AN3: Post-operate. | AO3: Post-operate. | AP3: Post-operate. | AQ3: Post-operate. | AR3: Post-operate. | AS3: Post-operate. | AT3: Post-operate. | AU3: Post-operate. | AV3: Post-operate. | AW3: Post-operate. | AX3: Post-operate. | AY3: Post-operate. | AZ3: Post-operate. | BA3: Post-operate. | BB3: Post-operate. | BC3: Post-operate. | BD3: Post-operate. | BE3: Post-operate. | BF3: Post-operate. | BG3: Post-operate. | BH3: Post-operate. | BI3: Post-operate. | BJ3: Post-operate. | BK3: Post-operate. | BL3: Post-operate. | BM3: Post-operate. | BN3: Post-operate. | BO3: Post-operate. | BP3: Post-operate. | BQ3: Post-operate. | BR3: =BR$106 -> Post-operate. | BS3: Post-operate. | BT3: Post-operate. | BU3: Post-operate. | BV3: Post-operate. | BW3: Post-operate. | BX3: Post-operate. | BY3: Post-operate. | BZ3: Post-operate. | CA3: Post-operate. | CB3: Post-operate. | CC3: Post-operate. | CD3: Post-operate. | CE3: Post-operate. | CF3: Post-operate. | CG3: Post-operate. | CH3: Post-operate. | CI3: Post-operate.
E4: =E$24 -> Financial year | I4: =I$24 -> 0 | J4: 2022 | K4: 2023 | L4: 2024 | M4: 2025 | N4: 2026 | O4: 2027 | P4: 2028 | Q4: 2029 | R4: 2030 | S4: 2031 | T4: 2032 | U4: 2033 | V4: 2034 | W4: 2035 | X4: 2036 | Y4: 2037 | Z4: 2038 | AA4: 2039 | AB4: 2040 | AC4: 2041 | AD4: 2042 | AE4: 2043 | AF4: 2044 | AG4: 2045 | AH4: 2046 | AI4: 2047 | AJ4: 2048 | AK4: 2049 | AL4: 2050 | AM4: 2051 | AN4: 2052 | AO4: 2053 | AP4: 2054 | AQ4: 2055 | AR4: 2056 | AS4: 2057 | AT4: 2058 | AU4: 2059 | AV4: 2060 | AW4: 2061 | AX4: 2062 | AY4: 2063 | AZ4: 2064 | BA4: 2065 | BB4: 2066 | BC4: 2067 | BD4: 2068 | BE4: 2069 | BF4: 2070 | BG4: 2071 | BH4: 2072 | BI4: 2073 | BJ4: 2074 | BK4: 2075 | BL4: 2076 | BM4: 2077 | BN4: 2078 | BO4: 2079 | BP4: 2080 | BQ4: 2081 | BR4: =BR$24 -> 2082 | BS4: 2083 | BT4: 2084 | BU4: 2085 | BV4: 2086 | BW4: 2087 | BX4: 2088 | BY4: 2089 | BZ4: 2090 | CA4: 2091 | CB4: 2092 | CC4: 2093 | CD4: 2094 | CE4: 2095 | CF4: 2096 | CG4: 2097 | CH4: 2098 | CI4: 2099
F5: Inputs | G5: Units | H5: Total
B7: MODEL DATES
E9: Column counter | J9: =I9+1 -> 1 | K9: =J9+1 -> 2 | L9: 3 | M9: 4 | N9: 5 | O9: 6 | P9: 7 | Q9: 8 | R9: 9 | S9: 10 | T9: 11 | U9: 12 | V9: 13 | W9: 14 | X9: 15 | Y9: 16 | Z9: 17 | AA9: 18 | AB9: 19 | AC9: 20 | AD9: 21 | AE9: 22 | AF9: 23 | AG9: 24 | AH9: 25 | AI9: 26 | AJ9: 27 | AK9: 28 | AL9: 29 | AM9: 30 | AN9: 31 | AO9: 32 | AP9: 33 | AQ9: 34 | AR9: 35 | AS9: 36 | AT9: 37 | AU9: 38 | AV9: 39 | AW9: 40 | AX9: 41 | AY9: 42 | AZ9: 43 | BA9: 44 | BB9: 45 | BC9: 46 | BD9: 47 | BE9: 48 | BF9: 49 | BG9: 50 | BH9: 51 | BI9: 52 | BJ9: 53 | BK9: 54 | BL9: 55 | BM9: 56 | BN9: 57 | BO9: 58 | BP9: 59 | BQ9: 60 | BR9: 61 | BS9: 62 | BT9: 63 | BU9: 64 | BV9: 65 | BW9: =BV9+1 -> 66 | BX9: 67 | BY9: 68 | BZ9: 69 | CA9: 70 | CB9: 71 | CC9: 72 | CD9: 73 | CE9: 74 | CF9: 75 | CG9: 76 | CH9: 77 | CI9: 78
E11: =E$9 -> Column counter | F11: =F$9 -> 0 | G11: 0 | H11: 0 | I11: 0 | J11: 1 | K11: 2 | L11: 3 | M11: 4 | N11: 5 | O11: 6 | P11: 7 | Q11: 8 | R11: 9 | S11: 10 | T11: 11 | U11: 12 | V11: 13 | W11: 14 | X11: 15 | Y11: 16 | Z11: 17 | AA11: 18 | AB11: 19 | AC11: 20 | AD11: 21 | AE11: 22 | AF11: 23 | AG11: 24 | AH11: 25 | AI11: 26 | AJ11: 27 | AK11: 28 | AL11: 29 | AM11: 30 | AN11: 31 | AO11: 32 | AP11: 33 | AQ11: 34 | AR11: 35 | AS11: 36 | AT11: 37 | AU11: 38 | AV11: 39 | AW11: 40 | AX11: 41 | AY11: 42 | AZ11: 43 | BA11: 44 | BB11: 45 | BC11: 46 | BD11: 47 | BE11: 48 | BF11: 49 | BG11: 50 | BH11: 51 | BI11: 52 | BJ11: 53 | BK11: 54 | BL11: 55 | BM11: 56 | BN11: 57 | BO11: 58 | BP11: 59 | BQ11: 60 | BR11: =BR$9 -> 61 | BS11: 62 | BT11: 63 | BU11: 64 | BV11: 65 | BW11: 66 | BX11: 67 | BY11: 68 | BZ11: 69 | CA11: 70 | CB11: 71 | CC11: 72 | CD11: 73 | CE11: 74 | CF11: 75 | CG11: 76 | CH11: 77 | CI11: 78
E12: Fist column flag | G12: Flag | H12: =SUM(J12:CI12) -> 1 | J12: =IF(J11=1,1,0) -> 1 | K12: =IF(K11=1,1,0) -> 0 | L12: 0 | M12: 0 | N12: 0 | O12: 0 | P12: 0 | Q12: 0 | R12: 0 | S12: 0 | T12: 0 | U12: 0 | V12: 0 | W12: 0 | X12: 0 | Y12: 0 | Z12: 0 | AA12: 0 | AB12: 0 | AC12: 0 | AD12: 0 | AE12: 0 | AF12: 0 | AG12: 0 | AH12: 0 | AI12: 0 | AJ12: 0 | AK12: 0 | AL12: 0 | AM12: 0 | AN12: 0 | AO12: 0 | AP12: 0 | AQ12: 0 | AR12: 0 | AS12: 0 | AT12: 0 | AU12: 0 | AV12: 0 | AW12: 0 | AX12: 0 | AY12: 0 | AZ12: 0 | BA12: 0 | BB12: 0 | BC12: 0 | BD12: 0 | BE12: 0 | BF12: 0 | BG12: 0 | BH12: 0 | BI12: 0 | BJ12: 0 | BK12: 0 | BL12: 0 | BM12: 0 | BN12: 0 | BO12: 0 | BP12: 0 | BQ12: 0 | BR12: 0 | BS12: 0 | BT12: 0 | BU12: 0 | BV12: 0 | BW12: =IF(BW11=1,1,0) -> 0 | BX12: 0 | BY12: 0 | BZ12: 0 | CA12: 0 | CB12: 0 | CC12: 0 | CD12: 0 | CE12: 0 | CF12: 0 | CG12: 0 | CH12: 0 | CI12: 0
E14: Model start date | F14: =Inputs!G7 -> 2022-01-01 | G14: Date
E15: Months in a period | F15: 12 | G15: Months
E16: =E$12 -> Fist column flag | F16: =F$12 -> 0 | G16: Flag | H16: 1 | I16: 0 | J16: 1 | K16: 0 | L16: 0 | M16: 0 | N16: 0 | O16: 0 | P16: 0 | Q16: 0 | R16: 0 | S16: 0 | T16: 0 | U16: 0 | V16: 0 | W16: 0 | X16: 0 | Y16: 0 | Z16: 0 | AA16: 0 | AB16: 0 | AC16: 0 | AD16: 0 | AE16: 0 | AF16: 0 | AG16: 0 | AH16: 0 | AI16: 0 | AJ16: 0 | AK16: 0 | AL16: 0 | AM16: 0 | AN16: 0 | AO16: 0 | AP16: 0 | AQ16: 0 | AR16: 0 | AS16: 0 | AT16: 0 | AU16: 0 | AV16: 0 | AW16: 0 | AX16: 0 | AY16: 0 | AZ16: 0 | BA16: 0 | BB16: 0 | BC16: 0 | BD16: 0 | BE16: 0 | BF16: 0 | BG16: 0 | BH16: 0 | BI16: 0 | BJ16: 0 | BK16: 0 | BL16: 0 | BM16: 0 | BN16: 0 | BO16: 0 | BP16: 0 | BQ16: 0 | BR16: =BR$12 -> 0 | BS16: 0 | BT16: 0 | BU16: 0 | BV16: 0 | BW16: 0 | BX16: 0 | BY16: 0 | BZ16: 0 | CA16: 0 | CB16: 0 | CC16: 0 | CD16: 0 | CE16: 0 | CF16: 0 | CG16: 0 | CH16: 0 | CI16: 0
E17: Financial period beginning date | G17: Date | J17: =IF(J16=1,$F$14,DATE(YEAR(I17),MONTH(I17)+$F$15,DAY(1))) -> 2022-01-01 | K17: =IF(K16=1,$F$14,DATE(YEAR(J17),MONTH(J17)+$F$15,DAY(1))) -> 2023-01-01 | L17: 2024-01-01 | M17: 2025-01-01 | N17: 2026-01-01 | O17: 2027-01-01 | P17: 2028-01-01 | Q17: 2029-01-01 | R17: 2030-01-01 | S17: 2031-01-01 | T17: 2032-01-01 | U17: 2033-01-01 | V17: 2034-01-01 | W17: 2035-01-01 | X17: 2036-01-01 | Y17: 2037-01-01 | Z17: 2038-01-01 | AA17: 2039-01-01 | AB17: 2040-01-01 | AC17: 2041-01-01 | AD17: 2042-01-01 | AE17: 2043-01-01 | AF17: 2044-01-01 | AG17: 2045-01-01 | AH17: 2046-01-01 | AI17: 2047-01-01 | AJ17: 2048-01-01 | AK17: 2049-01-01 | AL17: 2050-01-01 | AM17: 2051-01-01 | AN17: 2052-01-01 | AO17: 2053-01-01 | AP17: 2054-01-01 | AQ17: 2055-01-01 | AR17: 2056-01-01 | AS17: 2057-01-01 | AT17: 2058-01-01 | AU17: 2059-01-01 | AV17: 2060-01-01 | AW17: 2061-01-01 | AX17: 2062-01-01 | AY17: 2063-01-01 | AZ17: 2064-01-01 | BA17: 2065-01-01 | BB17: 2066-01-01 | BC17: 2067-01-01 | BD17: 2068-01-01 | BE17: 2069-01-01 | BF17: 2070-01-01 | BG17: 2071-01-01 | BH17: 2072-01-01 | BI17: 2073-01-01 | BJ17: 2074-01-01 | BK17: 2075-01-01 | BL17: 2076-01-01 | BM17: 2077-01-01 | BN17: 2078-01-01 | BO17: 2079-01-01 | BP17: 2080-01-01 | BQ17: 2081-01-01 | BR17: 2082-01-01 | BS17: 2083-01-01 | BT17: 2084-01-01 | BU17: 2085-01-01 | BV17: 2086-01-01 | BW17: =IF(BW16=1,$F$14,DATE(YEAR(BV17),MONTH(BV17)+$F$15,DAY(1))) -> 2087-01-01 | BX17: 2088-01-01 | BY17: 2089-01-01 | BZ17: 2090-01-01 | CA17: 2091-01-01 | CB17: 2092-01-01 | CC17: 2093-01-01 | CD17: 2094-01-01 | CE17: 2095-01-01 | CF17: 2096-01-01 | CG17: 2097-01-01 | CH17: 2098-01-01 | CI17: 2099-01-01
E19: Months in a period | F19: 12 | G19: Months
E20: =E$17 -> Financial period beginning date | F20: =F$17 -> 0 | G20: Date | H20: 0 | I20: 0 | J20: 2022-01-01 | K20: 2023-01-01 | L20: 2024-01-01 | M20: 2025-01-01 | N20: 2026-01-01 | O20: 2027-01-01 | P20: 2028-01-01 | Q20: 2029-01-01 | R20: 2030-01-01 | S20: 2031-01-01 | T20: 2032-01-01 | U20: 2033-01-01 | V20: 2034-01-01 | W20: 2035-01-01 | X20: 2036-01-01 | Y20: 2037-01-01 | Z20: 2038-01-01 | AA20: 2039-01-01 | AB20: 2040-01-01 | AC20: 2041-01-01 | AD20: 2042-01-01 | AE20: 2043-01-01 | AF20: 2044-01-01 | AG20: 2045-01-01 | AH20: 2046-01-01 | AI20: 2047-01-01 | AJ20: 2048-01-01 | AK20: 2049-01-01 | AL20: 2050-01-01 | AM20: 2051-01-01 | AN20: 2052-01-01 | AO20: 2053-01-01 | AP20: 2054-01-01 | AQ20: 2055-01-01 | AR20: 2056-01-01 | AS20: 2057-01-01 | AT20: 2058-01-01 | AU20: 2059-01-01 | AV20: 2060-01-01 | AW20: 2061-01-01 | AX20: 2062-01-01 | AY20: 2063-01-01 | AZ20: 2064-01-01 | BA20: 2065-01-01 | BB20: 2066-01-01 | BC20: 2067-01-01 | BD20: 2068-01-01 | BE20: 2069-01-01 | BF20: 2070-01-01 | BG20: 2071-01-01 | BH20: 2072-01-01 | BI20: 2073-01-01 | BJ20: 2074-01-01 | BK20: 2075-01-01 | BL20: 2076-01-01 | BM20: 2077-01-01 | BN20: 2078-01-01 | BO20: 2079-01-01 | BP20: 2080-01-01 | BQ20: 2081-01-01 | BR20: =BR$17 -> 2082-01-01 | BS20: 2083-01-01 | BT20: 2084-01-01 | BU20: 2085-01-01 | BV20: 2086-01-01 | BW20: 2087-01-01 | BX20: 2088-01-01 | BY20: 2089-01-01 | BZ20: 2090-01-01 | CA20: 2091-01-01 | CB20: 2092-01-01 | CC20: 2093-01-01 | CD20: 2094-01-01 | CE20: 2095-01-01 | CF20: 2096-01-01 | CG20: 2097-01-01 | CH20: 2098-01-01 | CI20: 2099-01-01
E21: Financial period end date | G21: Date | J21: =EOMONTH(J20,$F$19-1) -> 2022-12-31 | K21: =EOMONTH(K20,$F$19-1) -> 2023-12-31 | L21: 2024-12-31 | M21: 2025-12-31 | N21: 2026-12-31 | O21: 2027-12-31 | P21: 2028-12-31 | Q21: 2029-12-31 | R21: 2030-12-31 | S21: 2031-12-31 | T21: 2032-12-31 | U21: 2033-12-31 | V21: 2034-12-31 | W21: 2035-12-31 | X21: 2036-12-31 | Y21: 2037-12-31 | Z21: 2038-12-31 | AA21: 2039-12-31 | AB21: 2040-12-31 | AC21: 2041-12-31 | AD21: 2042-12-31 | AE21: 2043-12-31 | AF21: 2044-12-31 | AG21: 2045-12-31 | AH21: 2046-12-31 | AI21: 2047-12-31 | AJ21: 2048-12-31 | AK21: 2049-12-31 | AL21: 2050-12-31 | AM21: 2051-12-31 | AN21: 2052-12-31 | AO21: 2053-12-31 | AP21: 2054-12-31 | AQ21: 2055-12-31 | AR21: 2056-12-31 | AS21: 2057-12-31 | AT21: 2058-12-31 | AU21: 2059-12-31 | AV21: 2060-12-31 | AW21: 2061-12-31 | AX21: 2062-12-31 | AY21: 2063-12-31 | AZ21: 2064-12-31 | BA21: 2065-12-31 | BB21: 2066-12-31 | BC21: 2067-12-31 | BD21: 2068-12-31 | BE21: 2069-12-31 | BF21: 2070-12-31 | BG21: 2071-12-31 | BH21: 2072-12-31 | BI21: 2073-12-31 | BJ21: 2074-12-31 | BK21: 2075-12-31 | BL21: 2076-12-31 | BM21: 2077-12-31 | BN21: 2078-12-31 | BO21: 2079-12-31 | BP21: 2080-12-31 | BQ21: 2081-12-31 | BR21: 2082-12-31 | BS21: 2083-12-31 | BT21: 2084-12-31 | BU21: 2085-12-31 | BV21: 2086-12-31 | BW21: =EOMONTH(BW20,$F$19-1) -> 2087-12-31 | BX21: 2088-12-31 | BY21: 2089-12-31 | BZ21: 2090-12-31 | CA21: 2091-12-31 | CB21: 2092-12-31 | CC21: 2093-12-31 | CD21: 2094-12-31 | CE21: 2095-12-31 | CF21: 2096-12-31 | CG21: 2097-12-31 | CH21: 2098-12-31 | CI21: 2099-12-31
E22: Previous financial period end date | G22: Date | J22: =EOMONTH(J21,$F$19*-1) -> 2021-12-31 | K22: =EOMONTH(K21,$F$19*-1) -> 2022-12-31 | L22: 2023-12-31 | M22: 2024-12-31 | N22: 2025-12-31 | O22: 2026-12-31 | P22: 2027-12-31 | Q22: 2028-12-31 | R22: 2029-12-31 | S22: 2030-12-31 | T22: 2031-12-31 | U22: 2032-12-31 | V22: 2033-12-31 | W22: 2034-12-31 | X22: 2035-12-31 | Y22: 2036-12-31 | Z22: 2037-12-31 | AA22: 2038-12-31 | AB22: 2039-12-31 | AC22: 2040-12-31 | AD22: 2041-12-31 | AE22: 2042-12-31 | AF22: 2043-12-31 | AG22: 2044-12-31 | AH22: 2045-12-31 | AI22: 2046-12-31 | AJ22: 2047-12-31 | AK22: 2048-12-31 | AL22: 2049-12-31 | AM22: 2050-12-31 | AN22: 2051-12-31 | AO22: 2052-12-31 | AP22: 2053-12-31 | AQ22: 2054-12-31 | AR22: 2055-12-31 | AS22: 2056-12-31 | AT22: 2057-12-31 | AU22: 2058-12-31 | AV22: 2059-12-31 | AW22: 2060-12-31 | AX22: 2061-12-31 | AY22: 2062-12-31 | AZ22: 2063-12-31 | BA22: 2064-12-31 | BB22: 2065-12-31 | BC22: 2066-12-31 | BD22: 2067-12-31 | BE22: 2068-12-31 | BF22: 2069-12-31 | BG22: 2070-12-31 | BH22: 2071-12-31 | BI22: 2072-12-31 | BJ22: 2073-12-31 | BK22: 2074-12-31 | BL22: 2075-12-31 | BM22: 2076-12-31 | BN22: 2077-12-31 | BO22: 2078-12-31 | BP22: 2079-12-31 | BQ22: 2080-12-31 | BR22: 2081-12-31 | BS22: 2082-12-31 | BT22: 2083-12-31 | BU22: 2084-12-31 | BV22: 2085-12-31 | BW22: =EOMONTH(BW21,$F$19*-1) -> 2086-12-31 | BX22: 2087-12-31 | BY22: 2088-12-31 | BZ22: 2089-12-31 | CA22: 2090-12-31 | CB22: 2091-12-31 | CC22: 2092-12-31 | CD22: 2093-12-31 | CE22: 2094-12-31 | CF22: 2095-12-31 | CG22: 2096-12-31 | CH22: 2097-12-31 | CI22: 2098-12-31
E23: Days in the period | G23: Days | J23: =J21-J22 -> 365 | K23: =K21-K22 -> 365 | L23: 366 | M23: 365 | N23: 365 | O23: 365 | P23: 366 | Q23: 365 | R23: 365 | S23: 365 | T23: 366 | U23: 365 | V23: 365 | W23: 365 | X23: 366 | Y23: 365 | Z23: 365 | AA23: 365 | AB23: 366 | AC23: 365 | AD23: 365 | AE23: 365 | AF23: 366 | AG23: 365 | AH23: 365 | AI23: 365 | AJ23: 366 | AK23: 365 | AL23: 365 | AM23: 365 | AN23: 366 | AO23: 365 | AP23: 365 | AQ23: 365 | AR23: 366 | AS23: 365 | AT23: 365 | AU23: 365 | AV23: 366 | AW23: 365 | AX23: 365 | AY23: 365 | AZ23: 366 | BA23: 365 | BB23: 365 | BC23: 365 | BD23: 366 | BE23: 365 | BF23: 365 | BG23: 365 | BH23: 366 | BI23: 365 | BJ23: 365 | BK23: 365 | BL23: 366 | BM23: 365 | BN23: 365 | BO23: 365 | BP23: 366 | BQ23: 365 | BR23: 365 | BS23: 365 | BT23: 366 | BU23: 365 | BV23: 365 | BW23: =BW21-BW22 -> 365 | BX23: 366 | BY23: 365 | BZ23: 365 | CA23: 365 | CB23: 366 | CC23: 365 | CD23: 365 | CE23: 365 | CF23: 366 | CG23: 365 | CH23: 365 | CI23: 365
E24: Financial year | G24: Year | J24: =YEAR(J21) -> 2022 | K24: =YEAR(K21) -> 2023 | L24: 2024 | M24: 2025 | N24: 2026 | O24: 2027 | P24: 2028 | Q24: 2029 | R24: 2030 | S24: 2031 | T24: 2032 | U24: 2033 | V24: 2034 | W24: 2035 | X24: 2036 | Y24: 2037 | Z24: 2038 | AA24: 2039 | AB24: 2040 | AC24: 2041 | AD24: 2042 | AE24: 2043 | AF24: 2044 | AG24: 2045 | AH24: 2046 | AI24: 2047 | AJ24: 2048 | AK24: 2049 | AL24: 2050 | AM24: 2051 | AN24: 2052 | AO24: 2053 | AP24: 2054 | AQ24: 2055 | AR24: 2056 | AS24: 2057 | AT24: 2058 | AU24: 2059 | AV24: 2060 | AW24: 2061 | AX24: 2062 | AY24: 2063 | AZ24: 2064 | BA24: 2065 | BB24: 2066 | BC24: 2067 | BD24: 2068 | BE24: 2069 | BF24: 2070 | BG24: 2071 | BH24: 2072 | BI24: 2073 | BJ24: 2074 | BK24: 2075 | BL24: 2076 | BM24: 2077 | BN24: 2078 | BO24: 2079 | BP24: 2080 | BQ24: 2081 | BR24: 2082 | BS24: 2083 | BT24: 2084 | BU24: 2085 | BV24: 2086 | BW24: =YEAR(BW21) -> 2087 | BX24: 2088 | BY24: 2089 | BZ24: 2090 | CA24: 2091 | CB24: 2092 | CC24: 2093 | CD24: 2094 | CE24: 2095 | CF24: 2096 | CG24: 2097 | CH24: 2098 | CI24: 2099
B27: FLAGS
C29: Financial close date flag
E30: Financial close date | F30: =Inputs!G11 -> 2022-01-01 | G30: Date
E31: =E$21 -> Financial period end date | F31: =F$21 -> 0 | G31: Date | H31: 0 | I31: 0 | J31: 2022-12-31 | K31: 2023-12-31 | L31: 2024-12-31 | M31: 2025-12-31 | N31: 2026-12-31 | O31: 2027-12-31 | P31: 2028-12-31 | Q31: 2029-12-31 | R31: 2030-12-31 | S31: 2031-12-31 | T31: 2032-12-31 | U31: 2033-12-31 | V31: 2034-12-31 | W31: 2035-12-31 | X31: 2036-12-31 | Y31: 2037-12-31 | Z31: 2038-12-31 | AA31: 2039-12-31 | AB31: 2040-12-31 | AC31: 2041-12-31 | AD31: 2042-12-31 | AE31: 2043-12-31 | AF31: 2044-12-31 | AG31: 2045-12-31 | AH31: 2046-12-31 | AI31: 2047-12-31 | AJ31: 2048-12-31 | AK31: 2049-12-31 | AL31: 2050-12-31 | AM31: 2051-12-31 | AN31: 2052-12-31 | AO31: 2053-12-31 | AP31: 2054-12-31 | AQ31: 2055-12-31 | AR31: 2056-12-31 | AS31: 2057-12-31 | AT31: 2058-12-31 | AU31: 2059-12-31 | AV31: 2060-12-31 | AW31: 2061-12-31 | AX31: 2062-12-31 | AY31: 2063-12-31 | AZ31: 2064-12-31 | BA31: 2065-12-31 | BB31: 2066-12-31 | BC31: 2067-12-31 | BD31: 2068-12-31 | BE31: 2069-12-31 | BF31: 2070-12-31 | BG31: 2071-12-31 | BH31: 2072-12-31 | BI31: 2073-12-31 | BJ31: 2074-12-31 | BK31: 2075-12-31 | BL31: 2076-12-31 | BM31: 2077-12-31 | BN31: 2078-12-31 | BO31: 2079-12-31 | BP31: 2080-12-31 | BQ31: 2081-12-31 | BR31: =BR$21 -> 2082-12-31 | BS31: 2083-12-31 | BT31: 2084-12-31 | BU31: 2085-12-31 | BV31: 2086-12-31 | BW31: 2087-12-31 | BX31: 2088-12-31 | BY31: 2089-12-31 | BZ31: 2090-12-31 | CA31: 2091-12-31 | CB31: 2092-12-31 | CC31: 2093-12-31 | CD31: 2094-12-31 | CE31: 2095-12-31 | CF31: 2096-12-31 | CG31: 2097-12-31 | CH31: 2098-12-31 | CI31: 2099-12-31
E32: Financial close date flag | G32: Flag | H32: =SUM(J32:CI32) -> 1 | J32: =IF(AND($F$30>I31,$F$30<=J31),1,0) -> 1 | K32: =IF(AND($F$30>J31,$F$30<=K31),1,0) -> 0 | L32: 0 | M32: 0 | N32: 0 | O32: 0 | P32: 0 | Q32: 0 | R32: 0 | S32: 0 | T32: 0 | U32: 0 | V32: 0 | W32: 0 | X32: 0 | Y32: 0 | Z32: 0 | AA32: 0 | AB32: 0 | AC32: 0 | AD32: 0 | AE32: 0 | AF32: 0 | AG32: 0 | AH32: 0 | AI32: 0 | AJ32: 0 | AK32: 0 | AL32: 0 | AM32: 0 | AN32: 0 | AO32: 0 | AP32: 0 | AQ32: 0 | AR32: 0 | AS32: 0 | AT32: 0 | AU32: 0 | AV32: 0 | AW32: 0 | AX32: 0 | AY32: 0 | AZ32: 0 | BA32: 0 | BB32: 0 | BC32: 0 | BD32: 0 | BE32: 0 | BF32: 0 | BG32: 0 | BH32: 0 | BI32: 0 | BJ32: 0 | BK32: 0 | BL32: 0 | BM32: 0 | BN32: 0 | BO32: 0 | BP32: 0 | BQ32: 0 | BR32: 0 | BS32: 0 | BT32: 0 | BU32: 0 | BV32: 0 | BW32: =IF(AND($F$30>BV31,$F$30<=BW31),1,0) -> 0 | BX32: 0 | BY32: 0 | BZ32: 0 | CA32: 0 | CB32: 0 | CC32: 0 | CD32: 0 | CE32: 0 | CF32: 0 | CG32: 0 | CH32: 0 | CI32: 0
C34: Pre-financial close flag
E35: Financial close date | F35: =Inputs!G11 -> 2022-01-01 | G35: Date
E36: =E$21 -> Financial period end date | F36: =F$21 -> 0 | G36: Date | H36: 0 | I36: 0 | J36: 2022-12-31 | K36: 2023-12-31 | L36: 2024-12-31 | M36: 2025-12-31 | N36: 2026-12-31 | O36: 2027-12-31 | P36: 2028-12-31 | Q36: 2029-12-31 | R36: 2030-12-31 | S36: 2031-12-31 | T36: 2032-12-31 | U36: 2033-12-31 | V36: 2034-12-31 | W36: 2035-12-31 | X36: 2036-12-31 | Y36: 2037-12-31 | Z36: 2038-12-31 | AA36: 2039-12-31 | AB36: 2040-12-31 | AC36: 2041-12-31 | AD36: 2042-12-31 | AE36: 2043-12-31 | AF36: 2044-12-31 | AG36: 2045-12-31 | AH36: 2046-12-31 | AI36: 2047-12-31 | AJ36: 2048-12-31 | AK36: 2049-12-31 | AL36: 2050-12-31 | AM36: 2051-12-31 | AN36: 2052-12-31 | AO36: 2053-12-31 | AP36: 2054-12-31 | AQ36: 2055-12-31 | AR36: 2056-12-31 | AS36: 2057-12-31 | AT36: 2058-12-31 | AU36: 2059-12-31 | AV36: 2060-12-31 | AW36: 2061-12-31 | AX36: 2062-12-31 | AY36: 2063-12-31 | AZ36: 2064-12-31 | BA36: 2065-12-31 | BB36: 2066-12-31 | BC36: 2067-12-31 | BD36: 2068-12-31 | BE36: 2069-12-31 | BF36: 2070-12-31 | BG36: 2071-12-31 | BH36: 2072-12-31 | BI36: 2073-12-31 | BJ36: 2074-12-31 | BK36: 2075-12-31 | BL36: 2076-12-31 | BM36: 2077-12-31 | BN36: 2078-12-31 | BO36: 2079-12-31 | BP36: 2080-12-31 | BQ36: 2081-12-31 | BR36: =BR$21 -> 2082-12-31 | BS36: 2083-12-31 | BT36: 2084-12-31 | BU36: 2085-12-31 | BV36: 2086-12-31 | BW36: 2087-12-31 | BX36: 2088-12-31 | BY36: 2089-12-31 | BZ36: 2090-12-31 | CA36: 2091-12-31 | CB36: 2092-12-31 | CC36: 2093-12-31 | CD36: 2094-12-31 | CE36: 2095-12-31 | CF36: 2096-12-31 | CG36: 2097-12-31 | CH36: 2098-12-31 | CI36: 2099-12-31
E37: Pre-financial close flag | G37: Flag | H37: =SUM(J37:CI37) -> 0 | J37: =IF($F$35>J36,1,0) -> 0 | K37: =IF($F$35>K36,1,0) -> 0 | L37: 0 | M37: 0 | N37: 0 | O37: 0 | P37: 0 | Q37: 0 | R37: 0 | S37: 0 | T37: 0 | U37: 0 | V37: 0 | W37: 0 | X37: 0 | Y37: 0 | Z37: 0 | AA37: 0 | AB37: 0 | AC37: 0 | AD37: 0 | AE37: 0 | AF37: 0 | AG37: 0 | AH37: 0 | AI37: 0 | AJ37: 0 | AK37: 0 | AL37: 0 | AM37: 0 | AN37: 0 | AO37: 0 | AP37: 0 | AQ37: 0 | AR37: 0 | AS37: 0 | AT37: 0 | AU37: 0 | AV37: 0 | AW37: 0 | AX37: 0 | AY37: 0 | AZ37: 0 | BA37: 0 | BB37: 0 | BC37: 0 | BD37: 0 | BE37: 0 | BF37: 0 | BG37: 0 | BH37: 0 | BI37: 0 | BJ37: 0 | BK37: 0 | BL37: 0 | BM37: 0 | BN37: 0 | BO37: 0 | BP37: 0 | BQ37: 0 | BR37: 0 | BS37: 0 | BT37: 0 | BU37: 0 | BV37: 0 | BW37: =IF($F$35>BW36,1,0) -> 0 | BX37: 0 | BY37: 0 | BZ37: 0 | CA37: 0 | CB37: 0 | CC37: 0 | CD37: 0 | CE37: 0 | CF37: 0 | CG37: 0 | CH37: 0 | CI37: 0
C39: Construction period flag
E40: Financial close date | F40: =Inputs!G11 -> 2022-01-01 | G40: Date
E41: Construction period | F41: 35 | G41: Months
E42: Construction period end date | F42: =EOMONTH(F40,F41) -> 2024-12-31 | G42: Date
E44: Financial close date | F44: =Inputs!G11 -> 2022-01-01 | G44: Date
E45: =E$42 -> Construction period end date | F45: =F$42 -> 2024-12-31 | G45: Date | H45: 0 | I45: 0 | J45: 0 | K45: 0 | L45: 0 | M45: 0 | N45: 0 | O45: 0 | P45: 0 | Q45: 0 | R45: 0 | S45: 0 | T45: 0 | U45: 0 | V45: 0 | W45: 0 | X45: 0 | Y45: 0 | Z45: 0 | AA45: 0 | AB45: 0 | AC45: 0 | AD45: 0 | AE45: 0 | AF45: 0 | AG45: 0 | AH45: 0 | AI45: 0 | AJ45: 0 | AK45: 0 | AL45: 0 | AM45: 0 | AN45: 0 | AO45: 0 | AP45: 0 | AQ45: 0 | AR45: 0 | AS45: 0 | AT45: 0 | AU45: 0 | AV45: 0 | AW45: 0 | AX45: 0 | AY45: 0 | AZ45: 0 | BA45: 0 | BB45: 0 | BC45: 0 | BD45: 0 | BE45: 0 | BF45: 0 | BG45: 0 | BH45: 0 | BI45: 0 | BJ45: 0 | BK45: 0 | BL45: 0 | BM45: 0 | BN45: 0 | BO45: 0 | BP45: 0 | BQ45: 0 | BR45: =BR$42 -> 0 | BS45: 0 | BT45: 0 | BU45: 0 | BV45: 0 | BW45: 0 | BX45: 0 | BY45: 0 | BZ45: 0 | CA45: 0 | CB45: 0 | CC45: 0 | CD45: 0 | CE45: 0 | CF45: 0 | CG45: 0 | CH45: 0 | CI45: 0
E46: =E$17 -> Financial period beginning date | F46: =F$17 -> 0 | G46: Date | H46: 0 | I46: 0 | J46: 2022-01-01 | K46: 2023-01-01 | L46: 2024-01-01 | M46: 2025-01-01 | N46: 2026-01-01 | O46: 2027-01-01 | P46: 2028-01-01 | Q46: 2029-01-01 | R46: 2030-01-01 | S46: 2031-01-01 | T46: 2032-01-01 | U46: 2033-01-01 | V46: 2034-01-01 | W46: 2035-01-01 | X46: 2036-01-01 | Y46: 2037-01-01 | Z46: 2038-01-01 | AA46: 2039-01-01 | AB46: 2040-01-01 | AC46: 2041-01-01 | AD46: 2042-01-01 | AE46: 2043-01-01 | AF46: 2044-01-01 | AG46: 2045-01-01 | AH46: 2046-01-01 | AI46: 2047-01-01 | AJ46: 2048-01-01 | AK46: 2049-01-01 | AL46: 2050-01-01 | AM46: 2051-01-01 | AN46: 2052-01-01 | AO46: 2053-01-01 | AP46: 2054-01-01 | AQ46: 2055-01-01 | AR46: 2056-01-01 | AS46: 2057-01-01 | AT46: 2058-01-01 | AU46: 2059-01-01 | AV46: 2060-01-01 | AW46: 2061-01-01 | AX46: 2062-01-01 | AY46: 2063-01-01 | AZ46: 2064-01-01 | BA46: 2065-01-01 | BB46: 2066-01-01 | BC46: 2067-01-01 | BD46: 2068-01-01 | BE46: 2069-01-01 | BF46: 2070-01-01 | BG46: 2071-01-01 | BH46: 2072-01-01 | BI46: 2073-01-01 | BJ46: 2074-01-01 | BK46: 2075-01-01 | BL46: 2076-01-01 | BM46: 2077-01-01 | BN46: 2078-01-01 | BO46: 2079-01-01 | BP46: 2080-01-01 | BQ46: 2081-01-01 | BR46: =BR$17 -> 2082-01-01 | BS46: 2083-01-01 | BT46: 2084-01-01 | BU46: 2085-01-01 | BV46: 2086-01-01 | BW46: 2087-01-01 | BX46: 2088-01-01 | BY46: 2089-01-01 | BZ46: 2090-01-01 | CA46: 2091-01-01 | CB46: 2092-01-01 | CC46: 2093-01-01 | CD46: 2094-01-01 | CE46: 2095-01-01 | CF46: 2096-01-01 | CG46: 2097-01-01 | CH46: 2098-01-01 | CI46: 2099-01-01
E47: =E$21 -> Financial period end date | F47: =F$21 -> 0 | G47: Date | H47: 0 | I47: 0 | J47: 2022-12-31 | K47: 2023-12-31 | L47: 2024-12-31 | M47: 2025-12-31 | N47: 2026-12-31 | O47: 2027-12-31 | P47: 2028-12-31 | Q47: 2029-12-31 | R47: 2030-12-31 | S47: 2031-12-31 | T47: 2032-12-31 | U47: 2033-12-31 | V47: 2034-12-31 | W47: 2035-12-31 | X47: 2036-12-31 | Y47: 2037-12-31 | Z47: 2038-12-31 | AA47: 2039-12-31 | AB47: 2040-12-31 | AC47: 2041-12-31 | AD47: 2042-12-31 | AE47: 2043-12-31 | AF47: 2044-12-31 | AG47: 2045-12-31 | AH47: 2046-12-31 | AI47: 2047-12-31 | AJ47: 2048-12-31 | AK47: 2049-12-31 | AL47: 2050-12-31 | AM47: 2051-12-31 | AN47: 2052-12-31 | AO47: 2053-12-31 | AP47: 2054-12-31 | AQ47: 2055-12-31 | AR47: 2056-12-31 | AS47: 2057-12-31 | AT47: 2058-12-31 | AU47: 2059-12-31 | AV47: 2060-12-31 | AW47: 2061-12-31 | AX47: 2062-12-31 | AY47: 2063-12-31 | AZ47: 2064-12-31 | BA47: 2065-12-31 | BB47: 2066-12-31 | BC47: 2067-12-31 | BD47: 2068-12-31 | BE47: 2069-12-31 | BF47: 2070-12-31 | BG47: 2071-12-31 | BH47: 2072-12-31 | BI47: 2073-12-31 | BJ47: 2074-12-31 | BK47: 2075-12-31 | BL47: 2076-12-31 | BM47: 2077-12-31 | BN47: 2078-12-31 | BO47: 2079-12-31 | BP47: 2080-12-31 | BQ47: 2081-12-31 | BR47: =BR$21 -> 2082-12-31 | BS47: 2083-12-31 | BT47: 2084-12-31 | BU47: 2085-12-31 | BV47: 2086-12-31 | BW47: 2087-12-31 | BX47: 2088-12-31 | BY47: 2089-12-31 | BZ47: 2090-12-31 | CA47: 2091-12-31 | CB47: 2092-12-31 | CC47: 2093-12-31 | CD47: 2094-12-31 | CE47: 2095-12-31 | CF47: 2096-12-31 | CG47: 2097-12-31 | CH47: 2098-12-31 | CI47: 2099-12-31
E48: Construction period flag | G48: Flag | H48: =SUM(J48:CI48) -> 3 | J48: =IF(AND(J46>=$F$44,J47<=$F$45),1,0) -> 1 | K48: =IF(AND(K46>=$F$44,K47<=$F$45),1,0) -> 1 | L48: 1 | M48: 0 | N48: 0 | O48: 0 | P48: 0 | Q48: 0 | R48: 0 | S48: 0 | T48: 0 | U48: 0 | V48: 0 | W48: 0 | X48: 0 | Y48: 0 | Z48: 0 | AA48: 0 | AB48: 0 | AC48: 0 | AD48: 0 | AE48: 0 | AF48: 0 | AG48: 0 | AH48: 0 | AI48: 0 | AJ48: 0 | AK48: 0 | AL48: 0 | AM48: 0 | AN48: 0 | AO48: 0 | AP48: 0 | AQ48: 0 | AR48: 0 | AS48: 0 | AT48: 0 | AU48: 0 | AV48: 0 | AW48: 0 | AX48: 0 | AY48: 0 | AZ48: 0 | BA48: 0 | BB48: 0 | BC48: 0 | BD48: 0 | BE48: 0 | BF48: 0 | BG48: 0 | BH48: 0 | BI48: 0 | BJ48: 0 | BK48: 0 | BL48: 0 | BM48: 0 | BN48: 0 | BO48: 0 | BP48: 0 | BQ48: 0 | BR48: 0 | BS48: 0 | BT48: 0 | BU48: 0 | BV48: 0 | BW48: =IF(AND(BW46>=$F$44,BW47<=$F$45),1,0) -> 0 | BX48: 0 | BY48: 0 | BZ48: 0 | CA48: 0 | CB48: 0 | CC48: 0 | CD48: 0 | CE48: 0 | CF48: 0 | CG48: 0 | CH48: 0 | CI48: 0
C50: Operations start date flag
E51: =E$42 -> Construction period end date | F51: =F$42 -> 2024-12-31 | G51: Date | H51: 0 | I51: 0 | J51: 0 | K51: 0 | L51: 0 | M51: 0 | N51: 0 | O51: 0 | P51: 0 | Q51: 0 | R51: 0 | S51: 0 | T51: 0 | U51: 0 | V51: 0 | W51: 0 | X51: 0 | Y51: 0 | Z51: 0 | AA51: 0 | AB51: 0 | AC51: 0 | AD51: 0 | AE51: 0 | AF51: 0 | AG51: 0 | AH51: 0 | AI51: 0 | AJ51: 0 | AK51: 0 | AL51: 0 | AM51: 0 | AN51: 0 | AO51: 0 | AP51: 0 | AQ51: 0 | AR51: 0 | AS51: 0 | AT51: 0 | AU51: 0 | AV51: 0 | AW51: 0 | AX51: 0 | AY51: 0 | AZ51: 0 | BA51: 0 | BB51: 0 | BC51: 0 | BD51: 0 | BE51: 0 | BF51: 0 | BG51: 0 | BH51: 0 | BI51: 0 | BJ51: 0 | BK51: 0 | BL51: 0 | BM51: 0 | BN51: 0 | BO51: 0 | BP51: 0 | BQ51: 0 | BR51: =BR$42 -> 0 | BS51: 0 | BT51: 0 | BU51: 0 | BV51: 0 | BW51: 0 | BX51: 0 | BY51: 0 | BZ51: 0 | CA51: 0 | CB51: 0 | CC51: 0 | CD51: 0 | CE51: 0 | CF51: 0 | CG51: 0 | CH51: 0 | CI51: 0
E52: Operations start date | F52: =DATE(YEAR(F51),MONTH(F51)+1,DAY(1)) -> 2025-01-01 | G52: Date
E53: =E$21 -> Financial period end date | F53: =F$21 -> 0 | G53: Date | H53: 0 | I53: 0 | J53: 2022-12-31 | K53: 2023-12-31 | L53: 2024-12-31 | M53: 2025-12-31 | N53: 2026-12-31 | O53: 2027-12-31 | P53: 2028-12-31 | Q53: 2029-12-31 | R53: 2030-12-31 | S53: 2031-12-31 | T53: 2032-12-31 | U53: 2033-12-31 | V53: 2034-12-31 | W53: 2035-12-31 | X53: 2036-12-31 | Y53: 2037-12-31 | Z53: 2038-12-31 | AA53: 2039-12-31 | AB53: 2040-12-31 | AC53: 2041-12-31 | AD53: 2042-12-31 | AE53: 2043-12-31 | AF53: 2044-12-31 | AG53: 2045-12-31 | AH53: 2046-12-31 | AI53: 2047-12-31 | AJ53: 2048-12-31 | AK53: 2049-12-31 | AL53: 2050-12-31 | AM53: 2051-12-31 | AN53: 2052-12-31 | AO53: 2053-12-31 | AP53: 2054-12-31 | AQ53: 2055-12-31 | AR53: 2056-12-31 | AS53: 2057-12-31 | AT53: 2058-12-31 | AU53: 2059-12-31 | AV53: 2060-12-31 | AW53: 2061-12-31 | AX53: 2062-12-31 | AY53: 2063-12-31 | AZ53: 2064-12-31 | BA53: 2065-12-31 | BB53: 2066-12-31 | BC53: 2067-12-31 | BD53: 2068-12-31 | BE53: 2069-12-31 | BF53: 2070-12-31 | BG53: 2071-12-31 | BH53: 2072-12-31 | BI53: 2073-12-31 | BJ53: 2074-12-31 | BK53: 2075-12-31 | BL53: 2076-12-31 | BM53: 2077-12-31 | BN53: 2078-12-31 | BO53: 2079-12-31 | BP53: 2080-12-31 | BQ53: 2081-12-31 | BR53: =BR$21 -> 2082-12-31 | BS53: 2083-12-31 | BT53: 2084-12-31 | BU53: 2085-12-31 | BV53: 2086-12-31 | BW53: 2087-12-31 | BX53: 2088-12-31 | BY53: 2089-12-31 | BZ53: 2090-12-31 | CA53: 2091-12-31 | CB53: 2092-12-31 | CC53: 2093-12-31 | CD53: 2094-12-31 | CE53: 2095-12-31 | CF53: 2096-12-31 | CG53: 2097-12-31 | CH53: 2098-12-31 | CI53: 2099-12-31
E54: Operations start date flag | G54: Flag | H54: =SUM(J54:CI54) -> 1 | J54: =IF(AND($F$52>=I53,$F$52<=J53),1,0) -> 0 | K54: =IF(AND($F$52>=J53,$F$52<=K53),1,0) -> 0 | L54: 0 | M54: 1 | N54: 0 | O54: 0 | P54: 0 | Q54: 0 | R54: 0 | S54: 0 | T54: 0 | U54: 0 | V54: 0 | W54: 0 | X54: 0 | Y54: 0 | Z54: 0 | AA54: 0 | AB54: 0 | AC54: 0 | AD54: 0 | AE54: 0 | AF54: 0 | AG54: 0 | AH54: 0 | AI54: 0 | AJ54: 0 | AK54: 0 | AL54: 0 | AM54: 0 | AN54: 0 | AO54: 0 | AP54: 0 | AQ54: 0 | AR54: 0 | AS54: 0 | AT54: 0 | AU54: 0 | AV54: 0 | AW54: 0 | AX54: 0 | AY54: 0 | AZ54: 0 | BA54: 0 | BB54: 0 | BC54: 0 | BD54: 0 | BE54: 0 | BF54: 0 | BG54: 0 | BH54: 0 | BI54: 0 | BJ54: 0 | BK54: 0 | BL54: 0 | BM54: 0 | BN54: 0 | BO54: 0 | BP54: 0 | BQ54: 0 | BR54: 0 | BS54: 0 | BT54: 0 | BU54: 0 | BV54: 0 | BW54: =IF(AND($F$52>=BV53,$F$52<=BW53),1,0) -> 0 | BX54: 0 | BY54: 0 | BZ54: 0 | CA54: 0 | CB54: 0 | CC54: 0 | CD54: 0 | CE54: 0 | CF54: 0 | CG54: 0 | CH54: 0 | CI54: 0
C56: Refinancing flag
E57: =E$54 -> Operations start date flag | F57: =F$54 -> 0 | G57: Flag | H57: 1 | I57: 0 | J57: 0 | K57: 0 | L57: 0 | M57: 0 | N57: 0 | O57: 0 | P57: 0 | Q57: 0 | R57: 0 | S57: 0 | T57: 0 | U57: 0 | V57: 0 | W57: 0 | X57: 0 | Y57: 0 | Z57: 0 | AA57: 0 | AB57: 0 | AC57: 0 | AD57: 0 | AE57: 0 | AF57: 0 | AG57: 0 | AH57: 0 | AI57: 0 | AJ57: 0 | AK57: 0 | AL57: 0 | AM57: 0 | AN57: 0 | AO57: 0 | AP57: 0 | AQ57: 0 | AR57: 0 | AS57: 0 | AT57: 0 | AU57: 0 | AV57: 0 | AW57: 0 | AX57: 0 | AY57: 0 | AZ57: 0 | BA57: 0 | BB57: 0 | BC57: 0 | BD57: 0 | BE57: 0 | BF57: 0 | BG57: 0 | BH57: 0 | BI57: 0 | BJ57: 0 | BK57: 0 | BL57: 0 | BM57: 0 | BN57: 0 | BO57: 0 | BP57: 0 | BQ57: 0 | BR57: =BR$54 -> 0 | BS57: 0 | BT57: 0 | BU57: 0 | BV57: 0 | BW57: 0 | BX57: 0 | BY57: 0 | BZ57: 0 | CA57: 0 | CB57: 0 | CC57: 0 | CD57: 0 | CE57: 0 | CF57: 0 | CG57: 0 | CH57: 0 | CI57: 0
E58: Refinancing flag | G58: Flag | H58: =SUM(J58:CI58) -> 0 | J58: =K57 -> 0 | K58: =L57 -> 0 | L58: 0 | M58: 0 | N58: 0 | O58: 0 | P58: 0 | Q58: 0 | R58: 0 | S58: 0 | T58: 0 | U58: 0 | V58: 0 | W58: 0 | X58: 0 | Y58: 0 | Z58: 0 | AA58: 0 | AB58: 0 | AC58: 0 | AD58: 0 | AE58: 0 | AF58: 0 | AG58: 0 | AH58: 0 | AI58: 0 | AJ58: 0 | AK58: 0 | AL58: 0 | AM58: 0 | AN58: 0 | AO58: 0 | AP58: 0 | AQ58: 0 | AR58: 0 | AS58: 0 | AT58: 0 | AU58: 0 | AV58: 0 | AW58: 0 | AX58: 0 | AY58: 0 | AZ58: 0 | BA58: 0 | BB58: 0 | BC58: 0 | BD58: 0 | BE58: 0 | BF58: 0 | BG58: 0 | BH58: 0 | BI58: 0 | BJ58: 0 | BK58: 0 | BL58: 0 | BM58: 0 | BN58: 0 | BO58: 0 | BP58: 0 | BQ58: 0 | BR58: 0 | BS58: 0 | BT58: 0 | BU58: 0 | BV58: 0 | BW58: =BX57 -> 0 | BX58: 0 | BY58: 0 | BZ58: 0 | CA58: 0 | CB58: 0 | CC58: 0 | CD58: 0 | CE58: 0 | CF58: 0 | CG58: 0 | CH58: 0 | CI58: =#REF! -> 0
C60: Operations period flag
E61: =E$52 -> Operations start date | F61: =F$52 -> 2025-01-01 | G61: Date
E62: Length of forecast | F62: =YEAR(F63)-YEAR(F61) -> 26 | G62: Years
E63: Operations end date | F63: =Inputs!G18 -> 2051-12-31 | G63: Date
E65: =E$52 -> Operations start date | F65: =F$52 -> 2025-01-01 | G65: Date
E66: =E$63 -> Operations end date | F66: =F$63 -> 2051-12-31 | G66: Date
E67: =E$21 -> Financial period end date | F67: =F$21 -> 0 | G67: Date | H67: 0 | I67: 0 | J67: 2022-12-31 | K67: 2023-12-31 | L67: 2024-12-31 | M67: 2025-12-31 | N67: 2026-12-31 | O67: 2027-12-31 | P67: 2028-12-31 | Q67: 2029-12-31 | R67: 2030-12-31 | S67: 2031-12-31 | T67: 2032-12-31 | U67: 2033-12-31 | V67: 2034-12-31 | W67: 2035-12-31 | X67: 2036-12-31 | Y67: 2037-12-31 | Z67: 2038-12-31 | AA67: 2039-12-31 | AB67: 2040-12-31 | AC67: 2041-12-31 | AD67: 2042-12-31 | AE67: 2043-12-31 | AF67: 2044-12-31 | AG67: 2045-12-31 | AH67: 2046-12-31 | AI67: 2047-12-31 | AJ67: 2048-12-31 | AK67: 2049-12-31 | AL67: 2050-12-31 | AM67: 2051-12-31 | AN67: 2052-12-31 | AO67: 2053-12-31 | AP67: 2054-12-31 | AQ67: 2055-12-31 | AR67: 2056-12-31 | AS67: 2057-12-31 | AT67: 2058-12-31 | AU67: 2059-12-31 | AV67: 2060-12-31 | AW67: 2061-12-31 | AX67: 2062-12-31 | AY67: 2063-12-31 | AZ67: 2064-12-31 | BA67: 2065-12-31 | BB67: 2066-12-31 | BC67: 2067-12-31 | BD67: 2068-12-31 | BE67: 2069-12-31 | BF67: 2070-12-31 | BG67: 2071-12-31 | BH67: 2072-12-31 | BI67: 2073-12-31 | BJ67: 2074-12-31 | BK67: 2075-12-31 | BL67: 2076-12-31 | BM67: 2077-12-31 | BN67: 2078-12-31 | BO67: 2079-12-31 | BP67: 2080-12-31 | BQ67: 2081-12-31 | BR67: =BR$21 -> 2082-12-31 | BS67: 2083-12-31 | BT67: 2084-12-31 | BU67: 2085-12-31 | BV67: 2086-12-31 | BW67: 2087-12-31 | BX67: 2088-12-31 | BY67: 2089-12-31 | BZ67: 2090-12-31 | CA67: 2091-12-31 | CB67: 2092-12-31 | CC67: 2093-12-31 | CD67: 2094-12-31 | CE67: 2095-12-31 | CF67: 2096-12-31 | CG67: 2097-12-31 | CH67: 2098-12-31 | CI67: 2099-12-31
E68: Operations period flag | G68: Flag | H68: =SUM(J68:CI68) -> 27 | J68: =IF(AND(J67>=$F$65,J67<=$F$66),1,0) -> 0 | K68: =IF(AND(K67>=$F$65,K67<=$F$66),1,0) -> 0 | L68: 0 | M68: 1 | N68: 1 | O68: 1 | P68: 1 | Q68: 1 | R68: 1 | S68: 1 | T68: 1 | U68: 1 | V68: 1 | W68: 1 | X68: 1 | Y68: 1 | Z68: 1 | AA68: 1 | AB68: 1 | AC68: 1 | AD68: 1 | AE68: 1 | AF68: 1 | AG68: 1 | AH68: 1 | AI68: 1 | AJ68: 1 | AK68: 1 | AL68: 1 | AM68: 1 | AN68: 0 | AO68: 0 | AP68: 0 | AQ68: 0 | AR68: 0 | AS68: 0 | AT68: 0 | AU68: 0 | AV68: 0 | AW68: 0 | AX68: 0 | AY68: 0 | AZ68: 0 | BA68: 0 | BB68: 0 | BC68: 0 | BD68: 0 | BE68: 0 | BF68: 0 | BG68: 0 | BH68: 0 | BI68: 0 | BJ68: 0 | BK68: 0 | BL68: 0 | BM68: 0 | BN68: 0 | BO68: 0 | BP68: 0 | BQ68: 0 | BR68: 0 | BS68: 0 | BT68: 0 | BU68: 0 | BV68: 0 | BW68: =IF(AND(BW67>=$F$65,BW67<=$F$66),1,0) -> 0 | BX68: 0 | BY68: 0 | BZ68: 0 | CA68: 0 | CB68: 0 | CC68: 0 | CD68: 0 | CE68: 0 | CF68: 0 | CG68: 0 | CH68: 0 | CI68: 0
C70: Last operations date flag
E71: =E$63 -> Operations end date | F71: =F$63 -> 2051-12-31 | G71: Date
E72: =E$21 -> Financial period end date | F72: =F$21 -> 0 | G72: Date | H72: 0 | I72: 0 | J72: 2022-12-31 | K72: 2023-12-31 | L72: 2024-12-31 | M72: 2025-12-31 | N72: 2026-12-31 | O72: 2027-12-31 | P72: 2028-12-31 | Q72: 2029-12-31 | R72: 2030-12-31 | S72: 2031-12-31 | T72: 2032-12-31 | U72: 2033-12-31 | V72: 2034-12-31 | W72: 2035-12-31 | X72: 2036-12-31 | Y72: 2037-12-31 | Z72: 2038-12-31 | AA72: 2039-12-31 | AB72: 2040-12-31 | AC72: 2041-12-31 | AD72: 2042-12-31 | AE72: 2043-12-31 | AF72: 2044-12-31 | AG72: 2045-12-31 | AH72: 2046-12-31 | AI72: 2047-12-31 | AJ72: 2048-12-31 | AK72: 2049-12-31 | AL72: 2050-12-31 | AM72: 2051-12-31 | AN72: 2052-12-31 | AO72: 2053-12-31 | AP72: 2054-12-31 | AQ72: 2055-12-31 | AR72: 2056-12-31 | AS72: 2057-12-31 | AT72: 2058-12-31 | AU72: 2059-12-31 | AV72: 2060-12-31 | AW72: 2061-12-31 | AX72: 2062-12-31 | AY72: 2063-12-31 | AZ72: 2064-12-31 | BA72: 2065-12-31 | BB72: 2066-12-31 | BC72: 2067-12-31 | BD72: 2068-12-31 | BE72: 2069-12-31 | BF72: 2070-12-31 | BG72: 2071-12-31 | BH72: 2072-12-31 | BI72: 2073-12-31 | BJ72: 2074-12-31 | BK72: 2075-12-31 | BL72: 2076-12-31 | BM72: 2077-12-31 | BN72: 2078-12-31 | BO72: 2079-12-31 | BP72: 2080-12-31 | BQ72: 2081-12-31 | BR72: =BR$21 -> 2082-12-31 | BS72: 2083-12-31 | BT72: 2084-12-31 | BU72: 2085-12-31 | BV72: 2086-12-31 | BW72: 2087-12-31 | BX72: 2088-12-31 | BY72: 2089-12-31 | BZ72: 2090-12-31 | CA72: 2091-12-31 | CB72: 2092-12-31 | CC72: 2093-12-31 | CD72: 2094-12-31 | CE72: 2095-12-31 | CF72: 2096-12-31 | CG72: 2097-12-31 | CH72: 2098-12-31 | CI72: 2099-12-31
E73: Last operations date flag | G73: Flag | H73: =SUM(J73:CI73) -> 1 | J73: =IF(AND($F$71>I72,$F$71<=J72),1,0) -> 0 | K73: =IF(AND($F$71>J72,$F$71<=K72),1,0) -> 0 | L73: 0 | M73: 0 | N73: 0 | O73: 0 | P73: 0 | Q73: 0 | R73: 0 | S73: 0 | T73: 0 | U73: 0 | V73: 0 | W73: 0 | X73: 0 | Y73: 0 | Z73: 0 | AA73: 0 | AB73: 0 | AC73: 0 | AD73: 0 | AE73: 0 | AF73: 0 | AG73: 0 | AH73: 0 | AI73: 0 | AJ73: 0 | AK73: 0 | AL73: 0 | AM73: 1 | AN73: 0 | AO73: 0 | AP73: 0 | AQ73: 0 | AR73: 0 | AS73: 0 | AT73: 0 | AU73: 0 | AV73: 0 | AW73: 0 | AX73: 0 | AY73: 0 | AZ73: 0 | BA73: 0 | BB73: 0 | BC73: 0 | BD73: 0 | BE73: 0 | BF73: 0 | BG73: 0 | BH73: 0 | BI73: 0 | BJ73: 0 | BK73: 0 | BL73: 0 | BM73: 0 | BN73: 0 | BO73: 0 | BP73: 0 | BQ73: 0 | BR73: 0 | BS73: 0 | BT73: 0 | BU73: 0 | BV73: 0 | BW73: =IF(AND($F$71>BV72,$F$71<=BW72),1,0) -> 0 | BX73: 0 | BY73: 0 | BZ73: 0 | CA73: 0 | CB73: 0 | CC73: 0 | CD73: 0 | CE73: 0 | CF73: 0 | CG73: 0 | CH73: 0 | CI73: 0
C75: 1st post operations date flag
E76: =E$73 -> Last operations date flag | F76: =F$73 -> 0 | G76: Flag | H76: 1 | I76: 0 | J76: 0 | K76: 0 | L76: 0 | M76: 0 | N76: 0 | O76: 0 | P76: 0 | Q76: 0 | R76: 0 | S76: 0 | T76: 0 | U76: 0 | V76: 0 | W76: 0 | X76: 0 | Y76: 0 | Z76: 0 | AA76: 0 | AB76: 0 | AC76: 0 | AD76: 0 | AE76: 0 | AF76: 0 | AG76: 0 | AH76: 0 | AI76: 0 | AJ76: 0 | AK76: 0 | AL76: 0 | AM76: 1 | AN76: 0 | AO76: 0 | AP76: 0 | AQ76: 0 | AR76: 0 | AS76: 0 | AT76: 0 | AU76: 0 | AV76: 0 | AW76: 0 | AX76: 0 | AY76: 0 | AZ76: 0 | BA76: 0 | BB76: 0 | BC76: 0 | BD76: 0 | BE76: 0 | BF76: 0 | BG76: 0 | BH76: 0 | BI76: 0 | BJ76: 0 | BK76: 0 | BL76: 0 | BM76: 0 | BN76: 0 | BO76: 0 | BP76: 0 | BQ76: 0 | BR76: =BR$73 -> 0 | BS76: 0 | BT76: 0 | BU76: 0 | BV76: 0 | BW76: 0 | BX76: 0 | BY76: 0 | BZ76: 0 | CA76: 0 | CB76: 0 | CC76: 0 | CD76: 0 | CE76: 0 | CF76: 0 | CG76: 0 | CH76: 0 | CI76: 0
E77: 1st post operations date flag | G77: Flag | H77: =SUM(J77:CI77) -> 1 | J77: =I76 -> 0 | K77: =J76 -> 0 | L77: 0 | M77: 0 | N77: 0 | O77: 0 | P77: 0 | Q77: 0 | R77: 0 | S77: 0 | T77: 0 | U77: 0 | V77: 0 | W77: 0 | X77: 0 | Y77: 0 | Z77: 0 | AA77: 0 | AB77: 0 | AC77: 0 | AD77: 0 | AE77: 0 | AF77: 0 | AG77: 0 | AH77: 0 | AI77: 0 | AJ77: 0 | AK77: 0 | AL77: 0 | AM77: 0 | AN77: 1 | AO77: 0 | AP77: 0 | AQ77: 0 | AR77: 0 | AS77: 0 | AT77: 0 | AU77: 0 | AV77: 0 | AW77: 0 | AX77: 0 | AY77: 0 | AZ77: 0 | BA77: 0 | BB77: 0 | BC77: 0 | BD77: 0 | BE77: 0 | BF77: 0 | BG77: 0 | BH77: 0 | BI77: 0 | BJ77: 0 | BK77: 0 | BL77: 0 | BM77: 0 | BN77: 0 | BO77: 0 | BP77: 0 | BQ77: 0 | BR77: 0 | BS77: 0 | BT77: 0 | BU77: 0 | BV77: 0 | BW77: =BV76 -> 0 | BX77: 0 | BY77: 0 | BZ77: 0 | CA77: 0 | CB77: 0 | CC77: 0 | CD77: 0 | CE77: 0 | CF77: 0 | CG77: 0 | CH77: 0 | CI77: 0
C79: Post - operations period flag
E80: =E$77 -> 1st post operations date flag | F80: =F$77 -> 0 | G80: Flag | H80: 1 | I80: 0 | J80: 0 | K80: 0 | L80: 0 | M80: 0 | N80: 0 | O80: 0 | P80: 0 | Q80: 0 | R80: 0 | S80: 0 | T80: 0 | U80: 0 | V80: 0 | W80: 0 | X80: 0 | Y80: 0 | Z80: 0 | AA80: 0 | AB80: 0 | AC80: 0 | AD80: 0 | AE80: 0 | AF80: 0 | AG80: 0 | AH80: 0 | AI80: 0 | AJ80: 0 | AK80: 0 | AL80: 0 | AM80: 0 | AN80: 1 | AO80: 0 | AP80: 0 | AQ80: 0 | AR80: 0 | AS80: 0 | AT80: 0 | AU80: 0 | AV80: 0 | AW80: 0 | AX80: 0 | AY80: 0 | AZ80: 0 | BA80: 0 | BB80: 0 | BC80: 0 | BD80: 0 | BE80: 0 | BF80: 0 | BG80: 0 | BH80: 0 | BI80: 0 | BJ80: 0 | BK80: 0 | BL80: 0 | BM80: 0 | BN80: 0 | BO80: 0 | BP80: 0 | BQ80: 0 | BR80: =BR$77 -> 0 | BS80: 0 | BT80: 0 | BU80: 0 | BV80: 0 | BW80: 0 | BX80: 0 | BY80: 0 | BZ80: 0 | CA80: 0 | CB80: 0 | CC80: 0 | CD80: 0 | CE80: 0 | CF80: 0 | CG80: 0 | CH80: 0 | CI80: 0
E81: Post - operations period flag | G81: Flag | H81: =SUM(J81:CI81) -> 48 | J81: =I81+J80 -> 0 | K81: =J81+K80 -> 0 | L81: 0 | M81: 0 | N81: 0 | O81: 0 | P81: 0 | Q81: 0 | R81: 0 | S81: 0 | T81: 0 | U81: 0 | V81: 0 | W81: 0 | X81: 0 | Y81: 0 | Z81: 0 | AA81: 0 | AB81: 0 | AC81: 0 | AD81: 0 | AE81: 0 | AF81: 0 | AG81: 0 | AH81: 0 | AI81: 0 | AJ81: 0 | AK81: 0 | AL81: 0 | AM81: 0 | AN81: 1 | AO81: 1 | AP81: 1 | AQ81: 1 | AR81: 1 | AS81: 1 | AT81: 1 | AU81: 1 | AV81: 1 | AW81: 1 | AX81: 1 | AY81: 1 | AZ81: 1 | BA81: 1 | BB81: 1 | BC81: 1 | BD81: 1 | BE81: 1 | BF81: 1 | BG81: 1 | BH81: 1 | BI81: 1 | BJ81: 1 | BK81: 1 | BL81: 1 | BM81: 1 | BN81: 1 | BO81: 1 | BP81: 1 | BQ81: 1 | BR81: 1 | BS81: 1 | BT81: 1 | BU81: 1 | BV81: 1 | BW81: =BV81+BW80 -> 1 | BX81: 1 | BY81: 1 | BZ81: 1 | CA81: 1 | CB81: 1 | CC81: 1 | CD81: 1 | CE81: 1 | CF81: 1 | CG81: 1 | CH81: 1 | CI81: 1
C83: Term loan repayment flag
E84: Repayment start date | F84: =Inputs!G17 -> 2025-01-01 | G84: =G$52 -> Date
E85: Repayment term | F85: =17-3 -> 14 | G85: Years
E86: Repayment end date | F86: =DATE(YEAR(F84)+F85,MONTH(F84),DAY(F84)-1) -> 2038-12-31 | G86: Date
E88: Repayment start date | F88: =F$84 -> 2025-01-01 | G88: =G$84 -> Date
E89: =E$86 -> Repayment end date | F89: =F$86 -> 2038-12-31 | G89: =G$86 -> Date
E90: =E$21 -> Financial period end date | F90: =F$21 -> 0 | G90: Date | H90: 0 | I90: 0 | J90: 2022-12-31 | K90: 2023-12-31 | L90: 2024-12-31 | M90: 2025-12-31 | N90: 2026-12-31 | O90: 2027-12-31 | P90: 2028-12-31 | Q90: 2029-12-31 | R90: 2030-12-31 | S90: 2031-12-31 | T90: 2032-12-31 | U90: 2033-12-31 | V90: 2034-12-31 | W90: 2035-12-31 | X90: 2036-12-31 | Y90: 2037-12-31 | Z90: 2038-12-31 | AA90: 2039-12-31 | AB90: 2040-12-31 | AC90: 2041-12-31 | AD90: 2042-12-31 | AE90: 2043-12-31 | AF90: 2044-12-31 | AG90: 2045-12-31 | AH90: 2046-12-31 | AI90: 2047-12-31 | AJ90: 2048-12-31 | AK90: 2049-12-31 | AL90: 2050-12-31 | AM90: 2051-12-31 | AN90: 2052-12-31 | AO90: 2053-12-31 | AP90: 2054-12-31 | AQ90: 2055-12-31 | AR90: 2056-12-31 | AS90: 2057-12-31 | AT90: 2058-12-31 | AU90: 2059-12-31 | AV90: 2060-12-31 | AW90: 2061-12-31 | AX90: 2062-12-31 | AY90: 2063-12-31 | AZ90: 2064-12-31 | BA90: 2065-12-31 | BB90: 2066-12-31 | BC90: 2067-12-31 | BD90: 2068-12-31 | BE90: 2069-12-31 | BF90: 2070-12-31 | BG90: 2071-12-31 | BH90: 2072-12-31 | BI90: 2073-12-31 | BJ90: 2074-12-31 | BK90: 2075-12-31 | BL90: 2076-12-31 | BM90: 2077-12-31 | BN90: 2078-12-31 | BO90: 2079-12-31 | BP90: 2080-12-31 | BQ90: 2081-12-31 | BR90: =BR$21 -> 2082-12-31 | BS90: 2083-12-31 | BT90: 2084-12-31 | BU90: 2085-12-31 | BV90: 2086-12-31 | BW90: 2087-12-31 | BX90: 2088-12-31 | BY90: 2089-12-31 | BZ90: 2090-12-31 | CA90: 2091-12-31 | CB90: 2092-12-31 | CC90: 2093-12-31 | CD90: 2094-12-31 | CE90: 2095-12-31 | CF90: 2096-12-31 | CG90: 2097-12-31 | CH90: 2098-12-31 | CI90: 2099-12-31
E91: Base loan repayment flag | G91: Flag | H91: =SUM(J91:CI91) -> 14 | J91: =IF(AND(J90>=$F$88,J90<=$F$89),1,0) -> 0 | K91: =IF(AND(K90>=$F$88,K90<=$F$89),1,0) -> 0 | L91: 0 | M91: 1 | N91: 1 | O91: 1 | P91: 1 | Q91: 1 | R91: 1 | S91: 1 | T91: 1 | U91: 1 | V91: 1 | W91: 1 | X91: 1 | Y91: 1 | Z91: 1 | AA91: 0 | AB91: 0 | AC91: 0 | AD91: 0 | AE91: 0 | AF91: 0 | AG91: 0 | AH91: 0 | AI91: 0 | AJ91: 0 | AK91: 0 | AL91: 0 | AM91: 0 | AN91: 0 | AO91: 0 | AP91: 0 | AQ91: 0 | AR91: 0 | AS91: 0 | AT91: 0 | AU91: 0 | AV91: 0 | AW91: 0 | AX91: 0 | AY91: 0 | AZ91: 0 | BA91: 0 | BB91: 0 | BC91: 0 | BD91: 0 | BE91: 0 | BF91: 0 | BG91: 0 | BH91: 0 | BI91: 0 | BJ91: 0 | BK91: 0 | BL91: 0 | BM91: 0 | BN91: 0 | BO91: 0 | BP91: 0 | BQ91: 0 | BR91: 0 | BS91: 0 | BT91: 0 | BU91: 0 | BV91: 0 | BW91: =IF(AND(BW90>=$F$88,BW90<=$F$89),1,0) -> 0 | BX91: 0 | BY91: 0 | BZ91: 0 | CA91: 0 | CB91: 0 | CC91: 0 | CD91: 0 | CE91: 0 | CF91: 0 | CG91: 0 | CH91: 0 | CI91: 0
E92: Base loan repayment schedule | G92: % | H92: =SUM(J92:CI92) -> 1 | J92: =J91/$H$91 -> 0 | K92: =K91/$H$91 -> 0 | L92: 0 | M92: 0.07142857143 | N92: 0.07142857143 | O92: 0.07142857143 | P92: 0.07142857143 | Q92: 0.07142857143 | R92: 0.07142857143 | S92: 0.07142857143 | T92: 0.07142857143 | U92: 0.07142857143 | V92: 0.07142857143 | W92: 0.07142857143 | X92: 0.07142857143 | Y92: 0.07142857143 | Z92: 0.07142857143 | AA92: 0 | AB92: 0 | AC92: 0 | AD92: 0 | AE92: 0 | AF92: 0 | AG92: 0 | AH92: 0 | AI92: 0 | AJ92: 0 | AK92: 0 | AL92: 0 | AM92: 0 | AN92: 0 | AO92: 0 | AP92: 0 | AQ92: 0 | AR92: 0 | AS92: 0 | AT92: 0 | AU92: 0 | AV92: 0 | AW92: 0 | AX92: 0 | AY92: 0 | AZ92: 0 | BA92: 0 | BB92: 0 | BC92: 0 | BD92: 0 | BE92: 0 | BF92: 0 | BG92: 0 | BH92: 0 | BI92: 0 | BJ92: 0 | BK92: 0 | BL92: 0 | BM92: 0 | BN92: 0 | BO92: 0 | BP92: 0 | BQ92: 0 | BR92: 0 | BS92: 0 | BT92: 0 | BU92: 0 | BV92: 0 | BW92: =BW91/$H$91 -> 0 | BX92: 0 | BY92: 0 | BZ92: 0 | CA92: 0 | CB92: 0 | CC92: 0 | CD92: 0 | CE92: 0 | CF92: 0 | CG92: 0 | CH92: 0 | CI92: 0
B94: Timeline
D95: Pre - financial close date flag | E95: =E$37 -> Pre-financial close flag | G95: =G$37 -> Flag | H95: 0 | I95: 0 | J95: 0 | K95: 0 | L95: 0 | M95: 0 | N95: 0 | O95: 0 | P95: 0 | Q95: 0 | R95: 0 | S95: 0 | T95: 0 | U95: 0 | V95: 0 | W95: 0 | X95: 0 | Y95: 0 | Z95: 0 | AA95: 0 | AB95: 0 | AC95: 0 | AD95: 0 | AE95: 0 | AF95: 0 | AG95: 0 | AH95: 0 | AI95: 0 | AJ95: 0 | AK95: 0 | AL95: 0 | AM95: 0 | AN95: 0 | AO95: 0 | AP95: 0 | AQ95: 0 | AR95: 0 | AS95: 0 | AT95: 0 | AU95: 0 | AV95: 0 | AW95: 0 | AX95: 0 | AY95: 0 | AZ95: 0 | BA95: 0 | BB95: 0 | BC95: 0 | BD95: 0 | BE95: 0 | BF95: 0 | BG95: 0 | BH95: 0 | BI95: 0 | BJ95: 0 | BK95: 0 | BL95: 0 | BM95: 0 | BN95: 0 | BO95: 0 | BP95: 0 | BQ95: 0 | BR95: =BR$37 -> 0 | BS95: 0 | BT95: 0 | BU95: 0 | BV95: 0 | BW95: 0 | BX95: 0 | BY95: 0 | BZ95: 0 | CA95: 0 | CB95: 0 | CC95: 0 | CD95: 0 | CE95: 0 | CF95: 0 | CG95: 0 | CH95: 0 | CI95: 0
D96: Financial close date flag | E96: =E$32 -> Financial close date flag | G96: =G$32 -> Flag | H96: 1 | I96: 0 | J96: 1 | K96: 0 | L96: 0 | M96: 0 | N96: 0 | O96: 0 | P96: 0 | Q96: 0 | R96: 0 | S96: 0 | T96: 0 | U96: 0 | V96: 0 | W96: 0 | X96: 0 | Y96: 0 | Z96: 0 | AA96: 0 | AB96: 0 | AC96: 0 | AD96: 0 | AE96: 0 | AF96: 0 | AG96: 0 | AH96: 0 | AI96: 0 | AJ96: 0 | AK96: 0 | AL96: 0 | AM96: 0 | AN96: 0 | AO96: 0 | AP96: 0 | AQ96: 0 | AR96: 0 | AS96: 0 | AT96: 0 | AU96: 0 | AV96: 0 | AW96: 0 | AX96: 0 | AY96: 0 | AZ96: 0 | BA96: 0 | BB96: 0 | BC96: 0 | BD96: 0 | BE96: 0 | BF96: 0 | BG96: 0 | BH96: 0 | BI96: 0 | BJ96: 0 | BK96: 0 | BL96: 0 | BM96: 0 | BN96: 0 | BO96: 0 | BP96: 0 | BQ96: 0 | BR96: =BR$32 -> 0 | BS96: 0 | BT96: 0 | BU96: 0 | BV96: 0 | BW96: 0 | BX96: 0 | BY96: 0 | BZ96: 0 | CA96: 0 | CB96: 0 | CC96: 0 | CD96: 0 | CE96: 0 | CF96: 0 | CG96: 0 | CH96: 0 | CI96: 0
D97: Construction period flag | E97: =E$48 -> Construction period flag | G97: =G$48 -> Flag | H97: 3 | I97: 0 | J97: 1 | K97: 1 | L97: 1 | M97: 0 | N97: 0 | O97: 0 | P97: 0 | Q97: 0 | R97: 0 | S97: 0 | T97: 0 | U97: 0 | V97: 0 | W97: 0 | X97: 0 | Y97: 0 | Z97: 0 | AA97: 0 | AB97: 0 | AC97: 0 | AD97: 0 | AE97: 0 | AF97: 0 | AG97: 0 | AH97: 0 | AI97: 0 | AJ97: 0 | AK97: 0 | AL97: 0 | AM97: 0 | AN97: 0 | AO97: 0 | AP97: 0 | AQ97: 0 | AR97: 0 | AS97: 0 | AT97: 0 | AU97: 0 | AV97: 0 | AW97: 0 | AX97: 0 | AY97: 0 | AZ97: 0 | BA97: 0 | BB97: 0 | BC97: 0 | BD97: 0 | BE97: 0 | BF97: 0 | BG97: 0 | BH97: 0 | BI97: 0 | BJ97: 0 | BK97: 0 | BL97: 0 | BM97: 0 | BN97: 0 | BO97: 0 | BP97: 0 | BQ97: 0 | BR97: =BR$48 -> 0 | BS97: 0 | BT97: 0 | BU97: 0 | BV97: 0 | BW97: 0 | BX97: 0 | BY97: 0 | BZ97: 0 | CA97: 0 | CB97: 0 | CC97: 0 | CD97: 0 | CE97: 0 | CF97: 0 | CG97: 0 | CH97: 0 | CI97: 0
D98: Operations period flag | E98: =E$68 -> Operations period flag | G98: =G$68 -> Flag | H98: 27 | I98: 0 | J98: 0 | K98: 0 | L98: 0 | M98: 1 | N98: 1 | O98: 1 | P98: 1 | Q98: 1 | R98: 1 | S98: 1 | T98: 1 | U98: 1 | V98: 1 | W98: 1 | X98: 1 | Y98: 1 | Z98: 1 | AA98: 1 | AB98: 1 | AC98: 1 | AD98: 1 | AE98: 1 | AF98: 1 | AG98: 1 | AH98: 1 | AI98: 1 | AJ98: 1 | AK98: 1 | AL98: 1 | AM98: 1 | AN98: 0 | AO98: 0 | AP98: 0 | AQ98: 0 | AR98: 0 | AS98: 0 | AT98: 0 | AU98: 0 | AV98: 0 | AW98: 0 | AX98: 0 | AY98: 0 | AZ98: 0 | BA98: 0 | BB98: 0 | BC98: 0 | BD98: 0 | BE98: 0 | BF98: 0 | BG98: 0 | BH98: 0 | BI98: 0 | BJ98: 0 | BK98: 0 | BL98: 0 | BM98: 0 | BN98: 0 | BO98: 0 | BP98: 0 | BQ98: 0 | BR98: =BR$68 -> 0 | BS98: 0 | BT98: 0 | BU98: 0 | BV98: 0 | BW98: 0 | BX98: 0 | BY98: 0 | BZ98: 0 | CA98: 0 | CB98: 0 | CC98: 0 | CD98: 0 | CE98: 0 | CF98: 0 | CG98: 0 | CH98: 0 | CI98: 0
D99: Post - operations period flag | E99: =E$81 -> Post - operations period flag | G99: =G$81 -> Flag | H99: 48 | I99: 0 | J99: 0 | K99: 0 | L99: 0 | M99: 0 | N99: 0 | O99: 0 | P99: 0 | Q99: 0 | R99: 0 | S99: 0 | T99: 0 | U99: 0 | V99: 0 | W99: 0 | X99: 0 | Y99: 0 | Z99: 0 | AA99: 0 | AB99: 0 | AC99: 0 | AD99: 0 | AE99: 0 | AF99: 0 | AG99: 0 | AH99: 0 | AI99: 0 | AJ99: 0 | AK99: 0 | AL99: 0 | AM99: 0 | AN99: 1 | AO99: 1 | AP99: 1 | AQ99: 1 | AR99: 1 | AS99: 1 | AT99: 1 | AU99: 1 | AV99: 1 | AW99: 1 | AX99: 1 | AY99: 1 | AZ99: 1 | BA99: 1 | BB99: 1 | BC99: 1 | BD99: 1 | BE99: 1 | BF99: 1 | BG99: 1 | BH99: 1 | BI99: 1 | BJ99: 1 | BK99: 1 | BL99: 1 | BM99: 1 | BN99: 1 | BO99: 1 | BP99: 1 | BQ99: 1 | BR99: =BR$81 -> 1 | BS99: 1 | BT99: 1 | BU99: 1 | BV99: 1 | BW99: 1 | BX99: 1 | BY99: 1 | BZ99: 1 | CA99: 1 | CB99: 1 | CC99: 1 | CD99: 1 | CE99: 1 | CF99: 1 | CG99: 1 | CH99: 1 | CI99: 1
E101: Pre-FC
E102: FC
E103: Construction
E104: Operation
E105: Post-operate.
E106: Timeline | J106: =IF(J95=1,$E$101,IF(J96=1,$E$102,IF(J97=1,$E$103,IF(J98=1,$E$104,IF(J99=1,$E$105))))) -> FC | K106: =IF(K95=1,$E$101,IF(K96=1,$E$102,IF(K97=1,$E$103,IF(K98=1,$E$104,IF(K99=1,$E$105))))) -> Construction | L106: Construction | M106: Operation | N106: Operation | O106: Operation | P106: Operation | Q106: Operation | R106: Operation | S106: Operation | T106: Operation | U106: Operation | V106: Operation | W106: Operation | X106: Operation | Y106: Operation | Z106: Operation | AA106: Operation | AB106: Operation | AC106: Operation | AD106: Operation | AE106: Operation | AF106: Operation | AG106: Operation | AH106: Operation | AI106: Operation | AJ106: Operation | AK106: Operation | AL106: Operation | AM106: Operation | AN106: Post-operate. | AO106: Post-operate. | AP106: Post-operate. | AQ106: Post-operate. | AR106: Post-operate. | AS106: Post-operate. | AT106: Post-operate. | AU106: Post-operate. | AV106: Post-operate. | AW106: Post-operate. | AX106: Post-operate. | AY106: Post-operate. | AZ106: Post-operate. | BA106: Post-operate. | BB106: Post-operate. | BC106: Post-operate. | BD106: Post-operate. | BE106: Post-operate. | BF106: Post-operate. | BG106: Post-operate. | BH106: Post-operate. | BI106: Post-operate. | BJ106: Post-operate. | BK106: Post-operate. | BL106: Post-operate. | BM106: Post-operate. | BN106: Post-operate. | BO106: Post-operate. | BP106: Post-operate. | BQ106: Post-operate. | BR106: Post-operate. | BS106: Post-operate. | BT106: Post-operate. | BU106: Post-operate. | BV106: Post-operate. | BW106: =IF(BW95=1,$E$101,IF(BW96=1,$E$102,IF(BW97=1,$E$103,IF(BW98=1,$E$104,IF(BW99=1,$E$105))))) -> Post-operate. | BX106: Post-operate. | BY106: Post-operate. | BZ106: Post-operate. | CA106: Post-operate. | CB106: Post-operate. | CC106: Post-operate. | CD106: Post-operate. | CE106: Post-operate. | CF106: Post-operate. | CG106: Post-operate. | CH106: Post-operate. | CI106: Post-operate.
B108: ESCALATION FACTOR
E109: CPI date | F109: CPI %
E110: =Inputs!G11 -> 2022-01-01 | F110: 0.02
E112: =E$21 -> Financial period end date | F112: =F$21 -> 0 | G112: Date | H112: 0 | I112: 0 | J112: 2022-12-31 | K112: 2023-12-31 | L112: 2024-12-31 | M112: 2025-12-31 | N112: 2026-12-31 | O112: 2027-12-31 | P112: 2028-12-31 | Q112: 2029-12-31 | R112: 2030-12-31 | S112: 2031-12-31 | T112: 2032-12-31 | U112: 2033-12-31 | V112: 2034-12-31 | W112: 2035-12-31 | X112: 2036-12-31 | Y112: 2037-12-31 | Z112: 2038-12-31 | AA112: 2039-12-31 | AB112: 2040-12-31 | AC112: 2041-12-31 | AD112: 2042-12-31 | AE112: 2043-12-31 | AF112: 2044-12-31 | AG112: 2045-12-31 | AH112: 2046-12-31 | AI112: 2047-12-31 | AJ112: 2048-12-31 | AK112: 2049-12-31 | AL112: 2050-12-31 | AM112: 2051-12-31 | AN112: 2052-12-31 | AO112: 2053-12-31 | AP112: 2054-12-31 | AQ112: 2055-12-31 | AR112: 2056-12-31 | AS112: 2057-12-31 | AT112: 2058-12-31 | AU112: 2059-12-31 | AV112: 2060-12-31 | AW112: 2061-12-31 | AX112: 2062-12-31 | AY112: 2063-12-31 | AZ112: 2064-12-31 | BA112: 2065-12-31 | BB112: 2066-12-31 | BC112: 2067-12-31 | BD112: 2068-12-31 | BE112: 2069-12-31 | BF112: 2070-12-31 | BG112: 2071-12-31 | BH112: 2072-12-31 | BI112: 2073-12-31 | BJ112: 2074-12-31 | BK112: 2075-12-31 | BL112: 2076-12-31 | BM112: 2077-12-31 | BN112: 2078-12-31 | BO112: 2079-12-31 | BP112: 2080-12-31 | BQ112: 2081-12-31 | BR112: =BR$21 -> 2082-12-31 | BS112: 2083-12-31 | BT112: 2084-12-31 | BU112: 2085-12-31 | BV112: 2086-12-31 | BW112: 2087-12-31 | BX112: 2088-12-31 | BY112: 2089-12-31 | BZ112: 2090-12-31 | CA112: 2091-12-31 | CB112: 2092-12-31 | CC112: 2093-12-31 | CD112: 2094-12-31 | CE112: 2095-12-31 | CF112: 2096-12-31 | CG112: 2097-12-31 | CH112: 2098-12-31 | CI112: 2099-12-31
E113: Annual CPI with N/A | G113: % | J113: =VLOOKUP(J112,$E$110:$F$110,2,TRUE) -> 0.02 | K113: 0.02 | L113: 0.02 | M113: 0.02 | N113: 0.02 | O113: 0.02 | P113: 0.02 | Q113: 0.02 | R113: 0.02 | S113: 0.02 | T113: 0.02 | U113: 0.02 | V113: 0.02 | W113: 0.02 | X113: 0.02 | Y113: 0.02 | Z113: 0.02 | AA113: 0.02 | AB113: 0.02 | AC113: 0.02 | AD113: 0.02 | AE113: 0.02 | AF113: 0.02 | AG113: 0.02 | AH113: 0.02 | AI113: 0.02 | AJ113: 0.02 | AK113: 0.02 | AL113: 0.02 | AM113: 0.02 | AN113: 0.02 | AO113: 0.02 | AP113: =VLOOKUP(AP112,$E$110:$F$110,2,TRUE) -> 0.02 | AQ113: 0.02 | AR113: 0.02 | AS113: 0.02 | AT113: 0.02 | AU113: 0.02 | AV113: 0.02 | AW113: 0.02 | AX113: 0.02 | AY113: 0.02 | AZ113: 0.02 | BA113: 0.02 | BB113: 0.02 | BC113: 0.02 | BD113: 0.02 | BE113: 0.02 | BF113: 0.02 | BG113: 0.02 | BH113: 0.02 | BI113: 0.02 | BJ113: 0.02 | BK113: 0.02 | BL113: 0.02 | BM113: 0.02 | BN113: 0.02 | BO113: 0.02 | BP113: 0.02 | BQ113: 0.02 | BR113: 0.02 | BS113: 0.02 | BT113: 0.02 | BU113: 0.02 | BV113: =VLOOKUP(BV112,$E$110:$F$110,2,TRUE) -> 0.02 | BW113: 0.02 | BX113: 0.02 | BY113: 0.02 | BZ113: 0.02 | CA113: 0.02 | CB113: 0.02 | CC113: 0.02 | CD113: 0.02 | CE113: 0.02 | CF113: 0.02 | CG113: 0.02 | CH113: 0.02 | CI113: 0.02
E114: Annual CPI | G114: % | J114: =IFERROR(J113,0) -> 0.02 | K114: =IFERROR(K113,0) -> 0.02 | L114: 0.02 | M114: 0.02 | N114: 0.02 | O114: 0.02 | P114: 0.02 | Q114: 0.02 | R114: 0.02 | S114: 0.02 | T114: 0.02 | U114: 0.02 | V114: 0.02 | W114: 0.02 | X114: 0.02 | Y114: 0.02 | Z114: 0.02 | AA114: 0.02 | AB114: 0.02 | AC114: 0.02 | AD114: 0.02 | AE114: 0.02 | AF114: 0.02 | AG114: 0.02 | AH114: 0.02 | AI114: 0.02 | AJ114: 0.02 | AK114: 0.02 | AL114: 0.02 | AM114: 0.02 | AN114: 0.02 | AO114: 0.02 | AP114: 0.02 | AQ114: 0.02 | AR114: 0.02 | AS114: 0.02 | AT114: 0.02 | AU114: 0.02 | AV114: 0.02 | AW114: 0.02 | AX114: 0.02 | AY114: 0.02 | AZ114: 0.02 | BA114: 0.02 | BB114: 0.02 | BC114: 0.02 | BD114: 0.02 | BE114: 0.02 | BF114: 0.02 | BG114: 0.02 | BH114: 0.02 | BI114: 0.02 | BJ114: 0.02 | BK114: 0.02 | BL114: 0.02 | BM114: 0.02 | BN114: 0.02 | BO114: 0.02 | BP114: 0.02 | BQ114: 0.02 | BR114: 0.02 | BS114: 0.02 | BT114: 0.02 | BU114: 0.02 | BV114: 0.02 | BW114: =IFERROR(BW113,0) -> 0.02 | BX114: 0.02 | BY114: 0.02 | BZ114: 0.02 | CA114: 0.02 | CB114: 0.02 | CC114: 0.02 | CD114: 0.02 | CE114: 0.02 | CF114: 0.02 | CG114: 0.02 | CH114: 0.02 | CI114: 0.02
E116: Months in a year | F116: 12 | G116: Months
E117: Months in a period | F117: 12 | G117: Months
E118: =E$114 -> Annual CPI | G118: % | J118: =J$114 -> 0.02 | K118: 0.02 | L118: 0.02 | M118: 0.02 | N118: 0.02 | O118: 0.02 | P118: 0.02 | Q118: 0.02 | R118: 0.02 | S118: 0.02 | T118: 0.02 | U118: 0.02 | V118: 0.02 | W118: 0.02 | X118: 0.02 | Y118: 0.02 | Z118: 0.02 | AA118: 0.02 | AB118: 0.02 | AC118: 0.02 | AD118: 0.02 | AE118: 0.02 | AF118: 0.02 | AG118: 0.02 | AH118: 0.02 | AI118: 0.02 | AJ118: 0.02 | AK118: 0.02 | AL118: 0.02 | AM118: 0.02 | AN118: 0.02 | AO118: 0.02 | AP118: 0.02 | AQ118: 0.02 | AR118: 0.02 | AS118: 0.02 | AT118: 0.02 | AU118: 0.02 | AV118: 0.02 | AW118: 0.02 | AX118: 0.02 | AY118: 0.02 | AZ118: 0.02 | BA118: 0.02 | BB118: 0.02 | BC118: 0.02 | BD118: 0.02 | BE118: 0.02 | BF118: 0.02 | BG118: 0.02 | BH118: 0.02 | BI118: 0.02 | BJ118: 0.02 | BK118: 0.02 | BL118: 0.02 | BM118: 0.02 | BN118: 0.02 | BO118: 0.02 | BP118: 0.02 | BQ118: 0.02 | BR118: =BR$114 -> 0.02 | BS118: 0.02 | BT118: 0.02 | BU118: 0.02 | BV118: 0.02 | BW118: 0.02 | BX118: 0.02 | BY118: 0.02 | BZ118: 0.02 | CA118: 0.02 | CB118: 0.02 | CC118: 0.02 | CD118: 0.02 | CE118: 0.02 | CF118: 0.02 | CG118: 0.02 | CH118: 0.02 | CI118: 0.02
E119: Semi-annual CPI | G119: % | J119: =(1+J118)^($F$117/$F$116)-1 -> 0.02 | K119: =(1+K118)^($F$117/$F$116)-1 -> 0.02 | L119: 0.02 | M119: 0.02 | N119: 0.02 | O119: 0.02 | P119: 0.02 | Q119: 0.02 | R119: 0.02 | S119: 0.02 | T119: 0.02 | U119: 0.02 | V119: 0.02 | W119: 0.02 | X119: 0.02 | Y119: 0.02 | Z119: 0.02 | AA119: 0.02 | AB119: 0.02 | AC119: 0.02 | AD119: 0.02 | AE119: 0.02 | AF119: 0.02 | AG119: 0.02 | AH119: 0.02 | AI119: 0.02 | AJ119: 0.02 | AK119: 0.02 | AL119: 0.02 | AM119: 0.02 | AN119: 0.02 | AO119: 0.02 | AP119: 0.02 | AQ119: 0.02 | AR119: 0.02 | AS119: 0.02 | AT119: 0.02 | AU119: 0.02 | AV119: 0.02 | AW119: 0.02 | AX119: 0.02 | AY119: 0.02 | AZ119: 0.02 | BA119: 0.02 | BB119: 0.02 | BC119: 0.02 | BD119: 0.02 | BE119: 0.02 | BF119: 0.02 | BG119: 0.02 | BH119: 0.02 | BI119: 0.02 | BJ119: 0.02 | BK119: 0.02 | BL119: 0.02 | BM119: 0.02 | BN119: 0.02 | BO119: 0.02 | BP119: 0.02 | BQ119: 0.02 | BR119: 0.02 | BS119: 0.02 | BT119: 0.02 | BU119: 0.02 | BV119: 0.02 | BW119: =(1+BW118)^($F$117/$F$116)-1 -> 0.02 | BX119: 0.02 | BY119: 0.02 | BZ119: 0.02 | CA119: 0.02 | CB119: 0.02 | CC119: 0.02 | CD119: 0.02 | CE119: 0.02 | CF119: 0.02 | CG119: 0.02 | CH119: 0.02 | CI119: 0.02
D121: Financial close date flag | E121: Years after beginning operations | G121: Years | H121: =H$32 -> 1 | I121: 0 | J121: =IF(YEAR(J2)>2025,YEAR(J2)-2025,0) -> 0 | K121: =IF(YEAR(K2)>2025,YEAR(K2)-2025,0) -> 0 | L121: 0 | M121: 0 | N121: 1 | O121: 2 | P121: 3 | Q121: 4 | R121: 5 | S121: 6 | T121: 7 | U121: 8 | V121: 9 | W121: 10 | X121: 11 | Y121: 12 | Z121: 13 | AA121: 14 | AB121: 15 | AC121: 16 | AD121: 17 | AE121: 18 | AF121: 19 | AG121: 20 | AH121: 21 | AI121: 22 | AJ121: 23 | AK121: 24 | AL121: 25 | AM121: 26
E122: =E$68 -> Operations period flag | F122: =F$68 -> 0 | G122: Flag | H122: 27 | I122: 0 | J122: 0 | K122: 0 | L122: 0 | M122: 1 | N122: 1 | O122: 1 | P122: 1 | Q122: 1 | R122: 1 | S122: 1 | T122: 1 | U122: 1 | V122: 1 | W122: 1 | X122: 1 | Y122: 1 | Z122: 1 | AA122: 1 | AB122: 1 | AC122: 1 | AD122: 1 | AE122: 1 | AF122: 1 | AG122: 1 | AH122: 1 | AI122: 1 | AJ122: 1 | AK122: 1 | AL122: 1 | AM122: 1 | AN122: 0 | AO122: 0 | AP122: 0 | AQ122: 0 | AR122: 0 | AS122: 0 | AT122: 0 | AU122: 0 | AV122: 0 | AW122: 0 | AX122: 0 | AY122: 0 | AZ122: 0 | BA122: 0 | BB122: 0 | BC122: 0 | BD122: 0 | BE122: 0 | BF122: 0 | BG122: 0 | BH122: 0 | BI122: 0 | BJ122: 0 | BK122: 0 | BL122: 0 | BM122: 0 | BN122: 0 | BO122: 0 | BP122: 0 | BQ122: 0 | BR122: =BR$68 -> 0 | BS122: 0 | BT122: 0 | BU122: 0 | BV122: 0 | BW122: 0 | BX122: 0 | BY122: 0 | BZ122: 0 | CA122: 0 | CB122: 0 | CC122: 0 | CD122: 0 | CE122: 0 | CF122: 0 | CG122: 0 | CH122: 0 | CI122: 0
E123: Escalation factor Revenues | F123: 3.5 | G123: Factor | J123: =IF(J122=1,((1+($F$123/100))^J121),0) -> 0 | K123: =IF(K122=1,((1+($F$123/100))^K121),0) -> 0 | L123: 0 | M123: 1 | N123: 1.035 | O123: 1.071225 | P123: 1.108717875 | Q123: 1.147523001 | R123: 1.187686306 | S123: 1.229255326 | T123: 1.272279263 | U123: 1.316809037 | V123: 1.362897353 | W123: 1.410598761 | X123: 1.459969717 | Y123: 1.511068657 | Z123: 1.56395606 | AA123: 1.618694522 | AB123: 1.675348831 | AC123: 1.73398604 | AD123: 1.794675551 | AE123: 1.857489196 | AF123: 1.922501317 | AG123: 1.989788863 | AH123: 2.059431474 | AI123: 2.131511575 | AJ123: 2.20611448 | AK123: 2.283328487 | AL123: 2.363244984 | AM123: 2.445958559 | AN123: 0 | AO123: 0 | AP123: 0 | AQ123: 0 | AR123: 0 | AS123: 0 | AT123: 0 | AU123: 0 | AV123: 0 | AW123: 0 | AX123: 0 | AY123: 0 | AZ123: 0 | BA123: 0 | BB123: 0 | BC123: 0 | BD123: 0 | BE123: 0 | BF123: 0 | BG123: 0 | BH123: 0 | BI123: 0 | BJ123: 0 | BK123: 0 | BL123: 0 | BM123: 0 | BN123: 0 | BO123: 0 | BP123: 0 | BQ123: 0 | BR123: 0 | BS123: 0 | BT123: 0 | BU123: 0 | BV123: 0 | BW123: =IF(BW122=1,((1+($F$123/100))^BW121),0) -> 0 | BX123: 0 | BY123: 0 | BZ123: 0 | CA123: 0 | CB123: 0 | CC123: 0 | CD123: 0 | CE123: 0 | CF123: 0 | CG123: 0 | CH123: 0 | CI123: 0
E124: Escalation Factor Inflation | F124: =Inputs!G30*100 -> 2 | G124: Factor | J124: =IF(J122=1,((1+($F$124/100))^J121),0) -> 0 | K124: 0 | L124: 0 | M124: =IF(M122=1,((1+($F$124/100))^M121),0) -> 1 | N124: =IF(N122=1,((1+($F$124/100))^N121),0) -> 1.02 | O124: 1.0404 | P124: 1.061208 | Q124: 1.08243216 | R124: 1.104080803 | S124: 1.126162419 | T124: 1.148685668 | U124: 1.171659381 | V124: 1.195092569 | W124: 1.21899442 | X124: 1.243374308 | Y124: 1.268241795 | Z124: 1.29360663 | AA124: 1.319478763 | AB124: 1.345868338 | AC124: 1.372785705 | AD124: 1.400241419 | AE124: 1.428246248 | AF124: 1.456811173 | AG124: 1.485947396 | AH124: 1.515666344 | AI124: 1.545979671 | AJ124: 1.576899264 | AK124: 1.608437249 | AL124: 1.640605994 | AM124: 1.673418114 | AN124: 0 | AO124: 0 | AP124: 0 | AQ124: 0 | AR124: 0 | AS124: 0 | AT124: 0 | AU124: 0 | AV124: 0 | AW124: 0 | AX124: 0 | AY124: 0 | AZ124: 0 | BA124: 0 | BB124: 0 | BC124: 0 | BD124: 0 | BE124: 0 | BF124: 0 | BG124: 0 | BH124: 0 | BI124: 0 | BJ124: 0 | BK124: 0 | BL124: 0 | BM124: 0 | BN124: 0 | BO124: 0 | BP124: 0 | BQ124: 0 | BR124: 0 | BS124: 0 | BT124: 0 | BU124: 0 | BV124: 0 | BW124: 0 | BX124: 0 | BY124: 0 | BZ124: =IF(BZ122=1,((1+($F$124/100))^BZ121),0) -> 0 | CA124: 0 | CB124: 0 | CC124: 0 | CD124: 0 | CE124: 0 | CF124: 0 | CG124: 0 | CH124: 0 | CI124: 0

Sheet Financial Model
B1: Financial Model
E2: Financial period end date | I2: =Timing!I$2 -> 0 | J2: =Timing!J$2 -> 2022-12-31 | K2: =Timing!K$2 -> 2023-12-31 | L2: =Timing!L$2 -> 2024-12-31 | M2: =Timing!M$2 -> 2025-12-31 | N2: =Timing!N$2 -> 2026-12-31 | O2: =Timing!O$2 -> 2027-12-31 | P2: =Timing!P$2 -> 2028-12-31 | Q2: =Timing!Q$2 -> 2029-12-31 | R2: =Timing!R$2 -> 2030-12-31 | S2: =Timing!S$2 -> 2031-12-31 | T2: =Timing!T$2 -> 2032-12-31 | U2: =Timing!U$2 -> 2033-12-31 | V2: =Timing!V$2 -> 2034-12-31 | W2: =Timing!W$2 -> 2035-12-31 | X2: =Timing!X$2 -> 2036-12-31 | Y2: =Timing!Y$2 -> 2037-12-31 | Z2: =Timing!Z$2 -> 2038-12-31 | AA2: =Timing!AA$2 -> 2039-12-31 | AB2: =Timing!AB$2 -> 2040-12-31 | AC2: =Timing!AC$2 -> 2041-12-31 | AD2: =Timing!AD$2 -> 2042-12-31 | AE2: =Timing!AE$2 -> 2043-12-31 | AF2: =Timing!AF$2 -> 2044-12-31 | AG2: =Timing!AG$2 -> 2045-12-31 | AH2: =Timing!AH$2 -> 2046-12-31 | AI2: =Timing!AI$2 -> 2047-12-31 | AJ2: =Timing!AJ$2 -> 2048-12-31 | AK2: =Timing!AK$2 -> 2049-12-31 | AL2: =Timing!AL$2 -> 2050-12-31 | AM2: =Timing!AM$2 -> 2051-12-31 | AN2: =Timing!AN$2 -> 2052-12-31 | AO2: =Timing!AO$2 -> 2053-12-31 | AP2: =Timing!AP$2 -> 2054-12-31 | AQ2: =Timing!AQ$2 -> 2055-12-31 | AR2: =Timing!AR$2 -> 2056-12-31 | AS2: =Timing!AS$2 -> 2057-12-31 | AT2: =Timing!AT$2 -> 2058-12-31 | AU2: =Timing!AU$2 -> 2059-12-31 | AV2: =Timing!AV$2 -> 2060-12-31 | AW2: =Timing!AW$2 -> 2061-12-31 | AX2: =Timing!AX$2 -> 2062-12-31 | AY2: =Timing!AY$2 -> 2063-12-31 | AZ2: =Timing!AZ$2 -> 2064-12-31 | BA2: =Timing!BA$2 -> 2065-12-31 | BB2: =Timing!BB$2 -> 2066-12-31 | BC2: =Timing!BC$2 -> 2067-12-31 | BD2: =Timing!BD$2 -> 2068-12-31 | BE2: =Timing!BE$2 -> 2069-12-31 | BF2: =Timing!BF$2 -> 2070-12-31 | BG2: =Timing!BG$2 -> 2071-12-31 | BH2: =Timing!BH$2 -> 2072-12-31 | BI2: =Timing!BI$2 -> 2073-12-31 | BJ2: =Timing!BJ$2 -> 2074-12-31 | BK2: =Timing!BK$2 -> 2075-12-31 | BL2: =Timing!BL$2 -> 2076-12-31 | BM2: =Timing!BM$2 -> 2077-12-31 | BN2: =Timing!BN$2 -> 2078-12-31 | BO2: =Timing!BO$2 -> 2079-12-31 | BP2: =Timing!BP$2 -> 2080-12-31 | BQ2: =Timing!BQ$2 -> 2081-12-31 | BR2: =Timing!BR$2 -> 2082-12-31 | BS2: =Timing!BS$2 -> 2083-12-31 | BT2: =Timing!BT$2 -> 2084-12-31 | BU2: =Timing!BU$2 -> 2085-12-31 | BV2: =Timing!BV$2 -> 2086-12-31 | BW2: =Timing!BW$2 -> 2087-12-31 | BX2: =Timing!BX$2 -> 2088-12-31 | BY2: =Timing!BY$2 -> 2089-12-31 | BZ2: =Timing!BZ$2 -> 2090-12-31 | CA2: =Timing!CA$2 -> 2091-12-31 | CB2: =Timing!CB$2 -> 2092-12-31 | CC2: =Timing!CC$2 -> 2093-12-31 | CD2: =Timing!CD$2 -> 2094-12-31 | CE2: =Timing!CE$2 -> 2095-12-31 | CF2: =Timing!CF$2 -> 2096-12-31 | CG2: =Timing!CG$2 -> 2097-12-31 | CH2: =Timing!CH$2 -> 2098-12-31 | CI2: =Timing!CI$2 -> 2099-12-31
E3: Timeline | I3: =Timing!I$3 -> 0 | J3: =Timing!J$3 -> FC | K3: =Timing!K$3 -> Construction | L3: =Timing!L$3 -> Construction | M3: =Timing!M$3 -> Operation | N3: =Timing!N$3 -> Operation | O3: =Timing!O$3 -> Operation | P3: =Timing!P$3 -> Operation | Q3: =Timing!Q$3 -> Operation | R3: =Timing!R$3 -> Operation | S3: =Timing!S$3 -> Operation | T3: =Timing!T$3 -> Operation | U3: =Timing!U$3 -> Operation | V3: =Timing!V$3 -> Operation | W3: =Timing!W$3 -> Operation | X3: =Timing!X$3 -> Operation | Y3: =Timing!Y$3 -> Operation | Z3: =Timing!Z$3 -> Operation | AA3: =Timing!AA$3 -> Operation | AB3: =Timing!AB$3 -> Operation | AC3: =Timing!AC$3 -> Operation | AD3: =Timing!AD$3 -> Operation | AE3: =Timing!AE$3 -> Operation | AF3: =Timing!AF$3 -> Operation | AG3: =Timing!AG$3 -> Operation | AH3: =Timing!AH$3 -> Operation | AI3: =Timing!AI$3 -> Operation | AJ3: =Timing!AJ$3 -> Operation | AK3: =Timing!AK$3 -> Operation | AL3: =Timing!AL$3 -> Operation | AM3: =Timing!AM$3 -> Operation | AN3: =Timing!AN$3 -> Post-operate. | AO3: =Timing!AO$3 -> Post-operate. | AP3: =Timing!AP$3 -> Post-operate. | AQ3: =Timing!AQ$3 -> Post-operate. | AR3: =Timing!AR$3 -> Post-operate. | AS3: =Timing!AS$3 -> Post-operate. | AT3: =Timing!AT$3 -> Post-operate. | AU3: =Timing!AU$3 -> Post-operate. | AV3: =Timing!AV$3 -> Post-operate. | AW3: =Timing!AW$3 -> Post-operate. | AX3: =Timing!AX$3 -> Post-operate. | AY3: =Timing!AY$3 -> Post-operate. | AZ3: =Timing!AZ$3 -> Post-operate. | BA3: =Timing!BA$3 -> Post-operate. | BB3: =Timing!BB$3 -> Post-operate. | BC3: =Timing!BC$3 -> Post-operate. | BD3: =Timing!BD$3 -> Post-operate. | BE3: =Timing!BE$3 -> Post-operate. | BF3: =Timing!BF$3 -> Post-operate. | BG3: =Timing!BG$3 -> Post-operate. | BH3: =Timing!BH$3 -> Post-operate. | BI3: =Timing!BI$3 -> Post-operate. | BJ3: =Timing!BJ$3 -> Post-operate. | BK3: =Timing!BK$3 -> Post-operate. | BL3: =Timing!BL$3 -> Post-operate. | BM3: =Timing!BM$3 -> Post-operate. | BN3: =Timing!BN$3 -> Post-operate. | BO3: =Timing!BO$3 -> Post-operate. | BP3: =Timing!BP$3 -> Post-operate. | BQ3: =Timing!BQ$3 -> Post-operate. | BR3: =Timing!BR$3 -> Post-operate. | BS3: =Timing!BS$3 -> Post-operate. | BT3: =Timing!BT$3 -> Post-operate. | BU3: =Timing!BU$3 -> Post-operate. | BV3: =Timing!BV$3 -> Post-operate. | BW3: =Timing!BW$3 -> Post-operate. | BX3: =Timing!BX$3 -> Post-operate. | BY3: =Timing!BY$3 -> Post-operate. | BZ3: =Timing!BZ$3 -> Post-operate. | CA3: =Timing!CA$3 -> Post-operate. | CB3: =Timing!CB$3 -> Post-operate. | CC3: =Timing!CC$3 -> Post-operate. | CD3: =Timing!CD$3 -> Post-operate. | CE3: =Timing!CE$3 -> Post-operate. | CF3: =Timing!CF$3 -> Post-operate. | CG3: =Timing!CG$3 -> Post-operate. | CH3: =Timing!CH$3 -> Post-operate. | CI3: =Timing!CI$3 -> Post-operate.
E4: Operations | J4: =Timing!J68 -> 0 | K4: =Timing!K68 -> 0 | L4: =Timing!L68 -> 0 | M4: =Timing!M68 -> 1 | N4: =Timing!N68 -> 1 | O4: =Timing!O68 -> 1 | P4: =Timing!P68 -> 1 | Q4: =Timing!Q68 -> 1 | R4: =Timing!R68 -> 1 | S4: =Timing!S68 -> 1 | T4: =Timing!T68 -> 1 | U4: =Timing!U68 -> 1 | V4: =Timing!V68 -> 1 | W4: =Timing!W68 -> 1 | X4: =Timing!X68 -> 1 | Y4: =Timing!Y68 -> 1 | Z4: =Timing!Z68 -> 1 | AA4: =Timing!AA68 -> 1 | AB4: =Timing!AB68 -> 1 | AC4: =Timing!AC68 -> 1 | AD4: =Timing!AD68 -> 1 | AE4: =Timing!AE68 -> 1 | AF4: =Timing!AF68 -> 1 | AG4: =Timing!AG68 -> 1 | AH4: =Timing!AH68 -> 1 | AI4: =Timing!AI68 -> 1 | AJ4: =Timing!AJ68 -> 1 | AK4: =Timing!AK68 -> 1 | AL4: =Timing!AL68 -> 1 | AM4: =Timing!AM68 -> 1 | AN4: =Timing!AN68 -> 0 | AO4: =Timing!AO68 -> 0 | AP4: =Timing!AP68 -> 0 | AQ4: =Timing!AQ68 -> 0 | AR4: =Timing!AR68 -> 0 | AS4: =Timing!AS68 -> 0 | AT4: =Timing!AT68 -> 0 | AU4: =Timing!AU68 -> 0 | AV4: =Timing!AV68 -> 0 | AW4: =Timing!AW68 -> 0 | AX4: =Timing!AX68 -> 0 | AY4: =Timing!AY68 -> 0 | AZ4: =Timing!AZ68 -> 0 | BA4: =Timing!BA68 -> 0 | BB4: =Timing!BB68 -> 0 | BC4: =Timing!BC68 -> 0 | BD4: =Timing!BD68 -> 0 | BE4: =Timing!BE68 -> 0 | BF4: =Timing!BF68 -> 0 | BG4: =Timing!BG68 -> 0 | BH4: =Timing!BH68 -> 0 | BI4: =Timing!BI68 -> 0 | BJ4: =Timing!BJ68 -> 0 | BK4: =Timing!BK68 -> 0 | BL4: =Timing!BL68 -> 0 | BM4: =Timing!BM68 -> 0 | BN4: =Timing!BN68 -> 0 | BO4: =Timing!BO68 -> 0 | BP4: =Timing!BP68 -> 0 | BQ4: =Timing!BQ68 -> 0 | BR4: =Timing!BR68 -> 0 | BS4: =Timing!BS68 -> 0 | BT4: =Timing!BT68 -> 0 | BU4: =Timing!BU68 -> 0 | BV4: =Timing!BV68 -> 0 | BW4: =Timing!BW68 -> 0 | BX4: =Timing!BX68 -> 0 | BY4: =Timing!BY68 -> 0 | BZ4: =Timing!BZ68 -> 0 | CA4: =Timing!CA68 -> 0 | CB4: =Timing!CB68 -> 0 | CC4: =Timing!CC68 -> 0 | CD4: =Timing!CD68 -> 0 | CE4: =Timing!CE68 -> 0 | CF4: =Timing!CF68 -> 0 | CG4: =Timing!CG68 -> 0 | CH4: =Timing!CH68 -> 0 | CI4: =Timing!CI68 -> 0
E5: Financial year | I5: =Timing!I$4 -> 0 | J5: =Timing!J$4 -> 2022 | K5: =Timing!K$4 -> 2023 | L5: =Timing!L$4 -> 2024 | M5: =Timing!M$4 -> 2025 | N5: =Timing!N$4 -> 2026 | O5: =Timing!O$4 -> 2027 | P5: =Timing!P$4 -> 2028 | Q5: =Timing!Q$4 -> 2029 | R5: =Timing!R$4 -> 2030 | S5: =Timing!S$4 -> 2031 | T5: =Timing!T$4 -> 2032 | U5: =Timing!U$4 -> 2033 | V5: =Timing!V$4 -> 2034 | W5: =Timing!W$4 -> 2035 | X5: =Timing!X$4 -> 2036 | Y5: =Timing!Y$4 -> 2037 | Z5: =Timing!Z$4 -> 2038 | AA5: =Timing!AA$4 -> 2039 | AB5: =Timing!AB$4 -> 2040 | AC5: =Timing!AC$4 -> 2041 | AD5: =Timing!AD$4 -> 2042 | AE5: =Timing!AE$4 -> 2043 | AF5: =Timing!AF$4 -> 2044 | AG5: =Timing!AG$4 -> 2045 | AH5: =Timing!AH$4 -> 2046 | AI5: =Timing!AI$4 -> 2047 | AJ5: =Timing!AJ$4 -> 2048 | AK5: =Timing!AK$4 -> 2049 | AL5: =Timing!AL$4 -> 2050 | AM5: =Timing!AM$4 -> 2051 | AN5: =Timing!AN$4 -> 2052 | AO5: =Timing!AO$4 -> 2053 | AP5: =Timing!AP$4 -> 2054 | AQ5: =Timing!AQ$4 -> 2055 | AR5: =Timing!AR$4 -> 2056 | AS5: =Timing!AS$4 -> 2057 | AT5: =Timing!AT$4 -> 2058 | AU5: =Timing!AU$4 -> 2059 | AV5: =Timing!AV$4 -> 2060 | AW5: =Timing!AW$4 -> 2061 | AX5: =Timing!AX$4 -> 2062 | AY5: =Timing!AY$4 -> 2063 | AZ5: =Timing!AZ$4 -> 2064 | BA5: =Timing!BA$4 -> 2065 | BB5: =Timing!BB$4 -> 2066 | BC5: =Timing!BC$4 -> 2067 | BD5: =Timing!BD$4 -> 2068 | BE5: =Timing!BE$4 -> 2069 | BF5: =Timing!BF$4 -> 2070 | BG5: =Timing!BG$4 -> 2071 | BH5: =Timing!BH$4 -> 2072 | BI5: =Timing!BI$4 -> 2073 | BJ5: =Timing!BJ$4 -> 2074 | BK5: =Timing!BK$4 -> 2075 | BL5: =Timing!BL$4 -> 2076 | BM5: =Timing!BM$4 -> 2077 | BN5: =Timing!BN$4 -> 2078 | BO5: =Timing!BO$4 -> 2079 | BP5: =Timing!BP$4 -> 2080 | BQ5: =Timing!BQ$4 -> 2081 | BR5: =Timing!BR$4 -> 2082 | BS5: =Timing!BS$4 -> 2083 | BT5: =Timing!BT$4 -> 2084 | BU5: =Timing!BU$4 -> 2085 | BV5: =Timing!BV$4 -> 2086 | BW5: =Timing!BW$4 -> 2087 | BX5: =Timing!BX$4 -> 2088 | BY5: =Timing!BY$4 -> 2089 | BZ5: =Timing!BZ$4 -> 2090 | CA5: =Timing!CA$4 -> 2091 | CB5: =Timing!CB$4 -> 2092 | CC5: =Timing!CC$4 -> 2093 | CD5: =Timing!CD$4 -> 2094 | CE5: =Timing!CE$4 -> 2095 | CF5: =Timing!CF$4 -> 2096 | CG5: =Timing!CG$4 -> 2097 | CH5: =Timing!CH$4 -> 2098 | CI5: =Timing!CI$4 -> 2099
F6: Inputs | G6: Units | H6: Total
B8: Volumes and Revenues
C9: Light Vehicles
E10: Light Vehicles Traffic | F10: =Inputs!G37/1000 -> 250 | G10: [000s / y]
E11: =Timing!E$68 -> Operations period flag | F11: =Timing!F$68 -> 0 | G11: [Flag] | I11: =Timing!I$68 -> 0 | J11: =Timing!J$68 -> 0 | K11: =Timing!K$68 -> 0 | L11: =Timing!L$68 -> 0 | M11: =Timing!M$68 -> 1 | N11: =Timing!N$68 -> 1 | O11: =Timing!O$68 -> 1 | P11: =Timing!P$68 -> 1 | Q11: =Timing!Q$68 -> 1 | R11: =Timing!R$68 -> 1 | S11: =Timing!S$68 -> 1 | T11: =Timing!T$68 -> 1 | U11: =Timing!U$68 -> 1 | V11: =Timing!V$68 -> 1 | W11: =Timing!W$68 -> 1 | X11: =Timing!X$68 -> 1 | Y11: =Timing!Y$68 -> 1 | Z11: =Timing!Z$68 -> 1 | AA11: =Timing!AA$68 -> 1 | AB11: =Timing!AB$68 -> 1 | AC11: =Timing!AC$68 -> 1 | AD11: =Timing!AD$68 -> 1 | AE11: =Timing!AE$68 -> 1 | AF11: =Timing!AF$68 -> 1 | AG11: =Timing!AG$68 -> 1 | AH11: =Timing!AH$68 -> 1 | AI11: =Timing!AI$68 -> 1 | AJ11: =Timing!AJ$68 -> 1 | AK11: =Timing!AK$68 -> 1 | AL11: =Timing!AL$68 -> 1 | AM11: =Timing!AM$68 -> 1 | AN11: =Timing!AN$68 -> 0 | AO11: =Timing!AO$68 -> 0 | AP11: =Timing!AP$68 -> 0 | AQ11: =Timing!AQ$68 -> 0 | AR11: =Timing!AR$68 -> 0 | AS11: =Timing!AS$68 -> 0 | AT11: =Timing!AT$68 -> 0 | AU11: =Timing!AU$68 -> 0 | AV11: =Timing!AV$68 -> 0 | AW11: =Timing!AW$68 -> 0 | AX11: =Timing!AX$68 -> 0 | AY11: =Timing!AY$68 -> 0 | AZ11: =Timing!AZ$68 -> 0 | BA11: =Timing!BA$68 -> 0 | BB11: =Timing!BB$68 -> 0 | BC11: =Timing!BC$68 -> 0 | BD11: =Timing!BD$68 -> 0 | BE11: =Timing!BE$68 -> 0 | BF11: =Timing!BF$68 -> 0 | BG11: =Timing!BG$68 -> 0 | BH11: =Timing!BH$68 -> 0 | BI11: =Timing!BI$68 -> 0 | BJ11: =Timing!BJ$68 -> 0 | BK11: =Timing!BK$68 -> 0 | BL11: =Timing!BL$68 -> 0 | BM11: =Timing!BM$68 -> 0 | BN11: =Timing!BN$68 -> 0 | BO11: =Timing!BO$68 -> 0 | BP11: =Timing!BP$68 -> 0 | BQ11: =Timing!BQ$68 -> 0 | BR11: =Timing!BR$68 -> 0 | BS11: =Timing!BS$68 -> 0 | BT11: =Timing!BT$68 -> 0 | BU11: =Timing!BU$68 -> 0 | BV11: =Timing!BV$68 -> 0 | BW11: =Timing!BW$68 -> 0 | BX11: =Timing!BX$68 -> 0 | BY11: =Timing!BY$68 -> 0 | BZ11: =Timing!BZ$68 -> 0 | CA11: =Timing!CA$68 -> 0 | CB11: =Timing!CB$68 -> 0 | CC11: =Timing!CC$68 -> 0 | CD11: =Timing!CD$68 -> 0 | CE11: =Timing!CE$68 -> 0 | CF11: =Timing!CF$68 -> 0 | CG11: =Timing!CG$68 -> 0 | CH11: =Timing!CH$68 -> 0 | CI11: =Timing!CI$68 -> 0
E12: =Timing!E$123 -> Escalation factor Revenues | F12: =Timing!F$123 -> 3.5 | G12: [Factor] | H12: =Timing!H$123 -> 0 | I12: =Timing!I$123 -> 0 | J12: =Timing!J$123 -> 0 | K12: =Timing!K$123 -> 0 | L12: =Timing!L$123 -> 0 | M12: =Timing!M$123 -> 1 | N12: =Timing!N$123 -> 1.035 | O12: =Timing!O$123 -> 1.071225 | P12: =Timing!P$123 -> 1.108717875 | Q12: =Timing!Q$123 -> 1.147523001 | R12: =Timing!R$123 -> 1.187686306 | S12: =Timing!S$123 -> 1.229255326 | T12: =Timing!T$123 -> 1.272279263 | U12: =Timing!U$123 -> 1.316809037 | V12: =Timing!V$123 -> 1.362897353 | W12: =Timing!W$123 -> 1.410598761 | X12: =Timing!X$123 -> 1.459969717 | Y12: =Timing!Y$123 -> 1.511068657 | Z12: =Timing!Z$123 -> 1.56395606 | AA12: =Timing!AA$123 -> 1.618694522 | AB12: =Timing!AB$123 -> 1.675348831 | AC12: =Timing!AC$123 -> 1.73398604 | AD12: =Timing!AD$123 -> 1.794675551 | AE12: =Timing!AE$123 -> 1.857489196 | AF12: =Timing!AF$123 -> 1.922501317 | AG12: =Timing!AG$123 -> 1.989788863 | AH12: =Timing!AH$123 -> 2.059431474 | AI12: =Timing!AI$123 -> 2.131511575 | AJ12: =Timing!AJ$123 -> 2.20611448 | AK12: =Timing!AK$123 -> 2.283328487 | AL12: =Timing!AL$123 -> 2.363244984 | AM12: =Timing!AM$123 -> 2.445958559 | AN12: =Timing!AN$123 -> 0 | AO12: =Timing!AO$123 -> 0 | AP12: =Timing!AP$123 -> 0 | AQ12: =Timing!AQ$123 -> 0 | AR12: =Timing!AR$123 -> 0 | AS12: =Timing!AS$123 -> 0 | AT12: =Timing!AT$123 -> 0 | AU12: =Timing!AU$123 -> 0 | AV12: =Timing!AV$123 -> 0 | AW12: =Timing!AW$123 -> 0 | AX12: =Timing!AX$123 -> 0 | AY12: =Timing!AY$123 -> 0 | AZ12: =Timing!AZ$123 -> 0 | BA12: =Timing!BA$123 -> 0 | BB12: =Timing!BB$123 -> 0 | BC12: =Timing!BC$123 -> 0 | BD12: =Timing!BD$123 -> 0 | BE12: =Timing!BE$123 -> 0 | BF12: =Timing!BF$123 -> 0 | BG12: =Timing!BG$123 -> 0 | BH12: =Timing!BH$123 -> 0 | BI12: =Timing!BI$123 -> 0 | BJ12: =Timing!BJ$123 -> 0 | BK12: =Timing!BK$123 -> 0 | BL12: =Timing!BL$123 -> 0 | BM12: =Timing!BM$123 -> 0 | BN12: =Timing!BN$123 -> 0 | BO12: =Timing!BO$123 -> 0 | BP12: =Timing!BP$123 -> 0 | BQ12: =Timing!BQ$123 -> 0 | BR12: =Timing!BR$123 -> 0 | BS12: =Timing!BS$123 -> 0 | BT12: =Timing!BT$123 -> 0 | BU12: =Timing!BU$123 -> 0 | BV12: =Timing!BV$123 -> 0 | BW12: =Timing!BW$123 -> 0 | BX12: =Timing!BX$123 -> 0 | BY12: =Timing!BY$123 -> 0 | BZ12: =Timing!BZ$123 -> 0 | CA12: =Timing!CA$123 -> 0 | CB12: =Timing!CB$123 -> 0 | CC12: =Timing!CC$123 -> 0 | CD12: =Timing!CD$123 -> 0 | CE12: =Timing!CE$123 -> 0 | CF12: =Timing!CF$123 -> 0 | CG12: =Timing!CG$123 -> 0 | CH12: =Timing!CH$123 -> 0 | CI12: =Timing!CI$123 -> 0
E13: Light Vehicle traffic per period | G13: [000s] | H13: =SUM(J13:CI13) -> 10939.76506 | J13: =$F$10*J11*J12 -> 0 | K13: =$F$10*K11*K12 -> 0 | L13: 0 | M13: 250 | N13: 258.75 | O13: 267.80625 | P13: 277.1794687 | Q13: 286.8807502 | R13: 296.9215764 | S13: 307.3138316 | T13: 318.0698157 | U13: 329.2022592 | V13: 340.7243383 | W13: 352.6496902 | X13: 364.9924293 | Y13: 377.7671643 | Z13: 390.9890151 | AA13: 404.6736306 | AB13: 418.8372077 | AC13: 433.49651 | AD13: 448.6688878 | AE13: 464.3722989 | AF13: 480.6253293 | AG13: 497.4472159 | AH13: 514.8578684 | AI13: 532.8778938 | AJ13: 551.5286201 | AK13: 570.8321218 | AL13: 590.8112461 | AM13: 611.4896397 | AN13: 0 | AO13: 0 | AP13: 0 | AQ13: 0 | AR13: 0 | AS13: 0 | AT13: 0 | AU13: 0 | AV13: 0 | AW13: 0 | AX13: 0 | AY13: 0 | AZ13: 0 | BA13: 0 | BB13: 0 | BC13: 0 | BD13: 0 | BE13: 0 | BF13: 0 | BG13: 0 | BH13: 0 | BI13: 0 | BJ13: 0 | BK13: 0 | BL13: 0 | BM13: 0 | BN13: 0 | BO13: 0 | BP13: 0 | BQ13: 0 | BR13: 0 | BS13: 0 | BT13: 0 | BU13: 0 | BV13: 0 | BW13: =$F$10*BW11*BW12 -> 0 | BX13: 0 | BY13: 0 | BZ13: 0 | CA13: 0 | CB13: 0 | CC13: 0 | CD13: 0 | CE13: 0 | CF13: 0 | CG13: 0 | CH13: 0 | CI13: 0
E15: Light Vehicles fee | F15: =Inputs!G34 -> 10 | G15: [$ / car]
E16: =E$13 -> Light Vehicle traffic per period | F16: =F$13 -> 0 | G16: [000s] | H16: 10939.76506 | I16: 0 | J16: 0 | K16: 0 | L16: 0 | M16: 250 | N16: 258.75 | O16: 267.80625 | P16: 277.1794687 | Q16: 286.8807502 | R16: 296.9215764 | S16: 307.3138316 | T16: 318.0698157 | U16: 329.2022592 | V16: 340.7243383 | W16: 352.6496902 | X16: 364.9924293 | Y16: 377.7671643 | Z16: 390.9890151 | AA16: 404.6736306 | AB16: 418.8372077 | AC16: 433.49651 | AD16: 448.6688878 | AE16: 464.3722989 | AF16: 480.6253293 | AG16: 497.4472159 | AH16: 514.8578684 | AI16: 532.8778938 | AJ16: 551.5286201 | AK16: 570.8321218 | AL16: 590.8112461 | AM16: 611.4896397 | AN16: 0 | AO16: 0 | AP16: 0 | AQ16: 0 | AR16: 0 | AS16: 0 | AT16: 0 | AU16: 0 | AV16: 0 | AW16: 0 | AX16: 0 | AY16: 0 | AZ16: 0 | BA16: 0 | BB16: 0 | BC16: 0 | BD16: 0 | BE16: 0 | BF16: 0 | BG16: 0 | BH16: 0 | BI16: 0 | BJ16: 0 | BK16: 0 | BL16: 0 | BM16: 0 | BN16: 0 | BO16: 0 | BP16: 0 | BQ16: 0 | BR16: =BR$13 -> 0 | BS16: 0 | BT16: 0 | BU16: 0 | BV16: 0 | BW16: 0 | BX16: 0 | BY16: 0 | BZ16: 0 | CA16: 0 | CB16: 0 | CC16: 0 | CD16: 0 | CE16: 0 | CF16: 0 | CG16: 0 | CH16: 0 | CI16: 0
E17: =Timing!E$123 -> Escalation factor Revenues | F17: =Timing!F$123 -> 3.5 | G17: [Factor] | H17: =Timing!H$123 -> 0 | I17: =Timing!I$123 -> 0 | J17: =Timing!J$123 -> 0 | K17: =Timing!K$123 -> 0 | L17: =Timing!L$123 -> 0 | M17: =Timing!M$123 -> 1 | N17: =Timing!N$123 -> 1.035 | O17: =Timing!O$123 -> 1.071225 | P17: =Timing!P$123 -> 1.108717875 | Q17: =Timing!Q$123 -> 1.147523001 | R17: =Timing!R$123 -> 1.187686306 | S17: =Timing!S$123 -> 1.229255326 | T17: =Timing!T$123 -> 1.272279263 | U17: =Timing!U$123 -> 1.316809037 | V17: =Timing!V$123 -> 1.362897353 | W17: =Timing!W$123 -> 1.410598761 | X17: =Timing!X$123 -> 1.459969717 | Y17: =Timing!Y$123 -> 1.511068657 | Z17: =Timing!Z$123 -> 1.56395606 | AA17: =Timing!AA$123 -> 1.618694522 | AB17: =Timing!AB$123 -> 1.675348831 | AC17: =Timing!AC$123 -> 1.73398604 | AD17: =Timing!AD$123 -> 1.794675551 | AE17: =Timing!AE$123 -> 1.857489196 | AF17: =Timing!AF$123 -> 1.922501317 | AG17: =Timing!AG$123 -> 1.989788863 | AH17: =Timing!AH$123 -> 2.059431474 | AI17: =Timing!AI$123 -> 2.131511575 | AJ17: =Timing!AJ$123 -> 2.20611448 | AK17: =Timing!AK$123 -> 2.283328487 | AL17: =Timing!AL$123 -> 2.363244984 | AM17: =Timing!AM$123 -> 2.445958559 | AN17: =Timing!AN$123 -> 0 | AO17: =Timing!AO$123 -> 0 | AP17: =Timing!AP$123 -> 0 | AQ17: =Timing!AQ$123 -> 0 | AR17: =Timing!AR$123 -> 0 | AS17: =Timing!AS$123 -> 0 | AT17: =Timing!AT$123 -> 0 | AU17: =Timing!AU$123 -> 0 | AV17: =Timing!AV$123 -> 0 | AW17: =Timing!AW$123 -> 0 | AX17: =Timing!AX$123 -> 0 | AY17: =Timing!AY$123 -> 0 | AZ17: =Timing!AZ$123 -> 0 | BA17: =Timing!BA$123 -> 0 | BB17: =Timing!BB$123 -> 0 | BC17: =Timing!BC$123 -> 0 | BD17: =Timing!BD$123 -> 0 | BE17: =Timing!BE$123 -> 0 | BF17: =Timing!BF$123 -> 0 | BG17: =Timing!BG$123 -> 0 | BH17: =Timing!BH$123 -> 0 | BI17: =Timing!BI$123 -> 0 | BJ17: =Timing!BJ$123 -> 0 | BK17: =Timing!BK$123 -> 0 | BL17: =Timing!BL$123 -> 0 | BM17: =Timing!BM$123 -> 0 | BN17: =Timing!BN$123 -> 0 | BO17: =Timing!BO$123 -> 0 | BP17: =Timing!BP$123 -> 0 | BQ17: =Timing!BQ$123 -> 0 | BR17: =Timing!BR$123 -> 0 | BS17: =Timing!BS$123 -> 0 | BT17: =Timing!BT$123 -> 0 | BU17: =Timing!BU$123 -> 0 | BV17: =Timing!BV$123 -> 0 | BW17: =Timing!BW$123 -> 0 | BX17: =Timing!BX$123 -> 0 | BY17: =Timing!BY$123 -> 0 | BZ17: =Timing!BZ$123 -> 0 | CA17: =Timing!CA$123 -> 0 | CB17: =Timing!CB$123 -> 0 | CC17: =Timing!CC$123 -> 0 | CD17: =Timing!CD$123 -> 0 | CE17: =Timing!CE$123 -> 0 | CF17: =Timing!CF$123 -> 0 | CG17: =Timing!CG$123 -> 0 | CH17: =Timing!CH$123 -> 0 | CI17: =Timing!CI$123 -> 0
E18: Light vehicle revenue | G18: [$ 000s] | H18: =SUM(J18:CI18) -> 189850.1939 | J18: =$F$15*J16*J17 -> 0 | K18: =$F$15*K16*K17 -> 0 | L18: 0 | M18: 2500 | N18: 2678.0625 | O18: 2868.807502 | P18: 3073.138316 | Q18: 3292.022592 | R18: 3526.496902 | S18: 3777.671643 | T18: 4046.736306 | U18: 4334.9651 | V18: 4643.722989 | W18: 4974.472159 | X18: 5328.778938 | Y18: 5708.321218 | Z18: 6114.896397 | AA18: 6550.429893 | AB18: 7016.984262 | AC18: 7516.768966 | AD18: 8052.150835 | AE18: 8625.665279 | AF18: 9240.028288 | AG18: 9898.149303 | AH18: 10603.14499 | AI18: 11358.35399 | AJ18: 12167.35275 | AK18: 13033.97245 | AL18: 13962.31714 | AM18: 14956.78318 | AN18: 0 | AO18: 0 | AP18: 0 | AQ18: 0 | AR18: 0 | AS18: 0 | AT18: 0 | AU18: 0 | AV18: 0 | AW18: 0 | AX18: 0 | AY18: 0 | AZ18: 0 | BA18: 0 | BB18: 0 | BC18: 0 | BD18: 0 | BE18: 0 | BF18: 0 | BG18: 0 | BH18: 0 | BI18: 0 | BJ18: 0 | BK18: 0 | BL18: 0 | BM18: 0 | BN18: 0 | BO18: 0 | BP18: 0 | BQ18: 0 | BR18: 0 | BS18: 0 | BT18: 0 | BU18: 0 | BV18: 0 | BW18: =$F$15*BW16*BW17 -> 0 | BX18: 0 | BY18: 0 | BZ18: 0 | CA18: 0 | CB18: 0 | CC18: 0 | CD18: 0 | CE18: 0 | CF18: 0 | CG18: 0 | CH18: 0 | CI18: 0
C20: Heavy Trucks
E21: Heavy Trucks Traffic | F21: =Inputs!G38/1000 -> 100 | G21: [000s / y]
E22: =Timing!E$68 -> Operations period flag | F22: =Timing!F$68 -> 0 | G22: [Flag] | I22: =Timing!I$68 -> 0 | J22: =Timing!J$68 -> 0 | K22: =Timing!K$68 -> 0 | L22: =Timing!L$68 -> 0 | M22: =Timing!M$68 -> 1 | N22: =Timing!N$68 -> 1 | O22: =Timing!O$68 -> 1 | P22: =Timing!P$68 -> 1 | Q22: =Timing!Q$68 -> 1 | R22: =Timing!R$68 -> 1 | S22: =Timing!S$68 -> 1 | T22: =Timing!T$68 -> 1 | U22: =Timing!U$68 -> 1 | V22: =Timing!V$68 -> 1 | W22: =Timing!W$68 -> 1 | X22: =Timing!X$68 -> 1 | Y22: =Timing!Y$68 -> 1 | Z22: =Timing!Z$68 -> 1 | AA22: =Timing!AA$68 -> 1 | AB22: =Timing!AB$68 -> 1 | AC22: =Timing!AC$68 -> 1 | AD22: =Timing!AD$68 -> 1 | AE22: =Timing!AE$68 -> 1 | AF22: =Timing!AF$68 -> 1 | AG22: =Timing!AG$68 -> 1 | AH22: =Timing!AH$68 -> 1 | AI22: =Timing!AI$68 -> 1 | AJ22: =Timing!AJ$68 -> 1 | AK22: =Timing!AK$68 -> 1 | AL22: =Timing!AL$68 -> 1 | AM22: =Timing!AM$68 -> 1 | AN22: =Timing!AN$68 -> 0 | AO22: =Timing!AO$68 -> 0 | AP22: =Timing!AP$68 -> 0 | AQ22: =Timing!AQ$68 -> 0 | AR22: =Timing!AR$68 -> 0 | AS22: =Timing!AS$68 -> 0 | AT22: =Timing!AT$68 -> 0 | AU22: =Timing!AU$68 -> 0 | AV22: =Timing!AV$68 -> 0 | AW22: =Timing!AW$68 -> 0 | AX22: =Timing!AX$68 -> 0 | AY22: =Timing!AY$68 -> 0 | AZ22: =Timing!AZ$68 -> 0 | BA22: =Timing!BA$68 -> 0 | BB22: =Timing!BB$68 -> 0 | BC22: =Timing!BC$68 -> 0 | BD22: =Timing!BD$68 -> 0 | BE22: =Timing!BE$68 -> 0 | BF22: =Timing!BF$68 -> 0 | BG22: =Timing!BG$68 -> 0 | BH22: =Timing!BH$68 -> 0 | BI22: =Timing!BI$68 -> 0 | BJ22: =Timing!BJ$68 -> 0 | BK22: =Timing!BK$68 -> 0 | BL22: =Timing!BL$68 -> 0 | BM22: =Timing!BM$68 -> 0 | BN22: =Timing!BN$68 -> 0 | BO22: =Timing!BO$68 -> 0 | BP22: =Timing!BP$68 -> 0 | BQ22: =Timing!BQ$68 -> 0 | BR22: =Timing!BR$68 -> 0 | BS22: =Timing!BS$68 -> 0 | BT22: =Timing!BT$68 -> 0 | BU22: =Timing!BU$68 -> 0 | BV22: =Timing!BV$68 -> 0 | BW22: =Timing!BW$68 -> 0 | BX22: =Timing!BX$68 -> 0 | BY22: =Timing!BY$68 -> 0 | BZ22: =Timing!BZ$68 -> 0 | CA22: =Timing!CA$68 -> 0 | CB22: =Timing!CB$68 -> 0 | CC22: =Timing!CC$68 -> 0 | CD22: =Timing!CD$68 -> 0 | CE22: =Timing!CE$68 -> 0 | CF22: =Timing!CF$68 -> 0 | CG22: =Timing!CG$68 -> 0 | CH22: =Timing!CH$68 -> 0 | CI22: =Timing!CI$68 -> 0
E23: =Timing!E$123 -> Escalation factor Revenues | F23: =Timing!F$123 -> 3.5 | G23: [Factor] | H23: =Timing!H$123 -> 0 | I23: =Timing!I$123 -> 0 | J23: =Timing!J$123 -> 0 | K23: =Timing!K$123 -> 0 | L23: =Timing!L$123 -> 0 | M23: =Timing!M$123 -> 1 | N23: =Timing!N$123 -> 1.035 | O23: =Timing!O$123 -> 1.071225 | P23: =Timing!P$123 -> 1.108717875 | Q23: =Timing!Q$123 -> 1.147523001 | R23: =Timing!R$123 -> 1.187686306 | S23: =Timing!S$123 -> 1.229255326 | T23: =Timing!T$123 -> 1.272279263 | U23: =Timing!U$123 -> 1.316809037 | V23: =Timing!V$123 -> 1.362897353 | W23: =Timing!W$123 -> 1.410598761 | X23: =Timing!X$123 -> 1.459969717 | Y23: =Timing!Y$123 -> 1.511068657 | Z23: =Timing!Z$123 -> 1.56395606 | AA23: =Timing!AA$123 -> 1.618694522 | AB23: =Timing!AB$123 -> 1.675348831 | AC23: =Timing!AC$123 -> 1.73398604 | AD23: =Timing!AD$123 -> 1.794675551 | AE23: =Timing!AE$123 -> 1.857489196 | AF23: =Timing!AF$123 -> 1.922501317 | AG23: =Timing!AG$123 -> 1.989788863 | AH23: =Timing!AH$123 -> 2.059431474 | AI23: =Timing!AI$123 -> 2.131511575 | AJ23: =Timing!AJ$123 -> 2.20611448 | AK23: =Timing!AK$123 -> 2.283328487 | AL23: =Timing!AL$123 -> 2.363244984 | AM23: =Timing!AM$123 -> 2.445958559 | AN23: =Timing!AN$123 -> 0 | AO23: =Timing!AO$123 -> 0 | AP23: =Timing!AP$123 -> 0 | AQ23: =Timing!AQ$123 -> 0 | AR23: =Timing!AR$123 -> 0 | AS23: =Timing!AS$123 -> 0 | AT23: =Timing!AT$123 -> 0 | AU23: =Timing!AU$123 -> 0 | AV23: =Timing!AV$123 -> 0 | AW23: =Timing!AW$123 -> 0 | AX23: =Timing!AX$123 -> 0 | AY23: =Timing!AY$123 -> 0 | AZ23: =Timing!AZ$123 -> 0 | BA23: =Timing!BA$123 -> 0 | BB23: =Timing!BB$123 -> 0 | BC23: =Timing!BC$123 -> 0 | BD23: =Timing!BD$123 -> 0 | BE23: =Timing!BE$123 -> 0 | BF23: =Timing!BF$123 -> 0 | BG23: =Timing!BG$123 -> 0 | BH23: =Timing!BH$123 -> 0 | BI23: =Timing!BI$123 -> 0 | BJ23: =Timing!BJ$123 -> 0 | BK23: =Timing!BK$123 -> 0 | BL23: =Timing!BL$123 -> 0 | BM23: =Timing!BM$123 -> 0 | BN23: =Timing!BN$123 -> 0 | BO23: =Timing!BO$123 -> 0 | BP23: =Timing!BP$123 -> 0 | BQ23: =Timing!BQ$123 -> 0 | BR23: =Timing!BR$123 -> 0 | BS23: =Timing!BS$123 -> 0 | BT23: =Timing!BT$123 -> 0 | BU23: =Timing!BU$123 -> 0 | BV23: =Timing!BV$123 -> 0 | BW23: =Timing!BW$123 -> 0 | BX23: =Timing!BX$123 -> 0 | BY23: =Timing!BY$123 -> 0 | BZ23: =Timing!BZ$123 -> 0 | CA23: =Timing!CA$123 -> 0 | CB23: =Timing!CB$123 -> 0 | CC23: =Timing!CC$123 -> 0 | CD23: =Timing!CD$123 -> 0 | CE23: =Timing!CE$123 -> 0 | CF23: =Timing!CF$123 -> 0 | CG23: =Timing!CG$123 -> 0 | CH23: =Timing!CH$123 -> 0 | CI23: =Timing!CI$123 -> 0
E24: Heavy Truck traffic per period | G24: [000s] | H24: =SUM(J24:CI24) -> 4375.906024 | J24: =$F$21*J22*J23 -> 0 | K24: =$F$21*K22*K23 -> 0 | L24: 0 | M24: 100 | N24: 103.5 | O24: 107.1225 | P24: 110.8717875 | Q24: 114.7523001 | R24: 118.7686306 | S24: 122.9255326 | T24: 127.2279263 | U24: 131.6809037 | V24: 136.2897353 | W24: 141.0598761 | X24: 145.9969717 | Y24: 151.1068657 | Z24: 156.395606 | AA24: 161.8694522 | AB24: 167.5348831 | AC24: 173.398604 | AD24: 179.4675551 | AE24: 185.7489196 | AF24: 192.2501317 | AG24: 198.9788863 | AH24: 205.9431474 | AI24: 213.1511575 | AJ24: 220.611448 | AK24: 228.3328487 | AL24: 236.3244984 | AM24: 244.5958559 | AN24: 0 | AO24: 0 | AP24: 0 | AQ24: 0 | AR24: 0 | AS24: 0 | AT24: 0 | AU24: 0 | AV24: 0 | AW24: 0 | AX24: 0 | AY24: 0 | AZ24: 0 | BA24: 0 | BB24: 0 | BC24: 0 | BD24: 0 | BE24: 0 | BF24: 0 | BG24: 0 | BH24: 0 | BI24: 0 | BJ24: 0 | BK24: 0 | BL24: 0 | BM24: 0 | BN24: 0 | BO24: 0 | BP24: 0 | BQ24: 0 | BR24: 0 | BS24: 0 | BT24: 0 | BU24: 0 | BV24: 0 | BW24: =$F$21*BW22*BW23 -> 0 | BX24: 0 | BY24: 0 | BZ24: 0 | CA24: 0 | CB24: 0 | CC24: 0 | CD24: 0 | CE24: 0 | CF24: 0 | CG24: 0 | CH24: 0 | CI24: 0
E26: Heavy Trucks fee | F26: =Inputs!G35 -> 15 | G26: [$ / truck]
E27: =E$24 -> Heavy Truck traffic per period | F27: =F$24 -> 0 | G27: [000s] | H27: 4375.906024 | I27: 0 | J27: 0 | K27: 0 | L27: 0 | M27: 100 | N27: 103.5 | O27: 107.1225 | P27: 110.8717875 | Q27: 114.7523001 | R27: 118.7686306 | S27: 122.9255326 | T27: 127.2279263 | U27: 131.6809037 | V27: 136.2897353 | W27: 141.0598761 | X27: 145.9969717 | Y27: 151.1068657 | Z27: 156.395606 | AA27: 161.8694522 | AB27: 167.5348831 | AC27: 173.398604 | AD27: 179.4675551 | AE27: 185.7489196 | AF27: 192.2501317 | AG27: 198.9788863 | AH27: 205.9431474 | AI27: 213.1511575 | AJ27: 220.611448 | AK27: 228.3328487 | AL27: 236.3244984 | AM27: 244.5958559 | AN27: 0 | AO27: 0 | AP27: 0 | AQ27: 0 | AR27: 0 | AS27: 0 | AT27: 0 | AU27: 0 | AV27: 0 | AW27: 0 | AX27: 0 | AY27: 0 | AZ27: 0 | BA27: 0 | BB27: 0 | BC27: 0 | BD27: 0 | BE27: 0 | BF27: 0 | BG27: 0 | BH27: 0 | BI27: 0 | BJ27: 0 | BK27: 0 | BL27: 0 | BM27: 0 | BN27: 0 | BO27: 0 | BP27: 0 | BQ27: 0 | BR27: =BR$24 -> 0 | BS27: 0 | BT27: 0 | BU27: 0 | BV27: 0 | BW27: 0 | BX27: 0 | BY27: 0 | BZ27: 0 | CA27: 0 | CB27: 0 | CC27: 0 | CD27: 0 | CE27: 0 | CF27: 0 | CG27: 0 | CH27: 0 | CI27: 0
E28: =Timing!E$123 -> Escalation factor Revenues | F28: =Timing!F$123 -> 3.5 | G28: [Factor] | H28: =Timing!H$123 -> 0 | I28: =Timing!I$123 -> 0 | J28: =Timing!J$123 -> 0 | K28: =Timing!K$123 -> 0 | L28: =Timing!L$123 -> 0 | M28: =Timing!M$123 -> 1 | N28: =Timing!N$123 -> 1.035 | O28: =Timing!O$123 -> 1.071225 | P28: =Timing!P$123 -> 1.108717875 | Q28: =Timing!Q$123 -> 1.147523001 | R28: =Timing!R$123 -> 1.187686306 | S28: =Timing!S$123 -> 1.229255326 | T28: =Timing!T$123 -> 1.272279263 | U28: =Timing!U$123 -> 1.316809037 | V28: =Timing!V$123 -> 1.362897353 | W28: =Timing!W$123 -> 1.410598761 | X28: =Timing!X$123 -> 1.459969717 | Y28: =Timing!Y$123 -> 1.511068657 | Z28: =Timing!Z$123 -> 1.56395606 | AA28: =Timing!AA$123 -> 1.618694522 | AB28: =Timing!AB$123 -> 1.675348831 | AC28: =Timing!AC$123 -> 1.73398604 | AD28: =Timing!AD$123 -> 1.794675551 | AE28: =Timing!AE$123 -> 1.857489196 | AF28: =Timing!AF$123 -> 1.922501317 | AG28: =Timing!AG$123 -> 1.989788863 | AH28: =Timing!AH$123 -> 2.059431474 | AI28: =Timing!AI$123 -> 2.131511575 | AJ28: =Timing!AJ$123 -> 2.20611448 | AK28: =Timing!AK$123 -> 2.283328487 | AL28: =Timing!AL$123 -> 2.363244984 | AM28: =Timing!AM$123 -> 2.445958559 | AN28: =Timing!AN$123 -> 0 | AO28: =Timing!AO$123 -> 0 | AP28: =Timing!AP$123 -> 0 | AQ28: =Timing!AQ$123 -> 0 | AR28: =Timing!AR$123 -> 0 | AS28: =Timing!AS$123 -> 0 | AT28: =Timing!AT$123 -> 0 | AU28: =Timing!AU$123 -> 0 | AV28: =Timing!AV$123 -> 0 | AW28: =Timing!AW$123 -> 0 | AX28: =Timing!AX$123 -> 0 | AY28: =Timing!AY$123 -> 0 | AZ28: =Timing!AZ$123 -> 0 | BA28: =Timing!BA$123 -> 0 | BB28: =Timing!BB$123 -> 0 | BC28: =Timing!BC$123 -> 0 | BD28: =Timing!BD$123 -> 0 | BE28: =Timing!BE$123 -> 0 | BF28: =Timing!BF$123 -> 0 | BG28: =Timing!BG$123 -> 0 | BH28: =Timing!BH$123 -> 0 | BI28: =Timing!BI$123 -> 0 | BJ28: =Timing!BJ$123 -> 0 | BK28: =Timing!BK$123 -> 0 | BL28: =Timing!BL$123 -> 0 | BM28: =Timing!BM$123 -> 0 | BN28: =Timing!BN$123 -> 0 | BO28: =Timing!BO$123 -> 0 | BP28: =Timing!BP$123 -> 0 | BQ28: =Timing!BQ$123 -> 0 | BR28: =Timing!BR$123 -> 0 | BS28: =Timing!BS$123 -> 0 | BT28: =Timing!BT$123 -> 0 | BU28: =Timing!BU$123 -> 0 | BV28: =Timing!BV$123 -> 0 | BW28: =Timing!BW$123 -> 0 | BX28: =Timing!BX$123 -> 0 | BY28: =Timing!BY$123 -> 0 | BZ28: =Timing!BZ$123 -> 0 | CA28: =Timing!CA$123 -> 0 | CB28: =Timing!CB$123 -> 0 | CC28: =Timing!CC$123 -> 0 | CD28: =Timing!CD$123 -> 0 | CE28: =Timing!CE$123 -> 0 | CF28: =Timing!CF$123 -> 0 | CG28: =Timing!CG$123 -> 0 | CH28: =Timing!CH$123 -> 0 | CI28: =Timing!CI$123 -> 0
E29: Heavy Truck revenue | G29: [$ 000s] | H29: =SUM(J29:CI29) -> 113910.1163 | J29: =$F$26*J27*J28 -> 0 | K29: =$F$26*K27*K28 -> 0 | L29: 0 | M29: =$F$26*M27*M28 -> 1500 | N29: 1606.8375 | O29: 1721.284501 | P29: 1843.88299 | Q29: 1975.213555 | R29: 2115.898141 | S29: 2266.602986 | T29: 2428.041784 | U29: 2600.97906 | V29: 2786.233793 | W29: 2984.683295 | X29: 3197.267363 | Y29: 3424.992731 | Z29: 3668.937838 | AA29: 3930.257936 | AB29: 4210.190557 | AC29: 4510.061379 | AD29: 4831.290501 | AE29: 5175.399167 | AF29: 5544.016973 | AG29: 5938.889582 | AH29: 6361.886992 | AI29: 6815.012393 | AJ29: 7300.411651 | AK29: 7820.383471 | AL29: 8377.390283 | AM29: 8974.069906 | AN29: 0 | AO29: 0 | AP29: 0 | AQ29: 0 | AR29: 0 | AS29: 0 | AT29: 0 | AU29: 0 | AV29: 0 | AW29: 0 | AX29: 0 | AY29: 0 | AZ29: 0 | BA29: 0 | BB29: 0 | BC29: 0 | BD29: 0 | BE29: 0 | BF29: 0 | BG29: 0 | BH29: 0 | BI29: 0 | BJ29: 0 | BK29: 0 | BL29: 0 | BM29: 0 | BN29: 0 | BO29: 0 | BP29: 0 | BQ29: 0 | BR29: 0 | BS29: 0 | BT29: 0 | BU29: 0 | BV29: 0 | BW29: =$F$26*BW27*BW28 -> 0 | BX29: 0 | BY29: 0 | BZ29: 0 | CA29: 0 | CB29: 0 | CC29: 0 | CD29: 0 | CE29: 0 | CF29: 0 | CG29: 0 | CH29: 0 | CI29: 0
C31: Summary
E32: =E$13 -> Light Vehicle traffic per period | F32: =F$13 -> 0 | G32: [000s] | H32: 10939.76506 | I32: 0 | J32: 0 | K32: 0 | L32: 0 | M32: 250 | N32: 258.75 | O32: 267.80625 | P32: 277.1794687 | Q32: 286.8807502 | R32: 296.9215764 | S32: 307.3138316 | T32: 318.0698157 | U32: 329.2022592 | V32: 340.7243383 | W32: 352.6496902 | X32: 364.9924293 | Y32: 377.7671643 | Z32: 390.9890151 | AA32: 404.6736306 | AB32: 418.8372077 | AC32: 433.49651 | AD32: 448.6688878 | AE32: 464.3722989 | AF32: 480.6253293 | AG32: 497.4472159 | AH32: 514.8578684 | AI32: 532.8778938 | AJ32: 551.5286201 | AK32: 570.8321218 | AL32: 590.8112461 | AM32: 611.4896397 | AN32: 0 | AO32: 0 | AP32: 0 | AQ32: 0 | AR32: 0 | AS32: 0 | AT32: 0 | AU32: 0 | AV32: 0 | AW32: 0 | AX32: 0 | AY32: 0 | AZ32: 0 | BA32: 0 | BB32: 0 | BC32: 0 | BD32: 0 | BE32: 0 | BF32: 0 | BG32: 0 | BH32: 0 | BI32: 0 | BJ32: 0 | BK32: 0 | BL32: 0 | BM32: 0 | BN32: 0 | BO32: 0 | BP32: 0 | BQ32: 0 | BR32: =BR$13 -> 0 | BS32: 0 | BT32: 0 | BU32: 0 | BV32: 0 | BW32: 0 | BX32: 0 | BY32: 0 | BZ32: 0 | CA32: 0 | CB32: 0 | CC32: 0 | CD32: 0 | CE32: 0 | CF32: 0 | CG32: 0 | CH32: 0 | CI32: 0
E33: =E$24 -> Heavy Truck traffic per period | F33: =F$24 -> 0 | G33: [000s] | H33: 4375.906024 | I33: 0 | J33: 0 | K33: 0 | L33: 0 | M33: 100 | N33: 103.5 | O33: 107.1225 | P33: 110.8717875 | Q33: 114.7523001 | R33: 118.7686306 | S33: 122.9255326 | T33: 127.2279263 | U33: 131.6809037 | V33: 136.2897353 | W33: 141.0598761 | X33: 145.9969717 | Y33: 151.1068657 | Z33: 156.395606 | AA33: 161.8694522 | AB33: 167.5348831 | AC33: 173.398604 | AD33: 179.4675551 | AE33: 185.7489196 | AF33: 192.2501317 | AG33: 198.9788863 | AH33: 205.9431474 | AI33: 213.1511575 | AJ33: 220.611448 | AK33: 228.3328487 | AL33: 236.3244984 | AM33: 244.5958559 | AN33: 0 | AO33: 0 | AP33: 0 | AQ33: 0 | AR33: 0 | AS33: 0 | AT33: 0 | AU33: 0 | AV33: 0 | AW33: 0 | AX33: 0 | AY33: 0 | AZ33: 0 | BA33: 0 | BB33: 0 | BC33: 0 | BD33: 0 | BE33: 0 | BF33: 0 | BG33: 0 | BH33: 0 | BI33: 0 | BJ33: 0 | BK33: 0 | BL33: 0 | BM33: 0 | BN33: 0 | BO33: 0 | BP33: 0 | BQ33: 0 | BR33: =BR$24 -> 0 | BS33: 0 | BT33: 0 | BU33: 0 | BV33: 0 | BW33: 0 | BX33: 0 | BY33: 0 | BZ33: 0 | CA33: 0 | CB33: 0 | CC33: 0 | CD33: 0 | CE33: 0 | CF33: 0 | CG33: 0 | CH33: 0 | CI33: 0
E34: Total traffic per period | G34: [000s] | H34: =SUM(J34:CI34) -> 15315.67108 | J34: =SUM(J32:J33) -> 0 | K34: =SUM(K32:K33) -> 0 | L34: 0 | M34: 350 | N34: 362.25 | O34: 374.92875 | P34: 388.0512562 | Q34: 401.6330502 | R34: 415.690207 | S34: 430.2393642 | T34: 445.297742 | U34: 460.8831629 | V34: 477.0140736 | W34: 493.7095662 | X34: 510.989401 | Y34: 528.8740301 | Z34: 547.3846211 | AA34: 566.5430829 | AB34: 586.3720908 | AC34: 606.8951139 | AD34: 628.1364429 | AE34: 650.1212184 | AF34: 672.8754611 | AG34: 696.4261022 | AH34: 720.8010158 | AI34: 746.0290513 | AJ34: 772.1400681 | AK34: 799.1649705 | AL34: 827.1357445 | AM34: 856.0854956 | AN34: 0 | AO34: 0 | AP34: 0 | AQ34: 0 | AR34: 0 | AS34: 0 | AT34: 0 | AU34: 0 | AV34: 0 | AW34: 0 | AX34: 0 | AY34: 0 | AZ34: 0 | BA34: 0 | BB34: 0 | BC34: 0 | BD34: 0 | BE34: 0 | BF34: 0 | BG34: 0 | BH34: 0 | BI34: 0 | BJ34: 0 | BK34: 0 | BL34: 0 | BM34: 0 | BN34: 0 | BO34: 0 | BP34: 0 | BQ34: 0 | BR34: 0 | BS34: 0 | BT34: 0 | BU34: 0 | BV34: 0 | BW34: =SUM(BW32:BW33) -> 0 | BX34: 0 | BY34: 0 | BZ34: 0 | CA34: 0 | CB34: 0 | CC34: 0 | CD34: 0 | CE34: 0 | CF34: 0 | CG34: 0 | CH34: 0 | CI34: 0
E36: =E$18 -> Light vehicle revenue | F36: =F$18 -> 0 | G36: [$ 000s] | H36: 189850.1939 | I36: 0 | J36: 0 | K36: 0 | L36: 0 | M36: 2500 | N36: 2678.0625 | O36: 2868.807502 | P36: 3073.138316 | Q36: 3292.022592 | R36: 3526.496902 | S36: 3777.671643 | T36: 4046.736306 | U36: 4334.9651 | V36: 4643.722989 | W36: 4974.472159 | X36: 5328.778938 | Y36: 5708.321218 | Z36: 6114.896397 | AA36: 6550.429893 | AB36: 7016.984262 | AC36: 7516.768966 | AD36: 8052.150835 | AE36: 8625.665279 | AF36: 9240.028288 | AG36: 9898.149303 | AH36: 10603.14499 | AI36: 11358.35399 | AJ36: 12167.35275 | AK36: 13033.97245 | AL36: 13962.31714 | AM36: 14956.78318 | AN36: 0 | AO36: 0 | AP36: 0 | AQ36: 0 | AR36: 0 | AS36: 0 | AT36: 0 | AU36: 0 | AV36: 0 | AW36: 0 | AX36: 0 | AY36: 0 | AZ36: 0 | BA36: 0 | BB36: 0 | BC36: 0 | BD36: 0 | BE36: 0 | BF36: 0 | BG36: 0 | BH36: 0 | BI36: 0 | BJ36: 0 | BK36: 0 | BL36: 0 | BM36: 0 | BN36: 0 | BO36: 0 | BP36: 0 | BQ36: 0 | BR36: =BR$18 -> 0 | BS36: 0 | BT36: 0 | BU36: 0 | BV36: 0 | BW36: 0 | BX36: 0 | BY36: 0 | BZ36: 0 | CA36: 0 | CB36: 0 | CC36: 0 | CD36: 0 | CE36: 0 | CF36: 0 | CG36: 0 | CH36: 0 | CI36: 0
E37: =E$29 -> Heavy Truck revenue | F37: =F$29 -> 0 | G37: [$ 000s] | H37: 113910.1163 | I37: 0 | J37: 0 | K37: 0 | L37: 0 | M37: 1500 | N37: 1606.8375 | O37: 1721.284501 | P37: 1843.88299 | Q37: 1975.213555 | R37: 2115.898141 | S37: 2266.602986 | T37: 2428.041784 | U37: 2600.97906 | V37: 2786.233793 | W37: 2984.683295 | X37: 3197.267363 | Y37: 3424.992731 | Z37: 3668.937838 | AA37: 3930.257936 | AB37: 4210.190557 | AC37: 4510.061379 | AD37: 4831.290501 | AE37: 5175.399167 | AF37: 5544.016973 | AG37: 5938.889582 | AH37: 6361.886992 | AI37: 6815.012393 | AJ37: 7300.411651 | AK37: 7820.383471 | AL37: 8377.390283 | AM37: 8974.069906 | AN37: 0 | AO37: 0 | AP37: 0 | AQ37: 0 | AR37: 0 | AS37: 0 | AT37: 0 | AU37: 0 | AV37: 0 | AW37: 0 | AX37: 0 | AY37: 0 | AZ37: 0 | BA37: 0 | BB37: 0 | BC37: 0 | BD37: 0 | BE37: 0 | BF37: 0 | BG37: 0 | BH37: 0 | BI37: 0 | BJ37: 0 | BK37: 0 | BL37: 0 | BM37: 0 | BN37: 0 | BO37: 0 | BP37: 0 | BQ37: 0 | BR37: =BR$29 -> 0 | BS37: 0 | BT37: 0 | BU37: 0 | BV37: 0 | BW37: 0 | BX37: 0 | BY37: 0 | BZ37: 0 | CA37: 0 | CB37: 0 | CC37: 0 | CD37: 0 | CE37: 0 | CF37: 0 | CG37: 0 | CH37: 0 | CI37: 0
E38: Operating revenue | F38: P&L | G38: [$ 000s] | H38: =SUM(J38:CI38) -> 303760.3102 | J38: =SUM(J36:J37) -> 0 | K38: =SUM(K36:K37) -> 0 | L38: 0 | M38: 4000 | N38: 4284.9 | O38: 4590.092002 | P38: 4917.021305 | Q38: 5267.236148 | R38: 5642.395042 | S38: 6044.274629 | T38: 6474.77809 | U38: 6935.944159 | V38: 7429.956782 | W38: 7959.155454 | X38: 8526.046301 | Y38: 9133.313949 | Z38: 9783.834235 | AA38: 10480.68783 | AB38: 11227.17482 | AC38: 12026.83035 | AD38: 12883.44134 | AE38: 13801.06445 | AF38: 14784.04526 | AG38: 15837.03888 | AH38: 16965.03198 | AI38: 18173.36638 | AJ38: 19467.7644 | AK38: 20854.35592 | AL38: 22339.70742 | AM38: 23930.85308 | AN38: 0 | AO38: 0 | AP38: 0 | AQ38: 0 | AR38: 0 | AS38: 0 | AT38: 0 | AU38: 0 | AV38: 0 | AW38: 0 | AX38: 0 | AY38: 0 | AZ38: 0 | BA38: 0 | BB38: 0 | BC38: 0 | BD38: 0 | BE38: 0 | BF38: 0 | BG38: 0 | BH38: 0 | BI38: 0 | BJ38: 0 | BK38: 0 | BL38: 0 | BM38: 0 | BN38: 0 | BO38: 0 | BP38: 0 | BQ38: 0 | BR38: 0 | BS38: 0 | BT38: 0 | BU38: 0 | BV38: 0 | BW38: =SUM(BW36:BW37) -> 0 | BX38: 0 | BY38: 0 | BZ38: 0 | CA38: 0 | CB38: 0 | CC38: 0 | CD38: 0 | CE38: 0 | CF38: 0 | CG38: 0 | CH38: 0 | CI38: 0
B40: VARIABLE COST
B42: Operation and Maintenance
E44: Maintenance variable cost per vehicle | F44: 0 | G44: [$ / vehicle]
E45: =Timing!E$123 -> Escalation factor Revenues | F45: 0 | G45: [Factor] | H45: =Timing!H$123 -> 0 | I45: =Timing!I$123 -> 0 | J45: =Timing!J$123 -> 0 | K45: =Timing!K$123 -> 0 | L45: =Timing!L$123 -> 0 | M45: =Timing!M$123 -> 1 | N45: =Timing!N$123 -> 1.035 | O45: =Timing!O$123 -> 1.071225 | P45: =Timing!P$123 -> 1.108717875 | Q45: =Timing!Q$123 -> 1.147523001 | R45: =Timing!R$123 -> 1.187686306 | S45: =Timing!S$123 -> 1.229255326 | T45: =Timing!T$123 -> 1.272279263 | U45: =Timing!U$123 -> 1.316809037 | V45: =Timing!V$123 -> 1.362897353 | W45: =Timing!W$123 -> 1.410598761 | X45: =Timing!X$123 -> 1.459969717 | Y45: =Timing!Y$123 -> 1.511068657 | Z45: =Timing!Z$123 -> 1.56395606 | AA45: =Timing!AA$123 -> 1.618694522 | AB45: =Timing!AB$123 -> 1.675348831 | AC45: =Timing!AC$123 -> 1.73398604 | AD45: =Timing!AD$123 -> 1.794675551 | AE45: =Timing!AE$123 -> 1.857489196 | AF45: =Timing!AF$123 -> 1.922501317 | AG45: =Timing!AG$123 -> 1.989788863 | AH45: =Timing!AH$123 -> 2.059431474 | AI45: =Timing!AI$123 -> 2.131511575 | AJ45: =Timing!AJ$123 -> 2.20611448 | AK45: =Timing!AK$123 -> 2.283328487 | AL45: =Timing!AL$123 -> 2.363244984 | AM45: =Timing!AM$123 -> 2.445958559 | AN45: =Timing!AN$123 -> 0 | AO45: =Timing!AO$123 -> 0 | AP45: =Timing!AP$123 -> 0 | AQ45: =Timing!AQ$123 -> 0 | AR45: =Timing!AR$123 -> 0 | AS45: =Timing!AS$123 -> 0 | AT45: =Timing!AT$123 -> 0 | AU45: =Timing!AU$123 -> 0 | AV45: =Timing!AV$123 -> 0 | AW45: =Timing!AW$123 -> 0 | AX45: =Timing!AX$123 -> 0 | AY45: =Timing!AY$123 -> 0 | AZ45: =Timing!AZ$123 -> 0 | BA45: =Timing!BA$123 -> 0 | BB45: =Timing!BB$123 -> 0 | BC45: =Timing!BC$123 -> 0 | BD45: =Timing!BD$123 -> 0 | BE45: =Timing!BE$123 -> 0 | BF45: =Timing!BF$123 -> 0 | BG45: =Timing!BG$123 -> 0 | BH45: =Timing!BH$123 -> 0 | BI45: =Timing!BI$123 -> 0 | BJ45: =Timing!BJ$123 -> 0 | BK45: =Timing!BK$123 -> 0 | BL45: =Timing!BL$123 -> 0 | BM45: =Timing!BM$123 -> 0 | BN45: =Timing!BN$123 -> 0 | BO45: =Timing!BO$123 -> 0 | BP45: =Timing!BP$123 -> 0 | BQ45: =Timing!BQ$123 -> 0 | BR45: =Timing!BR$123 -> 0 | BS45: =Timing!BS$123 -> 0 | BT45: =Timing!BT$123 -> 0 | BU45: =Timing!BU$123 -> 0 | BV45: =Timing!BV$123 -> 0 | BW45: =Timing!BW$123 -> 0 | BX45: =Timing!BX$123 -> 0 | BY45: =Timing!BY$123 -> 0 | BZ45: =Timing!BZ$123 -> 0 | CA45: =Timing!CA$123 -> 0 | CB45: =Timing!CB$123 -> 0 | CC45: =Timing!CC$123 -> 0 | CD45: =Timing!CD$123 -> 0 | CE45: =Timing!CE$123 -> 0 | CF45: =Timing!CF$123 -> 0 | CG45: =Timing!CG$123 -> 0 | CH45: =Timing!CH$123 -> 0 | CI45: =Timing!CI$123 -> 0
E46: ='Financial Model'!E$34 -> Total traffic per period | F46: ='Financial Model'!F$34 -> 0 | G46: [000s] | H46: ='Financial Model'!H$34 -> 15315.67108 | I46: ='Financial Model'!I$34 -> 0 | J46: ='Financial Model'!J$34 -> 0 | K46: ='Financial Model'!K$34 -> 0 | L46: ='Financial Model'!L$34 -> 0 | M46: ='Financial Model'!M$34 -> 350 | N46: ='Financial Model'!N$34 -> 362.25 | O46: ='Financial Model'!O$34 -> 374.92875 | P46: ='Financial Model'!P$34 -> 388.0512562 | Q46: ='Financial Model'!Q$34 -> 401.6330502 | R46: ='Financial Model'!R$34 -> 415.690207 | S46: ='Financial Model'!S$34 -> 430.2393642 | T46: ='Financial Model'!T$34 -> 445.297742 | U46: ='Financial Model'!U$34 -> 460.8831629 | V46: ='Financial Model'!V$34 -> 477.0140736 | W46: ='Financial Model'!W$34 -> 493.7095662 | X46: ='Financial Model'!X$34 -> 510.989401 | Y46: ='Financial Model'!Y$34 -> 528.8740301 | Z46: ='Financial Model'!Z$34 -> 547.3846211 | AA46: ='Financial Model'!AA$34 -> 566.5430829 | AB46: ='Financial Model'!AB$34 -> 586.3720908 | AC46: ='Financial Model'!AC$34 -> 606.8951139 | AD46: ='Financial Model'!AD$34 -> 628.1364429 | AE46: ='Financial Model'!AE$34 -> 650.1212184 | AF46: ='Financial Model'!AF$34 -> 672.8754611 | AG46: ='Financial Model'!AG$34 -> 696.4261022 | AH46: ='Financial Model'!AH$34 -> 720.8010158 | AI46: ='Financial Model'!AI$34 -> 746.0290513 | AJ46: ='Financial Model'!AJ$34 -> 772.1400681 | AK46: ='Financial Model'!AK$34 -> 799.1649705 | AL46: ='Financial Model'!AL$34 -> 827.1357445 | AM46: ='Financial Model'!AM$34 -> 856.0854956 | AN46: ='Financial Model'!AN$34 -> 0 | AO46: ='Financial Model'!AO$34 -> 0 | AP46: ='Financial Model'!AP$34 -> 0 | AQ46: ='Financial Model'!AQ$34 -> 0 | AR46: ='Financial Model'!AR$34 -> 0 | AS46: ='Financial Model'!AS$34 -> 0 | AT46: ='Financial Model'!AT$34 -> 0 | AU46: ='Financial Model'!AU$34 -> 0 | AV46: ='Financial Model'!AV$34 -> 0 | AW46: ='Financial Model'!AW$34 -> 0 | AX46: ='Financial Model'!AX$34 -> 0 | AY46: ='Financial Model'!AY$34 -> 0 | AZ46: ='Financial Model'!AZ$34 -> 0 | BA46: ='Financial Model'!BA$34 -> 0 | BB46: ='Financial Model'!BB$34 -> 0 | BC46: ='Financial Model'!BC$34 -> 0 | BD46: ='Financial Model'!BD$34 -> 0 | BE46: ='Financial Model'!BE$34 -> 0 | BF46: ='Financial Model'!BF$34 -> 0 | BG46: ='Financial Model'!BG$34 -> 0 | BH46: ='Financial Model'!BH$34 -> 0 | BI46: ='Financial Model'!BI$34 -> 0 | BJ46: ='Financial Model'!BJ$34 -> 0 | BK46: ='Financial Model'!BK$34 -> 0 | BL46: ='Financial Model'!BL$34 -> 0 | BM46: ='Financial Model'!BM$34 -> 0 | BN46: ='Financial Model'!BN$34 -> 0 | BO46: ='Financial Model'!BO$34 -> 0 | BP46: ='Financial Model'!BP$34 -> 0 | BQ46: ='Financial Model'!BQ$34 -> 0 | BR46: ='Financial Model'!BR$34 -> 0 | BS46: ='Financial Model'!BS$34 -> 0 | BT46: ='Financial Model'!BT$34 -> 0 | BU46: ='Financial Model'!BU$34 -> 0 | BV46: ='Financial Model'!BV$34 -> 0 | BW46: ='Financial Model'!BW$34 -> 0 | BX46: ='Financial Model'!BX$34 -> 0 | BY46: ='Financial Model'!BY$34 -> 0 | BZ46: ='Financial Model'!BZ$34 -> 0 | CA46: ='Financial Model'!CA$34 -> 0 | CB46: ='Financial Model'!CB$34 -> 0 | CC46: ='Financial Model'!CC$34 -> 0 | CD46: ='Financial Model'!CD$34 -> 0 | CE46: ='Financial Model'!CE$34 -> 0 | CF46: ='Financial Model'!CF$34 -> 0 | CG46: ='Financial Model'!CG$34 -> 0 | CH46: ='Financial Model'!CH$34 -> 0 | CI46: ='Financial Model'!CI$34 -> 0
E47: Maintenance variable cost | G47: [$ 000s] | H47: =SUM(J47:CI47) -> 0 | J47: =$F$44*J45*J46 -> 0 | K47: 0 | L47: 0 | M47: 0 | N47: 0 | O47: 0 | P47: 0 | Q47: 0 | R47: 0 | S47: 0 | T47: 0 | U47: 0 | V47: 0 | W47: 0 | X47: 0 | Y47: 0 | Z47: 0 | AA47: 0 | AB47: 0 | AC47: 0 | AD47: 0 | AE47: 0 | AF47: 0 | AG47: 0 | AH47: 0 | AI47: 0 | AJ47: 0 | AK47: 0 | AL47: 0 | AM47: 0 | AN47: 0 | AO47: 0 | AP47: =$F$44*AP45*AP46 -> 0 | AQ47: 0 | AR47: 0 | AS47: 0 | AT47: 0 | AU47: 0 | AV47: 0 | AW47: 0 | AX47: 0 | AY47: 0 | AZ47: 0 | BA47: 0 | BB47: 0 | BC47: 0 | BD47: 0 | BE47: 0 | BF47: 0 | BG47: 0 | BH47: 0 | BI47: 0 | BJ47: 0 | BK47: 0 | BL47: 0 | BM47: 0 | BN47: 0 | BO47: 0 | BP47: 0 | BQ47: 0 | BR47: 0 | BS47: 0 | BT47: 0 | BU47: 0 | BV47: =$F$44*BV45*BV46 -> 0 | BW47: 0 | BX47: 0 | BY47: 0 | BZ47: 0 | CA47: 0 | CB47: 0 | CC47: 0 | CD47: 0 | CE47: 0 | CF47: 0 | CG47: 0 | CH47: 0 | CI47: 0
C49: Maintenance fixed cost
E50: Maintenance fixed cost per year | F50: 1000 | G50: [$ 000s]
E51: Periods in a years | F51: 1 | G51: [Periods]
E52: Maintenance fixed cost per period | F52: =F50/F51 -> 1000 | G52: [$ 000s]
E54: =E$52 -> Maintenance fixed cost per period | F54: =F$52 -> 1000 | G54: [$ 000s]
E55: =Timing!E$124 -> Escalation Factor Inflation | F55: =Timing!F$124 -> 2 | G55: [Factor] | H55: =Timing!H$124 -> 0 | I55: =Timing!I$124 -> 0 | J55: =Timing!J$124 -> 0 | K55: =Timing!K$124 -> 0 | L55: =Timing!L$124 -> 0 | M55: =Timing!M$124 -> 1 | N55: =Timing!N$124 -> 1.02 | O55: =Timing!O$124 -> 1.0404 | P55: =Timing!P$124 -> 1.061208 | Q55: =Timing!Q$124 -> 1.08243216 | R55: =Timing!R$124 -> 1.104080803 | S55: =Timing!S$124 -> 1.126162419 | T55: =Timing!T$124 -> 1.148685668 | U55: =Timing!U$124 -> 1.171659381 | V55: =Timing!V$124 -> 1.195092569 | W55: =Timing!W$124 -> 1.21899442 | X55: =Timing!X$124 -> 1.243374308 | Y55: =Timing!Y$124 -> 1.268241795 | Z55: =Timing!Z$124 -> 1.29360663 | AA55: =Timing!AA$124 -> 1.319478763 | AB55: =Timing!AB$124 -> 1.345868338 | AC55: =Timing!AC$124 -> 1.372785705 | AD55: =Timing!AD$124 -> 1.400241419 | AE55: =Timing!AE$124 -> 1.428246248 | AF55: =Timing!AF$124 -> 1.456811173 | AG55: =Timing!AG$124 -> 1.485947396 | AH55: =Timing!AH$124 -> 1.515666344 | AI55: =Timing!AI$124 -> 1.545979671 | AJ55: =Timing!AJ$124 -> 1.576899264 | AK55: =Timing!AK$124 -> 1.608437249 | AL55: =Timing!AL$124 -> 1.640605994 | AM55: =Timing!AM$124 -> 1.673418114 | AN55: =Timing!AN$124 -> 0 | AO55: =Timing!AO$124 -> 0 | AP55: =Timing!AP$124 -> 0 | AQ55: =Timing!AQ$124 -> 0 | AR55: =Timing!AR$124 -> 0 | AS55: =Timing!AS$124 -> 0 | AT55: =Timing!AT$124 -> 0 | AU55: =Timing!AU$124 -> 0 | AV55: =Timing!AV$124 -> 0 | AW55: =Timing!AW$124 -> 0 | AX55: =Timing!AX$124 -> 0 | AY55: =Timing!AY$124 -> 0 | AZ55: =Timing!AZ$124 -> 0 | BA55: =Timing!BA$124 -> 0 | BB55: =Timing!BB$124 -> 0 | BC55: =Timing!BC$124 -> 0 | BD55: =Timing!BD$124 -> 0 | BE55: =Timing!BE$124 -> 0 | BF55: =Timing!BF$124 -> 0 | BG55: =Timing!BG$124 -> 0 | BH55: =Timing!BH$124 -> 0 | BI55: =Timing!BI$124 -> 0 | BJ55: =Timing!BJ$124 -> 0 | BK55: =Timing!BK$124 -> 0 | BL55: =Timing!BL$124 -> 0 | BM55: =Timing!BM$124 -> 0 | BN55: =Timing!BN$124 -> 0 | BO55: =Timing!BO$124 -> 0 | BP55: =Timing!BP$124 -> 0 | BQ55: =Timing!BQ$124 -> 0 | BR55: =Timing!BR$124 -> 0 | BS55: =Timing!BS$124 -> 0 | BT55: =Timing!BT$124 -> 0 | BU55: =Timing!BU$124 -> 0 | BV55: =Timing!BV$124 -> 0 | BW55: =Timing!BW$124 -> 0 | BX55: =Timing!BX$124 -> 0 | BY55: =Timing!BY$124 -> 0 | BZ55: =Timing!BZ$124 -> 0 | CA55: =Timing!CA$124 -> 0 | CB55: =Timing!CB$124 -> 0 | CC55: =Timing!CC$124 -> 0 | CD55: =Timing!CD$124 -> 0 | CE55: =Timing!CE$124 -> 0 | CF55: =Timing!CF$124 -> 0 | CG55: =Timing!CG$124 -> 0 | CH55: =Timing!CH$124 -> 0 | CI55: =Timing!CI$124 -> 0
E56: =Timing!E$68 -> Operations period flag | F56: =Timing!F$68 -> 0 | G56: [Flag] | I56: =Timing!I$68 -> 0 | J56: =J4 -> 0 | K56: =K4 -> 0 | L56: 0 | M56: 1 | N56: 1 | O56: 1 | P56: 1 | Q56: 1 | R56: 1 | S56: 1 | T56: 1 | U56: 1 | V56: 1 | W56: 1 | X56: 1 | Y56: 1 | Z56: 1 | AA56: 1 | AB56: 1 | AC56: 1 | AD56: 1 | AE56: 1 | AF56: 1 | AG56: 1 | AH56: 1 | AI56: 1 | AJ56: 1 | AK56: 1 | AL56: 1 | AM56: 1 | AN56: 0 | AO56: 0 | AP56: 0 | AQ56: 0 | AR56: 0 | AS56: 0 | AT56: 0 | AU56: 0 | AV56: 0 | AW56: 0 | AX56: 0 | AY56: 0 | AZ56: 0 | BA56: 0 | BB56: 0 | BC56: 0 | BD56: 0 | BE56: 0 | BF56: 0 | BG56: 0 | BH56: 0 | BI56: 0 | BJ56: 0 | BK56: 0 | BL56: 0 | BM56: 0 | BN56: 0 | BO56: 0 | BP56: 0 | BQ56: 0 | BR56: 0 | BS56: 0 | BT56: 0 | BU56: 0 | BV56: 0 | BW56: =BW4 -> 0 | BX56: 0 | BY56: 0 | BZ56: 0 | CA56: 0 | CB56: 0 | CC56: 0 | CD56: 0 | CE56: 0 | CF56: 0 | CG56: 0 | CH56: 0 | CI56: 0
E57: Maintenance fixed cost | G57: [$ 000s] | H57: =SUM(J57:CI57) -> 35344.32383 | J57: =$F$54*J55*J56 -> 0 | K57: 0 | L57: 0 | M57: 1000 | N57: 1020 | O57: 1040.4 | P57: 1061.208 | Q57: 1082.43216 | R57: 1104.080803 | S57: 1126.162419 | T57: 1148.685668 | U57: 1171.659381 | V57: 1195.092569 | W57: 1218.99442 | X57: 1243.374308 | Y57: 1268.241795 | Z57: 1293.60663 | AA57: 1319.478763 | AB57: 1345.868338 | AC57: 1372.785705 | AD57: 1400.241419 | AE57: 1428.246248 | AF57: 1456.811173 | AG57: 1485.947396 | AH57: 1515.666344 | AI57: 1545.979671 | AJ57: 1576.899264 | AK57: 1608.437249 | AL57: 1640.605994 | AM57: 1673.418114 | AN57: 0 | AO57: 0 | AP57: =$F$54*AP55*AP56 -> 0 | AQ57: 0 | AR57: 0 | AS57: 0 | AT57: 0 | AU57: 0 | AV57: 0 | AW57: 0 | AX57: 0 | AY57: 0 | AZ57: 0 | BA57: 0 | BB57: 0 | BC57: 0 | BD57: 0 | BE57: 0 | BF57: 0 | BG57: 0 | BH57: 0 | BI57: 0 | BJ57: 0 | BK57: 0 | BL57: 0 | BM57: 0 | BN57: 0 | BO57: 0 | BP57: 0 | BQ57: 0 | BR57: 0 | BS57: 0 | BT57: 0 | BU57: 0 | BV57: =$F$54*BV55*BV56 -> 0 | BW57: 0 | BX57: 0 | BY57: 0 | BZ57: 0 | CA57: 0 | CB57: 0 | CC57: 0 | CD57: 0 | CE57: 0 | CF57: 0 | CG57: 0 | CH57: 0 | CI57: 0
C59: Management fixed cost
E60: Management fixed cost per year | F60: 0 | G60: [$ 000s]
E61: Periods in a years | F61: 1 | G61: [Periods]
E62: Management fixed cost per period | F62: =F60/F61 -> 0 | G62: [$ 000s]
E64: =E$62 -> Management fixed cost per period | F64: =F$62 -> 0 | G64: [$ 000s]
E65: =Timing!E$123 -> Escalation factor Revenues | F65: 0 | G65: [Factor] | H65: =Timing!H$123 -> 0 | I65: =Timing!I$123 -> 0 | J65: =Timing!J$123 -> 0 | K65: =Timing!K$123 -> 0 | L65: =Timing!L$123 -> 0 | M65: =Timing!M$123 -> 1 | N65: =Timing!N$123 -> 1.035 | O65: =Timing!O$123 -> 1.071225 | P65: =Timing!P$123 -> 1.108717875 | Q65: =Timing!Q$123 -> 1.147523001 | R65: =Timing!R$123 -> 1.187686306 | S65: =Timing!S$123 -> 1.229255326 | T65: =Timing!T$123 -> 1.272279263 | U65: =Timing!U$123 -> 1.316809037 | V65: =Timing!V$123 -> 1.362897353 | W65: =Timing!W$123 -> 1.410598761 | X65: =Timing!X$123 -> 1.459969717 | Y65: =Timing!Y$123 -> 1.511068657 | Z65: =Timing!Z$123 -> 1.56395606 | AA65: =Timing!AA$123 -> 1.618694522 | AB65: =Timing!AB$123 -> 1.675348831 | AC65: =Timing!AC$123 -> 1.73398604 | AD65: =Timing!AD$123 -> 1.794675551 | AE65: =Timing!AE$123 -> 1.857489196 | AF65: =Timing!AF$123 -> 1.922501317 | AG65: =Timing!AG$123 -> 1.989788863 | AH65: =Timing!AH$123 -> 2.059431474 | AI65: =Timing!AI$123 -> 2.131511575 | AJ65: =Timing!AJ$123 -> 2.20611448 | AK65: =Timing!AK$123 -> 2.283328487 | AL65: =Timing!AL$123 -> 2.363244984 | AM65: =Timing!AM$123 -> 2.445958559 | AN65: =Timing!AN$123 -> 0 | AO65: =Timing!AO$123 -> 0 | AP65: =Timing!AP$123 -> 0 | AQ65: =Timing!AQ$123 -> 0 | AR65: =Timing!AR$123 -> 0 | AS65: =Timing!AS$123 -> 0 | AT65: =Timing!AT$123 -> 0 | AU65: =Timing!AU$123 -> 0 | AV65: =Timing!AV$123 -> 0 | AW65: =Timing!AW$123 -> 0 | AX65: =Timing!AX$123 -> 0 | AY65: =Timing!AY$123 -> 0 | AZ65: =Timing!AZ$123 -> 0 | BA65: =Timing!BA$123 -> 0 | BB65: =Timing!BB$123 -> 0 | BC65: =Timing!BC$123 -> 0 | BD65: =Timing!BD$123 -> 0 | BE65: =Timing!BE$123 -> 0 | BF65: =Timing!BF$123 -> 0 | BG65: =Timing!BG$123 -> 0 | BH65: =Timing!BH$123 -> 0 | BI65: =Timing!BI$123 -> 0 | BJ65: =Timing!BJ$123 -> 0 | BK65: =Timing!BK$123 -> 0 | BL65: =Timing!BL$123 -> 0 | BM65: =Timing!BM$123 -> 0 | BN65: =Timing!BN$123 -> 0 | BO65: =Timing!BO$123 -> 0 | BP65: =Timing!BP$123 -> 0 | BQ65: =Timing!BQ$123 -> 0 | BR65: =Timing!BR$123 -> 0 | BS65: =Timing!BS$123 -> 0 | BT65: =Timing!BT$123 -> 0 | BU65: =Timing!BU$123 -> 0 | BV65: =Timing!BV$123 -> 0 | BW65: =Timing!BW$123 -> 0 | BX65: =Timing!BX$123 -> 0 | BY65: =Timing!BY$123 -> 0 | BZ65: =Timing!BZ$123 -> 0 | CA65: =Timing!CA$123 -> 0 | CB65: =Timing!CB$123 -> 0 | CC65: =Timing!CC$123 -> 0 | CD65: =Timing!CD$123 -> 0 | CE65: =Timing!CE$123 -> 0 | CF65: =Timing!CF$123 -> 0 | CG65: =Timing!CG$123 -> 0 | CH65: =Timing!CH$123 -> 0 | CI65: =Timing!CI$123 -> 0
E66: =Timing!E$68 -> Operations period flag | F66: =Timing!F$68 -> 0 | G66: [Flag] | I66: =Timing!I$68 -> 0 | J66: =J4 -> 0 | K66: =K4 -> 0 | L66: 0 | M66: 1 | N66: 1 | O66: 1 | P66: 1 | Q66: 1 | R66: 1 | S66: 1 | T66: 1 | U66: 1 | V66: 1 | W66: 1 | X66: 1 | Y66: 1 | Z66: 1 | AA66: 1 | AB66: 1 | AC66: 1 | AD66: 1 | AE66: 1 | AF66: 1 | AG66: 1 | AH66: 1 | AI66: 1 | AJ66: 1 | AK66: 1 | AL66: 1 | AM66: 1 | AN66: 0 | AO66: 0 | AP66: 0 | AQ66: 0 | AR66: 0 | AS66: 0 | AT66: 0 | AU66: 0 | AV66: 0 | AW66: 0 | AX66: 0 | AY66: 0 | AZ66: 0 | BA66: 0 | BB66: 0 | BC66: 0 | BD66: 0 | BE66: 0 | BF66: 0 | BG66: 0 | BH66: 0 | BI66: 0 | BJ66: 0 | BK66: 0 | BL66: 0 | BM66: 0 | BN66: 0 | BO66: 0 | BP66: 0 | BQ66: 0 | BR66: 0 | BS66: 0 | BT66: 0 | BU66: 0 | BV66: 0 | BW66: =BW4 -> 0 | BX66: 0 | BY66: 0 | BZ66: 0 | CA66: 0 | CB66: 0 | CC66: 0 | CD66: 0 | CE66: 0 | CF66: 0 | CG66: 0 | CH66: 0 | CI66: 0
E67: Management fixed cost | G67: [$ 000s] | H67: =SUM(J67:CI67) -> 0 | J67: =$F$64*J65*J66 -> 0 | K67: 0 | L67: 0 | M67: 0 | N67: 0 | O67: 0 | P67: 0 | Q67: 0 | R67: 0 | S67: 0 | T67: 0 | U67: 0 | V67: 0 | W67: 0 | X67: 0 | Y67: 0 | Z67: 0 | AA67: 0 | AB67: 0 | AC67: 0 | AD67: 0 | AE67: 0 | AF67: 0 | AG67: 0 | AH67: 0 | AI67: 0 | AJ67: 0 | AK67: 0 | AL67: 0 | AM67: 0 | AN67: 0 | AO67: 0 | AP67: =$F$64*AP65*AP66 -> 0 | AQ67: 0 | AR67: 0 | AS67: 0 | AT67: 0 | AU67: 0 | AV67: 0 | AW67: 0 | AX67: 0 | AY67: 0 | AZ67: 0 | BA67: 0 | BB67: 0 | BC67: 0 | BD67: 0 | BE67: 0 | BF67: 0 | BG67: 0 | BH67: 0 | BI67: 0 | BJ67: 0 | BK67: 0 | BL67: 0 | BM67: 0 | BN67: 0 | BO67: 0 | BP67: 0 | BQ67: 0 | BR67: 0 | BS67: 0 | BT67: 0 | BU67: 0 | BV67: =$F$64*BV65*BV66 -> 0 | BW67: 0 | BX67: 0 | BY67: 0 | BZ67: 0 | CA67: 0 | CB67: 0 | CC67: 0 | CD67: 0 | CE67: 0 | CF67: 0 | CG67: 0 | CH67: 0 | CI67: 0
C69: Summary
E70: =E$47 -> Maintenance variable cost | F70: =F$47 -> 0 | G70: [$ 000s] | H70: =H$47 -> 0 | I70: 0 | J70: 0 | K70: 0 | L70: 0 | M70: 0 | N70: 0 | O70: 0 | P70: 0 | Q70: 0 | R70: 0 | S70: 0 | T70: 0 | U70: 0 | V70: 0 | W70: 0 | X70: 0 | Y70: 0 | Z70: 0 | AA70: 0 | AB70: 0 | AC70: 0 | AD70: 0 | AE70: 0 | AF70: 0 | AG70: 0 | AH70: 0 | AI70: 0 | AJ70: 0 | AK70: 0 | AL70: 0 | AM70: 0 | AN70: =AN$47 -> 0 | AO70: 0 | AP70: 0 | AQ70: 0 | AR70: 0 | AS70: 0 | AT70: 0 | AU70: 0 | AV70: 0 | AW70: 0 | AX70: 0 | AY70: 0 | AZ70: 0 | BA70: 0 | BB70: 0 | BC70: 0 | BD70: 0 | BE70: 0 | BF70: 0 | BG70: 0 | BH70: 0 | BI70: 0 | BJ70: 0 | BK70: 0 | BL70: 0 | BM70: 0 | BN70: 0 | BO70: 0 | BP70: 0 | BQ70: 0 | BR70: 0 | BS70: 0 | BT70: =BT$47 -> 0 | BU70: 0 | BV70: 0 | BW70: 0 | BX70: 0 | BY70: 0 | BZ70: 0 | CA70: 0 | CB70: 0 | CC70: 0 | CD70: 0 | CE70: 0 | CF70: 0 | CG70: 0 | CH70: 0 | CI70: 0
E71: =E$57 -> Maintenance fixed cost | F71: 0 | G71: [$ 000s] | H71: 35344.32383 | I71: 0 | J71: 0 | K71: 0 | L71: 0 | M71: 1000 | N71: 1020 | O71: 1040.4 | P71: 1061.208 | Q71: 1082.43216 | R71: 1104.080803 | S71: 1126.162419 | T71: 1148.685668 | U71: 1171.659381 | V71: 1195.092569 | W71: 1218.99442 | X71: 1243.374308 | Y71: 1268.241795 | Z71: 1293.60663 | AA71: 1319.478763 | AB71: 1345.868338 | AC71: 1372.785705 | AD71: 1400.241419 | AE71: 1428.246248 | AF71: 1456.811173 | AG71: 1485.947396 | AH71: 1515.666344 | AI71: 1545.979671 | AJ71: 1576.899264 | AK71: =AK$57 -> 1608.437249 | AL71: 1640.605994 | AM71: 1673.418114 | AN71: 0 | AO71: 0 | AP71: 0 | AQ71: 0 | AR71: 0 | AS71: 0 | AT71: 0 | AU71: 0 | AV71: 0 | AW71: 0 | AX71: 0 | AY71: 0 | AZ71: 0 | BA71: 0 | BB71: 0 | BC71: 0 | BD71: 0 | BE71: 0 | BF71: 0 | BG71: 0 | BH71: 0 | BI71: 0 | BJ71: 0 | BK71: 0 | BL71: 0 | BM71: 0 | BN71: 0 | BO71: 0 | BP71: 0 | BQ71: =BQ$57 -> 0 | BR71: 0 | BS71: 0 | BT71: 0 | BU71: 0 | BV71: 0 | BW71: 0 | BX71: 0 | BY71: 0 | BZ71: 0 | CA71: 0 | CB71: 0 | CC71: 0 | CD71: 0 | CE71: 0 | CF71: 0 | CG71: 0 | CH71: 0 | CI71: 0
E72: =E$67 -> Management fixed cost | F72: 0 | G72: [$ 000s] | H72: 0 | I72: 0 | J72: 0 | K72: 0 | L72: 0 | M72: 0 | N72: 0 | O72: 0 | P72: 0 | Q72: 0 | R72: 0 | S72: 0 | T72: 0 | U72: 0 | V72: 0 | W72: 0 | X72: 0 | Y72: 0 | Z72: 0 | AA72: 0 | AB72: 0 | AC72: 0 | AD72: 0 | AE72: 0 | AF72: 0 | AG72: 0 | AH72: 0 | AI72: 0 | AJ72: 0 | AK72: =AK$67 -> 0 | AL72: 0 | AM72: 0 | AN72: 0 | AO72: 0 | AP72: 0 | AQ72: 0 | AR72: 0 | AS72: 0 | AT72: 0 | AU72: 0 | AV72: 0 | AW72: 0 | AX72: 0 | AY72: 0 | AZ72: 0 | BA72: 0 | BB72: 0 | BC72: 0 | BD72: 0 | BE72: 0 | BF72: 0 | BG72: 0 | BH72: 0 | BI72: 0 | BJ72: 0 | BK72: 0 | BL72: 0 | BM72: 0 | BN72: 0 | BO72: 0 | BP72: 0 | BQ72: =BQ$67 -> 0 | BR72: 0 | BS72: 0 | BT72: 0 | BU72: 0 | BV72: 0 | BW72: 0 | BX72: 0 | BY72: 0 | BZ72: 0 | CA72: 0 | CB72: 0 | CC72: 0 | CD72: 0 | CE72: 0 | CF72: 0 | CG72: 0 | CH72: 0 | CI72: 0
E73: Operating cost | F73: P&L | G73: [$ 000s] | H73: =SUM(J73:CI73) -> 35344.32383 | J73: =SUM(J70:J72) -> 0 | K73: 0 | L73: 0 | M73: 1000 | N73: 1020 | O73: 1040.4 | P73: 1061.208 | Q73: 1082.43216 | R73: 1104.080803 | S73: 1126.162419 | T73: 1148.685668 | U73: 1171.659381 | V73: 1195.092569 | W73: 1218.99442 | X73: 1243.374308 | Y73: 1268.241795 | Z73: 1293.60663 | AA73: 1319.478763 | AB73: 1345.868338 | AC73: 1372.785705 | AD73: 1400.241419 | AE73: 1428.246248 | AF73: 1456.811173 | AG73: 1485.947396 | AH73: 1515.666344 | AI73: 1545.979671 | AJ73: 1576.899264 | AK73: 1608.437249 | AL73: 1640.605994 | AM73: 1673.418114 | AN73: 0 | AO73: 0 | AP73: =SUM(AP70:AP72) -> 0 | AQ73: 0 | AR73: 0 | AS73: 0 | AT73: 0 | AU73: 0 | AV73: 0 | AW73: 0 | AX73: 0 | AY73: 0 | AZ73: 0 | BA73: 0 | BB73: 0 | BC73: 0 | BD73: 0 | BE73: 0 | BF73: 0 | BG73: 0 | BH73: 0 | BI73: 0 | BJ73: 0 | BK73: 0 | BL73: 0 | BM73: 0 | BN73: 0 | BO73: 0 | BP73: 0 | BQ73: 0 | BR73: 0 | BS73: 0 | BT73: 0 | BU73: 0 | BV73: =SUM(BV70:BV72) -> 0 | BW73: 0 | BX73: 0 | BY73: 0 | BZ73: 0 | CA73: 0 | CB73: 0 | CC73: 0 | CD73: 0 | CE73: 0 | CF73: 0 | CG73: 0 | CH73: 0 | CI73: 0
E75: EBITDA | J75: =J38-J73 -> 0 | K75: 0 | L75: 0 | M75: 3000 | N75: 3264.9 | O75: 3549.692002 | P75: 3855.813305 | Q75: 4184.803988 | R75: 4538.314239 | S75: 4918.11221 | T75: 5326.092422 | U75: 5764.284778 | V75: 6234.864213 | W75: 6740.161034 | X75: 7282.671993 | Y75: 7865.072154 | Z75: 8490.227604 | AA75: 9161.209065 | AB75: 9881.30648 | AC75: 10654.04464 | AD75: 11483.19992 | AE75: 12372.8182 | AF75: 13327.23409 | AG75: 14351.09149 | AH75: 15449.36564 | AI75: 16627.38671 | AJ75: 17890.86514 | AK75: 19245.91867 | AL75: 20699.10143 | AM75: 22257.43497 | AN75: 0 | AO75: 0 | AP75: =AP38-AP73 -> 0 | AQ75: 0 | AR75: 0 | AS75: 0 | AT75: 0 | AU75: 0 | AV75: 0 | AW75: 0 | AX75: 0 | AY75: 0 | AZ75: 0 | BA75: 0 | BB75: 0 | BC75: 0 | BD75: 0 | BE75: 0 | BF75: 0 | BG75: 0 | BH75: 0 | BI75: 0 | BJ75: 0 | BK75: 0 | BL75: 0 | BM75: 0 | BN75: 0 | BO75: 0 | BP75: 0 | BQ75: 0 | BR75: 0 | BS75: 0 | BT75: 0 | BU75: 0 | BV75: =BV38-BV73 -> 0 | BW75: 0 | BX75: 0 | BY75: 0 | BZ75: 0 | CA75: 0 | CB75: 0 | CC75: 0 | CD75: 0 | CE75: 0 | CF75: 0 | CG75: 0 | CH75: 0 | CI75: 0
B77: Capital Expenditures
D78: EPC cost | F78: =Inputs!G22 -> 70000 | G78: [$ 000s]
D79: S-Curve | G79: [%] | H79: 1 | I79: 0 | J79: 0.3 | K79: 0.3 | L79: 0.4 | M79: 0 | N79: 0 | O79: 0 | P79: 0 | Q79: 0 | R79: 0 | S79: 0 | T79: 0 | U79: 0 | V79: 0 | W79: 0 | X79: 0 | Y79: 0 | Z79: 0 | AA79: 0 | AB79: 0 | AC79: 0 | AD79: 0 | AE79: 0 | AF79: 0 | AG79: 0 | AH79: 0 | AI79: 0 | AJ79: 0 | AK79: 0 | AL79: 0 | AM79: 0 | AN79: 0 | AO79: 0 | AP79: 0 | AQ79: 0 | AR79: 0 | AS79: 0 | AT79: 0 | AU79: 0 | AV79: 0 | AW79: 0 | AX79: 0 | AY79: 0 | AZ79: 0 | BA79: 0 | BB79: 0 | BC79: 0 | BD79: 0 | BE79: 0 | BF79: 0 | BG79: 0 | BH79: 0 | BI79: 0 | BJ79: 0 | BK79: 0 | BL79: 0 | BM79: 0 | BN79: 0 | BO79: 0 | BP79: 0 | BQ79: 0 | BR79: 0 | BS79: 0 | BT79: 0 | BU79: 0 | BV79: 0 | BW79: 0 | BX79: 0 | BY79: 0 | BZ79: 0 | CA79: 0 | CB79: 0 | CC79: 0 | CD79: 0 | CE79: 0 | CF79: 0 | CG79: 0 | CH79: 0 | CI79: 0
D80: EPC cost | G80: [$ 000s] | H80: =SUM(J80:CI80) -> 70000 | J80: =$F$78*J79 -> 21000 | K80: 21000 | L80: 28000 | M80: 0 | N80: 0 | O80: 0 | P80: 0 | Q80: 0 | R80: 0 | S80: 0 | T80: 0 | U80: 0 | V80: 0 | W80: 0 | X80: 0 | Y80: 0 | Z80: 0 | AA80: 0 | AB80: 0 | AC80: 0 | AD80: 0 | AE80: 0 | AF80: 0 | AG80: 0 | AH80: 0 | AI80: 0 | AJ80: 0 | AK80: 0 | AL80: 0 | AM80: 0 | AN80: 0 | AO80: 0 | AP80: =$F$78*AP79 -> 0 | AQ80: 0 | AR80: 0 | AS80: 0 | AT80: 0 | AU80: 0 | AV80: 0 | AW80: 0 | AX80: 0 | AY80: 0 | AZ80: 0 | BA80: 0 | BB80: 0 | BC80: 0 | BD80: 0 | BE80: 0 | BF80: 0 | BG80: 0 | BH80: 0 | BI80: 0 | BJ80: 0 | BK80: 0 | BL80: 0 | BM80: 0 | BN80: 0 | BO80: 0 | BP80: 0 | BQ80: 0 | BR80: 0 | BS80: 0 | BT80: 0 | BU80: 0 | BV80: =$F$78*BV79 -> 0 | BW80: 0 | BX80: 0 | BY80: 0 | BZ80: 0 | CA80: 0 | CB80: 0 | CC80: 0 | CD80: 0 | CE80: 0 | CF80: 0 | CG80: 0 | CH80: 0 | CI80: 0
C82: Base construction cost summary
D83: =D$80 -> EPC cost | E83: =E$80 -> 0 | G83: [$ 000s] | H83: =H$80 -> 70000 | I83: =I$80 -> 0 | J83: =J$80 -> 21000 | K83: 21000 | L83: 28000 | M83: 0 | N83: 0 | O83: 0 | P83: 0 | Q83: 0 | R83: 0 | S83: 0 | T83: 0 | U83: 0 | V83: 0 | W83: 0 | X83: 0 | Y83: 0 | Z83: 0 | AA83: 0 | AB83: 0 | AC83: 0 | AD83: 0 | AE83: 0 | AF83: 0 | AG83: 0 | AH83: 0 | AI83: 0 | AJ83: 0 | AK83: 0 | AL83: 0 | AM83: 0 | AN83: 0 | AO83: 0 | AP83: =AP$80 -> 0 | AQ83: 0 | AR83: 0 | AS83: 0 | AT83: 0 | AU83: 0 | AV83: 0 | AW83: 0 | AX83: 0 | AY83: 0 | AZ83: 0 | BA83: 0 | BB83: 0 | BC83: 0 | BD83: 0 | BE83: 0 | BF83: 0 | BG83: 0 | BH83: 0 | BI83: 0 | BJ83: 0 | BK83: 0 | BL83: 0 | BM83: 0 | BN83: 0 | BO83: 0 | BP83: 0 | BQ83: 0 | BR83: 0 | BS83: 0 | BT83: 0 | BU83: 0 | BV83: =BV$80 -> 0 | BW83: 0 | BX83: 0 | BY83: 0 | BZ83: 0 | CA83: 0 | CB83: 0 | CC83: 0 | CD83: 0 | CE83: 0 | CF83: 0 | CG83: 0 | CH83: 0 | CI83: 0
D84: Base construction costs | G84: [$ 000s] | H84: =SUM(J84:CI84) -> 70000 | J84: =SUM(J83:J83) -> 21000 | K84: 21000 | L84: 28000 | M84: 0 | N84: 0 | O84: 0 | P84: 0 | Q84: 0 | R84: 0 | S84: 0 | T84: 0 | U84: 0 | V84: 0 | W84: 0 | X84: 0 | Y84: 0 | Z84: 0 | AA84: 0 | AB84: 0 | AC84: 0 | AD84: 0 | AE84: 0 | AF84: 0 | AG84: 0 | AH84: 0 | AI84: 0 | AJ84: 0 | AK84: 0 | AL84: 0 | AM84: 0 | AN84: 0 | AO84: 0 | AP84: =SUM(AP83:AP83) -> 0 | AQ84: 0 | AR84: 0 | AS84: 0 | AT84: 0 | AU84: 0 | AV84: 0 | AW84: 0 | AX84: 0 | AY84: 0 | AZ84: 0 | BA84: 0 | BB84: 0 | BC84: 0 | BD84: 0 | BE84: 0 | BF84: 0 | BG84: 0 | BH84: 0 | BI84: 0 | BJ84: 0 | BK84: 0 | BL84: 0 | BM84: 0 | BN84: 0 | BO84: 0 | BP84: 0 | BQ84: 0 | BR84: 0 | BS84: 0 | BT84: 0 | BU84: 0 | BV84: =SUM(BV83:BV83) -> 0 | BW84: 0 | BX84: 0 | BY84: 0 | BZ84: 0 | CA84: 0 | CB84: 0 | CC84: 0 | CD84: 0 | CE84: 0 | CF84: 0 | CG84: 0 | CH84: 0 | CI84: 0
C86: Contingency
D87: Contingency | F87: 0 | H87: %
D88: =D$84 -> Base construction costs | E88: =E$84 -> 0 | G88: [$ 000s] | H88: =H$84 -> 70000 | I88: =I$84 -> 0 | J88: =J$84 -> 21000 | K88: 21000 | L88: 28000 | M88: 0 | N88: 0 | O88: 0 | P88: 0 | Q88: 0 | R88: 0 | S88: 0 | T88: 0 | U88: 0 | V88: 0 | W88: 0 | X88: 0 | Y88: 0 | Z88: 0 | AA88: 0 | AB88: 0 | AC88: 0 | AD88: 0 | AE88: 0 | AF88: 0 | AG88: 0 | AH88: 0 | AI88: 0 | AJ88: 0 | AK88: 0 | AL88: 0 | AM88: 0 | AN88: 0 | AO88: 0 | AP88: =AP$84 -> 0 | AQ88: 0 | AR88: 0 | AS88: 0 | AT88: 0 | AU88: 0 | AV88: 0 | AW88: 0 | AX88: 0 | AY88: 0 | AZ88: 0 | BA88: 0 | BB88: 0 | BC88: 0 | BD88: 0 | BE88: 0 | BF88: 0 | BG88: 0 | BH88: 0 | BI88: 0 | BJ88: 0 | BK88: 0 | BL88: 0 | BM88: 0 | BN88: 0 | BO88: 0 | BP88: 0 | BQ88: 0 | BR88: 0 | BS88: 0 | BT88: 0 | BU88: 0 | BV88: =BV$84 -> 0 | BW88: 0 | BX88: 0 | BY88: 0 | BZ88: 0 | CA88: 0 | CB88: 0 | CC88: 0 | CD88: 0 | CE88: 0 | CF88: 0 | CG88: 0 | CH88: 0 | CI88: 0
D89: Contingency | G89: [$ 000s] | H89: =SUM(J89:CI89) -> 0 | J89: =$F$87*J88 -> 0 | K89: 0 | L89: 0 | M89: 0 | N89: 0 | O89: 0 | P89: 0 | Q89: 0 | R89: 0 | S89: 0 | T89: 0 | U89: 0 | V89: 0 | W89: 0 | X89: 0 | Y89: 0 | Z89: 0 | AA89: 0 | AB89: 0 | AC89: 0 | AD89: 0 | AE89: 0 | AF89: 0 | AG89: 0 | AH89: 0 | AI89: 0 | AJ89: 0 | AK89: 0 | AL89: 0 | AM89: 0 | AN89: 0 | AO89: 0 | AP89: =$F$87*AP88 -> 0 | AQ89: 0 | AR89: 0 | AS89: 0 | AT89: 0 | AU89: 0 | AV89: 0 | AW89: 0 | AX89: 0 | AY89: 0 | AZ89: 0 | BA89: 0 | BB89: 0 | BC89: 0 | BD89: 0 | BE89: 0 | BF89: 0 | BG89: 0 | BH89: 0 | BI89: 0 | BJ89: 0 | BK89: 0 | BL89: 0 | BM89: 0 | BN89: 0 | BO89: 0 | BP89: 0 | BQ89: 0 | BR89: 0 | BS89: 0 | BT89: 0 | BU89: 0 | BV89: =$F$87*BV88 -> 0 | BW89: 0 | BX89: 0 | BY89: 0 | BZ89: 0 | CA89: 0 | CB89: 0 | CC89: 0 | CD89: 0 | CE89: 0 | CF89: 0 | CG89: 0 | CH89: 0 | CI89: 0
E91: =D$84 -> Base construction costs | F91: =E$84 -> 0 | G91: [$ 000s] | H91: =H$84 -> 70000 | I91: =I$84 -> 0 | J91: =J$84 -> 21000 | K91: 21000 | L91: 28000 | M91: 0 | N91: 0 | O91: 0 | P91: 0 | Q91: 0 | R91: 0 | S91: 0 | T91: 0 | U91: 0 | V91: 0 | W91: 0 | X91: 0 | Y91: 0 | Z91: 0 | AA91: 0 | AB91: 0 | AC91: 0 | AD91: 0 | AE91: 0 | AF91: 0 | AG91: 0 | AH91: 0 | AI91: 0 | AJ91: 0 | AK91: 0 | AL91: 0 | AM91: 0 | AN91: 0 | AO91: 0 | AP91: =AP$84 -> 0 | AQ91: 0 | AR91: 0 | AS91: 0 | AT91: 0 | AU91: 0 | AV91: 0 | AW91: 0 | AX91: 0 | AY91: 0 | AZ91: 0 | BA91: 0 | BB91: 0 | BC91: 0 | BD91: 0 | BE91: 0 | BF91: 0 | BG91: 0 | BH91: 0 | BI91: 0 | BJ91: 0 | BK91: 0 | BL91: 0 | BM91: 0 | BN91: 0 | BO91: 0 | BP91: 0 | BQ91: 0 | BR91: 0 | BS91: 0 | BT91: 0 | BU91: 0 | BV91: =BV$84 -> 0 | BW91: 0 | BX91: 0 | BY91: 0 | BZ91: 0 | CA91: 0 | CB91: 0 | CC91: 0 | CD91: 0 | CE91: 0 | CF91: 0 | CG91: 0 | CH91: 0 | CI91: 0
E92: =D$89 -> Contingency | F92: =E$89 -> 0 | G92: [$ 000s] | H92: =H$89 -> 0 | I92: =I$89 -> 0 | J92: =J$89 -> 0 | K92: 0 | L92: 0 | M92: 0 | N92: 0 | O92: 0 | P92: 0 | Q92: 0 | R92: 0 | S92: 0 | T92: 0 | U92: 0 | V92: 0 | W92: 0 | X92: 0 | Y92: 0 | Z92: 0 | AA92: 0 | AB92: 0 | AC92: 0 | AD92: 0 | AE92: 0 | AF92: 0 | AG92: 0 | AH92: 0 | AI92: 0 | AJ92: 0 | AK92: 0 | AL92: 0 | AM92: 0 | AN92: 0 | AO92: 0 | AP92: =AP$89 -> 0 | AQ92: 0 | AR92: 0 | AS92: 0 | AT92: 0 | AU92: 0 | AV92: 0 | AW92: 0 | AX92: 0 | AY92: 0 | AZ92: 0 | BA92: 0 | BB92: 0 | BC92: 0 | BD92: 0 | BE92: 0 | BF92: 0 | BG92: 0 | BH92: 0 | BI92: 0 | BJ92: 0 | BK92: 0 | BL92: 0 | BM92: 0 | BN92: 0 | BO92: 0 | BP92: 0 | BQ92: 0 | BR92: 0 | BS92: 0 | BT92: 0 | BU92: 0 | BV92: =BV$89 -> 0 | BW92: 0 | BX92: 0 | BY92: 0 | BZ92: 0 | CA92: 0 | CB92: 0 | CC92: 0 | CD92: 0 | CE92: 0 | CF92: 0 | CG92: 0 | CH92: 0 | CI92: 0
D93: Construction costs | G93: [$ 000s] | H93: =SUM(J93:CI93) -> 70000 | J93: =SUM(J91:J92) -> 21000 | K93: 21000 | L93: 28000 | M93: 0 | N93: 0 | O93: 0 | P93: 0 | Q93: 0 | R93: 0 | S93: 0 | T93: 0 | U93: 0 | V93: 0 | W93: 0 | X93: 0 | Y93: 0 | Z93: 0 | AA93: 0 | AB93: 0 | AC93: 0 | AD93: 0 | AE93: 0 | AF93: 0 | AG93: 0 | AH93: 0 | AI93: 0 | AJ93: 0 | AK93: 0 | AL93: 0 | AM93: 0 | AN93: 0 | AO93: 0 | AP93: =SUM(AP91:AP92) -> 0 | AQ93: 0 | AR93: 0 | AS93: 0 | AT93: 0 | AU93: 0 | AV93: 0 | AW93: 0 | AX93: 0 | AY93: 0 | AZ93: 0 | BA93: 0 | BB93: 0 | BC93: 0 | BD93: 0 | BE93: 0 | BF93: 0 | BG93: 0 | BH93: 0 | BI93: 0 | BJ93: 0 | BK93: 0 | BL93: 0 | BM93: 0 | BN93: 0 | BO93: 0 | BP93: 0 | BQ93: 0 | BR93: 0 | BS93: 0 | BT93: 0 | BU93: 0 | BV93: =SUM(BV91:BV92) -> 0 | BW93: 0 | BX93: 0 | BY93: 0 | BZ93: 0 | CA93: 0 | CB93: 0 | CC93: 0 | CD93: 0 | CE93: 0 | CF93: 0 | CG93: 0 | CH93: 0 | CI93: 0
B95: Accounts Receivable
E97: Accounts receivable days | F97: =Inputs!G51 -> 0 | G97: [Days]
E98: =Timing!E$23 -> Days in the period | F98: =Timing!F$23 -> 0 | G98: [Days] | H98: =Timing!H$23 -> 0 | I98: =Timing!I$23 -> 0 | J98: =Timing!J$23 -> 365 | K98: =Timing!K$23 -> 365 | L98: =Timing!L$23 -> 366 | M98: =Timing!M$23 -> 365 | N98: =Timing!N$23 -> 365 | O98: =Timing!O$23 -> 365 | P98: =Timing!P$23 -> 366 | Q98: =Timing!Q$23 -> 365 | R98: =Timing!R$23 -> 365 | S98: =Timing!S$23 -> 365 | T98: =Timing!T$23 -> 366 | U98: =Timing!U$23 -> 365 | V98: =Timing!V$23 -> 365 | W98: =Timing!W$23 -> 365 | X98: =Timing!X$23 -> 366 | Y98: =Timing!Y$23 -> 365 | Z98: =Timing!Z$23 -> 365 | AA98: =Timing!AA$23 -> 365 | AB98: =Timing!AB$23 -> 366 | AC98: =Timing!AC$23 -> 365 | AD98: =Timing!AD$23 -> 365 | AE98: =Timing!AE$23 -> 365 | AF98: =Timing!AF$23 -> 366 | AG98: =Timing!AG$23 -> 365 | AH98: =Timing!AH$23 -> 365 | AI98: =Timing!AI$23 -> 365 | AJ98: =Timing!AJ$23 -> 366 | AK98: =Timing!AK$23 -> 365 | AL98: =Timing!AL$23 -> 365 | AM98: =Timing!AM$23 -> 365 | AN98: =Timing!AN$23 -> 366 | AO98: =Timing!AO$23 -> 365 | AP98: =Timing!AP$23 -> 365 | AQ98: =Timing!AQ$23 -> 365 | AR98: =Timing!AR$23 -> 366 | AS98: =Timing!AS$23 -> 365 | AT98: =Timing!AT$23 -> 365 | AU98: =Timing!AU$23 -> 365 | AV98: =Timing!AV$23 -> 366 | AW98: =Timing!AW$23 -> 365 | AX98: =Timing!AX$23 -> 365 | AY98: =Timing!AY$23 -> 365 | AZ98: =Timing!AZ$23 -> 366 | BA98: =Timing!BA$23 -> 365 | BB98: =Timing!BB$23 -> 365 | BC98: =Timing!BC$23 -> 365 | BD98: =Timing!BD$23 -> 366 | BE98: =Timing!BE$23 -> 365 | BF98: =Timing!BF$23 -> 365 | BG98: =Timing!BG$23 -> 365 | BH98: =Timing!BH$23 -> 366 | BI98: =Timing!BI$23 -> 365 | BJ98: =Timing!BJ$23 -> 365 | BK98: =Timing!BK$23 -> 365 | BL98: =Timing!BL$23 -> 366 | BM98: =Timing!BM$23 -> 365 | BN98: =Timing!BN$23 -> 365 | BO98: =Timing!BO$23 -> 365 | BP98: =Timing!BP$23 -> 366 | BQ98: =Timing!BQ$23 -> 365 | BR98: =Timing!BR$23 -> 365 | BS98: =Timing!BS$23 -> 365 | BT98: =Timing!BT$23 -> 366 | BU98: =Timing!BU$23 -> 365 | BV98: =Timing!BV$23 -> 365 | BW98: =Timing!BW$23 -> 365 | BX98: =Timing!BX$23 -> 366 | BY98: =Timing!BY$23 -> 365 | BZ98: =Timing!BZ$23 -> 365 | CA98: =Timing!CA$23 -> 365 | CB98: =Timing!CB$23 -> 366 | CC98: =Timing!CC$23 -> 365 | CD98: =Timing!CD$23 -> 365 | CE98: =Timing!CE$23 -> 365 | CF98: =Timing!CF$23 -> 366 | CG98: =Timing!CG$23 -> 365 | CH98: =Timing!CH$23 -> 365 | CI98: =Timing!CI$23 -> 365
E99: ='Financial Model'!E$38 -> Operating revenue | F99: ='Financial Model'!F$38 -> P&L | G99: [$ 000s] | H99: ='Financial Model'!H$38 -> 303760.3102 | I99: ='Financial Model'!I$38 -> 0 | J99: ='Financial Model'!J$38 -> 0 | K99: ='Financial Model'!K$38 -> 0 | L99: ='Financial Model'!L$38 -> 0 | M99: ='Financial Model'!M$38 -> 4000 | N99: ='Financial Model'!N$38 -> 4284.9 | O99: ='Financial Model'!O$38 -> 4590.092002 | P99: ='Financial Model'!P$38 -> 4917.021305 | Q99: ='Financial Model'!Q$38 -> 5267.236148 | R99: ='Financial Model'!R$38 -> 5642.395042 | S99: ='Financial Model'!S$38 -> 6044.274629 | T99: ='Financial Model'!T$38 -> 6474.77809 | U99: ='Financial Model'!U$38 -> 6935.944159 | V99: ='Financial Model'!V$38 -> 7429.956782 | W99: ='Financial Model'!W$38 -> 7959.155454 | X99: ='Financial Model'!X$38 -> 8526.046301 | Y99: ='Financial Model'!Y$38 -> 9133.313949 | Z99: ='Financial Model'!Z$38 -> 9783.834235 | AA99: ='Financial Model'!AA$38 -> 10480.68783 | AB99: ='Financial Model'!AB$38 -> 11227.17482 | AC99: ='Financial Model'!AC$38 -> 12026.83035 | AD99: ='Financial Model'!AD$38 -> 12883.44134 | AE99: ='Financial Model'!AE$38 -> 13801.06445 | AF99: ='Financial Model'!AF$38 -> 14784.04526 | AG99: ='Financial Model'!AG$38 -> 15837.03888 | AH99: ='Financial Model'!AH$38 -> 16965.03198 | AI99: ='Financial Model'!AI$38 -> 18173.36638 | AJ99: ='Financial Model'!AJ$38 -> 19467.7644 | AK99: ='Financial Model'!AK$38 -> 20854.35592 | AL99: ='Financial Model'!AL$38 -> 22339.70742 | AM99: ='Financial Model'!AM$38 -> 23930.85308 | AN99: ='Financial Model'!AN$38 -> 0 | AO99: ='Financial Model'!AO$38 -> 0 | AP99: ='Financial Model'!AP$38 -> 0 | AQ99: ='Financial Model'!AQ$38 -> 0 | AR99: ='Financial Model'!AR$38 -> 0 | AS99: ='Financial Model'!AS$38 -> 0 | AT99: ='Financial Model'!AT$38 -> 0 | AU99: ='Financial Model'!AU$38 -> 0 | AV99: ='Financial Model'!AV$38 -> 0 | AW99: ='Financial Model'!AW$38 -> 0 | AX99: ='Financial Model'!AX$38 -> 0 | AY99: ='Financial Model'!AY$38 -> 0 | AZ99: ='Financial Model'!AZ$38 -> 0 | BA99: ='Financial Model'!BA$38 -> 0 | BB99: ='Financial Model'!BB$38 -> 0 | BC99: ='Financial Model'!BC$38 -> 0 | BD99: ='Financial Model'!BD$38 -> 0 | BE99: ='Financial Model'!BE$38 -> 0 | BF99: ='Financial Model'!BF$38 -> 0 | BG99: ='Financial Model'!BG$38 -> 0 | BH99: ='Financial Model'!BH$38 -> 0 | BI99: ='Financial Model'!BI$38 -> 0 | BJ99: ='Financial Model'!BJ$38 -> 0 | BK99: ='Financial Model'!BK$38 -> 0 | BL99: ='Financial Model'!BL$38 -> 0 | BM99: ='Financial Model'!BM$38 -> 0 | BN99: ='Financial Model'!BN$38 -> 0 | BO99: ='Financial Model'!BO$38 -> 0 | BP99: ='Financial Model'!BP$38 -> 0 | BQ99: ='Financial Model'!BQ$38 -> 0 | BR99: ='Financial Model'!BR$38 -> 0 | BS99: ='Financial Model'!BS$38 -> 0 | BT99: ='Financial Model'!BT$38 -> 0 | BU99: ='Financial Model'!BU$38 -> 0 | BV99: ='Financial Model'!BV$38 -> 0 | BW99: ='Financial Model'!BW$38 -> 0 | BX99: ='Financial Model'!BX$38 -> 0 | BY99: ='Financial Model'!BY$38 -> 0 | BZ99: ='Financial Model'!BZ$38 -> 0 | CA99: ='Financial Model'!CA$38 -> 0 | CB99: ='Financial Model'!CB$38 -> 0 | CC99: ='Financial Model'!CC$38 -> 0 | CD99: ='Financial Model'!CD$38 -> 0 | CE99: ='Financial Model'!CE$38 -> 0 | CF99: ='Financial Model'!CF$38 -> 0 | CG99: ='Financial Model'!CG$38 -> 0 | CH99: ='Financial Model'!CH$38 -> 0 | CI99: ='Financial Model'!CI$38 -> 0
E100: Cash from operating revenue | G100: [$ 000s] | H100: =SUM(J100:CI100) -> 303760.3102 | K100: =(K98-$F$97)/K98*K99 -> 0 | L100: 0 | M100: =(M98-$F$97)/M98*M99 -> 4000 | N100: 4284.9 | O100: 4590.092002 | P100: 4917.021305 | Q100: 5267.236148 | R100: 5642.395042 | S100: 6044.274629 | T100: 6474.77809 | U100: 6935.944159 | V100: 7429.956782 | W100: 7959.155454 | X100: 8526.046301 | Y100: 9133.313949 | Z100: 9783.834235 | AA100: 10480.68783 | AB100: 11227.17482 | AC100: 12026.83035 | AD100: 12883.44134 | AE100: 13801.06445 | AF100: 14784.04526 | AG100: 15837.03888 | AH100: 16965.03198 | AI100: 18173.36638 | AJ100: 19467.7644 | AK100: 20854.35592 | AL100: 22339.70742 | AM100: 23930.85308 | AN100: 0 | AO100: 0 | AP100: 0 | AQ100: =(AQ98-$F$97)/AQ98*AQ99 -> 0 | AR100: 0 | AS100: 0 | AT100: 0 | AU100: 0 | AV100: 0 | AW100: 0 | AX100: 0 | AY100: 0 | AZ100: 0 | BA100: 0 | BB100: 0 | BC100: 0 | BD100: 0 | BE100: 0 | BF100: 0 | BG100: 0 | BH100: 0 | BI100: 0 | BJ100: 0 | BK100: 0 | BL100: 0 | BM100: 0 | BN100: 0 | BO100: 0 | BP100: 0 | BQ100: 0 | BR100: 0 | BS100: 0 | BT100: 0 | BU100: 0 | BV100: 0 | BW100: =(BW98-$F$97)/BW98*BW99 -> 0 | BX100: 0 | BY100: 0 | BZ100: 0 | CA100: 0 | CB100: 0 | CC100: 0 | CD100: 0 | CE100: 0 | CF100: 0 | CG100: 0 | CH100: 0 | CI100: 0
E101: Cash to be received in the next period | G101: $ 000s | H101: =SUM(J101:CI101) -> 0 | K101: =K99-K100 -> 0 | L101: 0 | M101: 0 | N101: 0 | O101: 0 | P101: 0 | Q101: 0 | R101: 0 | S101: 0 | T101: 0 | U101: 0 | V101: 0 | W101: 0 | X101: 0 | Y101: 0 | Z101: 0 | AA101: 0 | AB101: 0 | AC101: 0 | AD101: 0 | AE101: 0 | AF101: 0 | AG101: 0 | AH101: 0 | AI101: 0 | AJ101: 0 | AK101: 0 | AL101: 0 | AM101: 0 | AN101: 0 | AO101: 0 | AP101: 0 | AQ101: =AQ99-AQ100 -> 0 | AR101: 0 | AS101: 0 | AT101: 0 | AU101: 0 | AV101: 0 | AW101: 0 | AX101: 0 | AY101: 0 | AZ101: 0 | BA101: 0 | BB101: 0 | BC101: 0 | BD101: 0 | BE101: 0 | BF101: 0 | BG101: 0 | BH101: 0 | BI101: 0 | BJ101: 0 | BK101: 0 | BL101: 0 | BM101: 0 | BN101: 0 | BO101: 0 | BP101: 0 | BQ101: 0 | BR101: 0 | BS101: 0 | BT101: 0 | BU101: 0 | BV101: 0 | BW101: =BW99-BW100 -> 0 | BX101: 0 | BY101: 0 | BZ101: 0 | CA101: 0 | CB101: 0 | CC101: 0 | CD101: 0 | CE101: 0 | CF101: 0 | CG101: 0 | CH101: 0 | CI101: 0
E103: =E$108 -> Account receivable balance BEG | F103: =F$108 -> 0 | G103: $ 000s | H103: =H$108 -> 0 | I103: =I$108 -> 0 | K103: =K$108 -> 0 | L103: 0 | M103: 0 | N103: 0 | O103: 0 | P103: 0 | Q103: 0 | R103: 0 | S103: 0 | T103: 0 | U103: 0 | V103: 0 | W103: 0 | X103: 0 | Y103: 0 | Z103: 0 | AA103: 0 | AB103: 0 | AC103: 0 | AD103: 0 | AE103: 0 | AF103: 0 | AG103: 0 | AH103: 0 | AI103: 0 | AJ103: 0 | AK103: 0 | AL103: 0 | AM103: 0 | AN103: 0 | AO103: 0 | AP103: 0 | AQ103: =AQ$108 -> 0 | AR103: 0 | AS103: 0 | AT103: 0 | AU103: 0 | AV103: 0 | AW103: 0 | AX103: 0 | AY103: 0 | AZ103: 0 | BA103: 0 | BB103: 0 | BC103: 0 | BD103: 0 | BE103: 0 | BF103: 0 | BG103: 0 | BH103: 0 | BI103: 0 | BJ103: 0 | BK103: 0 | BL103: 0 | BM103: 0 | BN103: 0 | BO103: 0 | BP103: 0 | BQ103: 0 | BR103: 0 | BS103: 0 | BT103: 0 | BU103: 0 | BV103: 0 | BW103: =BW$108 -> 0 | BX103: 0 | BY103: 0 | BZ103: 0 | CA103: 0 | CB103: 0 | CC103: 0 | CD103: 0 | CE103: 0 | CF103: 0 | CG103: 0 | CH103: 0 | CI103: 0
E104: ='Financial Model'!E$38 -> Operating revenue | F104: ='Financial Model'!F$38 -> P&L | G104: [$ 000s] | H104: ='Financial Model'!H$38 -> 303760.3102 | I104: ='Financial Model'!I$38 -> 0 | J104: ='Financial Model'!J$38 -> 0 | K104: ='Financial Model'!K$38 -> 0 | L104: ='Financial Model'!L$38 -> 0 | M104: ='Financial Model'!M$38 -> 4000 | N104: ='Financial Model'!N$38 -> 4284.9 | O104: ='Financial Model'!O$38 -> 4590.092002 | P104: ='Financial Model'!P$38 -> 4917.021305 | Q104: ='Financial Model'!Q$38 -> 5267.236148 | R104: ='Financial Model'!R$38 -> 5642.395042 | S104: ='Financial Model'!S$38 -> 6044.274629 | T104: ='Financial Model'!T$38 -> 6474.77809 | U104: ='Financial Model'!U$38 -> 6935.944159 | V104: ='Financial Model'!V$38 -> 7429.956782 | W104: ='Financial Model'!W$38 -> 7959.155454 | X104: ='Financial Model'!X$38 -> 8526.046301 | Y104: ='Financial Model'!Y$38 -> 9133.313949 | Z104: ='Financial Model'!Z$38 -> 9783.834235 | AA104: ='Financial Model'!AA$38 -> 10480.68783 | AB104: ='Financial Model'!AB$38 -> 11227.17482 | AC104: ='Financial Model'!AC$38 -> 12026.83035 | AD104: ='Financial Model'!AD$38 -> 12883.44134 | AE104: ='Financial Model'!AE$38 -> 13801.06445 | AF104: ='Financial Model'!AF$38 -> 14784.04526 | AG104: ='Financial Model'!AG$38 -> 15837.03888 | AH104: ='Financial Model'!AH$38 -> 16965.03198 | AI104: ='Financial Model'!AI$38 -> 18173.36638 | AJ104: ='Financial Model'!AJ$38 -> 19467.7644 | AK104: ='Financial Model'!AK$38 -> 20854.35592 | AL104: ='Financial Model'!AL$38 -> 22339.70742 | AM104: ='Financial Model'!AM$38 -> 23930.85308 | AN104: ='Financial Model'!AN$38 -> 0 | AO104: ='Financial Model'!AO$38 -> 0 | AP104: ='Financial Model'!AP$38 -> 0 | AQ104: ='Financial Model'!AQ$38 -> 0 | AR104: ='Financial Model'!AR$38 -> 0 | AS104: ='Financial Model'!AS$38 -> 0 | AT104: ='Financial Model'!AT$38 -> 0 | AU104: ='Financial Model'!AU$38 -> 0 | AV104: ='Financial Model'!AV$38 -> 0 | AW104: ='Financial Model'!AW$38 -> 0 | AX104: ='Financial Model'!AX$38 -> 0 | AY104: ='Financial Model'!AY$38 -> 0 | AZ104: ='Financial Model'!AZ$38 -> 0 | BA104: ='Financial Model'!BA$38 -> 0 | BB104: ='Financial Model'!BB$38 -> 0 | BC104: ='Financial Model'!BC$38 -> 0 | BD104: ='Financial Model'!BD$38 -> 0 | BE104: ='Financial Model'!BE$38 -> 0 | BF104: ='Financial Model'!BF$38 -> 0 | BG104: ='Financial Model'!BG$38 -> 0 | BH104: ='Financial Model'!BH$38 -> 0 | BI104: ='Financial Model'!BI$38 -> 0 | BJ104: ='Financial Model'!BJ$38 -> 0 | BK104: ='Financial Model'!BK$38 -> 0 | BL104: ='Financial Model'!BL$38 -> 0 | BM104: ='Financial Model'!BM$38 -> 0 | BN104: ='Financial Model'!BN$38 -> 0 | BO104: ='Financial Model'!BO$38 -> 0 | BP104: ='Financial Model'!BP$38 -> 0 | BQ104: ='Financial Model'!BQ$38 -> 0 | BR104: ='Financial Model'!BR$38 -> 0 | BS104: ='Financial Model'!BS$38 -> 0 | BT104: ='Financial Model'!BT$38 -> 0 | BU104: ='Financial Model'!BU$38 -> 0 | BV104: ='Financial Model'!BV$38 -> 0 | BW104: ='Financial Model'!BW$38 -> 0 | BX104: ='Financial Model'!BX$38 -> 0 | BY104: ='Financial Model'!BY$38 -> 0 | BZ104: ='Financial Model'!BZ$38 -> 0 | CA104: ='Financial Model'!CA$38 -> 0 | CB104: ='Financial Model'!CB$38 -> 0 | CC104: ='Financial Model'!CC$38 -> 0 | CD104: ='Financial Model'!CD$38 -> 0 | CE104: ='Financial Model'!CE$38 -> 0 | CF104: ='Financial Model'!CF$38 -> 0 | CG104: ='Financial Model'!CG$38 -> 0 | CH104: ='Financial Model'!CH$38 -> 0 | CI104: ='Financial Model'!CI$38 -> 0
E105: =E$101 -> Cash to be received in the next period | F105: =F$101 -> 0 | G105: $ 000s | H105: =H$101 -> 0 | I105: =I$101 -> 0 | K105: =K$101 -> 0 | L105: 0 | M105: 0 | N105: 0 | O105: 0 | P105: 0 | Q105: 0 | R105: 0 | S105: 0 | T105: 0 | U105: 0 | V105: 0 | W105: 0 | X105: 0 | Y105: 0 | Z105: 0 | AA105: 0 | AB105: 0 | AC105: 0 | AD105: 0 | AE105: 0 | AF105: 0 | AG105: 0 | AH105: 0 | AI105: 0 | AJ105: 0 | AK105: 0 | AL105: 0 | AM105: 0 | AN105: 0 | AO105: 0 | AP105: 0 | AQ105: =AQ$101 -> 0 | AR105: 0 | AS105: 0 | AT105: 0 | AU105: 0 | AV105: 0 | AW105: 0 | AX105: 0 | AY105: 0 | AZ105: 0 | BA105: 0 | BB105: 0 | BC105: 0 | BD105: 0 | BE105: 0 | BF105: 0 | BG105: 0 | BH105: 0 | BI105: 0 | BJ105: 0 | BK105: 0 | BL105: 0 | BM105: 0 | BN105: 0 | BO105: 0 | BP105: 0 | BQ105: 0 | BR105: 0 | BS105: 0 | BT105: 0 | BU105: 0 | BV105: 0 | BW105: =BW$101 -> 0 | BX105: 0 | BY105: 0 | BZ105: 0 | CA105: 0 | CB105: 0 | CC105: 0 | CD105: 0 | CE105: 0 | CF105: 0 | CG105: 0 | CH105: 0 | CI105: 0
E106: Cash to be received from operating revenue and AR | G106: $ 000s | H106: =SUM(J106:CI106) -> 303760.3102 | K106: =K103+K104-K105 -> 0 | L106: 0 | M106: 4000 | N106: 4284.9 | O106: 4590.092002 | P106: 4917.021305 | Q106: 5267.236148 | R106: 5642.395042 | S106: 6044.274629 | T106: 6474.77809 | U106: 6935.944159 | V106: 7429.956782 | W106: 7959.155454 | X106: 8526.046301 | Y106: 9133.313949 | Z106: 9783.834235 | AA106: 10480.68783 | AB106: 11227.17482 | AC106: 12026.83035 | AD106: 12883.44134 | AE106: 13801.06445 | AF106: 14784.04526 | AG106: 15837.03888 | AH106: 16965.03198 | AI106: 18173.36638 | AJ106: 19467.7644 | AK106: 20854.35592 | AL106: 22339.70742 | AM106: 23930.85308 | AN106: 0 | AO106: 0 | AP106: 0 | AQ106: =AQ103+AQ104-AQ105 -> 0 | AR106: 0 | AS106: 0 | AT106: 0 | AU106: 0 | AV106: 0 | AW106: 0 | AX106: 0 | AY106: 0 | AZ106: 0 | BA106: 0 | BB106: 0 | BC106: 0 | BD106: 0 | BE106: 0 | BF106: 0 | BG106: 0 | BH106: 0 | BI106: 0 | BJ106: 0 | BK106: 0 | BL106: 0 | BM106: 0 | BN106: 0 | BO106: 0 | BP106: 0 | BQ106: 0 | BR106: 0 | BS106: 0 | BT106: 0 | BU106: 0 | BV106: 0 | BW106: =BW103+BW104-BW105 -> 0 | BX106: 0 | BY106: 0 | BZ106: 0 | CA106: 0 | CB106: 0 | CC106: 0 | CD106: 0 | CE106: 0 | CF106: 0 | CG106: 0 | CH106: 0 | CI106: 0
E108: Account receivable balance BEG | G108: $ 000s | K108: =J111 -> 0 | L108: =K111 -> 0 | M108: 0 | N108: 0 | O108: 0 | P108: 0 | Q108: 0 | R108: 0 | S108: 0 | T108: 0 | U108: 0 | V108: 0 | W108: 0 | X108: 0 | Y108: 0 | Z108: 0 | AA108: 0 | AB108: 0 | AC108: 0 | AD108: 0 | AE108: 0 | AF108: 0 | AG108: 0 | AH108: 0 | AI108: 0 | AJ108: 0 | AK108: 0 | AL108: 0 | AM108: 0 | AN108: 0 | AO108: 0 | AP108: 0 | AQ108: 0 | AR108: 0 | AS108: 0 | AT108: 0 | AU108: 0 | AV108: 0 | AW108: 0 | AX108: 0 | AY108: 0 | AZ108: 0 | BA108: 0 | BB108: 0 | BC108: 0 | BD108: 0 | BE108: 0 | BF108: 0 | BG108: 0 | BH108: 0 | BI108: 0 | BJ108: 0 | BK108: 0 | BL108: 0 | BM108: 0 | BN108: 0 | BO108: 0 | BP108: 0 | BQ108: 0 | BR108: 0 | BS108: 0 | BT108: 0 | BU108: 0 | BV108: 0 | BW108: 0 | BX108: =BW111 -> 0 | BY108: 0 | BZ108: 0 | CA108: 0 | CB108: 0 | CC108: 0 | CD108: 0 | CE108: 0 | CF108: 0 | CG108: 0 | CH108: 0 | CI108: 0
E109: ='Financial Model'!E$38 -> Operating revenue | F109: ='Financial Model'!F$38 -> P&L | G109: [$ 000s] | H109: ='Financial Model'!H$38 -> 303760.3102 | I109: ='Financial Model'!I$38 -> 0 | J109: ='Financial Model'!J$38 -> 0 | K109: ='Financial Model'!K$38 -> 0 | L109: ='Financial Model'!L$38 -> 0 | M109: ='Financial Model'!M$38 -> 4000 | N109: ='Financial Model'!N$38 -> 4284.9 | O109: ='Financial Model'!O$38 -> 4590.092002 | P109: ='Financial Model'!P$38 -> 4917.021305 | Q109: ='Financial Model'!Q$38 -> 5267.236148 | R109: ='Financial Model'!R$38 -> 5642.395042 | S109: ='Financial Model'!S$38 -> 6044.274629 | T109: ='Financial Model'!T$38 -> 6474.77809 | U109: ='Financial Model'!U$38 -> 6935.944159 | V109: ='Financial Model'!V$38 -> 7429.956782 | W109: ='Financial Model'!W$38 -> 7959.155454 | X109: ='Financial Model'!X$38 -> 8526.046301 | Y109: ='Financial Model'!Y$38 -> 9133.313949 | Z109: ='Financial Model'!Z$38 -> 9783.834235 | AA109: ='Financial Model'!AA$38 -> 10480.68783 | AB109: ='Financial Model'!AB$38 -> 11227.17482 | AC109: ='Financial Model'!AC$38 -> 12026.83035 | AD109: ='Financial Model'!AD$38 -> 12883.44134 | AE109: ='Financial Model'!AE$38 -> 13801.06445 | AF109: ='Financial Model'!AF$38 -> 14784.04526 | AG109: ='Financial Model'!AG$38 -> 15837.03888 | AH109: ='Financial Model'!AH$38 -> 16965.03198 | AI109: ='Financial Model'!AI$38 -> 18173.36638 | AJ109: ='Financial Model'!AJ$38 -> 19467.7644 | AK109: ='Financial Model'!AK$38 -> 20854.35592 | AL109: ='Financial Model'!AL$38 -> 22339.70742 | AM109: ='Financial Model'!AM$38 -> 23930.85308 | AN109: ='Financial Model'!AN$38 -> 0 | AO109: ='Financial Model'!AO$38 -> 0 | AP109: ='Financial Model'!AP$38 -> 0 | AQ109: ='Financial Model'!AQ$38 -> 0 | AR109: ='Financial Model'!AR$38 -> 0 | AS109: ='Financial Model'!AS$38 -> 0 | AT109: ='Financial Model'!AT$38 -> 0 | AU109: ='Financial Model'!AU$38 -> 0 | AV109: ='Financial Model'!AV$38 -> 0 | AW109: ='Financial Model'!AW$38 -> 0 | AX109: ='Financial Model'!AX$38 -> 0 | AY109: ='Financial Model'!AY$38 -> 0 | AZ109: ='Financial Model'!AZ$38 -> 0 | BA109: ='Financial Model'!BA$38 -> 0 | BB109: ='Financial Model'!BB$38 -> 0 | BC109: ='Financial Model'!BC$38 -> 0 | BD109: ='Financial Model'!BD$38 -> 0 | BE109: ='Financial Model'!BE$38 -> 0 | BF109: ='Financial Model'!BF$38 -> 0 | BG109: ='Financial Model'!BG$38 -> 0 | BH109: ='Financial Model'!BH$38 -> 0 | BI109: ='Financial Model'!BI$38 -> 0 | BJ109: ='Financial Model'!BJ$38 -> 0 | BK109: ='Financial Model'!BK$38 -> 0 | BL109: ='Financial Model'!BL$38 -> 0 | BM109: ='Financial Model'!BM$38 -> 0 | BN109: ='Financial Model'!BN$38 -> 0 | BO109: ='Financial Model'!BO$38 -> 0 | BP109: ='Financial Model'!BP$38 -> 0 | BQ109: ='Financial Model'!BQ$38 -> 0 | BR109: ='Financial Model'!BR$38 -> 0 | BS109: ='Financial Model'!BS$38 -> 0 | BT109: ='Financial Model'!BT$38 -> 0 | BU109: ='Financial Model'!BU$38 -> 0 | BV109: ='Financial Model'!BV$38 -> 0 | BW109: ='Financial Model'!BW$38 -> 0 | BX109: ='Financial Model'!BX$38 -> 0 | BY109: ='Financial Model'!BY$38 -> 0 | BZ109: ='Financial Model'!BZ$38 -> 0 | CA109: ='Financial Model'!CA$38 -> 0 | CB109: ='Financial Model'!CB$38 -> 0 | CC109: ='Financial Model'!CC$38 -> 0 | CD109: ='Financial Model'!CD$38 -> 0 | CE109: ='Financial Model'!CE$38 -> 0 | CF109: ='Financial Model'!CF$38 -> 0 | CG109: ='Financial Model'!CG$38 -> 0 | CH109: ='Financial Model'!CH$38 -> 0 | CI109: ='Financial Model'!CI$38 -> 0
E110: =E$106 -> Cash to be received from operating revenue and AR | F110: =F$106 -> 0 | G110: $ 000s | H110: =H$106 -> 303760.3102 | I110: =I$106 -> 0 | K110: =K$106 -> 0 | L110: 0 | M110: 4000 | N110: 4284.9 | O110: 4590.092002 | P110: 4917.021305 | Q110: 5267.236148 | R110: 5642.395042 | S110: 6044.274629 | T110: 6474.77809 | U110: 6935.944159 | V110: 7429.956782 | W110: 7959.155454 | X110: 8526.046301 | Y110: 9133.313949 | Z110: 9783.834235 | AA110: 10480.68783 | AB110: 11227.17482 | AC110: 12026.83035 | AD110: 12883.44134 | AE110: 13801.06445 | AF110: 14784.04526 | AG110: 15837.03888 | AH110: 16965.03198 | AI110: 18173.36638 | AJ110: 19467.7644 | AK110: 20854.35592 | AL110: 22339.70742 | AM110: 23930.85308 | AN110: 0 | AO110: 0 | AP110: 0 | AQ110: =AQ$106 -> 0 | AR110: 0 | AS110: 0 | AT110: 0 | AU110: 0 | AV110: 0 | AW110: 0 | AX110: 0 | AY110: 0 | AZ110: 0 | BA110: 0 | BB110: 0 | BC110: 0 | BD110: 0 | BE110: 0 | BF110: 0 | BG110: 0 | BH110: 0 | BI110: 0 | BJ110: 0 | BK110: 0 | BL110: 0 | BM110: 0 | BN110: 0 | BO110: 0 | BP110: 0 | BQ110: 0 | BR110: 0 | BS110: 0 | BT110: 0 | BU110: 0 | BV110: 0 | BW110: =BW$106 -> 0 | BX110: 0 | BY110: 0 | BZ110: 0 | CA110: 0 | CB110: 0 | CC110: 0 | CD110: 0 | CE110: 0 | CF110: 0 | CG110: 0 | CH110: 0 | CI110: 0
E111: Account receivable balance | G111: $ 000s | K111: =K108+K109-K110 -> 0 | L111: 0 | M111: 0 | N111: 0 | O111: 0 | P111: 0 | Q111: 0 | R111: 0 | S111: 0 | T111: 0 | U111: 0 | V111: 0 | W111: 0 | X111: 0 | Y111: 0 | Z111: 0 | AA111: 0 | AB111: 0 | AC111: 0 | AD111: 0 | AE111: 0 | AF111: 0 | AG111: 0 | AH111: 0 | AI111: 0 | AJ111: 0 | AK111: 0 | AL111: 0 | AM111: 0 | AN111: 0 | AO111: 0 | AP111: 0 | AQ111: =AQ108+AQ109-AQ110 -> 0 | AR111: 0 | AS111: 0 | AT111: 0 | AU111: 0 | AV111: 0 | AW111: 0 | AX111: 0 | AY111: 0 | AZ111: 0 | BA111: 0 | BB111: 0 | BC111: 0 | BD111: 0 | BE111: 0 | BF111: 0 | BG111: 0 | BH111: 0 | BI111: 0 | BJ111: 0 | BK111: 0 | BL111: 0 | BM111: 0 | BN111: 0 | BO111: 0 | BP111: 0 | BQ111: 0 | BR111: 0 | BS111: 0 | BT111: 0 | BU111: 0 | BV111: 0 | BW111: =BW108+BW109-BW110 -> 0 | BX111: 0 | BY111: 0 | BZ111: 0 | CA111: 0 | CB111: 0 | CC111: 0 | CD111: 0 | CE111: 0 | CF111: 0 | CG111: 0 | CH111: 0 | CI111: 0
B113: Accounts Payable
E115: Accounts payable days | F115: =Inputs!G52 -> 30 | G115: Days
E116: =Timing!E$23 -> Days in the period | F116: =Timing!F$23 -> 0 | G116: Days | H116: =Timing!H$23 -> 0 | I116: =Timing!I$23 -> 0 | J116: =Timing!J$23 -> 365 | K116: =Timing!K$23 -> 365 | L116: =Timing!L$23 -> 366 | M116: =Timing!M$23 -> 365 | N116: =Timing!N$23 -> 365 | O116: =Timing!O$23 -> 365 | P116: =Timing!P$23 -> 366 | Q116: =Timing!Q$23 -> 365 | R116: =Timing!R$23 -> 365 | S116: =Timing!S$23 -> 365 | T116: =Timing!T$23 -> 366 | U116: =Timing!U$23 -> 365 | V116: =Timing!V$23 -> 365 | W116: =Timing!W$23 -> 365 | X116: =Timing!X$23 -> 366 | Y116: =Timing!Y$23 -> 365 | Z116: =Timing!Z$23 -> 365 | AA116: =Timing!AA$23 -> 365 | AB116: =Timing!AB$23 -> 366 | AC116: =Timing!AC$23 -> 365 | AD116: =Timing!AD$23 -> 365 | AE116: =Timing!AE$23 -> 365 | AF116: =Timing!AF$23 -> 366 | AG116: =Timing!AG$23 -> 365 | AH116: =Timing!AH$23 -> 365 | AI116: =Timing!AI$23 -> 365 | AJ116: =Timing!AJ$23 -> 366 | AK116: =Timing!AK$23 -> 365 | AL116: =Timing!AL$23 -> 365 | AM116: =Timing!AM$23 -> 365 | AN116: =Timing!AN$23 -> 366 | AO116: =Timing!AO$23 -> 365 | AP116: =Timing!AP$23 -> 365 | AQ116: =Timing!AQ$23 -> 365 | AR116: =Timing!AR$23 -> 366 | AS116: =Timing!AS$23 -> 365 | AT116: =Timing!AT$23 -> 365 | AU116: =Timing!AU$23 -> 365 | AV116: =Timing!AV$23 -> 366 | AW116: =Timing!AW$23 -> 365 | AX116: =Timing!AX$23 -> 365 | AY116: =Timing!AY$23 -> 365 | AZ116: =Timing!AZ$23 -> 366 | BA116: =Timing!BA$23 -> 365 | BB116: =Timing!BB$23 -> 365 | BC116: =Timing!BC$23 -> 365 | BD116: =Timing!BD$23 -> 366 | BE116: =Timing!BE$23 -> 365 | BF116: =Timing!BF$23 -> 365 | BG116: =Timing!BG$23 -> 365 | BH116: =Timing!BH$23 -> 366 | BI116: =Timing!BI$23 -> 365 | BJ116: =Timing!BJ$23 -> 365 | BK116: =Timing!BK$23 -> 365 | BL116: =Timing!BL$23 -> 366 | BM116: =Timing!BM$23 -> 365 | BN116: =Timing!BN$23 -> 365 | BO116: =Timing!BO$23 -> 365 | BP116: =Timing!BP$23 -> 366 | BQ116: =Timing!BQ$23 -> 365 | BR116: =Timing!BR$23 -> 365 | BS116: =Timing!BS$23 -> 365 | BT116: =Timing!BT$23 -> 366 | BU116: =Timing!BU$23 -> 365 | BV116: =Timing!BV$23 -> 365 | BW116: =Timing!BW$23 -> 365 | BX116: =Timing!BX$23 -> 366 | BY116: =Timing!BY$23 -> 365 | BZ116: =Timing!BZ$23 -> 365 | CA116: =Timing!CA$23 -> 365 | CB116: =Timing!CB$23 -> 366 | CC116: =Timing!CC$23 -> 365 | CD116: =Timing!CD$23 -> 365 | CE116: =Timing!CE$23 -> 365 | CF116: =Timing!CF$23 -> 366 | CG116: =Timing!CG$23 -> 365 | CH116: =Timing!CH$23 -> 365 | CI116: =Timing!CI$23 -> 365
E117: ='Financial Model'!E$73 -> Operating cost | F117: ='Financial Model'!F$73 -> P&L | G117: [$ 000s] | H117: ='Financial Model'!H$73 -> 35344.32383 | I117: ='Financial Model'!I$73 -> 0 | J117: ='Financial Model'!J$73 -> 0 | K117: ='Financial Model'!K$73 -> 0 | L117: ='Financial Model'!L$73 -> 0 | M117: ='Financial Model'!M$73 -> 1000 | N117: ='Financial Model'!N$73 -> 1020 | O117: ='Financial Model'!O$73 -> 1040.4 | P117: ='Financial Model'!P$73 -> 1061.208 | Q117: ='Financial Model'!Q$73 -> 1082.43216 | R117: ='Financial Model'!R$73 -> 1104.080803 | S117: ='Financial Model'!S$73 -> 1126.162419 | T117: ='Financial Model'!T$73 -> 1148.685668 | U117: ='Financial Model'!U$73 -> 1171.659381 | V117: ='Financial Model'!V$73 -> 1195.092569 | W117: ='Financial Model'!W$73 -> 1218.99442 | X117: ='Financial Model'!X$73 -> 1243.374308 | Y117: ='Financial Model'!Y$73 -> 1268.241795 | Z117: ='Financial Model'!Z$73 -> 1293.60663 | AA117: ='Financial Model'!AA$73 -> 1319.478763 | AB117: ='Financial Model'!AB$73 -> 1345.868338 | AC117: ='Financial Model'!AC$73 -> 1372.785705 | AD117: ='Financial Model'!AD$73 -> 1400.241419 | AE117: ='Financial Model'!AE$73 -> 1428.246248 | AF117: ='Financial Model'!AF$73 -> 1456.811173 | AG117: ='Financial Model'!AG$73 -> 1485.947396 | AH117: ='Financial Model'!AH$73 -> 1515.666344 | AI117: ='Financial Model'!AI$73 -> 1545.979671 | AJ117: ='Financial Model'!AJ$73 -> 1576.899264 | AK117: ='Financial Model'!AK$73 -> 1608.437249 | AL117: ='Financial Model'!AL$73 -> 1640.605994 | AM117: ='Financial Model'!AM$73 -> 1673.418114 | AN117: ='Financial Model'!AN$73 -> 0 | AO117: ='Financial Model'!AO$73 -> 0 | AP117: ='Financial Model'!AP$73 -> 0 | AQ117: ='Financial Model'!AQ$73 -> 0 | AR117: ='Financial Model'!AR$73 -> 0 | AS117: ='Financial Model'!AS$73 -> 0 | AT117: ='Financial Model'!AT$73 -> 0 | AU117: ='Financial Model'!AU$73 -> 0 | AV117: ='Financial Model'!AV$73 -> 0 | AW117: ='Financial Model'!AW$73 -> 0 | AX117: ='Financial Model'!AX$73 -> 0 | AY117: ='Financial Model'!AY$73 -> 0 | AZ117: ='Financial Model'!AZ$73 -> 0 | BA117: ='Financial Model'!BA$73 -> 0 | BB117: ='Financial Model'!BB$73 -> 0 | BC117: ='Financial Model'!BC$73 -> 0 | BD117: ='Financial Model'!BD$73 -> 0 | BE117: ='Financial Model'!BE$73 -> 0 | BF117: ='Financial Model'!BF$73 -> 0 | BG117: ='Financial Model'!BG$73 -> 0 | BH117: ='Financial Model'!BH$73 -> 0 | BI117: ='Financial Model'!BI$73 -> 0 | BJ117: ='Financial Model'!BJ$73 -> 0 | BK117: ='Financial Model'!BK$73 -> 0 | BL117: ='Financial Model'!BL$73 -> 0 | BM117: ='Financial Model'!BM$73 -> 0 | BN117: ='Financial Model'!BN$73 -> 0 | BO117: ='Financial Model'!BO$73 -> 0 | BP117: ='Financial Model'!BP$73 -> 0 | BQ117: ='Financial Model'!BQ$73 -> 0 | BR117: ='Financial Model'!BR$73 -> 0 | BS117: ='Financial Model'!BS$73 -> 0 | BT117: ='Financial Model'!BT$73 -> 0 | BU117: ='Financial Model'!BU$73 -> 0 | BV117: ='Financial Model'!BV$73 -> 0 | BW117: ='Financial Model'!BW$73 -> 0 | BX117: ='Financial Model'!BX$73 -> 0 | BY117: ='Financial Model'!BY$73 -> 0 | BZ117: ='Financial Model'!BZ$73 -> 0 | CA117: ='Financial Model'!CA$73 -> 0 | CB117: ='Financial Model'!CB$73 -> 0 | CC117: ='Financial Model'!CC$73 -> 0 | CD117: ='Financial Model'!CD$73 -> 0 | CE117: ='Financial Model'!CE$73 -> 0 | CF117: ='Financial Model'!CF$73 -> 0 | CG117: ='Financial Model'!CG$73 -> 0 | CH117: ='Financial Model'!CH$73 -> 0 | CI117: ='Financial Model'!CI$73 -> 0
E118: Cash to operating expenses | G118: $ 000s | H118: =SUM(J118:CI118) -> 32441.06992 | K118: =(K116-$F$115)/K116*K117 -> 0 | L118: 0 | M118: 917.8082192 | N118: 936.1643836 | O118: 954.8876712 | P118: 974.2237377 | Q118: 993.4651332 | R118: 1013.334436 | S118: 1033.601125 | T118: 1054.531105 | U118: 1075.35861 | V118: 1096.865782 | W118: 1118.803098 | X118: 1141.458381 | Y118: 1164.002743 | Z118: 1187.282798 | AA118: 1211.028454 | AB118: 1235.551261 | AC118: 1259.954003 | AD118: 1285.153083 | AE118: 1310.856145 | AF118: 1337.400421 | AG118: 1363.814733 | AH118: 1391.091028 | AI118: 1418.912849 | AJ118: 1447.645226 | AK118: 1476.236928 | AL118: 1505.761666 | AM118: 1535.876899 | AN118: 0 | AO118: 0 | AP118: 0 | AQ118: =(AQ116-$F$115)/AQ116*AQ117 -> 0 | AR118: 0 | AS118: 0 | AT118: 0 | AU118: 0 | AV118: 0 | AW118: 0 | AX118: 0 | AY118: 0 | AZ118: 0 | BA118: 0 | BB118: 0 | BC118: 0 | BD118: 0 | BE118: 0 | BF118: 0 | BG118: 0 | BH118: 0 | BI118: 0 | BJ118: 0 | BK118: 0 | BL118: 0 | BM118: 0 | BN118: 0 | BO118: 0 | BP118: 0 | BQ118: 0 | BR118: 0 | BS118: 0 | BT118: 0 | BU118: 0 | BV118: 0 | BW118: =(BW116-$F$115)/BW116*BW117 -> 0 | BX118: 0 | BY118: 0 | BZ118: 0 | CA118: 0 | CB118: 0 | CC118: 0 | CD118: 0 | CE118: 0 | CF118: 0 | CG118: 0 | CH118: 0 | CI118: 0
E119: Cash to operating expenses in the next period | G119: $ 000s | H119: =SUM(J119:CI119) -> 2903.253913 | K119: =K117-K118 -> 0 | L119: 0 | M119: 82.19178082 | N119: 83.83561644 | O119: 85.51232877 | P119: 86.9842623 | Q119: 88.96702685 | R119: 90.74636739 | S119: 92.56129473 | T119: 94.15456292 | U119: 96.30077104 | V119: 98.22678646 | W119: 100.1913222 | X119: 101.9159269 | Y119: 104.2390516 | Z119: 106.3238326 | AA119: 108.4503093 | AB119: 110.3170769 | AC119: 112.8317018 | AD119: 115.0883358 | AE119: 117.3901025 | AF119: 119.4107518 | AG119: 122.1326627 | AH119: 124.5753159 | AI119: 127.0668223 | AJ119: 129.254038 | AK119: 132.2003219 | AL119: 134.8443283 | AM119: 137.5412149 | AN119: 0 | AO119: 0 | AP119: 0 | AQ119: =AQ117-AQ118 -> 0 | AR119: 0 | AS119: 0 | AT119: 0 | AU119: 0 | AV119: 0 | AW119: 0 | AX119: 0 | AY119: 0 | AZ119: 0 | BA119: 0 | BB119: 0 | BC119: 0 | BD119: 0 | BE119: 0 | BF119: 0 | BG119: 0 | BH119: 0 | BI119: 0 | BJ119: 0 | BK119: 0 | BL119: 0 | BM119: 0 | BN119: 0 | BO119: 0 | BP119: 0 | BQ119: 0 | BR119: 0 | BS119: 0 | BT119: 0 | BU119: 0 | BV119: 0 | BW119: =BW117-BW118 -> 0 | BX119: 0 | BY119: 0 | BZ119: 0 | CA119: 0 | CB119: 0 | CC119: 0 | CD119: 0 | CE119: 0 | CF119: 0 | CG119: 0 | CH119: 0 | CI119: 0
E121: =E$126 -> Accounts payable balance BEG | F121: =F$126 -> 0 | G121: $ 000s | H121: =H$126 -> 0 | I121: =I$126 -> 0 | K121: =K$126 -> 0 | L121: 0 | M121: 0 | N121: 82.19178082 | O121: 83.83561644 | P121: 85.51232877 | Q121: 86.9842623 | R121: 88.96702685 | S121: 90.74636739 | T121: 92.56129473 | U121: 94.15456292 | V121: 96.30077104 | W121: 98.22678646 | X121: 100.1913222 | Y121: 101.9159269 | Z121: 104.2390516 | AA121: 106.3238326 | AB121: 108.4503093 | AC121: 110.3170769 | AD121: 112.8317018 | AE121: 115.0883358 | AF121: 117.3901025 | AG121: 119.4107518 | AH121: 122.1326627 | AI121: 124.5753159 | AJ121: 127.0668223 | AK121: 129.254038 | AL121: 132.2003219 | AM121: 134.8443283 | AN121: 137.5412149 | AO121: 0 | AP121: 0 | AQ121: =AQ$126 -> 0 | AR121: 0 | AS121: 0 | AT121: 0 | AU121: 0 | AV121: 0 | AW121: 0 | AX121: 0 | AY121: 0 | AZ121: 0 | BA121: 0 | BB121: 0 | BC121: 0 | BD121: 0 | BE121: 0 | BF121: 0 | BG121: 0 | BH121: 0 | BI121: 0 | BJ121: 0 | BK121: 0 | BL121: 0 | BM121: 0 | BN121: 0 | BO121: 0 | BP121: 0 | BQ121: 0 | BR121: 0 | BS121: 0 | BT121: 0 | BU121: 0 | BV121: 0 | BW121: =BW$126 -> 0 | BX121: 0 | BY121: 0 | BZ121: 0 | CA121: 0 | CB121: 0 | CC121: 0 | CD121: 0 | CE121: 0 | CF121: 0 | CG121: 0 | CH121: 0 | CI121: 0
E122: ='Financial Model'!E$73 -> Operating cost | F122: ='Financial Model'!F$73 -> P&L | G122: [$ 000s] | H122: ='Financial Model'!H$73 -> 35344.32383 | I122: ='Financial Model'!I$73 -> 0 | J122: ='Financial Model'!J$73 -> 0 | K122: ='Financial Model'!K$73 -> 0 | L122: ='Financial Model'!L$73 -> 0 | M122: ='Financial Model'!M$73 -> 1000 | N122: ='Financial Model'!N$73 -> 1020 | O122: ='Financial Model'!O$73 -> 1040.4 | P122: ='Financial Model'!P$73 -> 1061.208 | Q122: ='Financial Model'!Q$73 -> 1082.43216 | R122: ='Financial Model'!R$73 -> 1104.080803 | S122: ='Financial Model'!S$73 -> 1126.162419 | T122: ='Financial Model'!T$73 -> 1148.685668 | U122: ='Financial Model'!U$73 -> 1171.659381 | V122: ='Financial Model'!V$73 -> 1195.092569 | W122: ='Financial Model'!W$73 -> 1218.99442 | X122: ='Financial Model'!X$73 -> 1243.374308 | Y122: ='Financial Model'!Y$73 -> 1268.241795 | Z122: ='Financial Model'!Z$73 -> 1293.60663 | AA122: ='Financial Model'!AA$73 -> 1319.478763 | AB122: ='Financial Model'!AB$73 -> 1345.868338 | AC122: ='Financial Model'!AC$73 -> 1372.785705 | AD122: ='Financial Model'!AD$73 -> 1400.241419 | AE122: ='Financial Model'!AE$73 -> 1428.246248 | AF122: ='Financial Model'!AF$73 -> 1456.811173 | AG122: ='Financial Model'!AG$73 -> 1485.947396 | AH122: ='Financial Model'!AH$73 -> 1515.666344 | AI122: ='Financial Model'!AI$73 -> 1545.979671 | AJ122: ='Financial Model'!AJ$73 -> 1576.899264 | AK122: ='Financial Model'!AK$73 -> 1608.437249 | AL122: ='Financial Model'!AL$73 -> 1640.605994 | AM122: ='Financial Model'!AM$73 -> 1673.418114 | AN122: ='Financial Model'!AN$73 -> 0 | AO122: ='Financial Model'!AO$73 -> 0 | AP122: ='Financial Model'!AP$73 -> 0 | AQ122: ='Financial Model'!AQ$73 -> 0 | AR122: ='Financial Model'!AR$73 -> 0 | AS122: ='Financial Model'!AS$73 -> 0 | AT122: ='Financial Model'!AT$73 -> 0 | AU122: ='Financial Model'!AU$73 -> 0 | AV122: ='Financial Model'!AV$73 -> 0 | AW122: ='Financial Model'!AW$73 -> 0 | AX122: ='Financial Model'!AX$73 -> 0 | AY122: ='Financial Model'!AY$73 -> 0 | AZ122: ='Financial Model'!AZ$73 -> 0 | BA122: ='Financial Model'!BA$73 -> 0 | BB122: ='Financial Model'!BB$73 -> 0 | BC122: ='Financial Model'!BC$73 -> 0 | BD122: ='Financial Model'!BD$73 -> 0 | BE122: ='Financial Model'!BE$73 -> 0 | BF122: ='Financial Model'!BF$73 -> 0 | BG122: ='Financial Model'!BG$73 -> 0 | BH122: ='Financial Model'!BH$73 -> 0 | BI122: ='Financial Model'!BI$73 -> 0 | BJ122: ='Financial Model'!BJ$73 -> 0 | BK122: ='Financial Model'!BK$73 -> 0 | BL122: ='Financial Model'!BL$73 -> 0 | BM122: ='Financial Model'!BM$73 -> 0 | BN122: ='Financial Model'!BN$73 -> 0 | BO122: ='Financial Model'!BO$73 -> 0 | BP122: ='Financial Model'!BP$73 -> 0 | BQ122: ='Financial Model'!BQ$73 -> 0 | BR122: ='Financial Model'!BR$73 -> 0 | BS122: ='Financial Model'!BS$73 -> 0 | BT122: ='Financial Model'!BT$73 -> 0 | BU122: ='Financial Model'!BU$73 -> 0 | BV122: ='Financial Model'!BV$73 -> 0 | BW122: ='Financial Model'!BW$73 -> 0 | BX122: ='Financial Model'!BX$73 -> 0 | BY122: ='Financial Model'!BY$73 -> 0 | BZ122: ='Financial Model'!BZ$73 -> 0 | CA122: ='Financial Model'!CA$73 -> 0 | CB122: ='Financial Model'!CB$73 -> 0 | CC122: ='Financial Model'!CC$73 -> 0 | CD122: ='Financial Model'!CD$73 -> 0 | CE122: ='Financial Model'!CE$73 -> 0 | CF122: ='Financial Model'!CF$73 -> 0 | CG122: ='Financial Model'!CG$73 -> 0 | CH122: ='Financial Model'!CH$73 -> 0 | CI122: ='Financial Model'!CI$73 -> 0
E123: =E$119 -> Cash to operating expenses in the next period | F123: =F$119 -> 0 | G123: $ 000s | H123: =H$119 -> 2903.253913 | I123: =I$119 -> 0 | K123: =K$119 -> 0 | L123: 0 | M123: 82.19178082 | N123: 83.83561644 | O123: 85.51232877 | P123: 86.9842623 | Q123: 88.96702685 | R123: 90.74636739 | S123: 92.56129473 | T123: 94.15456292 | U123: 96.30077104 | V123: 98.22678646 | W123: 100.1913222 | X123: 101.9159269 | Y123: 104.2390516 | Z123: 106.3238326 | AA123: 108.4503093 | AB123: 110.3170769 | AC123: 112.8317018 | AD123: 115.0883358 | AE123: 117.3901025 | AF123: 119.4107518 | AG123: 122.1326627 | AH123: 124.5753159 | AI123: 127.0668223 | AJ123: 129.254038 | AK123: 132.2003219 | AL123: 134.8443283 | AM123: 137.5412149 | AN123: 0 | AO123: 0 | AP123: 0 | AQ123: =AQ$119 -> 0 | AR123: 0 | AS123: 0 | AT123: 0 | AU123: 0 | AV123: 0 | AW123: 0 | AX123: 0 | AY123: 0 | AZ123: 0 | BA123: 0 | BB123: 0 | BC123: 0 | BD123: 0 | BE123: 0 | BF123: 0 | BG123: 0 | BH123: 0 | BI123: 0 | BJ123: 0 | BK123: 0 | BL123: 0 | BM123: 0 | BN123: 0 | BO123: 0 | BP123: 0 | BQ123: 0 | BR123: 0 | BS123: 0 | BT123: 0 | BU123: 0 | BV123: 0 | BW123: =BW$119 -> 0 | BX123: 0 | BY123: 0 | BZ123: 0 | CA123: 0 | CB123: 0 | CC123: 0 | CD123: 0 | CE123: 0 | CF123: 0 | CG123: 0 | CH123: 0 | CI123: 0
E124: Cash to operating expenses and AP | G124: $ 000s | H124: =SUM(J124:CI124) -> 35344.32383 | K124: =K121+K122-K123 -> 0 | L124: 0 | M124: 917.8082192 | N124: 1018.356164 | O124: 1038.723288 | P124: 1059.736066 | Q124: 1080.449395 | R124: 1102.301463 | S124: 1124.347492 | T124: 1147.092399 | U124: 1169.513173 | V124: 1193.166553 | W124: 1217.029884 | X124: 1241.649704 | Y124: 1265.91867 | Z124: 1291.521849 | AA124: 1317.352286 | AB124: 1344.001571 | AC124: 1370.27108 | AD124: 1397.984785 | AE124: 1425.944481 | AF124: 1454.790523 | AG124: 1483.225485 | AH124: 1513.223691 | AI124: 1543.488164 | AJ124: 1574.712048 | AK124: 1605.490966 | AL124: 1637.961988 | AM124: 1670.721228 | AN124: 137.5412149 | AO124: 0 | AP124: 0 | AQ124: =AQ121+AQ122-AQ123 -> 0 | AR124: 0 | AS124: 0 | AT124: 0 | AU124: 0 | AV124: 0 | AW124: 0 | AX124: 0 | AY124: 0 | AZ124: 0 | BA124: 0 | BB124: 0 | BC124: 0 | BD124: 0 | BE124: 0 | BF124: 0 | BG124: 0 | BH124: 0 | BI124: 0 | BJ124: 0 | BK124: 0 | BL124: 0 | BM124: 0 | BN124: 0 | BO124: 0 | BP124: 0 | BQ124: 0 | BR124: 0 | BS124: 0 | BT124: 0 | BU124: 0 | BV124: 0 | BW124: =BW121+BW122-BW123 -> 0 | BX124: 0 | BY124: 0 | BZ124: 0 | CA124: 0 | CB124: 0 | CC124: 0 | CD124: 0 | CE124: 0 | CF124: 0 | CG124: 0 | CH124: 0 | CI124: 0
E126: Accounts payable balance BEG | G126: $ 000s | K126: =J129 -> 0 | L126: =K129 -> 0 | M126: 0 | N126: 82.19178082 | O126: 83.83561644 | P126: 85.51232877 | Q126: 86.9842623 | R126: 88.96702685 | S126: 90.74636739 | T126: 92.56129473 | U126: 94.15456292 | V126: 96.30077104 | W126: 98.22678646 | X126: 100.1913222 | Y126: 101.9159269 | Z126: 104.2390516 | AA126: 106.3238326 | AB126: 108.4503093 | AC126: 110.3170769 | AD126: 112.8317018 | AE126: 115.0883358 | AF126: 117.3901025 | AG126: 119.4107518 | AH126: 122.1326627 | AI126: 124.5753159 | AJ126: 127.0668223 | AK126: 129.254038 | AL126: 132.2003219 | AM126: 134.8443283 | AN126: 137.5412149 | AO126: 0 | AP126: 0 | AQ126: 0 | AR126: 0 | AS126: 0 | AT126: 0 | AU126: 0 | AV126: 0 | AW126: 0 | AX126: 0 | AY126: 0 | AZ126: 0 | BA126: 0 | BB126: 0 | BC126: 0 | BD126: 0 | BE126: 0 | BF126: 0 | BG126: 0 | BH126: 0 | BI126: 0 | BJ126: 0 | BK126: 0 | BL126: 0 | BM126: 0 | BN126: 0 | BO126: 0 | BP126: 0 | BQ126: 0 | BR126: 0 | BS126: 0 | BT126: 0 | BU126: 0 | BV126: 0 | BW126: 0 | BX126: =BW129 -> 0 | BY126: 0 | BZ126: 0 | CA126: 0 | CB126: 0 | CC126: 0 | CD126: 0 | CE126: 0 | CF126: 0 | CG126: 0 | CH126: 0 | CI126: 0
E127: ='Financial Model'!E$73 -> Operating cost | F127: ='Financial Model'!F$73 -> P&L | G127: [$ 000s] | H127: ='Financial Model'!H$73 -> 35344.32383 | I127: ='Financial Model'!I$73 -> 0 | J127: ='Financial Model'!J$73 -> 0 | K127: ='Financial Model'!K$73 -> 0 | L127: ='Financial Model'!L$73 -> 0 | M127: ='Financial Model'!M$73 -> 1000 | N127: ='Financial Model'!N$73 -> 1020 | O127: ='Financial Model'!O$73 -> 1040.4 | P127: ='Financial Model'!P$73 -> 1061.208 | Q127: ='Financial Model'!Q$73 -> 1082.43216 | R127: ='Financial Model'!R$73 -> 1104.080803 | S127: ='Financial Model'!S$73 -> 1126.162419 | T127: ='Financial Model'!T$73 -> 1148.685668 | U127: ='Financial Model'!U$73 -> 1171.659381 | V127: ='Financial Model'!V$73 -> 1195.092569 | W127: ='Financial Model'!W$73 -> 1218.99442 | X127: ='Financial Model'!X$73 -> 1243.374308 | Y127: ='Financial Model'!Y$73 -> 1268.241795 | Z127: ='Financial Model'!Z$73 -> 1293.60663 | AA127: ='Financial Model'!AA$73 -> 1319.478763 | AB127: ='Financial Model'!AB$73 -> 1345.868338 | AC127: ='Financial Model'!AC$73 -> 1372.785705 | AD127: ='Financial Model'!AD$73 -> 1400.241419 | AE127: ='Financial Model'!AE$73 -> 1428.246248 | AF127: ='Financial Model'!AF$73 -> 1456.811173 | AG127: ='Financial Model'!AG$73 -> 1485.947396 | AH127: ='Financial Model'!AH$73 -> 1515.666344 | AI127: ='Financial Model'!AI$73 -> 1545.979671 | AJ127: ='Financial Model'!AJ$73 -> 1576.899264 | AK127: ='Financial Model'!AK$73 -> 1608.437249 | AL127: ='Financial Model'!AL$73 -> 1640.605994 | AM127: ='Financial Model'!AM$73 -> 1673.418114 | AN127: ='Financial Model'!AN$73 -> 0 | AO127: ='Financial Model'!AO$73 -> 0 | AP127: ='Financial Model'!AP$73 -> 0 | AQ127: ='Financial Model'!AQ$73 -> 0 | AR127: ='Financial Model'!AR$73 -> 0 | AS127: ='Financial Model'!AS$73 -> 0 | AT127: ='Financial Model'!AT$73 -> 0 | AU127: ='Financial Model'!AU$73 -> 0 | AV127: ='Financial Model'!AV$73 -> 0 | AW127: ='Financial Model'!AW$73 -> 0 | AX127: ='Financial Model'!AX$73 -> 0 | AY127: ='Financial Model'!AY$73 -> 0 | AZ127: ='Financial Model'!AZ$73 -> 0 | BA127: ='Financial Model'!BA$73 -> 0 | BB127: ='Financial Model'!BB$73 -> 0 | BC127: ='Financial Model'!BC$73 -> 0 | BD127: ='Financial Model'!BD$73 -> 0 | BE127: ='Financial Model'!BE$73 -> 0 | BF127: ='Financial Model'!BF$73 -> 0 | BG127: ='Financial Model'!BG$73 -> 0 | BH127: ='Financial Model'!BH$73 -> 0 | BI127: ='Financial Model'!BI$73 -> 0 | BJ127: ='Financial Model'!BJ$73 -> 0 | BK127: ='Financial Model'!BK$73 -> 0 | BL127: ='Financial Model'!BL$73 -> 0 | BM127: ='Financial Model'!BM$73 -> 0 | BN127: ='Financial Model'!BN$73 -> 0 | BO127: ='Financial Model'!BO$73 -> 0 | BP127: ='Financial Model'!BP$73 -> 0 | BQ127: ='Financial Model'!BQ$73 -> 0 | BR127: ='Financial Model'!BR$73 -> 0 | BS127: ='Financial Model'!BS$73 -> 0 | BT127: ='Financial Model'!BT$73 -> 0 | BU127: ='Financial Model'!BU$73 -> 0 | BV127: ='Financial Model'!BV$73 -> 0 | BW127: ='Financial Model'!BW$73 -> 0 | BX127: ='Financial Model'!BX$73 -> 0 | BY127: ='Financial Model'!BY$73 -> 0 | BZ127: ='Financial Model'!BZ$73 -> 0 | CA127: ='Financial Model'!CA$73 -> 0 | CB127: ='Financial Model'!CB$73 -> 0 | CC127: ='Financial Model'!CC$73 -> 0 | CD127: ='Financial Model'!CD$73 -> 0 | CE127: ='Financial Model'!CE$73 -> 0 | CF127: ='Financial Model'!CF$73 -> 0 | CG127: ='Financial Model'!CG$73 -> 0 | CH127: ='Financial Model'!CH$73 -> 0 | CI127: ='Financial Model'!CI$73 -> 0
E128: =E$124 -> Cash to operating expenses and AP | F128: =F$124 -> 0 | G128: $ 000s | H128: =H$124 -> 35344.32383 | I128: =I$124 -> 0 | K128: =K$124 -> 0 | L128: 0 | M128: 917.8082192 | N128: 1018.356164 | O128: 1038.723288 | P128: 1059.736066 | Q128: 1080.449395 | R128: 1102.301463 | S128: 1124.347492 | T128: 1147.092399 | U128: 1169.513173 | V128: 1193.166553 | W128: 1217.029884 | X128: 1241.649704 | Y128: 1265.91867 | Z128: 1291.521849 | AA128: 1317.352286 | AB128: 1344.001571 | AC128: 1370.27108 | AD128: 1397.984785 | AE128: 1425.944481 | AF128: 1454.790523 | AG128: 1483.225485 | AH128: 1513.223691 | AI128: 1543.488164 | AJ128: 1574.712048 | AK128: 1605.490966 | AL128: 1637.961988 | AM128: 1670.721228 | AN128: 137.5412149 | AO128: 0 | AP128: 0 | AQ128: =AQ$124 -> 0 | AR128: 0 | AS128: 0 | AT128: 0 | AU128: 0 | AV128: 0 | AW128: 0 | AX128: 0 | AY128: 0 | AZ128: 0 | BA128: 0 | BB128: 0 | BC128: 0 | BD128: 0 | BE128: 0 | BF128: 0 | BG128: 0 | BH128: 0 | BI128: 0 | BJ128: 0 | BK128: 0 | BL128: 0 | BM128: 0 | BN128: 0 | BO128: 0 | BP128: 0 | BQ128: 0 | BR128: 0 | BS128: 0 | BT128: 0 | BU128: 0 | BV128: 0 | BW128: =BW$124 -> 0 | BX128: 0 | BY128: 0 | BZ128: 0 | CA128: 0 | CB128: 0 | CC128: 0 | CD128: 0 | CE128: 0 | CF128: 0 | CG128: 0 | CH128: 0 | CI128: 0
E129: Accounts payable balane End | G129: $ 000s | K129: =K126+K127-K128 -> 0 | L129: 0 | M129: 82.19178082 | N129: 83.83561644 | O129: 85.51232877 | P129: 86.9842623 | Q129: 88.96702685 | R129: 90.74636739 | S129: 92.56129473 | T129: 94.15456292 | U129: 96.30077104 | V129: 98.22678646 | W129: 100.1913222 | X129: 101.9159269 | Y129: 104.2390516 | Z129: 106.3238326 | AA129: 108.4503093 | AB129: 110.3170769 | AC129: 112.8317018 | AD129: 115.0883358 | AE129: 117.3901025 | AF129: 119.4107518 | AG129: 122.1326627 | AH129: 124.5753159 | AI129: 127.0668223 | AJ129: 129.254038 | AK129: 132.2003219 | AL129: 134.8443283 | AM129: 137.5412149 | AN129: 0 | AO129: 0 | AP129: 0 | AQ129: =AQ126+AQ127-AQ128 -> 0 | AR129: 0 | AS129: 0 | AT129: 0 | AU129: 0 | AV129: 0 | AW129: 0 | AX129: 0 | AY129: 0 | AZ129: 0 | BA129: 0 | BB129: 0 | BC129: 0 | BD129: 0 | BE129: 0 | BF129: 0 | BG129: 0 | BH129: 0 | BI129: 0 | BJ129: 0 | BK129: 0 | BL129: 0 | BM129: 0 | BN129: 0 | BO129: 0 | BP129: 0 | BQ129: 0 | BR129: 0 | BS129: 0 | BT129: 0 | BU129: 0 | BV129: 0 | BW129: =BW126+BW127-BW128 -> 0 | BX129: 0 | BY129: 0 | BZ129: 0 | CA129: 0 | CB129: 0 | CC129: 0 | CD129: 0 | CE129: 0 | CF129: 0 | CG129: 0 | CH129: 0 | CI129: 0
B131: Change in Working Capital
C133: Changes in accounts receivable
E134: =E$108 -> Account receivable balance BEG | F134: =F$108 -> 0 | G134: $ 000s | H134: =H$108 -> 0 | I134: =I$108 -> 0 | J134: =K$108 -> 0 | K134: 0 | L134: 0 | M134: 0 | N134: 0 | O134: 0 | P134: 0 | Q134: 0 | R134: 0 | S134: 0 | T134: 0 | U134: 0 | V134: 0 | W134: 0 | X134: 0 | Y134: 0 | Z134: 0 | AA134: 0 | AB134: 0 | AC134: 0 | AD134: 0 | AE134: 0 | AF134: 0 | AG134: 0 | AH134: 0 | AI134: 0 | AJ134: 0 | AK134: 0 | AL134: 0 | AM134: 0 | AN134: 0 | AO134: 0 | AP134: =AQ$108 -> 0 | AQ134: 0 | AR134: 0 | AS134: 0 | AT134: 0 | AU134: 0 | AV134: 0 | AW134: 0 | AX134: 0 | AY134: 0 | AZ134: 0 | BA134: 0 | BB134: 0 | BC134: 0 | BD134: 0 | BE134: 0 | BF134: 0 | BG134: 0 | BH134: 0 | BI134: 0 | BJ134: 0 | BK134: 0 | BL134: 0 | BM134: 0 | BN134: 0 | BO134: 0 | BP134: 0 | BQ134: 0 | BR134: 0 | BS134: 0 | BT134: 0 | BU134: 0 | BV134: =BW$108 -> 0 | BW134: 0 | BX134: 0 | BY134: 0 | BZ134: 0 | CA134: 0 | CB134: 0 | CC134: 0 | CD134: 0 | CE134: 0 | CF134: 0 | CG134: 0 | CH134: 0
E135: =E$101 -> Cash to be received in the next period | F135: =F$101 -> 0 | G135: $ 000s | H135: =H$101 -> 0 | I135: =I$101 -> 0 | J135: =K$101 -> 0 | K135: 0 | L135: 0 | M135: 0 | N135: 0 | O135: 0 | P135: 0 | Q135: 0 | R135: 0 | S135: 0 | T135: 0 | U135: 0 | V135: 0 | W135: 0 | X135: 0 | Y135: 0 | Z135: 0 | AA135: 0 | AB135: 0 | AC135: 0 | AD135: 0 | AE135: 0 | AF135: 0 | AG135: 0 | AH135: 0 | AI135: 0 | AJ135: 0 | AK135: 0 | AL135: 0 | AM135: 0 | AN135: 0 | AO135: 0 | AP135: =AQ$101 -> 0 | AQ135: 0 | AR135: 0 | AS135: 0 | AT135: 0 | AU135: 0 | AV135: 0 | AW135: 0 | AX135: 0 | AY135: 0 | AZ135: 0 | BA135: 0 | BB135: 0 | BC135: 0 | BD135: 0 | BE135: 0 | BF135: 0 | BG135: 0 | BH135: 0 | BI135: 0 | BJ135: 0 | BK135: 0 | BL135: 0 | BM135: 0 | BN135: 0 | BO135: 0 | BP135: 0 | BQ135: 0 | BR135: 0 | BS135: 0 | BT135: 0 | BU135: 0 | BV135: =BW$101 -> 0 | BW135: 0 | BX135: 0 | BY135: 0 | BZ135: 0 | CA135: 0 | CB135: 0 | CC135: 0 | CD135: 0 | CE135: 0 | CF135: 0 | CG135: 0 | CH135: 0
E136: Changes in accounts receivable | G136: $ 000s | H136: =SUM(J136:CH136) -> 0 | J136: =J134-J135 -> 0 | K136: 0 | L136: 0 | M136: 0 | N136: 0 | O136: 0 | P136: 0 | Q136: 0 | R136: 0 | S136: 0 | T136: 0 | U136: 0 | V136: 0 | W136: 0 | X136: 0 | Y136: 0 | Z136: 0 | AA136: 0 | AB136: 0 | AC136: 0 | AD136: 0 | AE136: 0 | AF136: 0 | AG136: 0 | AH136: 0 | AI136: 0 | AJ136: 0 | AK136: 0 | AL136: 0 | AM136: 0 | AN136: 0 | AO136: =AO134-AO135 -> 0 | AP136: 0 | AQ136: 0 | AR136: 0 | AS136: 0 | AT136: 0 | AU136: 0 | AV136: 0 | AW136: 0 | AX136: 0 | AY136: 0 | AZ136: 0 | BA136: 0 | BB136: 0 | BC136: 0 | BD136: 0 | BE136: 0 | BF136: 0 | BG136: 0 | BH136: 0 | BI136: 0 | BJ136: 0 | BK136: 0 | BL136: 0 | BM136: 0 | BN136: 0 | BO136: 0 | BP136: 0 | BQ136: 0 | BR136: 0 | BS136: 0 | BT136: 0 | BU136: =BU134-BU135 -> 0 | BV136: 0 | BW136: 0 | BX136: 0 | BY136: 0 | BZ136: 0 | CA136: 0 | CB136: 0 | CC136: 0 | CD136: 0 | CE136: 0 | CF136: 0 | CG136: 0 | CH136: 0
C138: Changes in accounts payable
E139: =E$119 -> Cash to operating expenses in the next period | F139: =F$119 -> 0 | G139: $ 000s | H139: =H$119 -> 2903.253913 | I139: =I$119 -> 0 | K139: =K$119 -> 0 | L139: 0 | M139: 82.19178082 | N139: 83.83561644 | O139: 85.51232877 | P139: 86.9842623 | Q139: 88.96702685 | R139: 90.74636739 | S139: 92.56129473 | T139: 94.15456292 | U139: 96.30077104 | V139: 98.22678646 | W139: 100.1913222 | X139: 101.9159269 | Y139: 104.2390516 | Z139: 106.3238326 | AA139: 108.4503093 | AB139: 110.3170769 | AC139: 112.8317018 | AD139: 115.0883358 | AE139: 117.3901025 | AF139: 119.4107518 | AG139: 122.1326627 | AH139: 124.5753159 | AI139: 127.0668223 | AJ139: 129.254038 | AK139: 132.2003219 | AL139: 134.8443283 | AM139: 137.5412149 | AN139: 0 | AO139: 0 | AP139: 0 | AQ139: =AQ$119 -> 0 | AR139: 0 | AS139: 0 | AT139: 0 | AU139: 0 | AV139: 0 | AW139: 0 | AX139: 0 | AY139: 0 | AZ139: 0 | BA139: 0 | BB139: 0 | BC139: 0 | BD139: 0 | BE139: 0 | BF139: 0 | BG139: 0 | BH139: 0 | BI139: 0 | BJ139: 0 | BK139: 0 | BL139: 0 | BM139: 0 | BN139: 0 | BO139: 0 | BP139: 0 | BQ139: 0 | BR139: 0 | BS139: 0 | BT139: 0 | BU139: 0 | BV139: 0 | BW139: =BW$119 -> 0 | BX139: 0 | BY139: 0 | BZ139: 0 | CA139: 0 | CB139: 0 | CC139: 0 | CD139: 0 | CE139: 0 | CF139: 0 | CG139: 0 | CH139: 0 | CI139: 0
E140: =E$126 -> Accounts payable balance BEG | F140: =F$126 -> 0 | G140: $ 000s | H140: =H$126 -> 0 | I140: =I$126 -> 0 | K140: =K$126 -> 0 | L140: 0 | M140: 0 | N140: 82.19178082 | O140: 83.83561644 | P140: 85.51232877 | Q140: 86.9842623 | R140: 88.96702685 | S140: 90.74636739 | T140: 92.56129473 | U140: 94.15456292 | V140: 96.30077104 | W140: 98.22678646 | X140: 100.1913222 | Y140: 101.9159269 | Z140: 104.2390516 | AA140: 106.3238326 | AB140: 108.4503093 | AC140: 110.3170769 | AD140: 112.8317018 | AE140: 115.0883358 | AF140: 117.3901025 | AG140: 119.4107518 | AH140: 122.1326627 | AI140: 124.5753159 | AJ140: 127.0668223 | AK140: 129.254038 | AL140: 132.2003219 | AM140: 134.8443283 | AN140: 137.5412149 | AO140: 0 | AP140: 0 | AQ140: =AQ$126 -> 0 | AR140: 0 | AS140: 0 | AT140: 0 | AU140: 0 | AV140: 0 | AW140: 0 | AX140: 0 | AY140: 0 | AZ140: 0 | BA140: 0 | BB140: 0 | BC140: 0 | BD140: 0 | BE140: 0 | BF140: 0 | BG140: 0 | BH140: 0 | BI140: 0 | BJ140: 0 | BK140: 0 | BL140: 0 | BM140: 0 | BN140: 0 | BO140: 0 | BP140: 0 | BQ140: 0 | BR140: 0 | BS140: 0 | BT140: 0 | BU140: 0 | BV140: 0 | BW140: =BW$126 -> 0 | BX140: 0 | BY140: 0 | BZ140: 0 | CA140: 0 | CB140: 0 | CC140: 0 | CD140: 0 | CE140: 0 | CF140: 0 | CG140: 0 | CH140: 0 | CI140: 0
E141: Changes in accounts payable | G141: $ 000s | H141: =SUM(J141:CI141) -> 2.273736754e-13 | J141: =J139-J140 -> 0 | K141: 0 | L141: 0 | M141: 82.19178082 | N141: 1.643835616 | O141: 1.676712329 | P141: 1.471933528 | Q141: 1.982764554 | R141: 1.779340537 | S141: 1.814927348 | T141: 1.593268188 | U141: 2.146208119 | V141: 1.926015421 | W141: 1.964535729 | X141: 1.724604726 | Y141: 2.32312469 | Z141: 2.084781032 | AA141: 2.126476653 | AB141: 1.866767619 | AC141: 2.514624876 | AD141: 2.256634036 | AE141: 2.301766716 | AF141: 2.020649306 | AG141: 2.721910837 | AH141: 2.442653254 | AI141: 2.491506319 | AJ141: 2.187215793 | AK141: 2.946283826 | AL141: 2.644006437 | AM141: 2.696886566 | AN141: -137.5412149 | AO141: 0 | AP141: =AP139-AP140 -> 0 | AQ141: 0 | AR141: 0 | AS141: 0 | AT141: 0 | AU141: 0 | AV141: 0 | AW141: 0 | AX141: 0 | AY141: 0 | AZ141: 0 | BA141: 0 | BB141: 0 | BC141: 0 | BD141: 0 | BE141: 0 | BF141: 0 | BG141: 0 | BH141: 0 | BI141: 0 | BJ141: 0 | BK141: 0 | BL141: 0 | BM141: 0 | BN141: 0 | BO141: 0 | BP141: 0 | BQ141: 0 | BR141: 0 | BS141: 0 | BT141: 0 | BU141: 0 | BV141: =BV139-BV140 -> 0 | BW141: 0 | BX141: 0 | BY141: 0 | BZ141: 0 | CA141: 0 | CB141: 0 | CC141: 0 | CD141: 0 | CE141: 0 | CF141: 0 | CG141: 0 | CH141: 0 | CI141: 0
C143: Changes in working capital
E144: =E$136 -> Changes in accounts receivable | F144: =F$136 -> 0 | G144: $ 000s | H144: =H$136 -> 0 | I144: =I$136 -> 0 | K144: =J$136 -> 0 | L144: 0 | M144: 0 | N144: 0 | O144: 0 | P144: 0 | Q144: 0 | R144: 0 | S144: 0 | T144: 0 | U144: 0 | V144: 0 | W144: 0 | X144: 0 | Y144: 0 | Z144: 0 | AA144: 0 | AB144: 0 | AC144: 0 | AD144: 0 | AE144: 0 | AF144: 0 | AG144: 0 | AH144: 0 | AI144: 0 | AJ144: 0 | AK144: 0 | AL144: 0 | AM144: 0 | AN144: 0 | AO144: 0 | AP144: =AO$136 -> 0 | AQ144: 0 | AR144: 0 | AS144: 0 | AT144: 0 | AU144: 0 | AV144: 0 | AW144: 0 | AX144: 0 | AY144: 0 | AZ144: 0 | BA144: 0 | BB144: 0 | BC144: 0 | BD144: 0 | BE144: 0 | BF144: 0 | BG144: 0 | BH144: 0 | BI144: 0 | BJ144: 0 | BK144: 0 | BL144: 0 | BM144: 0 | BN144: 0 | BO144: 0 | BP144: 0 | BQ144: 0 | BR144: 0 | BS144: 0 | BT144: 0 | BU144: 0 | BV144: =BU$136 -> 0 | BW144: 0 | BX144: 0 | BY144: 0 | BZ144: 0 | CA144: 0 | CB144: 0 | CC144: 0 | CD144: 0 | CE144: 0 | CF144: 0 | CG144: 0 | CH144: 0 | CI144: 0
E145: =E$141 -> Changes in accounts payable | F145: =F$141 -> 0 | G145: $ 000s | H145: =H$141 -> 2.273736754e-13 | I145: =I$141 -> 0 | J145: =J$141 -> 0 | K145: 0 | L145: 0 | M145: 82.19178082 | N145: 1.643835616 | O145: 1.676712329 | P145: 1.471933528 | Q145: 1.982764554 | R145: 1.779340537 | S145: 1.814927348 | T145: 1.593268188 | U145: 2.146208119 | V145: 1.926015421 | W145: 1.964535729 | X145: 1.724604726 | Y145: 2.32312469 | Z145: 2.084781032 | AA145: 2.126476653 | AB145: 1.866767619 | AC145: 2.514624876 | AD145: 2.256634036 | AE145: 2.301766716 | AF145: 2.020649306 | AG145: 2.721910837 | AH145: 2.442653254 | AI145: 2.491506319 | AJ145: 2.187215793 | AK145: 2.946283826 | AL145: 2.644006437 | AM145: 2.696886566 | AN145: -137.5412149 | AO145: 0 | AP145: =AP$141 -> 0 | AQ145: 0 | AR145: 0 | AS145: 0 | AT145: 0 | AU145: 0 | AV145: 0 | AW145: 0 | AX145: 0 | AY145: 0 | AZ145: 0 | BA145: 0 | BB145: 0 | BC145: 0 | BD145: 0 | BE145: 0 | BF145: 0 | BG145: 0 | BH145: 0 | BI145: 0 | BJ145: 0 | BK145: 0 | BL145: 0 | BM145: 0 | BN145: 0 | BO145: 0 | BP145: 0 | BQ145: 0 | BR145: 0 | BS145: 0 | BT145: 0 | BU145: 0 | BV145: =BV$141 -> 0 | BW145: 0 | BX145: 0 | BY145: 0 | BZ145: 0 | CA145: 0 | CB145: 0 | CC145: 0 | CD145: 0 | CE145: 0 | CF145: 0 | CG145: 0 | CH145: 0 | CI145: 0
E146: Changes in working capital | G146: $ 000s | H146: =SUM(J146:CI146) -> 2.273736754e-13 | J146: =SUM(J144:J145) -> 0 | K146: 0 | L146: 0 | M146: 82.19178082 | N146: 1.643835616 | O146: 1.676712329 | P146: 1.471933528 | Q146: 1.982764554 | R146: 1.779340537 | S146: 1.814927348 | T146: 1.593268188 | U146: 2.146208119 | V146: 1.926015421 | W146: 1.964535729 | X146: 1.724604726 | Y146: 2.32312469 | Z146: 2.084781032 | AA146: 2.126476653 | AB146: 1.866767619 | AC146: 2.514624876 | AD146: 2.256634036 | AE146: 2.301766716 | AF146: 2.020649306 | AG146: 2.721910837 | AH146: 2.442653254 | AI146: 2.491506319 | AJ146: 2.187215793 | AK146: 2.946283826 | AL146: 2.644006437 | AM146: 2.696886566 | AN146: -137.5412149 | AO146: 0 | AP146: =SUM(AP144:AP145) -> 0 | AQ146: 0 | AR146: 0 | AS146: 0 | AT146: 0 | AU146: 0 | AV146: 0 | AW146: 0 | AX146: 0 | AY146: 0 | AZ146: 0 | BA146: 0 | BB146: 0 | BC146: 0 | BD146: 0 | BE146: 0 | BF146: 0 | BG146: 0 | BH146: 0 | BI146: 0 | BJ146: 0 | BK146: 0 | BL146: 0 | BM146: 0 | BN146: 0 | BO146: 0 | BP146: 0 | BQ146: 0 | BR146: 0 | BS146: 0 | BT146: 0 | BU146: 0 | BV146: =SUM(BV144:BV145) -> 0 | BW146: 0 | BX146: 0 | BY146: 0 | BZ146: 0 | CA146: 0 | CB146: 0 | CC146: 0 | CD146: 0 | CE146: 0 | CF146: 0 | CG146: 0 | CH146: 0 | CI146: 0
B148: Project Cash Flow Before Tax
C149: EBITDA | J149: =J75 -> 0 | K149: 0 | L149: 0 | M149: 3000 | N149: 3264.9 | O149: 3549.692002 | P149: 3855.813305 | Q149: 4184.803988 | R149: 4538.314239 | S149: 4918.11221 | T149: 5326.092422 | U149: 5764.284778 | V149: 6234.864213 | W149: 6740.161034 | X149: 7282.671993 | Y149: 7865.072154 | Z149: 8490.227604 | AA149: 9161.209065 | AB149: 9881.30648 | AC149: 10654.04464 | AD149: 11483.19992 | AE149: 12372.8182 | AF149: 13327.23409 | AG149: 14351.09149 | AH149: 15449.36564 | AI149: 16627.38671 | AJ149: 17890.86514 | AK149: 19245.91867 | AL149: 20699.10143 | AM149: 22257.43497 | AN149: 0 | AO149: 0 | AP149: =AP75 -> 0 | AQ149: 0 | AR149: 0 | AS149: 0 | AT149: 0 | AU149: 0 | AV149: 0 | AW149: 0 | AX149: 0 | AY149: 0 | AZ149: 0 | BA149: 0 | BB149: 0 | BC149: 0 | BD149: 0 | BE149: 0 | BF149: 0 | BG149: 0 | BH149: 0 | BI149: 0 | BJ149: 0 | BK149: 0 | BL149: 0 | BM149: 0 | BN149: 0 | BO149: 0 | BP149: 0 | BQ149: 0 | BR149: 0 | BS149: 0 | BT149: 0 | BU149: 0 | BV149: =BV75 -> 0 | BW149: 0 | BX149: 0 | BY149: 0 | BZ149: 0 | CA149: 0 | CB149: 0 | CC149: 0 | CD149: 0 | CE149: 0 | CF149: 0 | CG149: 0 | CH149: 0
C150: Less: Capital Expenditures | G150: $ 000s | J150: =-J93 -> -21000 | K150: -21000 | L150: -28000 | M150: 0 | N150: 0 | O150: 0 | P150: 0 | Q150: 0 | R150: 0 | S150: 0 | T150: 0 | U150: 0 | V150: 0 | W150: 0 | X150: 0 | Y150: 0 | Z150: 0 | AA150: 0 | AB150: 0 | AC150: 0 | AD150: 0 | AE150: 0 | AF150: 0 | AG150: 0 | AH150: 0 | AI150: 0 | AJ150: 0 | AK150: 0 | AL150: 0 | AM150: 0 | AN150: 0 | AO150: 0 | AP150: =-AP93 -> 0 | AQ150: 0 | AR150: 0 | AS150: 0 | AT150: 0 | AU150: 0 | AV150: 0 | AW150: 0 | AX150: 0 | AY150: 0 | AZ150: 0 | BA150: 0 | BB150: 0 | BC150: 0 | BD150: 0 | BE150: 0 | BF150: 0 | BG150: 0 | BH150: 0 | BI150: 0 | BJ150: 0 | BK150: 0 | BL150: 0 | BM150: 0 | BN150: 0 | BO150: 0 | BP150: 0 | BQ150: 0 | BR150: 0 | BS150: 0 | BT150: 0 | BU150: 0 | BV150: =-BV93 -> 0 | BW150: 0 | BX150: 0 | BY150: 0 | BZ150: 0 | CA150: 0 | CB150: 0 | CC150: 0 | CD150: 0 | CE150: 0 | CF150: 0 | CG150: 0 | CH150: 0
C151: Less: WC Changes | G151: $ 000s | J151: =J146 -> 0 | K151: =K146 -> 0 | L151: 0 | M151: 82.19178082 | N151: 1.643835616 | O151: 1.676712329 | P151: 1.471933528 | Q151: 1.982764554 | R151: 1.779340537 | S151: 1.814927348 | T151: 1.593268188 | U151: 2.146208119 | V151: 1.926015421 | W151: 1.964535729 | X151: 1.724604726 | Y151: 2.32312469 | Z151: 2.084781032 | AA151: 2.126476653 | AB151: 1.866767619 | AC151: 2.514624876 | AD151: 2.256634036 | AE151: 2.301766716 | AF151: 2.020649306 | AG151: 2.721910837 | AH151: 2.442653254 | AI151: 2.491506319 | AJ151: 2.187215793 | AK151: 2.946283826 | AL151: 2.644006437 | AM151: 2.696886566 | AN151: -137.5412149 | AO151: 0 | AP151: 0 | AQ151: 0 | AR151: 0 | AS151: 0 | AT151: 0 | AU151: 0 | AV151: 0 | AW151: 0 | AX151: 0 | AY151: 0 | AZ151: 0 | BA151: 0 | BB151: 0 | BC151: 0 | BD151: 0 | BE151: 0 | BF151: 0 | BG151: 0 | BH151: 0 | BI151: 0 | BJ151: 0 | BK151: 0 | BL151: 0 | BM151: 0 | BN151: 0 | BO151: 0 | BP151: 0 | BQ151: 0 | BR151: 0 | BS151: 0 | BT151: 0 | BU151: 0 | BV151: 0 | BW151: =BW146 -> 0 | BX151: 0 | BY151: 0 | BZ151: 0 | CA151: 0 | CB151: 0 | CC151: 0 | CD151: 0 | CE151: 0 | CF151: 0 | CG151: 0 | CH151: 0
D152: Free Cash Flow | G152: $ 000s | J152: =SUM(J149:J151) -> -21000 | K152: =SUM(K149:K151) -> -21000 | L152: -28000 | M152: 3082.191781 | N152: 3266.543836 | O152: 3551.368715 | P152: 3857.285239 | Q152: 4186.786752 | R152: 4540.09358 | S152: 4919.927137 | T152: 5327.68569 | U152: 5766.430986 | V152: 6236.790229 | W152: 6742.12557 | X152: 7284.396597 | Y152: 7867.395279 | Z152: 8492.312385 | AA152: 9163.335542 | AB152: 9883.173248 | AC152: 10656.55927 | AD152: 11485.45655 | AE152: 12375.11996 | AF152: 13329.25474 | AG152: 14353.8134 | AH152: 15451.80829 | AI152: 16629.87822 | AJ152: 17893.05235 | AK152: 19248.86496 | AL152: 20701.74543 | AM152: 22260.13186 | AN152: -137.5412149 | AO152: 0 | AP152: 0 | AQ152: 0 | AR152: 0 | AS152: 0 | AT152: 0 | AU152: 0 | AV152: 0 | AW152: 0 | AX152: 0 | AY152: 0 | AZ152: 0 | BA152: 0 | BB152: 0 | BC152: 0 | BD152: 0 | BE152: 0 | BF152: 0 | BG152: 0 | BH152: 0 | BI152: 0 | BJ152: 0 | BK152: 0 | BL152: 0 | BM152: 0 | BN152: 0 | BO152: 0 | BP152: 0 | BQ152: 0 | BR152: 0 | BS152: 0 | BT152: 0 | BU152: 0 | BV152: 0 | BW152: =SUM(BW149:BW151) -> 0 | BX152: 0 | BY152: 0 | BZ152: 0 | CA152: 0 | CB152: 0 | CC152: 0 | CD152: 0 | CE152: 0 | CF152: 0 | CG152: 0 | CH152: 0
E154: Pre-tax Project IRR | G154: % | H154: =IRR(J152:CH152) -> 0.08183166266
E155: Without the effect of financing structure
B157: Depreciaiton without IDC and Fees
D159: Total Depreciation Base | G159: $ 000s | H159: =SUM(J204:L208) -> 74131.07304 | J159: =I159+J93 -> 21000 | K159: =J159+K93 -> 42000 | L159: 70000 | M159: 70000 | N159: 70000 | O159: 70000 | P159: 70000 | Q159: 70000 | R159: 70000 | S159: 70000 | T159: 70000 | U159: 70000 | V159: 70000 | W159: 70000 | X159: 70000 | Y159: 70000 | Z159: 70000 | AA159: 70000 | AB159: 70000 | AC159: 70000 | AD159: 70000 | AE159: 70000 | AF159: 70000 | AG159: 70000 | AH159: 70000 | AI159: 70000 | AJ159: 70000 | AK159: 70000 | AL159: 70000 | AM159: 70000 | AN159: 70000 | AO159: 70000 | AP159: 70000 | AQ159: 70000 | AR159: 70000 | AS159: 70000 | AT159: 70000 | AU159: 70000 | AV159: 70000 | AW159: 70000 | AX159: 70000 | AY159: 70000 | AZ159: 70000 | BA159: 70000 | BB159: 70000 | BC159: 70000 | BD159: 70000 | BE159: 70000 | BF159: 70000 | BG159: 70000 | BH159: 70000 | BI159: 70000 | BJ159: 70000 | BK159: 70000 | BL159: 70000 | BM159: 70000 | BN159: 70000 | BO159: 70000 | BP159: 70000 | BQ159: 70000 | BR159: 70000 | BS159: 70000 | BT159: 70000 | BU159: 70000 | BV159: 70000 | BW159: =BV159+BW93 -> 70000 | BX159: 70000 | BY159: 70000 | BZ159: 70000 | CA159: 70000 | CB159: 70000 | CC159: 70000 | CD159: 70000 | CE159: 70000 | CF159: 70000 | CG159: 70000 | CH159: 70000
D160: =Timing!E$68 -> Operations period flag | E160: =Timing!E$68 -> Operations period flag | F160: =Timing!F$68 -> 0 | G160: Flag | H160: =Timing!H$68 -> 27 | I160: =Timing!I$68 -> 0 | J160: =Timing!J$68/$H$160 -> 0 | K160: =Timing!K$68/$H$160 -> 0 | L160: =Timing!L$68/$H$160 -> 0 | M160: =Timing!M$68/$H$160 -> 0.03703703704 | N160: =Timing!N$68/$H$160 -> 0.03703703704 | O160: =Timing!O$68/$H$160 -> 0.03703703704 | P160: =Timing!P$68/$H$160 -> 0.03703703704 | Q160: =Timing!Q$68/$H$160 -> 0.03703703704 | R160: =Timing!R$68/$H$160 -> 0.03703703704 | S160: =Timing!S$68/$H$160 -> 0.03703703704 | T160: =Timing!T$68/$H$160 -> 0.03703703704 | U160: =Timing!U$68/$H$160 -> 0.03703703704 | V160: =Timing!V$68/$H$160 -> 0.03703703704 | W160: =Timing!W$68/$H$160 -> 0.03703703704 | X160: =Timing!X$68/$H$160 -> 0.03703703704 | Y160: =Timing!Y$68/$H$160 -> 0.03703703704 | Z160: =Timing!Z$68/$H$160 -> 0.03703703704 | AA160: =Timing!AA$68/$H$160 -> 0.03703703704 | AB160: =Timing!AB$68/$H$160 -> 0.03703703704 | AC160: =Timing!AC$68/$H$160 -> 0.03703703704 | AD160: =Timing!AD$68/$H$160 -> 0.03703703704 | AE160: =Timing!AE$68/$H$160 -> 0.03703703704 | AF160: =Timing!AF$68/$H$160 -> 0.03703703704 | AG160: =Timing!AG$68/$H$160 -> 0.03703703704 | AH160: =Timing!AH$68/$H$160 -> 0.03703703704 | AI160: =Timing!AI$68/$H$160 -> 0.03703703704 | AJ160: =Timing!AJ$68/$H$160 -> 0.03703703704 | AK160: =Timing!AK$68/$H$160 -> 0.03703703704 | AL160: =Timing!AL$68/$H$160 -> 0.03703703704 | AM160: =Timing!AM$68/$H$160 -> 0.03703703704 | AN160: =Timing!AN$68/$H$160 -> 0 | AO160: =Timing!AO$68/$H$160 -> 0 | AP160: =Timing!AP$68/$H$160 -> 0 | AQ160: =Timing!AQ$68/$H$160 -> 0 | AR160: =Timing!AR$68/$H$160 -> 0 | AS160: =Timing!AS$68/$H$160 -> 0 | AT160: =Timing!AT$68/$H$160 -> 0 | AU160: =Timing!AU$68/$H$160 -> 0 | AV160: =Timing!AV$68/$H$160 -> 0 | AW160: =Timing!AW$68/$H$160 -> 0 | AX160: =Timing!AX$68/$H$160 -> 0 | AY160: =Timing!AY$68/$H$160 -> 0 | AZ160: =Timing!AZ$68/$H$160 -> 0 | BA160: =Timing!BA$68/$H$160 -> 0 | BB160: =Timing!BB$68/$H$160 -> 0 | BC160: =Timing!BC$68/$H$160 -> 0 | BD160: =Timing!BD$68/$H$160 -> 0 | BE160: =Timing!BE$68/$H$160 -> 0 | BF160: =Timing!BF$68/$H$160 -> 0 | BG160: =Timing!BG$68/$H$160 -> 0 | BH160: =Timing!BH$68/$H$160 -> 0 | BI160: =Timing!BI$68/$H$160 -> 0 | BJ160: =Timing!BJ$68/$H$160 -> 0 | BK160: =Timing!BK$68/$H$160 -> 0 | BL160: =Timing!BL$68/$H$160 -> 0 | BM160: =Timing!BM$68/$H$160 -> 0 | BN160: =Timing!BN$68/$H$160 -> 0 | BO160: =Timing!BO$68/$H$160 -> 0 | BP160: =Timing!BP$68/$H$160 -> 0 | BQ160: =Timing!BQ$68/$H$160 -> 0 | BR160: =Timing!BR$68/$H$160 -> 0 | BS160: =Timing!BS$68/$H$160 -> 0 | BT160: =Timing!BT$68/$H$160 -> 0 | BU160: =Timing!BU$68/$H$160 -> 0 | BV160: =Timing!BV$68/$H$160 -> 0 | BW160: =Timing!BW$68/$H$160 -> 0 | BX160: =Timing!BX$68/$H$160 -> 0 | BY160: =Timing!BY$68/$H$160 -> 0 | BZ160: =Timing!BZ$68/$H$160 -> 0 | CA160: =Timing!CA$68/$H$160 -> 0 | CB160: =Timing!CB$68/$H$160 -> 0 | CC160: =Timing!CC$68/$H$160 -> 0 | CD160: =Timing!CD$68/$H$160 -> 0 | CE160: =Timing!CE$68/$H$160 -> 0 | CF160: =Timing!CF$68/$H$160 -> 0 | CG160: =Timing!CG$68/$H$160 -> 0 | CH160: =Timing!CH$68/$H$160 -> 0
E161: Depreciation without IDC | G161: $ 000s | H161: =SUM(J161:XFD161) -> 70000 | J161: =J159*J160 -> 0 | K161: =K159*K160 -> 0 | L161: 0 | M161: 2592.592593 | N161: 2592.592593 | O161: 2592.592593 | P161: 2592.592593 | Q161: 2592.592593 | R161: 2592.592593 | S161: 2592.592593 | T161: 2592.592593 | U161: 2592.592593 | V161: 2592.592593 | W161: 2592.592593 | X161: 2592.592593 | Y161: 2592.592593 | Z161: 2592.592593 | AA161: 2592.592593 | AB161: 2592.592593 | AC161: 2592.592593 | AD161: 2592.592593 | AE161: 2592.592593 | AF161: 2592.592593 | AG161: 2592.592593 | AH161: 2592.592593 | AI161: 2592.592593 | AJ161: 2592.592593 | AK161: 2592.592593 | AL161: 2592.592593 | AM161: 2592.592593 | AN161: 0 | AO161: 0 | AP161: 0 | AQ161: 0 | AR161: 0 | AS161: 0 | AT161: 0 | AU161: 0 | AV161: 0 | AW161: 0 | AX161: 0 | AY161: 0 | AZ161: 0 | BA161: 0 | BB161: 0 | BC161: 0 | BD161: 0 | BE161: 0 | BF161: 0 | BG161: 0 | BH161: 0 | BI161: 0 | BJ161: 0 | BK161: 0 | BL161: 0 | BM161: 0 | BN161: 0 | BO161: 0 | BP161: 0 | BQ161: 0 | BR161: 0 | BS161: 0 | BT161: 0 | BU161: 0 | BV161: 0 | BW161: =BW159*BW160 -> 0 | BX161: 0 | BY161: 0 | BZ161: 0 | CA161: 0 | CB161: 0 | CC161: 0 | CD161: 0 | CE161: 0 | CF161: 0 | CG161: 0 | CH161: 0
E163: =E$161 -> Depreciation without IDC | G163: $ 000s | H163: =H$161 -> 70000 | I163: =I$161 -> 0 | J163: =J$161 -> 0 | K163: 0 | L163: 0 | M163: 2592.592593 | N163: 2592.592593 | O163: 2592.592593 | P163: 2592.592593 | Q163: 2592.592593 | R163: 2592.592593 | S163: 2592.592593 | T163: 2592.592593 | U163: 2592.592593 | V163: 2592.592593 | W163: 2592.592593 | X163: 2592.592593 | Y163: 2592.592593 | Z163: 2592.592593 | AA163: 2592.592593 | AB163: 2592.592593 | AC163: 2592.592593 | AD163: 2592.592593 | AE163: 2592.592593 | AF163: 2592.592593 | AG163: 2592.592593 | AH163: 2592.592593 | AI163: 2592.592593 | AJ163: 2592.592593 | AK163: 2592.592593 | AL163: 2592.592593 | AM163: 2592.592593 | AN163: 0 | AO163: 0 | AP163: =AP$161 -> 0 | AQ163: 0 | AR163: 0 | AS163: 0 | AT163: 0 | AU163: 0 | AV163: 0 | AW163: 0 | AX163: 0 | AY163: 0 | AZ163: 0 | BA163: 0 | BB163: 0 | BC163: 0 | BD163: 0 | BE163: 0 | BF163: 0 | BG163: 0 | BH163: 0 | BI163: 0 | BJ163: 0 | BK163: 0 | BL163: 0 | BM163: 0 | BN163: 0 | BO163: 0 | BP163: 0 | BQ163: 0 | BR163: 0 | BS163: 0 | BT163: 0 | BU163: 0 | BV163: =BV$161 -> 0 | BW163: 0 | BX163: 0 | BY163: 0 | BZ163: 0 | CA163: 0 | CB163: 0 | CC163: 0 | CD163: 0 | CE163: 0 | CF163: 0 | CG163: 0 | CH163: 0
E164: Maintenance capex depreciation | F164: 0 | G164: $ 000s | H164: 0 | J164: 0 | K164: 0 | L164: 0 | M164: 0 | N164: 0 | O164: 0 | P164: 0 | Q164: 0 | R164: 0 | S164: 0 | T164: 0 | U164: 0 | V164: 0 | W164: 0 | X164: 0 | Y164: 0 | Z164: 0 | AA164: 0 | AB164: 0 | AC164: 0 | AD164: 0 | AE164: 0 | AF164: 0 | AG164: 0 | AH164: 0 | AI164: 0 | AJ164: 0 | AK164: 0 | AL164: 0 | AM164: 0 | AN164: 0 | AO164: 0 | AP164: 0 | AQ164: 0 | AR164: 0 | AS164: 0 | AT164: 0 | AU164: 0 | AV164: 0 | AW164: 0 | AX164: 0 | AY164: 0 | AZ164: 0 | BA164: 0 | BB164: 0 | BC164: 0 | BD164: 0 | BE164: 0 | BF164: 0 | BG164: 0 | BH164: 0 | BI164: 0 | BJ164: 0 | BK164: 0 | BL164: 0 | BM164: 0 | BN164: 0 | BO164: 0 | BP164: 0 | BQ164: 0 | BR164: 0 | BS164: 0 | BT164: 0 | BU164: 0 | BV164: 0 | BW164: 0 | BX164: 0 | BY164: 0 | BZ164: 0 | CA164: 0 | CB164: 0 | CC164: 0 | CD164: 0 | CE164: 0 | CF164: 0 | CG164: 0 | CH164: 0
E165: Depreciation expense | F165: P&L | G165: $ 000s | H165: =SUM(J165:CI165) -> 70000 | J165: =SUM(J163:J164) -> 0 | K165: 0 | L165: 0 | M165: 2592.592593 | N165: 2592.592593 | O165: 2592.592593 | P165: 2592.592593 | Q165: 2592.592593 | R165: 2592.592593 | S165: 2592.592593 | T165: 2592.592593 | U165: 2592.592593 | V165: 2592.592593 | W165: 2592.592593 | X165: 2592.592593 | Y165: 2592.592593 | Z165: 2592.592593 | AA165: 2592.592593 | AB165: 2592.592593 | AC165: 2592.592593 | AD165: 2592.592593 | AE165: 2592.592593 | AF165: 2592.592593 | AG165: 2592.592593 | AH165: 2592.592593 | AI165: 2592.592593 | AJ165: 2592.592593 | AK165: 2592.592593 | AL165: 2592.592593 | AM165: 2592.592593 | AN165: 0 | AO165: 0 | AP165: =SUM(AP163:AP164) -> 0 | AQ165: 0 | AR165: 0 | AS165: 0 | AT165: 0 | AU165: 0 | AV165: 0 | AW165: 0 | AX165: 0 | AY165: 0 | AZ165: 0 | BA165: 0 | BB165: 0 | BC165: 0 | BD165: 0 | BE165: 0 | BF165: 0 | BG165: 0 | BH165: 0 | BI165: 0 | BJ165: 0 | BK165: 0 | BL165: 0 | BM165: 0 | BN165: 0 | BO165: 0 | BP165: 0 | BQ165: 0 | BR165: 0 | BS165: 0 | BT165: 0 | BU165: 0 | BV165: =SUM(BV163:BV164) -> 0 | BW165: 0 | BX165: 0 | BY165: 0 | BZ165: 0 | CA165: 0 | CB165: 0 | CC165: 0 | CD165: 0 | CE165: 0 | CF165: 0 | CG165: 0 | CH165: 0
B168: Debt Sizing
D170: Maximum Debt to Capital Method | J170: Calculated | K170: Fixed | L170: Difference
E171: Capital Expenditures | H171: =H93 -> 70000
E172: Total IDC from Below | H172: =K172 -> 1711.814331 | J172: =H207 -> 1711.814331 | K172: 1711.814331 | L172: =J172-K172 -> 0
E173: Total Up-front Fees from Below | H173: =K173 -> 941.904333 | J173: =H205 -> 941.904333 | K173: 941.904333 | L173: =J173-K173 -> 0
E174: Total Commitment Fees from Below | H174: =K174 -> 1477.354375 | J174: =H206 -> 1477.354375 | K174: 1477.354375 | L174: 0
E175: Total Project Cost | H175: =SUM(H171:H174) -> 74131.07304 | J175: =SUM(J172:J174) -> 4131.073039 | L175: =SUM(L172:L174)+H275 -> 0 | M175: difference
E177: Maximum Leverage | F177: =Inputs!G64 -> 0.75 | H177: =H175*F177 -> 55598.30478
D179: Minimum DSCR Method
E180: EBITDA | J180: =J149 -> 0 | K180: 0 | L180: 0 | M180: 3000 | N180: 3264.9 | O180: 3549.692002 | P180: 3855.813305 | Q180: 4184.803988 | R180: 4538.314239 | S180: 4918.11221 | T180: 5326.092422 | U180: 5764.284778 | V180: 6234.864213 | W180: 6740.161034 | X180: 7282.671993 | Y180: 7865.072154 | Z180: 8490.227604 | AA180: 9161.209065 | AB180: 9881.30648 | AC180: 10654.04464 | AD180: 11483.19992 | AE180: 12372.8182 | AF180: 13327.23409 | AG180: 14351.09149 | AH180: 15449.36564 | AI180: 16627.38671 | AJ180: 17890.86514 | AK180: 19245.91867 | AL180: 20699.10143 | AM180: 22257.43497 | AN180: 0 | AO180: 0 | AP180: =AP149 -> 0 | AQ180: 0 | AR180: 0 | AS180: 0 | AT180: 0 | AU180: 0 | AV180: 0 | AW180: 0 | AX180: 0 | AY180: 0 | AZ180: 0 | BA180: 0 | BB180: 0 | BC180: 0 | BD180: 0 | BE180: 0 | BF180: 0 | BG180: 0 | BH180: 0 | BI180: 0 | BJ180: 0 | BK180: 0 | BL180: 0 | BM180: 0 | BN180: 0 | BO180: 0 | BP180: 0 | BQ180: 0 | BR180: 0 | BS180: 0 | BT180: 0 | BU180: 0 | BV180: =BV149 -> 0 | BW180: 0 | BX180: 0 | BY180: 0 | BZ180: 0 | CA180: 0 | CB180: 0 | CC180: 0 | CD180: 0 | CE180: 0 | CF180: 0 | CG180: 0 | CH180: 0 | CI180: 0
E181: Add: WC Changes | J181: =J146 -> 0 | K181: 0 | L181: 0 | M181: 82.19178082 | N181: 1.643835616 | O181: 1.676712329 | P181: 1.471933528 | Q181: 1.982764554 | R181: 1.779340537 | S181: 1.814927348 | T181: 1.593268188 | U181: 2.146208119 | V181: 1.926015421 | W181: 1.964535729 | X181: 1.724604726 | Y181: 2.32312469 | Z181: 2.084781032 | AA181: 2.126476653 | AB181: 1.866767619 | AC181: 2.514624876 | AD181: 2.256634036 | AE181: 2.301766716 | AF181: 2.020649306 | AG181: 2.721910837 | AH181: 2.442653254 | AI181: 2.491506319 | AJ181: 2.187215793 | AK181: 2.946283826 | AL181: 2.644006437 | AM181: 2.696886566 | AN181: -137.5412149 | AO181: 0 | AP181: =AP146 -> 0 | AQ181: 0 | AR181: 0 | AS181: 0 | AT181: 0 | AU181: 0 | AV181: 0 | AW181: 0 | AX181: 0 | AY181: 0 | AZ181: 0 | BA181: 0 | BB181: 0 | BC181: 0 | BD181: 0 | BE181: 0 | BF181: 0 | BG181: 0 | BH181: 0 | BI181: 0 | BJ181: 0 | BK181: 0 | BL181: 0 | BM181: 0 | BN181: 0 | BO181: 0 | BP181: 0 | BQ181: 0 | BR181: 0 | BS181: 0 | BT181: 0 | BU181: 0 | BV181: =BV146 -> 0 | BW181: 0 | BX181: 0 | BY181: 0 | BZ181: 0 | CA181: 0 | CB181: 0 | CC181: 0 | CD181: 0 | CE181: 0 | CF181: 0 | CG181: 0 | CH181: 0 | CI181: 0
E182: Less: Taxes Paid from Below | J182: =J274 -> 0 | K182: =K274 -> 0 | L182: 0 | M182: 0 | N182: 0 | O182: 0 | P182: 0 | Q182: 0 | R182: 0 | S182: 0 | T182: 0 | U182: 0 | V182: 123.6296433 | W182: 843.3044586 | X182: 1046.240342 | Y182: 1265.87885 | Z182: 1503.490745 | AA182: 1760.423882 | AB182: 2038.135127 | AC182: 2338.182138 | AD182: 2621.281386 | AE182: 2888.16687 | AF182: 3174.491637 | AG182: 3481.648857 | AH182: 3811.131101 | AI182: 4164.537424 | AJ182: 4543.580952 | AK182: 4950.097012 | AL182: 5386.051839 | AM182: 5853.551902 | AN182: 0 | AO182: 0 | AP182: 0 | AQ182: 0 | AR182: 0 | AS182: 0 | AT182: 0 | AU182: 0 | AV182: 0 | AW182: 0 | AX182: 0 | AY182: 0 | AZ182: 0 | BA182: 0 | BB182: 0 | BC182: 0 | BD182: 0 | BE182: 0 | BF182: 0 | BG182: 0 | BH182: 0 | BI182: 0 | BJ182: 0 | BK182: 0 | BL182: 0 | BM182: 0 | BN182: 0 | BO182: 0 | BP182: 0 | BQ182: 0 | BR182: 0 | BS182: 0 | BT182: 0 | BU182: 0 | BV182: 0 | BW182: =BW274 -> 0 | BX182: 0 | BY182: 0 | BZ182: 0 | CA182: 0 | CB182: 0 | CC182: 0 | CD182: 0 | CE182: 0 | CF182: 0 | CG182: 0 | CH182: 0 | CI182: 0
E183: CFADS for Debt Sizing | J183: =J180+J181-J182 -> 0 | K183: =K180+K181-K182 -> 0 | L183: 0 | M183: =M180+M181-M182 -> 3082.191781 | N183: =N180+N181-N182 -> 3266.543836 | O183: =O180+O181-O182 -> 3551.368715 | P183: =P180+P181-P182 -> 3857.285239 | Q183: =Q180+Q181-Q182 -> 4186.786752 | R183: =R180+R181-R182 -> 4540.09358 | S183: =S180+S181-S182 -> 4919.927137 | T183: =T180+T181-T182 -> 5327.68569 | U183: =U180+U181-U182 -> 5766.430986 | V183: =V180+V181-V182 -> 6113.160586 | W183: =W180+W181-W182 -> 5898.821111 | X183: =X180+X181-X182 -> 6238.156255 | Y183: =Y180+Y181-Y182 -> 6601.516429 | Z183: =Z180+Z181-Z182 -> 6988.82164 | AA183: =AA180+AA181-AA182 -> 7402.91166 | AB183: =AB180+AB181-AB182 -> 7845.038121 | AC183: =AC180+AC181-AC182 -> 8318.377127 | AD183: =AD180+AD181-AD182 -> 8864.175166 | AE183: =AE180+AE181-AE182 -> 9486.953095 | AF183: =AF180+AF181-AF182 -> 10154.7631 | AG183: =AG180+AG181-AG182 -> 10872.16454 | AH183: =AH180+AH181-AH182 -> 11640.67719 | AI183: =AI180+AI181-AI182 -> 12465.34079 | AJ183: =AJ180+AJ181-AJ182 -> 13349.4714 | AK183: =AK180+AK181-AK182 -> 14298.76794 | AL183: =AL180+AL181-AL182 -> 15315.6936 | AM183: =AM180+AM181-AM182 -> 16406.57995 | AN183: =AN180+AN181-AN182 -> -137.5412149 | AO183: =AO180+AO181-AO182 -> 0 | AP183: =AP180+AP181-AP182 -> 0 | AQ183: =AQ180+AQ181-AQ182 -> 0 | AR183: =AR180+AR181-AR182 -> 0 | AS183: =AS180+AS181-AS182 -> 0 | AT183: =AT180+AT181-AT182 -> 0 | AU183: =AU180+AU181-AU182 -> 0 | AV183: =AV180+AV181-AV182 -> 0 | AW183: =AW180+AW181-AW182 -> 0 | AX183: =AX180+AX181-AX182 -> 0 | AY183: =AY180+AY181-AY182 -> 0 | AZ183: =AZ180+AZ181-AZ182 -> 0 | BA183: =BA180+BA181-BA182 -> 0 | BB183: =BB180+BB181-BB182 -> 0 | BC183: =BC180+BC181-BC182 -> 0 | BD183: =BD180+BD181-BD182 -> 0 | BE183: =BE180+BE181-BE182 -> 0 | BF183: =BF180+BF181-BF182 -> 0 | BG183: =BG180+BG181-BG182 -> 0 | BH183: =BH180+BH181-BH182 -> 0 | BI183: =BI180+BI181-BI182 -> 0 | BJ183: =BJ180+BJ181-BJ182 -> 0 | BK183: =BK180+BK181-BK182 -> 0 | BL183: =BL180+BL181-BL182 -> 0 | BM183: =BM180+BM181-BM182 -> 0 | BN183: =BN180+BN181-BN182 -> 0 | BO183: =BO180+BO181-BO182 -> 0 | BP183: =BP180+BP181-BP182 -> 0 | BQ183: =BQ180+BQ181-BQ182 -> 0 | BR183: =BR180+BR181-BR182 -> 0 | BS183: =BS180+BS181-BS182 -> 0 | BT183: =BT180+BT181-BT182 -> 0 | BU183: =BU180+BU181-BU182 -> 0 | BV183: =BV180+BV181-BV182 -> 0 | BW183: =BW180+BW181-BW182 -> 0 | BX183: =BX180+BX181-BX182 -> 0 | BY183: =BY180+BY181-BY182 -> 0 | BZ183: =BZ180+BZ181-BZ182 -> 0 | CA183: =CA180+CA181-CA182 -> 0 | CB183: =CB180+CB181-CB182 -> 0 | CC183: =CC180+CC181-CC182 -> 0 | CD183: =CD180+CD181-CD182 -> 0 | CE183: =CE180+CE181-CE182 -> 0 | CF183: =CF180+CF181-CF182 -> 0 | CG183: =CG180+CG181-CG182 -> 0 | CH183: =CH180+CH181-CH182 -> 0 | CI183: =CI180+CI181-CI182 -> 0
E185: Repayment Period | F185: =Inputs!G78 -> 2042-01-01 | J185: =(AND(J4,J2<$F$185))*1 -> 0 | K185: 0 | L185: 0 | M185: 1 | N185: 1 | O185: 1 | P185: 1 | Q185: 1 | R185: 1 | S185: 1 | T185: 1 | U185: 1 | V185: 1 | W185: 1 | X185: 1 | Y185: 1 | Z185: 1 | AA185: 1 | AB185: 1 | AC185: 1 | AD185: 0 | AE185: 0 | AF185: 0 | AG185: 0 | AH185: 0 | AI185: 0 | AJ185: 0 | AK185: 0 | AL185: 0 | AM185: 0 | AN185: 0 | AO185: 0 | AP185: =(AND(AP4,AP2<$F$185))*1 -> 0 | AQ185: 0 | AR185: 0 | AS185: 0 | AT185: 0 | AU185: 0 | AV185: 0 | AW185: 0 | AX185: 0 | AY185: 0 | AZ185: 0 | BA185: 0 | BB185: 0 | BC185: 0 | BD185: 0 | BE185: 0 | BF185: 0 | BG185: 0 | BH185: 0 | BI185: 0 | BJ185: 0 | BK185: 0 | BL185: 0 | BM185: 0 | BN185: 0 | BO185: 0 | BP185: 0 | BQ185: 0 | BR185: 0 | BS185: 0 | BT185: 0 | BU185: 0 | BV185: =(AND(BV4,BV2<$F$185))*1 -> 0 | BW185: 0 | BX185: 0 | BY185: 0 | BZ185: 0 | CA185: 0 | CB185: 0 | CC185: 0 | CD185: 0 | CE185: 0 | CF185: 0 | CG185: 0 | CH185: 0 | CI185: 0
E186: DSCR Input and Debt Service | F186: =Inputs!G65 -> 1.35 | H186: =SUM(J186:XFD186) -> 69559.34566 | J186: =J183*J185/$F$186 -> 0 | K186: 0 | L186: 0 | M186: 2283.105023 | N186: 2419.6621 | O186: 2630.643492 | P186: 2857.248325 | Q186: 3101.32352 | R186: 3363.032281 | S186: 3644.390472 | T186: 3946.433845 | U186: 4271.43036 | V186: 4528.2671 | W186: 4369.497119 | X186: 4620.856485 | Y186: 4890.012169 | Z186: 5176.904919 | AA186: 5483.638267 | AB186: 5811.139349 | AC186: 6161.760835 | AD186: 0 | AE186: 0 | AF186: 0 | AG186: 0 | AH186: 0 | AI186: 0 | AJ186: 0 | AK186: 0 | AL186: 0 | AM186: 0 | AN186: 0 | AO186: 0 | AP186: =AP183*AP185/$F$186 -> 0 | AQ186: 0 | AR186: 0 | AS186: 0 | AT186: 0 | AU186: 0 | AV186: 0 | AW186: 0 | AX186: 0 | AY186: 0 | AZ186: 0 | BA186: 0 | BB186: 0 | BC186: 0 | BD186: 0 | BE186: 0 | BF186: 0 | BG186: 0 | BH186: 0 | BI186: 0 | BJ186: 0 | BK186: 0 | BL186: 0 | BM186: 0 | BN186: 0 | BO186: 0 | BP186: 0 | BQ186: 0 | BR186: 0 | BS186: 0 | BT186: 0 | BU186: 0 | BV186: =BV183*BV185/$F$186 -> 0 | BW186: 0 | BX186: 0 | BY186: 0 | BZ186: 0 | CA186: 0 | CB186: 0 | CC186: 0 | CD186: 0 | CE186: 0 | CF186: 0 | CG186: 0 | CH186: 0 | CI186: 0
E188: Interest Rate | F188: =Inputs!G74+Inputs!G75 -> 0.04 | J188: =$F$188 -> 0.04 | K188: =$F$188 -> 0.04 | L188: 0.04 | M188: 0.04 | N188: 0.04 | O188: 0.04 | P188: 0.04 | Q188: 0.04 | R188: 0.04 | S188: 0.04 | T188: 0.04 | U188: 0.04 | V188: 0.04 | W188: 0.04 | X188: 0.04 | Y188: 0.04 | Z188: 0.04 | AA188: 0.04 | AB188: 0.04 | AC188: 0.04 | AD188: 0.04 | AE188: 0.04 | AF188: 0.04 | AG188: 0.04 | AH188: 0.04 | AI188: 0.04 | AJ188: 0.04 | AK188: 0.04 | AL188: 0.04 | AM188: 0.04 | AN188: 0.04 | AO188: 0.04 | AP188: 0.04 | AQ188: 0.04 | AR188: 0.04 | AS188: 0.04 | AT188: 0.04 | AU188: 0.04 | AV188: 0.04 | AW188: 0.04 | AX188: 0.04 | AY188: 0.04 | AZ188: 0.04 | BA188: 0.04 | BB188: 0.04 | BC188: 0.04 | BD188: 0.04 | BE188: 0.04 | BF188: 0.04 | BG188: 0.04 | BH188: 0.04 | BI188: 0.04 | BJ188: 0.04 | BK188: 0.04 | BL188: 0.04 | BM188: 0.04 | BN188: 0.04 | BO188: 0.04 | BP188: 0.04 | BQ188: 0.04 | BR188: 0.04 | BS188: 0.04 | BT188: 0.04 | BU188: 0.04 | BV188: 0.04 | BW188: =$F$188 -> 0.04 | BX188: 0.04 | BY188: 0.04 | BZ188: 0.04 | CA188: 0.04 | CB188: 0.04 | CC188: 0.04 | CD188: 0.04 | CE188: 0.04 | CF188: 0.04 | CG188: 0.04 | CH188: 0.04 | CI188: 0.04
E189: Interest Rate Index for NPV | I189: 1 | J189: =I189*(1+J188*J185) -> 1 | K189: =J189*(1+K188*K185) -> 1 | L189: 1 | M189: 1.04 | N189: 1.0816 | O189: 1.124864 | P189: 1.16985856 | Q189: 1.216652902 | R189: 1.265319018 | S189: 1.315931779 | T189: 1.36856905 | U189: 1.423311812 | V189: 1.480244285 | W189: 1.539454056 | X189: 1.601032219 | Y189: 1.665073507 | Z189: 1.731676448 | AA189: 1.800943506 | AB189: 1.872981246 | AC189: 1.947900496 | AD189: 1.947900496 | AE189: 1.947900496 | AF189: 1.947900496 | AG189: 1.947900496 | AH189: 1.947900496 | AI189: 1.947900496 | AJ189: 1.947900496 | AK189: 1.947900496 | AL189: 1.947900496 | AM189: 1.947900496 | AN189: 1.947900496 | AO189: 1.947900496 | AP189: 1.947900496 | AQ189: 1.947900496 | AR189: 1.947900496 | AS189: 1.947900496 | AT189: 1.947900496 | AU189: 1.947900496 | AV189: 1.947900496 | AW189: 1.947900496 | AX189: 1.947900496 | AY189: 1.947900496 | AZ189: 1.947900496 | BA189: 1.947900496 | BB189: 1.947900496 | BC189: 1.947900496 | BD189: 1.947900496 | BE189: 1.947900496 | BF189: 1.947900496 | BG189: 1.947900496 | BH189: 1.947900496 | BI189: 1.947900496 | BJ189: 1.947900496 | BK189: 1.947900496 | BL189: 1.947900496 | BM189: 1.947900496 | BN189: 1.947900496 | BO189: 1.947900496 | BP189: 1.947900496 | BQ189: 1.947900496 | BR189: 1.947900496 | BS189: 1.947900496 | BT189: 1.947900496 | BU189: 1.947900496 | BV189: 1.947900496 | BW189: =BV189*(1+BW188*BW185) -> 1.947900496 | BX189: 1.947900496 | BY189: 1.947900496 | BZ189: 1.947900496 | CA189: 1.947900496 | CB189: 1.947900496 | CC189: 1.947900496 | CD189: 1.947900496 | CE189: 1.947900496 | CF189: 1.947900496 | CG189: 1.947900496 | CH189: 1.947900496 | CI189: 1.947900496
E191: NPV of Debt Service from DSCR | H191: =SUMPRODUCT(J186:CI186/J189:CI189) -> 47095.21665
E193: Minimum of Two Methods | H193: =MIN(H191,H177) -> 47095.21665
E195: Debt to Capital for Pro-Rata | H195: =H193/H175 -> 0.635296573
E197: CFADS over Repayment | J197: =J183*J185 -> 0 | K197: =K183*K185 -> 0 | L197: 0 | M197: 3082.191781 | N197: 3266.543836 | O197: 3551.368715 | P197: 3857.285239 | Q197: 4186.786752 | R197: 4540.09358 | S197: 4919.927137 | T197: 5327.68569 | U197: 5766.430986 | V197: 6113.160586 | W197: 5898.821111 | X197: 6238.156255 | Y197: 6601.516429 | Z197: 6988.82164 | AA197: 7402.91166 | AB197: 7845.038121 | AC197: 8318.377127 | AD197: 0 | AE197: 0 | AF197: 0 | AG197: 0 | AH197: 0 | AI197: 0 | AJ197: 0 | AK197: 0 | AL197: 0 | AM197: 0 | AN197: 0 | AO197: 0 | AP197: 0 | AQ197: 0 | AR197: 0 | AS197: 0 | AT197: 0 | AU197: 0 | AV197: 0 | AW197: 0 | AX197: 0 | AY197: 0 | AZ197: 0 | BA197: 0 | BB197: 0 | BC197: 0 | BD197: 0 | BE197: 0 | BF197: 0 | BG197: 0 | BH197: 0 | BI197: 0 | BJ197: 0 | BK197: 0 | BL197: 0 | BM197: 0 | BN197: 0 | BO197: 0 | BP197: 0 | BQ197: 0 | BR197: 0 | BS197: 0 | BT197: 0 | BU197: 0 | BV197: 0 | BW197: =BW183*BW185 -> 0 | BX197: 0 | BY197: 0 | BZ197: 0 | CA197: 0 | CB197: 0 | CC197: 0 | CD197: 0 | CE197: 0 | CF197: 0 | CG197: 0 | CH197: 0 | CI197: 0
E198: PV of CFADS | H198: =SUMPRODUCT(I197:CH197/J189:CI189) -> 61297.46132
E199: DSCR Applied for Repayment | H199: =H198/H193 -> 1.301564483
B201: SUMMARY SOURCES AND USES
D203: Uses
E204: Capital Expenditure | G204: $ 000s | H204: =SUM(J204:L204) -> 70000 | J204: =-J150 -> 21000 | K204: 21000 | L204: 28000 | M204: 0 | N204: 0 | O204: 0 | P204: 0 | Q204: 0 | R204: 0 | S204: 0 | T204: 0 | U204: 0 | V204: 0 | W204: 0 | X204: 0 | Y204: 0 | Z204: 0 | AA204: 0 | AB204: 0 | AC204: 0 | AD204: 0 | AE204: 0 | AF204: 0 | AG204: 0 | AH204: 0 | AI204: 0 | AJ204: 0 | AK204: 0 | AL204: 0 | AM204: 0 | AN204: 0 | AO204: 0 | AP204: =-AP150 -> 0 | AQ204: 0 | AR204: 0 | AS204: 0 | AT204: 0 | AU204: 0 | AV204: 0 | AW204: 0 | AX204: 0 | AY204: 0 | AZ204: 0 | BA204: 0 | BB204: 0 | BC204: 0 | BD204: 0 | BE204: 0 | BF204: 0 | BG204: 0 | BH204: 0 | BI204: 0 | BJ204: 0 | BK204: 0 | BL204: 0 | BM204: 0 | BN204: 0 | BO204: 0 | BP204: 0 | BQ204: 0 | BR204: 0 | BS204: 0 | BT204: 0 | BU204: 0 | BV204: =-BV150 -> 0 | BW204: 0 | BX204: 0 | BY204: 0 | BZ204: 0 | CA204: 0 | CB204: 0 | CC204: 0 | CD204: 0 | CE204: 0 | CF204: 0 | CG204: 0 | CH204: 0
E205: =E$234 -> Construction debt up front fee | F205: =F$234 -> 47095.21665 | G205: $ 000s | H205: =SUM(J205:L205) -> 941.904333 | J205: =J234 -> 941.904333 | K205: =K234 -> 0 | L205: 0 | M205: 0 | N205: 0 | O205: 0 | P205: 0 | Q205: 0 | R205: 0 | S205: 0 | T205: 0 | U205: 0 | V205: 0 | W205: 0 | X205: 0 | Y205: 0 | Z205: 0 | AA205: 0 | AB205: 0 | AC205: 0 | AD205: 0 | AE205: 0 | AF205: 0 | AG205: 0 | AH205: 0 | AI205: 0 | AJ205: 0 | AK205: 0 | AL205: 0 | AM205: 0 | AN205: 0 | AO205: 0 | AP205: 0 | AQ205: 0 | AR205: 0 | AS205: 0 | AT205: 0 | AU205: 0 | AV205: 0 | AW205: 0 | AX205: 0 | AY205: 0 | AZ205: 0 | BA205: 0 | BB205: 0 | BC205: 0 | BD205: 0 | BE205: 0 | BF205: 0 | BG205: 0 | BH205: 0 | BI205: 0 | BJ205: 0 | BK205: 0 | BL205: 0 | BM205: 0 | BN205: 0 | BO205: 0 | BP205: 0 | BQ205: 0 | BR205: 0 | BS205: 0 | BT205: 0 | BU205: 0 | BV205: 0 | BW205: =BW234 -> 0 | BX205: 0 | BY205: 0 | BZ205: 0 | CA205: 0 | CB205: 0 | CC205: 0 | CD205: 0 | CE205: 0 | CF205: 0 | CG205: 0 | CH205: 0
E206: =E$241 -> Construction debt commitment fee | F206: =F$241 -> 0 | G206: $ 000s | H206: =SUM(J206:L206) -> 1477.354375 | J206: =J241 -> 706.4282498 | K206: =K241 -> 490.6021287 | L206: 280.3239966 | M206: 0 | N206: 0 | O206: 0 | P206: 0 | Q206: 0 | R206: 0 | S206: 0 | T206: 0 | U206: 0 | V206: 0 | W206: 0 | X206: 0 | Y206: 0 | Z206: 0 | AA206: 0 | AB206: 0 | AC206: 0 | AD206: 0 | AE206: 0 | AF206: 0 | AG206: 0 | AH206: 0 | AI206: 0 | AJ206: 0 | AK206: 0 | AL206: 0 | AM206: 0 | AN206: 0 | AO206: 0 | AP206: 0 | AQ206: 0 | AR206: 0 | AS206: 0 | AT206: 0 | AU206: 0 | AV206: 0 | AW206: 0 | AX206: 0 | AY206: 0 | AZ206: 0 | BA206: 0 | BB206: 0 | BC206: 0 | BD206: 0 | BE206: 0 | BF206: 0 | BG206: 0 | BH206: 0 | BI206: 0 | BJ206: 0 | BK206: 0 | BL206: 0 | BM206: 0 | BN206: 0 | BO206: 0 | BP206: 0 | BQ206: 0 | BR206: 0 | BS206: 0 | BT206: 0 | BU206: 0 | BV206: 0 | BW206: =BW241 -> 0 | BX206: 0 | BY206: 0 | BZ206: 0 | CA206: 0 | CB206: 0 | CC206: 0 | CD206: 0 | CE206: 0 | CF206: 0 | CG206: 0 | CH206: 0
E207: Interest during construction | F207: =F$241 -> 0 | G207: $ 000s | H207: =SUM(J207:L207) -> 1711.814331 | J207: =J229 -> 0 | K207: =K229 -> 575.5363229 | L207: 1136.278008 | M207: 0 | N207: 0 | O207: 0 | P207: 0 | Q207: 0 | R207: 0 | S207: 0 | T207: 0 | U207: 0 | V207: 0 | W207: 0 | X207: 0 | Y207: 0 | Z207: 0 | AA207: 0 | AB207: 0 | AC207: 0 | AD207: 0 | AE207: 0 | AF207: 0 | AG207: 0 | AH207: 0 | AI207: 0 | AJ207: 0 | AK207: 0 | AL207: 0 | AM207: 0 | AN207: 0 | AO207: 0 | AP207: 0 | AQ207: 0 | AR207: 0 | AS207: 0 | AT207: 0 | AU207: 0 | AV207: 0 | AW207: 0 | AX207: 0 | AY207: 0 | AZ207: 0 | BA207: 0 | BB207: 0 | BC207: 0 | BD207: 0 | BE207: 0 | BF207: 0 | BG207: 0 | BH207: 0 | BI207: 0 | BJ207: 0 | BK207: 0 | BL207: 0 | BM207: 0 | BN207: 0 | BO207: 0 | BP207: 0 | BQ207: 0 | BR207: 0 | BS207: 0 | BT207: 0 | BU207: 0 | BV207: 0 | BW207: =BW229 -> 0 | BX207: 0 | BY207: 0 | BZ207: 0 | CA207: 0 | CB207: 0 | CC207: 0 | CD207: 0 | CE207: 0 | CF207: 0 | CG207: 0 | CH207: 0
E209: Total Funding Needs | G209: $ 000s | H209: =SUM(J209:L209) -> 74131.07304 | J209: =SUM(J204:J208) -> 22648.33258 | K209: =SUM(K204:K208) -> 22066.13845 | L209: =SUM(L204:L208) -> 29416.60201 | M209: =SUM(M204:M208) -> 0 | N209: 0 | O209: 0 | P209: 0 | Q209: 0 | R209: 0 | S209: 0 | T209: 0 | U209: 0 | V209: 0 | W209: 0 | X209: 0 | Y209: 0 | Z209: 0 | AA209: 0 | AB209: 0 | AC209: 0 | AD209: 0 | AE209: 0 | AF209: 0 | AG209: 0 | AH209: 0 | AI209: 0 | AJ209: 0 | AK209: 0 | AL209: 0 | AM209: 0 | AN209: 0 | AO209: 0 | AP209: 0 | AQ209: 0 | AR209: 0 | AS209: 0 | AT209: 0 | AU209: 0 | AV209: 0 | AW209: 0 | AX209: 0 | AY209: 0 | AZ209: 0 | BA209: 0 | BB209: 0 | BC209: 0 | BD209: 0 | BE209: 0 | BF209: 0 | BG209: 0 | BH209: 0 | BI209: 0 | BJ209: 0 | BK209: 0 | BL209: 0 | BM209: 0 | BN209: 0 | BO209: 0 | BP209: 0 | BQ209: 0 | BR209: 0 | BS209: 0 | BT209: 0 | BU209: 0 | BV209: 0 | BW209: 0 | BX209: 0 | BY209: =SUM(BY204:BY208) -> 0 | BZ209: 0 | CA209: 0 | CB209: 0 | CC209: 0 | CD209: 0 | CE209: 0 | CF209: 0 | CG209: 0 | CH209: 0 | CI209: =SUM(CI204:CI208) -> 0
E211: Debt Funding | F211: =H195 -> 0.635296573 | H211: =SUM(J211:L211) -> 47095.21665 | J211: =J209*$F$211 -> 14388.40807 | K211: =K209*$F$211 -> 14018.54214 | L211: 18688.26644 | M211: 0 | N211: 0 | O211: 0 | P211: 0 | Q211: 0 | R211: 0 | S211: 0 | T211: 0 | U211: 0 | V211: 0 | W211: 0 | X211: 0 | Y211: 0 | Z211: 0 | AA211: 0 | AB211: 0 | AC211: 0 | AD211: 0 | AE211: 0 | AF211: 0 | AG211: 0 | AH211: 0 | AI211: 0 | AJ211: 0 | AK211: 0 | AL211: 0 | AM211: 0 | AN211: 0 | AO211: 0 | AP211: 0 | AQ211: 0 | AR211: 0 | AS211: 0 | AT211: 0 | AU211: 0 | AV211: 0 | AW211: 0 | AX211: 0 | AY211: 0 | AZ211: 0 | BA211: 0 | BB211: 0 | BC211: 0 | BD211: 0 | BE211: 0 | BF211: 0 | BG211: 0 | BH211: 0 | BI211: 0 | BJ211: 0 | BK211: 0 | BL211: 0 | BM211: 0 | BN211: 0 | BO211: 0 | BP211: 0 | BQ211: 0 | BR211: 0 | BS211: 0 | BT211: 0 | BU211: 0 | BV211: 0 | BW211: =BW209*$F$211 -> 0 | BX211: 0 | BY211: 0 | BZ211: 0 | CA211: 0 | CB211: 0 | CC211: 0 | CD211: 0 | CE211: 0 | CF211: 0 | CG211: 0 | CH211: 0 | CI211: 0
E212: Equity Funding | H212: =SUM(J212:L212) -> 27035.85639 | J212: =J209-J211 -> 8259.92451 | K212: =K209-K211 -> 8047.596315 | L212: 10728.33556 | M212: 0 | N212: 0 | O212: 0 | P212: 0 | Q212: 0 | R212: 0 | S212: 0 | T212: 0 | U212: 0 | V212: 0 | W212: 0 | X212: 0 | Y212: 0 | Z212: 0 | AA212: 0 | AB212: 0 | AC212: 0 | AD212: 0 | AE212: 0 | AF212: 0 | AG212: 0 | AH212: 0 | AI212: 0 | AJ212: 0 | AK212: 0 | AL212: 0 | AM212: 0 | AN212: 0 | AO212: 0 | AP212: 0 | AQ212: 0 | AR212: 0 | AS212: 0 | AT212: 0 | AU212: 0 | AV212: 0 | AW212: 0 | AX212: 0 | AY212: 0 | AZ212: 0 | BA212: 0 | BB212: 0 | BC212: 0 | BD212: 0 | BE212: 0 | BF212: 0 | BG212: 0 | BH212: 0 | BI212: 0 | BJ212: 0 | BK212: 0 | BL212: 0 | BM212: 0 | BN212: 0 | BO212: 0 | BP212: 0 | BQ212: 0 | BR212: 0 | BS212: 0 | BT212: 0 | BU212: 0 | BV212: 0 | BW212: =BW209-BW211 -> 0 | BX212: 0 | BY212: 0 | BZ212: 0 | CA212: 0 | CB212: 0 | CC212: 0 | CD212: 0 | CE212: 0 | CF212: 0 | CG212: 0 | CH212: 0 | CI212: 0
E213: Total Funding | H213: =SUM(J213:L213) -> 74131.07304 | J213: =SUM(J211:J212) -> 22648.33258 | K213: =SUM(K211:K212) -> 22066.13845 | L213: 29416.60201 | M213: 0 | N213: 0 | O213: 0 | P213: 0 | Q213: 0 | R213: 0 | S213: 0 | T213: 0 | U213: 0 | V213: 0 | W213: 0 | X213: 0 | Y213: 0 | Z213: 0 | AA213: 0 | AB213: 0 | AC213: 0 | AD213: 0 | AE213: 0 | AF213: 0 | AG213: 0 | AH213: 0 | AI213: 0 | AJ213: 0 | AK213: 0 | AL213: 0 | AM213: 0 | AN213: 0 | AO213: 0 | AP213: 0 | AQ213: 0 | AR213: 0 | AS213: 0 | AT213: 0 | AU213: 0 | AV213: 0 | AW213: 0 | AX213: 0 | AY213: 0 | AZ213: 0 | BA213: 0 | BB213: 0 | BC213: 0 | BD213: 0 | BE213: 0 | BF213: 0 | BG213: 0 | BH213: 0 | BI213: 0 | BJ213: 0 | BK213: 0 | BL213: 0 | BM213: 0 | BN213: 0 | BO213: 0 | BP213: 0 | BQ213: 0 | BR213: 0 | BS213: 0 | BT213: 0 | BU213: 0 | BV213: 0 | BW213: =SUM(BW211:BW212) -> 0 | BX213: 0 | BY213: 0 | BZ213: 0 | CA213: 0 | CB213: 0 | CC213: 0 | CD213: 0 | CE213: 0 | CF213: 0 | CG213: 0 | CH213: 0 | CI213: 0
B215: Debt Balance
C217: CFADS without Tenor Limit | G217: $ 000s | J217: =J183 -> 0 | K217: 0 | L217: 0 | M217: 3082.191781 | N217: 3266.543836 | O217: 3551.368715 | P217: 3857.285239 | Q217: 4186.786752 | R217: 4540.09358 | S217: 4919.927137 | T217: 5327.68569 | U217: 5766.430986 | V217: 6113.160586 | W217: 5898.821111 | X217: 6238.156255 | Y217: 6601.516429 | Z217: 6988.82164 | AA217: 7402.91166 | AB217: 7845.038121 | AC217: 8318.377127 | AD217: 8864.175166 | AE217: 9486.953095 | AF217: 10154.7631 | AG217: 10872.16454 | AH217: 11640.67719 | AI217: 12465.34079 | AJ217: 13349.4714 | AK217: 14298.76794 | AL217: 15315.6936 | AM217: 16406.57995 | AN217: -137.5412149 | AO217: 0 | AP217: =AP183 -> 0 | AQ217: 0 | AR217: 0 | AS217: 0 | AT217: 0 | AU217: 0 | AV217: 0 | AW217: 0 | AX217: 0 | AY217: 0 | AZ217: 0 | BA217: 0 | BB217: 0 | BC217: 0 | BD217: 0 | BE217: 0 | BF217: 0 | BG217: 0 | BH217: 0 | BI217: 0 | BJ217: 0 | BK217: 0 | BL217: 0 | BM217: 0 | BN217: 0 | BO217: 0 | BP217: 0 | BQ217: 0 | BR217: 0 | BS217: 0 | BT217: 0 | BU217: 0 | BV217: =BV183 -> 0 | BW217: 0 | BX217: 0 | BY217: 0 | BZ217: 0 | CA217: 0 | CB217: 0 | CC217: 0 | CD217: 0 | CE217: 0 | CF217: 0 | CG217: 0 | CH217: 0 | CI217: 0
C218: Total Repayment from Above | F218: =H199 -> 1.301564483 | G218: $ 000s | J218: =J217/$F$218 -> 0 | K218: =K217/$F$218 -> 0 | L218: 0 | M218: 2368.066908 | N218: 2509.705726 | O218: 2728.538433 | P218: 2963.57598 | Q218: 3216.73402 | R218: 3488.181829 | S218: 3780.010289 | T218: 4093.293694 | U218: 4430.384404 | V218: 4696.778888 | W218: 4532.100551 | X218: 4792.81383 | Y218: 5071.985687 | Z218: 5369.554664 | AA218: 5687.702574 | AB218: 6027.391054 | AC218: 6391.060324 | AD218: 6810.400315 | AE218: 7288.884429 | AF218: 7801.966965 | AG218: 8353.150907 | AH218: 8943.6039 | AI218: 9577.198022 | AJ218: 10256.48101 | AK218: 10985.83138 | AL218: 11767.14162 | AM218: 12605.27632 | AN218: -105.6737616 | AO218: 0 | AP218: 0 | AQ218: 0 | AR218: 0 | AS218: 0 | AT218: 0 | AU218: 0 | AV218: 0 | AW218: 0 | AX218: 0 | AY218: 0 | AZ218: 0 | BA218: 0 | BB218: 0 | BC218: 0 | BD218: 0 | BE218: 0 | BF218: 0 | BG218: 0 | BH218: 0 | BI218: 0 | BJ218: 0 | BK218: 0 | BL218: 0 | BM218: 0 | BN218: 0 | BO218: 0 | BP218: 0 | BQ218: 0 | BR218: 0 | BS218: 0 | BT218: 0 | BU218: 0 | BV218: 0 | BW218: =BW217/$F$218 -> 0 | BX218: 0 | BY218: 0 | BZ218: 0 | CA218: 0 | CB218: 0 | CC218: 0 | CD218: 0 | CE218: 0 | CF218: 0 | CG218: 0 | CH218: 0 | CI218: 0
C220: Loan Balance
D221: Opening Balance | G221: $ 000s | J221: =I224 -> 0 | K221: =J224 -> 14388.40807 | L221: 28406.95021 | M221: 47095.21665 | N221: 46610.95841 | O221: 45965.69102 | P221: 45075.78023 | Q221: 43915.23546 | R221: 42455.11086 | S221: 40665.13346 | T221: 38511.72851 | U221: 35958.90396 | V221: 32966.87571 | W221: 29588.77185 | X221: 26240.22218 | Y221: 22497.01723 | Z221: 18324.91223 | AA221: 13688.35406 | AB221: 8548.185649 | AC221: 2862.722022 | AD221: 0 | AE221: 0 | AF221: 0 | AG221: 0 | AH221: 0 | AI221: 0 | AJ221: 0 | AK221: 0 | AL221: 0 | AM221: 0 | AN221: 0 | AO221: 0 | AP221: 0 | AQ221: 0 | AR221: 0 | AS221: 0 | AT221: 0 | AU221: 0 | AV221: 0 | AW221: 0 | AX221: 0 | AY221: 0 | AZ221: 0 | BA221: 0 | BB221: 0 | BC221: 0 | BD221: 0 | BE221: 0 | BF221: 0 | BG221: 0 | BH221: 0 | BI221: 0 | BJ221: 0 | BK221: 0 | BL221: 0 | BM221: 0 | BN221: 0 | BO221: 0 | BP221: 0 | BQ221: 0 | BR221: 0 | BS221: 0 | BT221: 0 | BU221: 0 | BV221: 0 | BW221: =BV224 -> 0 | BX221: 0 | BY221: 0 | BZ221: 0 | CA221: 0 | CB221: 0 | CC221: 0 | CD221: 0 | CE221: 0 | CF221: 0 | CG221: 0 | CH221: 0 | CI221: 0
D222: Add: Draws | G222: $ 000s | H222: =SUM(J222:XFD222) -> 47095.21665 | J222: =J211 -> 14388.40807 | K222: 14018.54214 | L222: 18688.26644 | M222: 0 | N222: 0 | O222: 0 | P222: 0 | Q222: 0 | R222: 0 | S222: 0 | T222: 0 | U222: 0 | V222: 0 | W222: 0 | X222: 0 | Y222: 0 | Z222: 0 | AA222: 0 | AB222: 0 | AC222: 0 | AD222: 0 | AE222: 0 | AF222: 0 | AG222: 0 | AH222: 0 | AI222: 0 | AJ222: 0 | AK222: 0 | AL222: 0 | AM222: 0 | AN222: 0 | AO222: 0 | AP222: =AP211 -> 0 | AQ222: 0 | AR222: 0 | AS222: 0 | AT222: 0 | AU222: 0 | AV222: 0 | AW222: 0 | AX222: 0 | AY222: 0 | AZ222: 0 | BA222: 0 | BB222: 0 | BC222: 0 | BD222: 0 | BE222: 0 | BF222: 0 | BG222: 0 | BH222: 0 | BI222: 0 | BJ222: 0 | BK222: 0 | BL222: 0 | BM222: 0 | BN222: 0 | BO222: 0 | BP222: 0 | BQ222: 0 | BR222: 0 | BS222: 0 | BT222: 0 | BU222: 0 | BV222: =BV211 -> 0 | BW222: 0 | BX222: 0 | BY222: 0 | BZ222: 0 | CA222: 0 | CB222: 0 | CC222: 0 | CD222: 0 | CE222: 0 | CF222: 0 | CG222: 0 | CH222: 0 | CI222: 0
D223: Less: Repayment | G223: $ 000s | H223: =SUM(J223:XFD223) -> 47095.21665 | J223: =MAX(MIN(J218-J228,J221),0) -> 0 | K223: =MAX(MIN(K218-K228,K221),0) -> 0 | L223: 0 | M223: 484.2582418 | N223: 645.2673893 | O223: 889.9107919 | P223: 1160.544771 | Q223: 1460.124602 | R223: 1789.977395 | S223: 2153.40495 | T223: 2552.824553 | U223: 2992.028245 | V223: 3378.10386 | W223: 3348.549677 | X223: 3743.204943 | Y223: 4172.104998 | Z223: 4636.558174 | AA223: 5140.168411 | AB223: 5685.463628 | AC223: 2862.722022 | AD223: 0 | AE223: 0 | AF223: 0 | AG223: 0 | AH223: 0 | AI223: 0 | AJ223: 0 | AK223: 0 | AL223: 0 | AM223: 0 | AN223: 0 | AO223: 0 | AP223: 0 | AQ223: 0 | AR223: 0 | AS223: 0 | AT223: 0 | AU223: 0 | AV223: 0 | AW223: 0 | AX223: 0 | AY223: 0 | AZ223: 0 | BA223: 0 | BB223: 0 | BC223: 0 | BD223: 0 | BE223: 0 | BF223: 0 | BG223: 0 | BH223: 0 | BI223: 0 | BJ223: 0 | BK223: 0 | BL223: 0 | BM223: 0 | BN223: 0 | BO223: 0 | BP223: 0 | BQ223: 0 | BR223: 0 | BS223: 0 | BT223: 0 | BU223: 0 | BV223: 0 | BW223: =MAX(MIN(BW218-BW228,BW221),0) -> 0 | BX223: 0 | BY223: 0 | BZ223: 0 | CA223: 0 | CB223: 0 | CC223: 0 | CD223: 0 | CE223: 0 | CF223: 0 | CG223: 0 | CH223: 0 | CI223: 0
D224: Closing Balance | G224: $ 000s | J224: =J221+J222-J223 -> 14388.40807 | K224: =K221+K222-K223 -> 28406.95021 | L224: 47095.21665 | M224: 46610.95841 | N224: 45965.69102 | O224: 45075.78023 | P224: 43915.23546 | Q224: 42455.11086 | R224: 40665.13346 | S224: 38511.72851 | T224: 35958.90396 | U224: 32966.87571 | V224: 29588.77185 | W224: 26240.22218 | X224: 22497.01723 | Y224: 18324.91223 | Z224: 13688.35406 | AA224: 8548.185649 | AB224: 2862.722022 | AC224: 0 | AD224: 0 | AE224: 0 | AF224: 0 | AG224: 0 | AH224: 0 | AI224: 0 | AJ224: 0 | AK224: 0 | AL224: 0 | AM224: 0 | AN224: 0 | AO224: 0 | AP224: 0 | AQ224: 0 | AR224: 0 | AS224: 0 | AT224: 0 | AU224: 0 | AV224: 0 | AW224: 0 | AX224: 0 | AY224: 0 | AZ224: 0 | BA224: 0 | BB224: 0 | BC224: 0 | BD224: 0 | BE224: 0 | BF224: 0 | BG224: 0 | BH224: 0 | BI224: 0 | BJ224: 0 | BK224: 0 | BL224: 0 | BM224: 0 | BN224: 0 | BO224: 0 | BP224: 0 | BQ224: 0 | BR224: 0 | BS224: 0 | BT224: 0 | BU224: 0 | BV224: 0 | BW224: =BW221+BW222-BW223 -> 0 | BX224: 0 | BY224: 0 | BZ224: 0 | CA224: 0 | CB224: 0 | CC224: 0 | CD224: 0 | CE224: 0 | CF224: 0 | CG224: 0 | CH224: 0 | CI224: 0
E226: Interest rate on debt | F226: =F188 -> 0.04 | G226: % | J226: =$F$226 -> 0.04 | K226: =$F$226 -> 0.04 | L226: 0.04 | M226: 0.04 | N226: 0.04 | O226: 0.04 | P226: 0.04 | Q226: 0.04 | R226: 0.04 | S226: 0.04 | T226: 0.04 | U226: 0.04 | V226: 0.04 | W226: 0.04 | X226: 0.04 | Y226: 0.04 | Z226: 0.04 | AA226: 0.04 | AB226: 0.04 | AC226: 0.04 | AD226: 0.04 | AE226: 0.04 | AF226: 0.04 | AG226: 0.04 | AH226: 0.04 | AI226: 0.04 | AJ226: 0.04 | AK226: 0.04 | AL226: 0.04 | AM226: 0.04 | AN226: 0.04 | AO226: 0.04 | AP226: 0.04 | AQ226: 0.04 | AR226: 0.04 | AS226: 0.04 | AT226: 0.04 | AU226: 0.04 | AV226: 0.04 | AW226: 0.04 | AX226: 0.04 | AY226: 0.04 | AZ226: 0.04 | BA226: 0.04 | BB226: 0.04 | BC226: 0.04 | BD226: 0.04 | BE226: 0.04 | BF226: 0.04 | BG226: 0.04 | BH226: 0.04 | BI226: 0.04 | BJ226: 0.04 | BK226: 0.04 | BL226: 0.04 | BM226: 0.04 | BN226: 0.04 | BO226: 0.04 | BP226: 0.04 | BQ226: 0.04 | BR226: 0.04 | BS226: 0.04 | BT226: 0.04 | BU226: 0.04 | BV226: 0.04 | BW226: =$F$226 -> 0.04 | BX226: 0.04 | BY226: 0.04 | BZ226: 0.04 | CA226: 0.04 | CB226: 0.04 | CC226: 0.04 | CD226: 0.04 | CE226: 0.04 | CF226: 0.04 | CG226: 0.04 | CH226: 0.04 | CI226: 0.04
E227: Interest Paid | H227: =SUM(J227:XFD227) -> 23350.64711 | J227: =J226*J221 -> 0 | K227: =K226*K221 -> 575.5363229 | L227: 1136.278008 | M227: 1883.808666 | N227: 1864.438336 | O227: 1838.627641 | P227: 1803.031209 | Q227: 1756.609418 | R227: 1698.204434 | S227: 1626.605338 | T227: 1540.46914 | U227: 1438.356158 | V227: 1318.675028 | W227: 1183.550874 | X227: 1049.608887 | Y227: 899.8806893 | Z227: 732.9964894 | AA227: 547.5341624 | AB227: 341.927426 | AC227: 114.5088809 | AD227: 0 | AE227: 0 | AF227: 0 | AG227: 0 | AH227: 0 | AI227: 0 | AJ227: 0 | AK227: 0 | AL227: 0 | AM227: 0 | AN227: 0 | AO227: 0 | AP227: 0 | AQ227: 0 | AR227: 0 | AS227: 0 | AT227: 0 | AU227: 0 | AV227: 0 | AW227: 0 | AX227: 0 | AY227: 0 | AZ227: 0 | BA227: 0 | BB227: 0 | BC227: 0 | BD227: 0 | BE227: 0 | BF227: 0 | BG227: 0 | BH227: 0 | BI227: 0 | BJ227: 0 | BK227: 0 | BL227: 0 | BM227: 0 | BN227: 0 | BO227: 0 | BP227: 0 | BQ227: 0 | BR227: 0 | BS227: 0 | BT227: 0 | BU227: 0 | BV227: 0 | BW227: =BW226*BW221 -> 0 | BX227: 0 | BY227: 0 | BZ227: 0 | CA227: 0 | CB227: 0 | CC227: 0 | CD227: 0 | CE227: 0 | CF227: 0 | CG227: 0 | CH227: 0 | CI227: 0
E228: Interest Expensed | G228: $ 000s | H228: =SUM(J228:XFD228) -> 21638.83278 | J228: =J227*J4 -> 0 | K228: 0 | L228: 0 | M228: 1883.808666 | N228: 1864.438336 | O228: 1838.627641 | P228: 1803.031209 | Q228: 1756.609418 | R228: 1698.204434 | S228: 1626.605338 | T228: 1540.46914 | U228: 1438.356158 | V228: 1318.675028 | W228: 1183.550874 | X228: 1049.608887 | Y228: 899.8806893 | Z228: 732.9964894 | AA228: 547.5341624 | AB228: 341.927426 | AC228: 114.5088809 | AD228: 0 | AE228: 0 | AF228: 0 | AG228: 0 | AH228: 0 | AI228: 0 | AJ228: 0 | AK228: 0 | AL228: 0 | AM228: 0 | AN228: 0 | AO228: 0 | AP228: =AP227*AP4 -> 0 | AQ228: 0 | AR228: 0 | AS228: 0 | AT228: 0 | AU228: 0 | AV228: 0 | AW228: 0 | AX228: 0 | AY228: 0 | AZ228: 0 | BA228: 0 | BB228: 0 | BC228: 0 | BD228: 0 | BE228: 0 | BF228: 0 | BG228: 0 | BH228: 0 | BI228: 0 | BJ228: 0 | BK228: 0 | BL228: 0 | BM228: 0 | BN228: 0 | BO228: 0 | BP228: 0 | BQ228: 0 | BR228: 0 | BS228: 0 | BT228: 0 | BU228: 0 | BV228: =BV227*BV4 -> 0 | BW228: 0 | BX228: 0 | BY228: 0 | BZ228: 0 | CA228: 0 | CB228: 0 | CC228: 0 | CD228: 0 | CE228: 0 | CF228: 0 | CG228: 0 | CH228: 0 | CI228: 0
E229: Interest Allocated to IDC | H229: =SUM(J229:XFD229) -> 1711.814331 | J229: =J227*J240 -> 0 | K229: =K227*K240 -> 575.5363229 | L229: 1136.278008 | M229: 0 | N229: 0 | O229: 0 | P229: 0 | Q229: 0 | R229: 0 | S229: 0 | T229: 0 | U229: 0 | V229: 0 | W229: 0 | X229: 0 | Y229: 0 | Z229: 0 | AA229: 0 | AB229: 0 | AC229: 0 | AD229: 0 | AE229: 0 | AF229: 0 | AG229: 0 | AH229: 0 | AI229: 0 | AJ229: 0 | AK229: 0 | AL229: 0 | AM229: 0 | AN229: 0 | AO229: 0 | AP229: 0 | AQ229: 0 | AR229: 0 | AS229: 0 | AT229: 0 | AU229: 0 | AV229: 0 | AW229: 0 | AX229: 0 | AY229: 0 | AZ229: 0 | BA229: 0 | BB229: 0 | BC229: 0 | BD229: 0 | BE229: 0 | BF229: 0 | BG229: 0 | BH229: 0 | BI229: 0 | BJ229: 0 | BK229: 0 | BL229: 0 | BM229: 0 | BN229: 0 | BO229: 0 | BP229: 0 | BQ229: 0 | BR229: 0 | BS229: 0 | BT229: 0 | BU229: 0 | BV229: 0 | BW229: =BW227*BW240 -> 0 | BX229: 0 | BY229: 0 | BZ229: 0 | CA229: 0 | CB229: 0 | CC229: 0 | CD229: 0 | CE229: 0 | CF229: 0 | CG229: 0 | CH229: 0 | CI229: 0
C231: Up front fee
E232: =Timing!E$32 -> Financial close date flag | F232: =Inputs!G11 -> 2022-01-01 | G232: Flag | H232: =Timing!H$32 -> 1 | I232: =Timing!I$32 -> 0 | J232: =Timing!J$32 -> 1 | K232: =Timing!K$32 -> 0 | L232: =Timing!L$32 -> 0 | M232: =Timing!M$32 -> 0 | N232: =Timing!N$32 -> 0 | O232: =Timing!O$32 -> 0 | P232: =Timing!P$32 -> 0 | Q232: =Timing!Q$32 -> 0 | R232: =Timing!R$32 -> 0 | S232: =Timing!S$32 -> 0 | T232: =Timing!T$32 -> 0 | U232: =Timing!U$32 -> 0 | V232: =Timing!V$32 -> 0 | W232: =Timing!W$32 -> 0 | X232: =Timing!X$32 -> 0 | Y232: =Timing!Y$32 -> 0 | Z232: =Timing!Z$32 -> 0 | AA232: =Timing!AA$32 -> 0 | AB232: =Timing!AB$32 -> 0 | AC232: =Timing!AC$32 -> 0 | AD232: =Timing!AD$32 -> 0 | AE232: =Timing!AE$32 -> 0 | AF232: =Timing!AF$32 -> 0 | AG232: =Timing!AG$32 -> 0 | AH232: =Timing!AH$32 -> 0 | AI232: =Timing!AI$32 -> 0 | AJ232: =Timing!AJ$32 -> 0 | AK232: =Timing!AK$32 -> 0 | AL232: =Timing!AL$32 -> 0 | AM232: =Timing!AM$32 -> 0 | AN232: =Timing!AN$32 -> 0 | AO232: =Timing!AO$32 -> 0 | AP232: =Timing!AP$32 -> 0 | AQ232: =Timing!AQ$32 -> 0 | AR232: =Timing!AR$32 -> 0 | AS232: =Timing!AS$32 -> 0 | AT232: =Timing!AT$32 -> 0 | AU232: =Timing!AU$32 -> 0 | AV232: =Timing!AV$32 -> 0 | AW232: =Timing!AW$32 -> 0 | AX232: =Timing!AX$32 -> 0 | AY232: =Timing!AY$32 -> 0 | AZ232: =Timing!AZ$32 -> 0 | BA232: =Timing!BA$32 -> 0 | BB232: =Timing!BB$32 -> 0 | BC232: =Timing!BC$32 -> 0 | BD232: =Timing!BD$32 -> 0 | BE232: =Timing!BE$32 -> 0 | BF232: =Timing!BF$32 -> 0 | BG232: =Timing!BG$32 -> 0 | BH232: =Timing!BH$32 -> 0 | BI232: =Timing!BI$32 -> 0 | BJ232: =Timing!BJ$32 -> 0 | BK232: =Timing!BK$32 -> 0 | BL232: =Timing!BL$32 -> 0 | BM232: =Timing!BM$32 -> 0 | BN232: =Timing!BN$32 -> 0 | BO232: =Timing!BO$32 -> 0 | BP232: =Timing!BP$32 -> 0 | BQ232: =Timing!BQ$32 -> 0 | BR232: =Timing!BR$32 -> 0 | BS232: =Timing!BS$32 -> 0 | BT232: =Timing!BT$32 -> 0 | BU232: =Timing!BU$32 -> 0 | BV232: =Timing!BV$32 -> 0 | BW232: =Timing!BW$32 -> 0 | BX232: =Timing!BX$32 -> 0 | BY232: =Timing!BY$32 -> 0 | BZ232: =Timing!BZ$32 -> 0 | CA232: =Timing!CA$32 -> 0 | CB232: =Timing!CB$32 -> 0 | CC232: =Timing!CC$32 -> 0 | CD232: =Timing!CD$32 -> 0 | CE232: =Timing!CE$32 -> 0 | CF232: =Timing!CF$32 -> 0 | CG232: =Timing!CG$32 -> 0 | CH232: =Timing!CH$32 -> 0 | CI232: =Timing!CI$32 -> 0
E233: Up front fee | F233: =Inputs!G71 -> 0.02 | G233: %
E234: Construction debt up front fee | F234: =H193 -> 47095.21665 | G234: $ 000s | H234: =SUM(I234:XFD234) -> 941.904333 | I234: =SUM(K234:CI234) -> 0 | J234: =$F$234*$F$233*J232 -> 941.904333 | K234: =$F$234*$F$233*K232 -> 0 | L234: 0 | M234: 0 | N234: 0 | O234: 0 | P234: 0 | Q234: 0 | R234: 0 | S234: 0 | T234: 0 | U234: 0 | V234: 0 | W234: 0 | X234: 0 | Y234: 0 | Z234: 0 | AA234: 0 | AB234: 0 | AC234: 0 | AD234: 0 | AE234: 0 | AF234: 0 | AG234: 0 | AH234: 0 | AI234: 0 | AJ234: 0 | AK234: 0 | AL234: 0 | AM234: 0 | AN234: 0 | AO234: 0 | AP234: 0 | AQ234: 0 | AR234: 0 | AS234: 0 | AT234: 0 | AU234: 0 | AV234: 0 | AW234: 0 | AX234: 0 | AY234: 0 | AZ234: 0 | BA234: 0 | BB234: 0 | BC234: 0 | BD234: 0 | BE234: 0 | BF234: 0 | BG234: 0 | BH234: 0 | BI234: 0 | BJ234: 0 | BK234: 0 | BL234: 0 | BM234: 0 | BN234: 0 | BO234: 0 | BP234: 0 | BQ234: 0 | BR234: 0 | BS234: 0 | BT234: 0 | BU234: 0 | BV234: 0 | BW234: =$F$234*$F$233*BW232 -> 0 | BX234: 0 | BY234: 0 | BZ234: 0 | CA234: 0 | CB234: 0 | CC234: 0 | CD234: 0 | CE234: 0 | CF234: 0 | CG234: 0 | CH234: 0 | CI234: 0
C236: Commitment fee
E237: Construction debt committed | F237: =H193 -> 47095.21665 | G237: $ 000s | J237: =$F$237 -> 47095.21665 | K237: =$F$237 -> 47095.21665 | L237: 47095.21665 | M237: 47095.21665 | N237: 47095.21665 | O237: 47095.21665 | P237: 47095.21665 | Q237: 47095.21665 | R237: 47095.21665 | S237: 47095.21665 | T237: 47095.21665 | U237: 47095.21665 | V237: 47095.21665 | W237: 47095.21665 | X237: 47095.21665 | Y237: 47095.21665 | Z237: 47095.21665 | AA237: 47095.21665 | AB237: 47095.21665 | AC237: 47095.21665 | AD237: 47095.21665 | AE237: 47095.21665 | AF237: 47095.21665 | AG237: 47095.21665 | AH237: 47095.21665 | AI237: 47095.21665 | AJ237: 47095.21665 | AK237: 47095.21665 | AL237: 47095.21665 | AM237: 47095.21665 | AN237: 47095.21665 | AO237: 47095.21665 | AP237: 47095.21665 | AQ237: 47095.21665 | AR237: 47095.21665 | AS237: 47095.21665 | AT237: 47095.21665 | AU237: 47095.21665 | AV237: 47095.21665 | AW237: 47095.21665 | AX237: 47095.21665 | AY237: 47095.21665 | AZ237: 47095.21665 | BA237: 47095.21665 | BB237: 47095.21665 | BC237: 47095.21665 | BD237: 47095.21665 | BE237: 47095.21665 | BF237: 47095.21665 | BG237: 47095.21665 | BH237: 47095.21665 | BI237: 47095.21665 | BJ237: 47095.21665 | BK237: 47095.21665 | BL237: 47095.21665 | BM237: 47095.21665 | BN237: 47095.21665 | BO237: 47095.21665 | BP237: 47095.21665 | BQ237: 47095.21665 | BR237: 47095.21665 | BS237: 47095.21665 | BT237: 47095.21665 | BU237: 47095.21665 | BV237: 47095.21665 | BW237: =$F$237 -> 47095.21665 | BX237: 47095.21665 | BY237: 47095.21665 | BZ237: 47095.21665 | CA237: 47095.21665 | CB237: 47095.21665 | CC237: 47095.21665 | CD237: 47095.21665 | CE237: 47095.21665 | CF237: 47095.21665 | CG237: 47095.21665 | CH237: 47095.21665 | CI237: 47095.21665
E238: Less: Opening Balance | G238: $ 000s | J238: =J221 -> 0 | K238: =K221 -> 14388.40807 | L238: 28406.95021 | M238: 47095.21665 | N238: 46610.95841 | O238: 45965.69102 | P238: 45075.78023 | Q238: 43915.23546 | R238: 42455.11086 | S238: 40665.13346 | T238: 38511.72851 | U238: 35958.90396 | V238: 32966.87571 | W238: 29588.77185 | X238: 26240.22218 | Y238: 22497.01723 | Z238: 18324.91223 | AA238: 13688.35406 | AB238: 8548.185649 | AC238: 2862.722022 | AD238: 0 | AE238: 0 | AF238: 0 | AG238: 0 | AH238: 0 | AI238: 0 | AJ238: 0 | AK238: 0 | AL238: 0 | AM238: 0 | AN238: 0 | AO238: 0 | AP238: 0 | AQ238: 0 | AR238: 0 | AS238: 0 | AT238: 0 | AU238: 0 | AV238: 0 | AW238: 0 | AX238: 0 | AY238: 0 | AZ238: 0 | BA238: 0 | BB238: 0 | BC238: 0 | BD238: 0 | BE238: 0 | BF238: 0 | BG238: 0 | BH238: 0 | BI238: 0 | BJ238: 0 | BK238: 0 | BL238: 0 | BM238: 0 | BN238: 0 | BO238: 0 | BP238: 0 | BQ238: 0 | BR238: 0 | BS238: 0 | BT238: 0 | BU238: 0 | BV238: 0 | BW238: =BW221 -> 0 | BX238: 0 | BY238: 0 | BZ238: 0 | CA238: 0 | CB238: 0 | CC238: 0 | CD238: 0 | CE238: 0 | CF238: 0 | CG238: 0 | CH238: 0 | CI238: 0
E239: Undrawn Balance | F239: =Inputs!G72 -> 0.015 | G239: $ 000s | J239: =J237-J238 -> 47095.21665 | K239: =K237-K238 -> 32706.80858 | L239: 18688.26644 | M239: 0 | N239: 484.2582418 | O239: 1129.525631 | P239: 2019.436423 | Q239: 3179.981194 | R239: 4640.105796 | S239: 6430.083191 | T239: 8583.488142 | U239: 11136.31269 | V239: 14128.34094 | W239: 17506.4448 | X239: 20854.99448 | Y239: 24598.19942 | Z239: 28770.30442 | AA239: 33406.86259 | AB239: 38547.031 | AC239: 44232.49463 | AD239: 47095.21665 | AE239: 47095.21665 | AF239: 47095.21665 | AG239: 47095.21665 | AH239: 47095.21665 | AI239: 47095.21665 | AJ239: 47095.21665 | AK239: 47095.21665 | AL239: 47095.21665 | AM239: 47095.21665 | AN239: 47095.21665 | AO239: 47095.21665 | AP239: 47095.21665 | AQ239: 47095.21665 | AR239: 47095.21665 | AS239: 47095.21665 | AT239: 47095.21665 | AU239: 47095.21665 | AV239: 47095.21665 | AW239: 47095.21665 | AX239: 47095.21665 | AY239: 47095.21665 | AZ239: 47095.21665 | BA239: 47095.21665 | BB239: 47095.21665 | BC239: 47095.21665 | BD239: 47095.21665 | BE239: 47095.21665 | BF239: 47095.21665 | BG239: 47095.21665 | BH239: 47095.21665 | BI239: 47095.21665 | BJ239: 47095.21665 | BK239: 47095.21665 | BL239: 47095.21665 | BM239: 47095.21665 | BN239: 47095.21665 | BO239: 47095.21665 | BP239: 47095.21665 | BQ239: 47095.21665 | BR239: 47095.21665 | BS239: 47095.21665 | BT239: 47095.21665 | BU239: 47095.21665 | BV239: 47095.21665 | BW239: =BW237-BW238 -> 47095.21665 | BX239: 47095.21665 | BY239: 47095.21665 | BZ239: 47095.21665 | CA239: 47095.21665 | CB239: 47095.21665 | CC239: 47095.21665 | CD239: 47095.21665 | CE239: 47095.21665 | CF239: 47095.21665 | CG239: 47095.21665 | CH239: 47095.21665 | CI239: 47095.21665
E240: =Timing!E$48 -> Construction period flag | F240: =Inputs!G15 -> 2024-12-31 | G240: Flag | I240: =Timing!I$48 -> 0 | J240: =(J2<=$F$240)*1 -> 1 | K240: 1 | L240: 1 | M240: 0 | N240: 0 | O240: 0 | P240: 0 | Q240: 0 | R240: 0 | S240: 0 | T240: 0 | U240: 0 | V240: 0 | W240: 0 | X240: 0 | Y240: 0 | Z240: 0 | AA240: 0 | AB240: 0 | AC240: 0 | AD240: 0 | AE240: 0 | AF240: 0 | AG240: 0 | AH240: 0 | AI240: 0 | AJ240: 0 | AK240: 0 | AL240: 0 | AM240: 0 | AN240: 0 | AO240: 0 | AP240: =(AP2<=$F$240)*1 -> 0 | AQ240: 0 | AR240: 0 | AS240: 0 | AT240: 0 | AU240: 0 | AV240: 0 | AW240: 0 | AX240: 0 | AY240: 0 | AZ240: 0 | BA240: 0 | BB240: 0 | BC240: 0 | BD240: 0 | BE240: 0 | BF240: 0 | BG240: 0 | BH240: 0 | BI240: 0 | BJ240: 0 | BK240: 0 | BL240: 0 | BM240: 0 | BN240: 0 | BO240: 0 | BP240: 0 | BQ240: 0 | BR240: 0 | BS240: 0 | BT240: 0 | BU240: 0 | BV240: =(BV2<=$F$240)*1 -> 0 | BW240: 0 | BX240: 0 | BY240: 0 | BZ240: 0 | CA240: 0 | CB240: 0 | CC240: 0 | CD240: 0 | CE240: 0 | CF240: 0 | CG240: 0 | CH240: 0 | CI240: 0
E241: Construction debt commitment fee | G241: $ 000s | H241: =SUM(J241:CI241) -> 1477.354375 | J241: =J240*J239*$F$239 -> 706.4282498 | K241: =K240*K239*$F$239 -> 490.6021287 | L241: 280.3239966 | M241: 0 | N241: 0 | O241: 0 | P241: 0 | Q241: 0 | R241: 0 | S241: 0 | T241: 0 | U241: 0 | V241: 0 | W241: 0 | X241: 0 | Y241: 0 | Z241: 0 | AA241: 0 | AB241: 0 | AC241: 0 | AD241: 0 | AE241: 0 | AF241: 0 | AG241: 0 | AH241: 0 | AI241: 0 | AJ241: 0 | AK241: 0 | AL241: 0 | AM241: 0 | AN241: 0 | AO241: 0 | AP241: 0 | AQ241: 0 | AR241: 0 | AS241: 0 | AT241: 0 | AU241: 0 | AV241: 0 | AW241: 0 | AX241: 0 | AY241: 0 | AZ241: 0 | BA241: 0 | BB241: 0 | BC241: 0 | BD241: 0 | BE241: 0 | BF241: 0 | BG241: 0 | BH241: 0 | BI241: 0 | BJ241: 0 | BK241: 0 | BL241: 0 | BM241: 0 | BN241: 0 | BO241: 0 | BP241: 0 | BQ241: 0 | BR241: 0 | BS241: 0 | BT241: 0 | BU241: 0 | BV241: 0 | BW241: =BW240*BW239*$F$239 -> 0 | BX241: 0 | BY241: 0 | BZ241: 0 | CA241: 0 | CB241: 0 | CC241: 0 | CD241: 0 | CE241: 0 | CF241: 0 | CG241: 0 | CH241: 0 | CI241: 0
B244: TAX PAID
C246: Depreciation on IDC and Fees
E247: Total IDC Base | F247: =H229 -> 1711.814331 | G247: $ 000s
E248: Total Up Front Base | F248: =H234 -> 941.904333 | G248: $ 000s
E249: Total Commitment Fee Base | F249: =H241 -> 1477.354375 | G249: $ 000s
E250: Total Additional Depreciation Base | F250: =SUM(F247:F249) -> 4131.073039 | G250: $ 000s | J250: =$F$250*J4 -> 0 | K250: 0 | L250: 0 | M250: 4131.073039 | N250: 4131.073039 | O250: 4131.073039 | P250: 4131.073039 | Q250: 4131.073039 | R250: 4131.073039 | S250: 4131.073039 | T250: 4131.073039 | U250: 4131.073039 | V250: 4131.073039 | W250: 4131.073039 | X250: 4131.073039 | Y250: 4131.073039 | Z250: 4131.073039 | AA250: 4131.073039 | AB250: 4131.073039 | AC250: 4131.073039 | AD250: 4131.073039 | AE250: 4131.073039 | AF250: 4131.073039 | AG250: 4131.073039 | AH250: 4131.073039 | AI250: 4131.073039 | AJ250: 4131.073039 | AK250: 4131.073039 | AL250: 4131.073039 | AM250: 4131.073039 | AN250: 0 | AO250: 0 | AP250: =$F$250*AP4 -> 0 | AQ250: 0 | AR250: 0 | AS250: 0 | AT250: 0 | AU250: 0 | AV250: 0 | AW250: 0 | AX250: 0 | AY250: 0 | AZ250: 0 | BA250: 0 | BB250: 0 | BC250: 0 | BD250: 0 | BE250: 0 | BF250: 0 | BG250: 0 | BH250: 0 | BI250: 0 | BJ250: 0 | BK250: 0 | BL250: 0 | BM250: 0 | BN250: 0 | BO250: 0 | BP250: 0 | BQ250: 0 | BR250: 0 | BS250: 0 | BT250: 0 | BU250: 0 | BV250: =$F$250*BV4 -> 0 | BW250: 0 | BX250: 0 | BY250: 0 | BZ250: 0 | CA250: 0 | CB250: 0 | CC250: 0 | CD250: 0 | CE250: 0 | CF250: 0 | CG250: 0 | CH250: 0 | CI250: 0
E251: Depreciation Rate | G251: % | J251: =J160 -> 0 | K251: 0 | L251: 0 | M251: 0.03703703704 | N251: 0.03703703704 | O251: 0.03703703704 | P251: 0.03703703704 | Q251: 0.03703703704 | R251: 0.03703703704 | S251: 0.03703703704 | T251: 0.03703703704 | U251: 0.03703703704 | V251: 0.03703703704 | W251: 0.03703703704 | X251: 0.03703703704 | Y251: 0.03703703704 | Z251: 0.03703703704 | AA251: 0.03703703704 | AB251: 0.03703703704 | AC251: 0.03703703704 | AD251: 0.03703703704 | AE251: 0.03703703704 | AF251: 0.03703703704 | AG251: 0.03703703704 | AH251: 0.03703703704 | AI251: 0.03703703704 | AJ251: 0.03703703704 | AK251: 0.03703703704 | AL251: 0.03703703704 | AM251: 0.03703703704 | AN251: 0 | AO251: 0 | AP251: =AP160 -> 0 | AQ251: 0 | AR251: 0 | AS251: 0 | AT251: 0 | AU251: 0 | AV251: 0 | AW251: 0 | AX251: 0 | AY251: 0 | AZ251: 0 | BA251: 0 | BB251: 0 | BC251: 0 | BD251: 0 | BE251: 0 | BF251: 0 | BG251: 0 | BH251: 0 | BI251: 0 | BJ251: 0 | BK251: 0 | BL251: 0 | BM251: 0 | BN251: 0 | BO251: 0 | BP251: 0 | BQ251: 0 | BR251: 0 | BS251: 0 | BT251: 0 | BU251: 0 | BV251: =BV160 -> 0 | BW251: 0 | BX251: 0 | BY251: 0 | BZ251: 0 | CA251: 0 | CB251: 0 | CC251: 0 | CD251: 0 | CE251: 0 | CF251: 0 | CG251: 0 | CH251: 0 | CI251: 0
E252: Added Depreciation | G252: $ 000s | H252: =SUM(J252:XFD252) -> 4131.073039 | J252: =J250*J251 -> 0 | K252: =K250*K251 -> 0 | L252: 0 | M252: 153.0027052 | N252: 153.0027052 | O252: 153.0027052 | P252: 153.0027052 | Q252: 153.0027052 | R252: 153.0027052 | S252: 153.0027052 | T252: 153.0027052 | U252: 153.0027052 | V252: 153.0027052 | W252: 153.0027052 | X252: 153.0027052 | Y252: 153.0027052 | Z252: 153.0027052 | AA252: 153.0027052 | AB252: 153.0027052 | AC252: 153.0027052 | AD252: 153.0027052 | AE252: 153.0027052 | AF252: 153.0027052 | AG252: 153.0027052 | AH252: 153.0027052 | AI252: 153.0027052 | AJ252: 153.0027052 | AK252: 153.0027052 | AL252: 153.0027052 | AM252: 153.0027052 | AN252: 0 | AO252: 0 | AP252: 0 | AQ252: 0 | AR252: 0 | AS252: 0 | AT252: 0 | AU252: 0 | AV252: 0 | AW252: 0 | AX252: 0 | AY252: 0 | AZ252: 0 | BA252: 0 | BB252: 0 | BC252: 0 | BD252: 0 | BE252: 0 | BF252: 0 | BG252: 0 | BH252: 0 | BI252: 0 | BJ252: 0 | BK252: 0 | BL252: 0 | BM252: 0 | BN252: 0 | BO252: 0 | BP252: 0 | BQ252: 0 | BR252: 0 | BS252: 0 | BT252: 0 | BU252: 0 | BV252: 0 | BW252: =BW250*BW251 -> 0 | BX252: 0 | BY252: 0 | BZ252: 0 | CA252: 0 | CB252: 0 | CC252: 0 | CD252: 0 | CE252: 0 | CF252: 0 | CG252: 0 | CH252: 0 | CI252: 0
C254: =C$149 -> EBITDA | F254: =F$149 -> 0 | G254: 0 | I254: 0 | J254: 0 | K254: 0 | L254: 0 | M254: 3000 | N254: 3264.9 | O254: 3549.692002 | P254: 3855.813305 | Q254: 4184.803988 | R254: 4538.314239 | S254: 4918.11221 | T254: 5326.092422 | U254: 5764.284778 | V254: 6234.864213 | W254: 6740.161034 | X254: 7282.671993 | Y254: 7865.072154 | Z254: 8490.227604 | AA254: 9161.209065 | AB254: 9881.30648 | AC254: 10654.04464 | AD254: 11483.19992 | AE254: 12372.8182 | AF254: 13327.23409 | AG254: 14351.09149 | AH254: 15449.36564 | AI254: 16627.38671 | AJ254: 17890.86514 | AK254: 19245.91867 | AL254: 20699.10143 | AM254: 22257.43497 | AN254: 0 | AO254: 0 | AP254: 0 | AQ254: 0 | AR254: 0 | AS254: 0 | AT254: 0 | AU254: 0 | AV254: 0 | AW254: 0 | AX254: 0 | AY254: 0 | AZ254: 0 | BA254: 0 | BB254: 0 | BC254: 0 | BD254: 0 | BE254: 0 | BF254: 0 | BG254: 0 | BH254: 0 | BI254: 0 | BJ254: 0 | BK254: 0 | BL254: 0 | BM254: 0 | BN254: 0 | BO254: 0 | BP254: 0 | BQ254: =BQ$149 -> 0 | BR254: 0 | BS254: 0 | BT254: 0 | BU254: 0 | BV254: 0 | BW254: 0 | BX254: 0 | BY254: 0 | BZ254: 0 | CA254: 0 | CB254: 0 | CC254: 0 | CD254: 0 | CE254: 0 | CF254: 0 | CG254: 0 | CH254: 0 | CI254: 0
E255: Less: Depreciation - Base | G255: $ 000s | J255: =J$161 -> 0 | K255: =K$161 -> 0 | L255: 0 | M255: 2592.592593 | N255: 2592.592593 | O255: 2592.592593 | P255: 2592.592593 | Q255: 2592.592593 | R255: 2592.592593 | S255: 2592.592593 | T255: 2592.592593 | U255: 2592.592593 | V255: 2592.592593 | W255: 2592.592593 | X255: 2592.592593 | Y255: 2592.592593 | Z255: 2592.592593 | AA255: 2592.592593 | AB255: 2592.592593 | AC255: 2592.592593 | AD255: 2592.592593 | AE255: 2592.592593 | AF255: 2592.592593 | AG255: 2592.592593 | AH255: 2592.592593 | AI255: 2592.592593 | AJ255: 2592.592593 | AK255: 2592.592593 | AL255: 2592.592593 | AM255: 2592.592593 | AN255: 0 | AO255: 0 | AP255: 0 | AQ255: 0 | AR255: 0 | AS255: 0 | AT255: 0 | AU255: 0 | AV255: 0 | AW255: 0 | AX255: 0 | AY255: 0 | AZ255: 0 | BA255: 0 | BB255: 0 | BC255: 0 | BD255: 0 | BE255: 0 | BF255: 0 | BG255: 0 | BH255: 0 | BI255: 0 | BJ255: 0 | BK255: 0 | BL255: 0 | BM255: 0 | BN255: 0 | BO255: 0 | BP255: 0 | BQ255: 0 | BR255: 0 | BS255: 0 | BT255: 0 | BU255: 0 | BV255: 0 | BW255: =BW$161 -> 0 | BX255: 0 | BY255: 0 | BZ255: 0 | CA255: 0 | CB255: 0 | CC255: 0 | CD255: 0 | CE255: 0 | CF255: 0 | CG255: 0 | CH255: 0 | CI255: 0
E256: Less: Depreciation - Added | G256: $ 000s | J256: =J252 -> 0 | K256: =K252 -> 0 | L256: 0 | M256: 153.0027052 | N256: 153.0027052 | O256: 153.0027052 | P256: 153.0027052 | Q256: 153.0027052 | R256: 153.0027052 | S256: 153.0027052 | T256: 153.0027052 | U256: 153.0027052 | V256: 153.0027052 | W256: 153.0027052 | X256: 153.0027052 | Y256: 153.0027052 | Z256: 153.0027052 | AA256: 153.0027052 | AB256: 153.0027052 | AC256: 153.0027052 | AD256: 153.0027052 | AE256: 153.0027052 | AF256: 153.0027052 | AG256: 153.0027052 | AH256: 153.0027052 | AI256: 153.0027052 | AJ256: 153.0027052 | AK256: 153.0027052 | AL256: 153.0027052 | AM256: 153.0027052 | AN256: 0 | AO256: 0 | AP256: 0 | AQ256: 0 | AR256: 0 | AS256: 0 | AT256: 0 | AU256: 0 | AV256: 0 | AW256: 0 | AX256: 0 | AY256: 0 | AZ256: 0 | BA256: 0 | BB256: 0 | BC256: 0 | BD256: 0 | BE256: 0 | BF256: 0 | BG256: 0 | BH256: 0 | BI256: 0 | BJ256: 0 | BK256: 0 | BL256: 0 | BM256: 0 | BN256: 0 | BO256: 0 | BP256: 0 | BQ256: 0 | BR256: 0 | BS256: 0 | BT256: 0 | BU256: 0 | BV256: 0 | BW256: =BW252 -> 0 | BX256: 0 | BY256: 0 | BZ256: 0 | CA256: 0 | CB256: 0 | CC256: 0 | CD256: 0 | CE256: 0 | CF256: 0 | CG256: 0 | CH256: 0 | CI256: 0
E257: EBIT | G257: $ 000s | J257: =J254-J255-J256 -> 0 | K257: =K254-K255-K256 -> 0 | L257: 0 | M257: 254.4047022 | N257: 519.3047022 | O257: 804.0967047 | P257: 1110.218008 | Q257: 1439.20869 | R257: 1792.718942 | S257: 2172.516912 | T257: 2580.497124 | U257: 3018.689481 | V257: 3489.268916 | W257: 3994.565736 | X257: 4537.076695 | Y257: 5119.476857 | Z257: 5744.632307 | AA257: 6415.613767 | AB257: 7135.711183 | AC257: 7908.449342 | AD257: 8737.60462 | AE257: 9627.2229 | AF257: 10581.63879 | AG257: 11605.49619 | AH257: 12703.77034 | AI257: 13881.79141 | AJ257: 15145.26984 | AK257: 16500.32337 | AL257: 17953.50613 | AM257: 19511.83967 | AN257: 0 | AO257: 0 | AP257: 0 | AQ257: 0 | AR257: 0 | AS257: 0 | AT257: 0 | AU257: 0 | AV257: 0 | AW257: 0 | AX257: 0 | AY257: 0 | AZ257: 0 | BA257: 0 | BB257: 0 | BC257: 0 | BD257: 0 | BE257: 0 | BF257: 0 | BG257: 0 | BH257: 0 | BI257: 0 | BJ257: 0 | BK257: 0 | BL257: 0 | BM257: 0 | BN257: 0 | BO257: 0 | BP257: 0 | BQ257: 0 | BR257: 0 | BS257: 0 | BT257: 0 | BU257: 0 | BV257: 0 | BW257: =BW254-BW255-BW256 -> 0 | BX257: 0 | BY257: 0 | BZ257: 0 | CA257: 0 | CB257: 0 | CC257: 0 | CD257: 0 | CE257: 0 | CF257: 0 | CG257: 0 | CH257: 0 | CI257: 0
E258: Interest Expense | G258: $ 000s | J258: =J228 -> 0 | K258: =K228 -> 0 | L258: 0 | M258: 1883.808666 | N258: 1864.438336 | O258: 1838.627641 | P258: 1803.031209 | Q258: 1756.609418 | R258: 1698.204434 | S258: 1626.605338 | T258: 1540.46914 | U258: 1438.356158 | V258: 1318.675028 | W258: 1183.550874 | X258: 1049.608887 | Y258: 899.8806893 | Z258: 732.9964894 | AA258: 547.5341624 | AB258: 341.927426 | AC258: 114.5088809 | AD258: 0 | AE258: 0 | AF258: 0 | AG258: 0 | AH258: 0 | AI258: 0 | AJ258: 0 | AK258: 0 | AL258: 0 | AM258: 0 | AN258: 0 | AO258: 0 | AP258: 0 | AQ258: 0 | AR258: 0 | AS258: 0 | AT258: 0 | AU258: 0 | AV258: 0 | AW258: 0 | AX258: 0 | AY258: 0 | AZ258: 0 | BA258: 0 | BB258: 0 | BC258: 0 | BD258: 0 | BE258: 0 | BF258: 0 | BG258: 0 | BH258: 0 | BI258: 0 | BJ258: 0 | BK258: 0 | BL258: 0 | BM258: 0 | BN258: 0 | BO258: 0 | BP258: 0 | BQ258: 0 | BR258: 0 | BS258: 0 | BT258: 0 | BU258: 0 | BV258: 0 | BW258: =BW228 -> 0 | BX258: 0 | BY258: 0 | BZ258: 0 | CA258: 0 | CB258: 0 | CC258: 0 | CD258: 0 | CE258: 0 | CF258: 0 | CG258: 0 | CH258: 0 | CI258: 0
E259: Earnings Before Tax | G259: $ 000s | J259: =J257-J258 -> 0 | K259: =K257-K258 -> 0 | L259: 0 | M259: -1629.403964 | N259: -1345.133634 | O259: -1034.530936 | P259: -692.8132015 | Q259: -317.4007282 | R259: 94.5145073 | S259: 545.9115739 | T259: 1040.027984 | U259: 1580.333322 | V259: 2170.593887 | W259: 2811.014862 | X259: 3487.467808 | Y259: 4219.596167 | Z259: 5011.635817 | AA259: 5868.079605 | AB259: 6793.783757 | AC259: 7793.940462 | AD259: 8737.60462 | AE259: 9627.2229 | AF259: 10581.63879 | AG259: 11605.49619 | AH259: 12703.77034 | AI259: 13881.79141 | AJ259: 15145.26984 | AK259: 16500.32337 | AL259: 17953.50613 | AM259: 19511.83967 | AN259: 0 | AO259: 0 | AP259: 0 | AQ259: 0 | AR259: 0 | AS259: 0 | AT259: 0 | AU259: 0 | AV259: 0 | AW259: 0 | AX259: 0 | AY259: 0 | AZ259: 0 | BA259: 0 | BB259: 0 | BC259: 0 | BD259: 0 | BE259: 0 | BF259: 0 | BG259: 0 | BH259: 0 | BI259: 0 | BJ259: 0 | BK259: 0 | BL259: 0 | BM259: 0 | BN259: 0 | BO259: 0 | BP259: 0 | BQ259: 0 | BR259: 0 | BS259: 0 | BT259: 0 | BU259: 0 | BV259: 0 | BW259: =BW257-BW258 -> 0 | BX259: 0 | BY259: 0 | BZ259: 0 | CA259: 0 | CB259: 0 | CC259: 0 | CD259: 0 | CE259: 0 | CF259: 0 | CG259: 0 | CH259: 0 | CI259: 0
E261: Taxable income before loss carry forwards | G261: $ 000s | J261: =J259 -> 0 | K261: =K259 -> 0 | L261: 0 | M261: -1629.403964 | N261: -1345.133634 | O261: -1034.530936 | P261: -692.8132015 | Q261: -317.4007282 | R261: 94.5145073 | S261: 545.9115739 | T261: 1040.027984 | U261: 1580.333322 | V261: 2170.593887 | W261: 2811.014862 | X261: 3487.467808 | Y261: 4219.596167 | Z261: 5011.635817 | AA261: 5868.079605 | AB261: 6793.783757 | AC261: 7793.940462 | AD261: 8737.60462 | AE261: 9627.2229 | AF261: 10581.63879 | AG261: 11605.49619 | AH261: 12703.77034 | AI261: 13881.79141 | AJ261: 15145.26984 | AK261: 16500.32337 | AL261: 17953.50613 | AM261: 19511.83967 | AN261: 0 | AO261: 0 | AP261: 0 | AQ261: 0 | AR261: 0 | AS261: 0 | AT261: 0 | AU261: 0 | AV261: 0 | AW261: 0 | AX261: 0 | AY261: 0 | AZ261: 0 | BA261: 0 | BB261: 0 | BC261: 0 | BD261: 0 | BE261: 0 | BF261: 0 | BG261: 0 | BH261: 0 | BI261: 0 | BJ261: 0 | BK261: 0 | BL261: 0 | BM261: 0 | BN261: 0 | BO261: 0 | BP261: 0 | BQ261: 0 | BR261: 0 | BS261: 0 | BT261: 0 | BU261: 0 | BV261: 0 | BW261: =BW259 -> 0 | BX261: 0 | BY261: 0 | BZ261: 0 | CA261: 0 | CB261: 0 | CC261: 0 | CD261: 0 | CE261: 0 | CF261: 0 | CG261: 0 | CH261: 0 | CI261: 0
E263: =E$261 -> Taxable income before loss carry forwards | F263: =F$261 -> 0 | G263: $ 000s | H263: =H$261 -> 0 | I263: 0 | J263: 0 | K263: 0 | L263: 0 | M263: -1629.403964 | N263: -1345.133634 | O263: -1034.530936 | P263: -692.8132015 | Q263: -317.4007282 | R263: 94.5145073 | S263: 545.9115739 | T263: 1040.027984 | U263: 1580.333322 | V263: 2170.593887 | W263: 2811.014862 | X263: 3487.467808 | Y263: 4219.596167 | Z263: 5011.635817 | AA263: 5868.079605 | AB263: 6793.783757 | AC263: 7793.940462 | AD263: 8737.60462 | AE263: 9627.2229 | AF263: 10581.63879 | AG263: 11605.49619 | AH263: 12703.77034 | AI263: 13881.79141 | AJ263: 15145.26984 | AK263: =AK$261 -> 16500.32337 | AL263: 17953.50613 | AM263: 19511.83967 | AN263: 0 | AO263: 0 | AP263: 0 | AQ263: 0 | AR263: 0 | AS263: 0 | AT263: 0 | AU263: 0 | AV263: 0 | AW263: 0 | AX263: 0 | AY263: 0 | AZ263: 0 | BA263: 0 | BB263: 0 | BC263: 0 | BD263: 0 | BE263: 0 | BF263: 0 | BG263: 0 | BH263: 0 | BI263: 0 | BJ263: 0 | BK263: 0 | BL263: 0 | BM263: 0 | BN263: 0 | BO263: 0 | BP263: 0 | BQ263: =BQ$261 -> 0 | BR263: 0 | BS263: 0 | BT263: 0 | BU263: 0 | BV263: 0 | BW263: 0 | BX263: 0 | BY263: 0 | BZ263: 0 | CA263: 0 | CB263: 0 | CC263: 0 | CD263: 0 | CE263: 0 | CF263: 0 | CG263: 0 | CH263: 0 | CI263: 0
... 77 more rows

Sheet Sheet1
L2: 1 | M2: 2 | N2: 3 | O2: 4 | P2: 5 | Q2: 6 | R2: 7 | S2: 8 | T2: 9 | U2: 10 | V2: 11 | W2: 12 | X2: 13 | Y2: 14 | Z2: 15 | AA2: 16 | AB2: 17 | AC2: 18 | AD2: 19 | AE2: 20 | AF2: 21 | AG2: 22 | AH2: 23 | AI2: 24 | AJ2: 25 | AK2: 26 | AL2: 27 | AM2: 28 | AN2: 29 | AO2: 30 | AP2: 31 | AQ2: 32 | AR2: 33 | AS2: 34 | AT2: 35 | AU2: 36 | AV2: 37 | AW2: 38 | AX2: 39 | AY2: 40 | AZ2: 41 | BA2: 42 | BB2: 43 | BC2: 44 | BD2: 45 | BE2: 46 | BF2: 47 | BG2: 48 | BH2: 49 | BI2: 50 | BJ2: 51 | BK2: 52 | BL2: 53 | BM2: 54 | BN2: 55 | BO2: 56 | BP2: 57 | BQ2: 58 | BR2: 59 | BS2: 60 | BT2: 61 | BU2: 62 | BV2: 63 | BW2: 64 | BX2: 65 | BY2: 66 | BZ2: 67 | CA2: 68 | CB2: 69 | CC2: 70 | CD2: 71 | CE2: 72 | CF2: 73 | CG2: 74 | CH2: 75 | CI2: 76 | CJ2: 77 | CK2: 78 | CL2: 79 | CM2: 80 | CN2: 81 | CO2: 82 | CP2: 83 | CQ2: 84 | CR2: 85 | CS2: 86 | CT2: 87 | CU2: 88 | CV2: 89 | CW2: 90 | CX2: 91 | CY2: 92 | CZ2: 93 | DA2: 94 | DB2: 95 | DC2: 96 | DD2: 97 | DE2: 98 | DF2: 99 | DG2: 100
C3: Test 1 | L3: =L2<10 -> TRUE | M3: =M2<10 -> TRUE | N3: TRUE | O3: TRUE | P3: TRUE | Q3: TRUE | R3: TRUE | S3: TRUE | T3: TRUE | U3: FALSE | V3: FALSE | W3: FALSE | X3: FALSE | Y3: FALSE | Z3: FALSE | AA3: FALSE | AB3: FALSE | AC3: FALSE | AD3: FALSE | AE3: FALSE | AF3: FALSE | AG3: FALSE | AH3: FALSE | AI3: FALSE | AJ3: FALSE | AK3: FALSE | AL3: FALSE | AM3: FALSE | AN3: FALSE | AO3: FALSE | AP3: FALSE | AQ3: FALSE | AR3: FALSE | AS3: FALSE | AT3: FALSE | AU3: FALSE | AV3: FALSE | AW3: FALSE | AX3: FALSE | AY3: FALSE | AZ3: FALSE | BA3: FALSE | BB3: FALSE | BC3: FALSE | BD3: FALSE | BE3: FALSE | BF3: FALSE | BG3: FALSE | BH3: FALSE | BI3: FALSE | BJ3: FALSE | BK3: FALSE | BL3: FALSE | BM3: FALSE | BN3: FALSE | BO3: FALSE | BP3: FALSE | BQ3: FALSE | BR3: FALSE | BS3: FALSE | BT3: FALSE | BU3: FALSE | BV3: FALSE | BW3: FALSE | BX3: FALSE | BY3: =BY2<10 -> FALSE | BZ3: FALSE | CA3: FALSE | CB3: FALSE | CC3: FALSE | CD3: FALSE | CE3: FALSE | CF3: FALSE | CG3: FALSE | CH3: FALSE | CI3: FALSE | CJ3: FALSE | CK3: FALSE | CL3: FALSE | CM3: FALSE | CN3: FALSE | CO3: FALSE | CP3: FALSE | CQ3: FALSE | CR3: FALSE | CS3: FALSE | CT3: FALSE | CU3: FALSE | CV3: FALSE | CW3: FALSE | CX3: FALSE | CY3: FALSE | CZ3: FALSE | DA3: FALSE | DB3: FALSE | DC3: FALSE | DD3: FALSE | DE3: FALSE | DF3: FALSE | DG3: FALSE
C4: Test 2 | I4: =SUM(L4:DG4) -> 9 | L4: =(L2<10)*1 -> 1 | M4: =(M2<10)*1 -> 1 | N4: 1 | O4: 1 | P4: 1 | Q4: 1 | R4: 1 | S4: 1 | T4: 1 | U4: 0 | V4: 0 | W4: 0 | X4: 0 | Y4: 0 | Z4: 0 | AA4: 0 | AB4: 0 | AC4: 0 | AD4: 0 | AE4: 0 | AF4: 0 | AG4: 0 | AH4: 0 | AI4: 0 | AJ4: 0 | AK4: 0 | AL4: 0 | AM4: 0 | AN4: 0 | AO4: 0 | AP4: 0 | AQ4: 0 | AR4: 0 | AS4: 0 | AT4: 0 | AU4: 0 | AV4: 0 | AW4: 0 | AX4: 0 | AY4: 0 | AZ4: 0 | BA4: 0 | BB4: 0 | BC4: 0 | BD4: 0 | BE4: 0 | BF4: 0 | BG4: 0 | BH4: 0 | BI4: 0 | BJ4: 0 | BK4: 0 | BL4: 0 | BM4: 0 | BN4: 0 | BO4: 0 | BP4: 0 | BQ4: 0 | BR4: 0 | BS4: 0 | BT4: 0 | BU4: 0 | BV4: 0 | BW4: 0 | BX4: 0 | BY4: =(BY2<10)*1 -> 0 | BZ4: 0 | CA4: 0 | CB4: 0 | CC4: 0 | CD4: 0 | CE4: 0 | CF4: 0 | CG4: 0 | CH4: 0 | CI4: 0 | CJ4: 0 | CK4: 0 | CL4: 0 | CM4: 0 | CN4: 0 | CO4: 0 | CP4: 0 | CQ4: 0 | CR4: 0 | CS4: 0 | CT4: 0 | CU4: 0 | CV4: 0 | CW4: 0 | CX4: 0 | CY4: 0 | CZ4: 0 | DA4: 0 | DB4: 0 | DC4: 0 | DD4: 0 | DE4: 0 | DF4: 0 | DG4: 0
C5: Test 3 | I5: =SUM(L5:DG5) -> 90 | L5: =(L2>10)*1 -> 0 | M5: =(M2>10)*1 -> 0 | N5: 0 | O5: 0 | P5: 0 | Q5: 0 | R5: 0 | S5: 0 | T5: 0 | U5: 0 | V5: 1 | W5: 1 | X5: 1 | Y5: 1 | Z5: 1 | AA5: 1 | AB5: 1 | AC5: 1 | AD5: 1 | AE5: 1 | AF5: 1 | AG5: 1 | AH5: 1 | AI5: 1 | AJ5: 1 | AK5: 1 | AL5: 1 | AM5: 1 | AN5: 1 | AO5: 1 | AP5: 1 | AQ5: 1 | AR5: 1 | AS5: 1 | AT5: 1 | AU5: 1 | AV5: 1 | AW5: 1 | AX5: 1 | AY5: 1 | AZ5: 1 | BA5: 1 | BB5: 1 | BC5: 1 | BD5: 1 | BE5: 1 | BF5: 1 | BG5: 1 | BH5: 1 | BI5: 1 | BJ5: 1 | BK5: 1 | BL5: 1 | BM5: 1 | BN5: 1 | BO5: 1 | BP5: 1 | BQ5: 1 | BR5: 1 | BS5: 1 | BT5: 1 | BU5: 1 | BV5: 1 | BW5: 1 | BX5: 1 | BY5: =(BY2>10)*1 -> 1 | BZ5: 1 | CA5: 1 | CB5: 1 | CC5: 1 | CD5: 1 | CE5: 1 | CF5: 1 | CG5: 1 | CH5: 1 | CI5: 1 | CJ5: 1 | CK5: 1 | CL5: 1 | CM5: 1 | CN5: 1 | CO5: 1 | CP5: 1 | CQ5: 1 | CR5: 1 | CS5: 1 | CT5: 1 | CU5: 1 | CV5: 1 | CW5: 1 | CX5: 1 | CY5: 1 | CZ5: 1 | DA5: 1 | DB5: 1 | DC5: 1 | DD5: 1 | DE5: 1 | DF5: 1 | DG5: 1
C6: Test 4 | I6: =SUM(L6:DG6) -> 90 | L6: =L5 -> 0 | M6: =M5 -> 0 | N6: 0 | O6: 0 | P6: 0 | Q6: 0 | R6: 0 | S6: 0 | T6: 0 | U6: 0 | V6: 1 | W6: 1 | X6: 1 | Y6: 1 | Z6: 1 | AA6: 1 | AB6: 1 | AC6: 1 | AD6: 1 | AE6: 1 | AF6: 1 | AG6: 1 | AH6: 1 | AI6: 1 | AJ6: 1 | AK6: 1 | AL6: 1 | AM6: 1 | AN6: 1 | AO6: 1 | AP6: 1 | AQ6: 1 | AR6: 1 | AS6: 1 | AT6: 1 | AU6: 1 | AV6: 1 | AW6: 1 | AX6: 1 | AY6: 1 | AZ6: 1 | BA6: 1 | BB6: 1 | BC6: 1 | BD6: 1 | BE6: 1 | BF6: 1 | BG6: 1 | BH6: 1 | BI6: 1 | BJ6: 1 | BK6: 1 | BL6: 1 | BM6: 1 | BN6: 1 | BO6: 1 | BP6: 1 | BQ6: 1 | BR6: 1 | BS6: 1 | BT6: 1 | BU6: 1 | BV6: 1 | BW6: 1 | BX6: 1 | BY6: =BY5 -> 1 | BZ6: 1 | CA6: 1 | CB6: 1 | CC6: 1 | CD6: 1 | CE6: 1 | CF6: 1 | CG6: 1 | CH6: 1 | CI6: 1 | CJ6: 1 | CK6: 1 | CL6: 1 | CM6: 1 | CN6: 1 | CO6: 1 | CP6: 1 | CQ6: 1 | CR6: 1 | CS6: 1 | CT6: 1 | CU6: 1 | CV6: 1 | CW6: 1 | CX6: 1 | CY6: 1 | CZ6: 1 | DA6: 1 | DB6: 1 | DC6: 1 | DD6: 1 | DE6: 1 | DF6: 1 | DG6: 1
E8: =Timing!E$68 -> Operations period flag | F8: =Timing!F$68 -> 0 | G8: [Flag] | I8: =SUM(L8:XFD8) -> 27 | L8: ='Financial Model'!J56 -> 0 | M8: ='Financial Model'!K56 -> 0 | N8: ='Financial Model'!L56 -> 0 | O8: ='Financial Model'!M56 -> 1 | P8: ='Financial Model'!N56 -> 1 | Q8: ='Financial Model'!O56 -> 1 | R8: ='Financial Model'!P56 -> 1 | S8: ='Financial Model'!Q56 -> 1 | T8: ='Financial Model'!R56 -> 1 | U8: ='Financial Model'!S56 -> 1 | V8: ='Financial Model'!T56 -> 1 | W8: ='Financial Model'!U56 -> 1 | X8: ='Financial Model'!V56 -> 1 | Y8: ='Financial Model'!W56 -> 1 | Z8: ='Financial Model'!X56 -> 1 | AA8: ='Financial Model'!Y56 -> 1 | AB8: ='Financial Model'!Z56 -> 1 | AC8: ='Financial Model'!AA56 -> 1 | AD8: ='Financial Model'!AB56 -> 1 | AE8: ='Financial Model'!AC56 -> 1 | AF8: ='Financial Model'!AD56 -> 1 | AG8: ='Financial Model'!AE56 -> 1 | AH8: ='Financial Model'!AF56 -> 1 | AI8: ='Financial Model'!AG56 -> 1 | AJ8: ='Financial Model'!AH56 -> 1 | AK8: ='Financial Model'!AI56 -> 1 | AL8: ='Financial Model'!AJ56 -> 1 | AM8: ='Financial Model'!AK56 -> 1 | AN8: ='Financial Model'!AL56 -> 1 | AO8: ='Financial Model'!AM56 -> 1 | AP8: ='Financial Model'!AN56 -> 0 | AQ8: ='Financial Model'!AO56 -> 0 | AR8: ='Financial Model'!AP56 -> 0 | AS8: ='Financial Model'!AQ56 -> 0 | AT8: ='Financial Model'!AR56 -> 0 | AU8: ='Financial Model'!AS56 -> 0 | AV8: ='Financial Model'!AT56 -> 0 | AW8: ='Financial Model'!AU56 -> 0 | AX8: ='Financial Model'!AV56 -> 0 | AY8: ='Financial Model'!AW56 -> 0 | AZ8: ='Financial Model'!AX56 -> 0 | BA8: ='Financial Model'!AY56 -> 0 | BB8: ='Financial Model'!AZ56 -> 0 | BC8: ='Financial Model'!BA56 -> 0 | BD8: ='Financial Model'!BB56 -> 0 | BE8: ='Financial Model'!BC56 -> 0 | BF8: ='Financial Model'!BD56 -> 0 | BG8: ='Financial Model'!BE56 -> 0 | BH8: ='Financial Model'!BF56 -> 0 | BI8: ='Financial Model'!BG56 -> 0 | BJ8: ='Financial Model'!BH56 -> 0 | BK8: ='Financial Model'!BI56 -> 0 | BL8: ='Financial Model'!BJ56 -> 0 | BM8: ='Financial Model'!BK56 -> 0 | BN8: ='Financial Model'!BL56 -> 0 | BO8: ='Financial Model'!BM56 -> 0 | BP8: ='Financial Model'!BN56 -> 0 | BQ8: ='Financial Model'!BO56 -> 0 | BR8: ='Financial Model'!BP56 -> 0 | BS8: ='Financial Model'!BQ56 -> 0 | BT8: ='Financial Model'!BR56 -> 0 | BU8: ='Financial Model'!BS56 -> 0 | BV8: ='Financial Model'!BT56 -> 0 | BW8: ='Financial Model'!BU56 -> 0 | BX8: ='Financial Model'!BV56 -> 0 | BY8: ='Financial Model'!BW56 -> 0 | BZ8: ='Financial Model'!BX56 -> 0 | CA8: ='Financial Model'!BY56 -> 0 | CB8: ='Financial Model'!BZ56 -> 0 | CC8: ='Financial Model'!CA56 -> 0 | CD8: ='Financial Model'!CB56 -> 0 | CE8: ='Financial Model'!CC56 -> 0 | CF8: ='Financial Model'!CD56 -> 0 | CG8: ='Financial Model'!CE56 -> 0 | CH8: ='Financial Model'!CF56 -> 0 | CI8: ='Financial Model'!CG56 -> 0 | CJ8: ='Financial Model'!CH56 -> 0 | CK8: ='Financial Model'!CI56 -> 0 | CL8: ='Financial Model'!CJ56 -> 0 | CM8: ='Financial Model'!CK56 -> 0 | CN8: ='Financial Model'!CL56 -> 0 | CO8: ='Financial Model'!CM56 -> 0 | CP8: ='Financial Model'!CN56 -> 0 | CQ8: ='Financial Model'!CO56 -> 0 | CR8: ='Financial Model'!CP56 -> 0 | CS8: ='Financial Model'!CQ56 -> 0 | CT8: ='Financial Model'!CR56 -> 0 | CU8: ='Financial Model'!CS56 -> 0 | CV8: ='Financial Model'!CT56 -> 0 | CW8: ='Financial Model'!CU56 -> 0 | CX8: ='Financial Model'!CV56 -> 0 | CY8: ='Financial Model'!CW56 -> 0 | CZ8: ='Financial Model'!CX56 -> 0 | DA8: ='Financial Model'!CY56 -> 0 | DB8: ='Financial Model'!CZ56 -> 0 | DC8: ='Financial Model'!DA56 -> 0 | DD8: ='Financial Model'!DB56 -> 0 | DE8: ='Financial Model'!DC56 -> 0 | DF8: ='Financial Model'!DD56 -> 0 | DG8: ='Financial Model'!DE56 -> 0 | DH8: ='Financial Model'!DF56 -> 0 | DI8: ='Financial Model'!DG56 -> 0
